Workbook

Sheet TOOL
A3: We are looking at: | B3: January
AI4: line | AK4: Working Averages
AK6: 24.07433486 | AL6: 992.6363636
AK7: 30.11300001 | AL7: 498.5454545
AK8: 42.25979597 | AL8: 688.1818182
AK9: 42.06880433 | AL9: 542.7272727
A10: Month | B10: Average Wait Time (mins.) | C10: Patient Volume | AK10: 43.2215186 | AL10: 464.8181818
A11: January | B11: =AVERAGE('January 2017'!$G$2:$G$4296) -> 40.95832363 | C11: =COUNT('January 2017'!$A$2:$A$4296) -> 4295 | AK11: 43.89485396 | AL11: 471.8181818
A12: February | B12: =AVERAGE('February 2017'!$G$2:$G$4278) -> 50.71615618 | C12: =COUNT('February 2017'!$A$2:$A$4278) -> 4277 | AK12: 41.42534357 | AL12: 637.2727273
A13: March | B13: =AVERAGE('March 2017'!$G$2:$G$4444) -> 40.86878235 | C13: =COUNT('March 2017'!A:A) -> 4443
A14: April | B14: =AVERAGE('April 2017'!$G$2:$G$4467) -> 37.39843225 | C14: =COUNT('April 2017'!A:A) -> 4466
A15: May | B15: =AVERAGE('May 2017'!$G$2:$G$4576) -> 37.42601093 | C15: =COUNT('May 2017'!A:A) -> 4575 | AK15: 28.53752223 | AL15: 657.8181818
A16: June | B16: =AVERAGE('June 2017'!$G$2:$G$4220) -> 35.78557875 | C16: =COUNT('June 2017'!A:A) -> 4219 | AK16: 43.63188848 | AL16: 677.6363636
A17: July | B17: =AVERAGE('July 2017'!$G$2:$G$4084) -> 30.55767818 | C17: =COUNT('July 2017'!A:A) -> 4083 | AK17: 39.49372979 | AL17: 577.7272727
A18: August | B18: =AVERAGE('August 2017'!$G$2:$G$3976) -> 27.32150943 | C18: =COUNT('August 2017'!A:A) -> 3975 | AK18: 41.77336478 | AL18: 589
A19: September | B19: =AVERAGE('September 2017'!$G$2:$G$4062) -> 27.91972421 | C19: =COUNT('September 2017'!A:A) -> 4061 | AK19: 33.55538097 | AL19: 561.9090909
A20: October | B20: =AVERAGE('October 2017'!$G$2:$G$4302) -> 35.06511628 | C20: =COUNT('October 2017'!A:A) -> 4301 | AK20: 40.43309243 | AL20: 575.8181818
A21: November | B21: 41.43 | C21: 4580 | AK21: 31.67532173 | AL21: 657.8181818
A22: Dec. Forecast | B22: =(B21*0.7+B20*0.2+B19*0.1) -> 38.80599568 | C22: =(C21*0.7+C20*0.2+C19*0.1) -> 4472.3
A24: Most Recent Month's Averages | AK24: 40.03730669 | AL24: 433.5
A25: Birth Year | B25: Average Wait Time | C25: Patient Volume | AK25: 38.36272666 | AL25: 3875.5
A26: 2007 - 2017 | B26: =AVERAGEIF('February 2017'!$A$2:$A$4302,">1/1/2007",'February 2017'!$G$2:$G$4302) -> 38.06384814 | C26: =COUNTIF('February 2017'!A:A,">1/1/2007") -> 1159 | AK26: 20.2634331 | AL26: 53
A27: 1997 - 2006 | B27: =AVERAGEIFS('February 2017'!$G$2:$G$4302,'February 2017'!$A$2:$A$4302,"<1/1/2007",'February 2017'!$A$2:$A$4302,">1/1/1997") -> 45.13755459 | C27: =COUNTIFS('February 2017'!A:A,"<1/1/2007",'February 2017'!A:A,">1/1/1997") -> 458
A28: 1987 - 1996 | B28: =AVERAGEIFS('February 2017'!$G$2:$G$4302,'February 2017'!$A$2:$A$4302,"<1/1/1997",'February 2017'!$A$2:$A$4302,">1/1/1987") -> 58.43645485 | C28: =COUNTIFS('February 2017'!A:A,"<1/1/1997",'February 2017'!A:A,">1/1/1987") -> 598
A29: 1977 - 1986 | B29: =AVERAGEIFS('February 2017'!$G$2:$G$4302,'February 2017'!$A$2:$A$4302,"<1/1/1987",'February 2017'!$A$2:$A$4302,">1/1/1977") -> 57.35114504 | C29: =COUNTIFS('February 2017'!A:A,"<1/1/1987",'February 2017'!A:A,">1/1/1977") -> 524
A30: 1967 - 1976 | B30: =AVERAGEIFS('February 2017'!$G$2:$G$4302,'February 2017'!$A$2:$A$4302,"<1/1/1977",'February 2017'!$A$2:$A$4302,">1/1/1967") -> 57.82365591 | C30: =COUNTIFS('February 2017'!A:A,"<1/1/1977",'February 2017'!A:A,">1/1/1967") -> 465
A31: 1957 - 1966 | B31: =AVERAGEIFS('February 2017'!$G$2:$G$4302,'February 2017'!$A$2:$A$4302,"<1/1/1967",'February 2017'!$A$2:$A$4302,">1/1/1957") -> 58.46753247 | C31: =COUNTIFS('February 2017'!A:A,"<1/1/1967",'February 2017'!A:A,">1/1/1957") -> 462
A32: Before 1957 | B32: =AVERAGEIFS('February 2017'!$G$2:$G$4302,'February 2017'!$A$2:$A$4302,"<1/1/1957") -> 54.36945813 | C32: =COUNTIF('February 2017'!A:A,"<1/1/1957") -> 609
A34: Day of the Week | B34: Average Wait Time | C34: Patient Volume
A35: Sunday | B35: =AVERAGEIF('February 2017'!C:C, "Sunday",'February 2017'!G:G) -> 45.12035661 | C35: =COUNTIF('February 2017'!C:C,"Sunday") -> 673
A36: Monday | B36: =AVERAGEIF('February 2017'!C:C, "Monday",'February 2017'!G:G) -> 53.75808937 | C36: =COUNTIF('February 2017'!C:C,"Monday") -> 649
A37: Tuesday | B37: =AVERAGEIF('February 2017'!C:C, "Tuesday",'February 2017'!G:G) -> 50.39292365 | C37: =COUNTIF('February 2017'!C:C,"Tuesday") -> 537
A38: Wednesday | B38: =AVERAGEIF('February 2017'!C:C, "Wednesday",'February 2017'!G:G) -> 54.40609952 | C38: =COUNTIF('February 2017'!C:C,"Wednesday") -> 623
A39: Thursday | B39: =AVERAGEIF('February 2017'!C:C, "Thursday",'February 2017'!G:G) -> 52.2092511 | C39: =COUNTIF('February 2017'!C:C,"Thursday") -> 454
A40: Friday | B40: =AVERAGEIF('February 2017'!C:C, "Friday",'February 2017'!G:G) -> 50.27121464 | C40: =COUNTIF('February 2017'!C:C,"Friday") -> 601
A41: Saturday | B41: =AVERAGEIF('February 2017'!C:C, "Saturday",'February 2017'!G:G) -> 49.71081081 | C41: =COUNTIF('February 2017'!C:C,"Saturday") -> 740
A43: Appointment Type | B43: Average Wait Time | C43: =C34 -> Patient Volume
A44: Fast-Track Average | B44: =AVERAGEIF('November 2017'!J:J, "FASTTRACK", 'November 2017'!G:G) -> 45.09727626 | C44: =COUNTIF('November 2017'!J:J,"FASTTRACK") -> 514
A45: Walk-In Average | B45: =AVERAGEIF('November 2017'!J:J, "WALKINS", 'November 2017'!G:G) -> 41.20786802 | C45: =COUNTIF('November 2017'!J:J,"WALKINS") -> 3940
A46: Scheduled Average | B46: =AVERAGEIF('November 2017'!J:J, "SCHEDULED", 'November 2017'!G:G) -> 23.18644068 | C46: =COUNTIF('November 2017'!J:J,"SCHEDULED") -> 59
A58: =[1]!TabName() -> 
A59: January 2017
A60: Febuary 2017
A61: March 2017
A62: April 2017
A63: May 2017
A64: June 2017
A65: July 2017
A66: August 2017
A67: September 2017
A68: October 2017

Sheet January 2017
A1: DOB | B1: Visit Date | C1: Day | D1: Block | E1: Time Arrived | F1: Time Roomed | G1: Mins. Arrived to Roomed | H1: Notes | I1: Insurance | K1: =SUBTOTAL(1,G2:G4292) -> 31.47708674
A2: 2016-12-27 | B2: 2017-01-01 | C2: Sunday | D2: 08:00 - 09:00 | E2: 2017-01-01T08:59:59.540 | F2: 2017-01-01T09:01:45.957 | G2: 2
A3: 2016-06-22 | B3: 2017-01-01 | C3: Sunday | D3: 09:00 - 10:00 | E3: 2017-01-01T09:12:23.347 | F3: 2017-01-01T09:14:41.323 | G3: 2
A4: 2012-12-20 | B4: 2017-01-01 | C4: Sunday | D4: 10:00 - 11:00 | E4: 2017-01-01T10:29:45.853 | F4: 2017-01-01T10:43:58.910 | G4: 14 | H4: 10:42 AM: in 161 autistic AL 10:30 AM: NOT SCHEDULED
A5: 1982-09-07 | B5: 2017-01-01 | C5: Sunday | D5: 08:00 - 09:00 | E5: 2017-01-01T08:51:19.773 | F5: 2017-01-01T09:04:48.797 | G5: 13 | H5: 8:59 AM: wall 8:57 AM: regging | I5: Blue Cross\Blue Shield
A6: 1958-03-22 | B6: 2017-01-01 | C6: Sunday | D6: 08:00 - 09:00 | E6: 2017-01-01T08:55:20.407 | F6: 2017-01-01T09:04:35.860 | G6: 9 | H6: 9:04 AM: wall 8:59 AM: regging | I6: Fallon Community Health Plan
A7: 1966-05-01 | B7: 2017-01-01 | C7: Sunday | D7: 08:00 - 09:00 | E7: 2017-01-01T08:57:33.077 | F7: 2017-01-01T09:04:07.143 | G7: 7 | I7: Fallon Community Health Plan
A8: 2015-08-14 | B8: 2017-01-01 | C8: Sunday | D8: 08:00 - 09:00 | E8: 2017-01-01T08:58:26.853 | F8: 2017-01-01T09:01:32.487 | G8: 3 | I8: Medicaid\Mass Health
A9: 1971-07-07 | B9: 2017-01-01 | C9: Sunday | D9: 08:00 - 09:00 | E9: 2017-01-01T08:58:52.430 | F9: 2017-01-01T09:07:52.483 | G9: 9 | H9: 9:07 AM: bmc 9:04 AM: regging | I9: Medicaid\Mass Health
A10: 1948-08-25 | B10: 2017-01-01 | C10: Sunday | D10: 09:00 - 10:00 | E10: 2017-01-01T09:01:31.737 | F10: 2017-01-01T09:03:03.800 | G10: 2 | I10: Medicare
A11: 1975-09-22 | B11: 2017-01-01 | C11: Sunday | D11: 09:00 - 10:00 | E11: 2017-01-01T09:02:22.347 | F11: 2017-01-01T09:05:34.173 | G11: 3 | I11: Other
A12: 2015-05-02 | B12: 2017-01-01 | C12: Sunday | D12: 09:00 - 10:00 | E12: 2017-01-01T09:03:36.170 | F12: 2017-01-01T09:24:09.923 | G12: 21 | H12: 9:16 AM: WALL 9:08 AM: regging | I12: Blue Cross\Blue Shield
A13: 1985-10-30 | B13: 2017-01-01 | C13: Sunday | D13: 09:00 - 10:00 | E13: 2017-01-01T09:09:24.730 | F13: 2017-01-01T09:39:53.567 | G13: 30 | H13: 9:19 AM: WALL 9:17 AM: REGGING | I13: Blue Cross\Blue Shield
A14: 1955-05-16 | B14: 2017-01-01 | C14: Sunday | D14: 09:00 - 10:00 | E14: 2017-01-01T09:10:51.280 | F14: 2017-01-01T09:25:06.220 | G14: 15 | H14: 9:22 AM: WALL 9:19 AM: REGGING | I14: Blue Cross\Blue Shield
A15: 2015-09-09 | B15: 2017-01-01 | C15: Sunday | D15: 09:00 - 10:00 | E15: 2017-01-01T09:13:20.320 | F15: 2017-01-01T09:34:32.040 | G15: 21 | H15: 9:31 AM: WALL 9:16 AM: new pt | I15: Aetna
A16: 2016-06-22 | B16: 2017-01-01 | C16: Sunday | D16: 09:00 - 10:00 | E16: 2017-01-01T09:13:21.263 | F16: 2017-01-01T09:14:38.900 | G16: 1 | I16: Blue Cross\Blue Shield
A17: 1982-04-16 | B17: 2017-01-01 | C17: Sunday | D17: 09:00 - 10:00 | E17: 2017-01-01T09:19:26.263 | F17: 2017-01-01T09:44:07.377 | G17: 25 | H17: 9:32 AM: REGGING | I17: Fallon Community Health Plan
A18: 2015-12-15 | B18: 2017-01-01 | C18: Sunday | D18: 09:00 - 10:00 | E18: 2017-01-01T09:20:14.750 | F18: 2017-01-01T09:53:11.713 | G18: 33 | H18: 9:34 AM: REGGING 9:32 AM: ?d.o.b. 12/11/15 ins rejected inelible | I18: Fallon Community Health Plan
A19: 2012-07-31 | B19: 2017-01-01 | C19: Sunday | D19: 09:00 - 10:00 | E19: 2017-01-01T09:29:32.650 | F19: 2017-01-01T09:37:45.477 | G19: 8 | I19: Cigna
A20: 2013-07-29 | B20: 2017-01-01 | C20: Sunday | D20: 09:00 - 10:00 | E20: 2017-01-01T09:32:29.033 | F20: 2017-01-01T10:01:09.207 | G20: 29 | H20: 9:56 AM: WALL 9:46 AM: REGGING | I20: Harvard Pilgrim
A21: 2015-12-10 | B21: 2017-01-01 | C21: Sunday | D21: 09:00 - 10:00 | E21: 2017-01-01T09:32:47.753 | F21: 2017-01-01T10:01:10.007 | G21: 29 | H21: 9:56 AM: WALL 9:46 AM: REGGING | I21: Harvard Pilgrim
A22: 1989-10-03 | B22: 2017-01-01 | C22: Sunday | D22: 09:00 - 10:00 | E22: 2017-01-01T09:33:19.990 | F22: 2017-01-01T10:01:39.223 | G22: 28 | H22: 10:01 AM: WALL 9:57 AM: REGGING 9:42 AM: ins ver | I22: Blue Cross\Blue Shield
A23: 2015-12-10 | B23: 2017-01-01 | C23: Sunday | D23: 09:00 - 10:00 | E23: 2017-01-01T09:33:32.033 | F23: 2017-01-01T10:01:10.787 | G23: 28 | H23: 9:56 AM: WALL 9:46 AM: REGGING | I23: Harvard Pilgrim
A24: 2016-03-21 | B24: 2017-01-01 | C24: Sunday | D24: 09:00 - 10:00 | E24: 2017-01-01T09:34:21.143 | F24: 2017-01-01T09:54:20.887 | G24: 20 | H24: 9:52 AM: ok to wait; no respiratory distress | I24: Medicaid\Mass Health
A25: 1959-05-08 | B25: 2017-01-01 | C25: Sunday | D25: 09:00 - 10:00 | E25: 2017-01-01T09:42:12.633 | F25: 2017-01-01T09:57:12.447 | G25: 15 | H25: 9:53 AM: ins ver | I25: Fallon Community Health Plan
A26: 1957-05-30 | B26: 2017-01-01 | C26: Sunday | D26: 09:00 - 10:00 | E26: 2017-01-01T09:42:31.217 | F26: 2017-01-01T10:04:12.220 | G26: 22 | H26: 9:53 AM: fchp- ins ver | I26: Other
A27: 1954-05-07 | B27: 2017-01-01 | C27: Sunday | D27: 09:00 - 10:00 | E27: 2017-01-01T09:43:04.933 | F27: 2017-01-01T10:09:03.717 | G27: 26 | H27: 10:08 AM: WALL 10:07 AM: REGGING 9:54 AM: ins ver | I27: Other
A28: 2016-04-21 | B28: 2017-01-01 | C28: Sunday | D28: 09:00 - 10:00 | E28: 2017-01-01T09:46:23.127 | F28: 2017-01-01T10:04:45.377 | G28: 18 | I28: Blue Cross\Blue Shield
A29: 1975-09-29 | B29: 2017-01-01 | C29: Sunday | D29: 09:00 - 10:00 | E29: 2017-01-01T09:50:09.160 | F29: 2017-01-01T10:13:12.607 | G29: 23 | H29: 10:11 AM: WALL 10:09 AM: REGGING 9:55 AM: ins ver | I29: Tufts
A30: 1950-10-30 | B30: 2017-01-01 | C30: Sunday | D30: 09:00 - 10:00 | E30: 2017-01-01T09:50:27.727 | F30: 2017-01-01T10:46:52.017 | G30: 56 | H30: 10:19 AM: WALL 9:56 AM: ins ver | I30: Tufts
A31: 1967-03-03 | B31: 2017-01-01 | C31: Sunday | D31: 09:00 - 10:00 | E31: 2017-01-01T09:51:44.987 | F31: 2017-01-01T10:46:26.330 | G31: 55 | H31: 10:23 AM: WALL 10:20 AM: NOT NEW 9:59 AM: new patient- not mh | I31: Tufts
A32: 2008-11-25 | B32: 2017-01-01 | C32: Sunday | D32: 09:00 - 10:00 | E32: 2017-01-01T09:51:51.360 | F32: 2017-01-01T10:16:23.463 | G32: 25 | H32: 10:15 AM: WALL 10:12 AM: REGGING | I32: Medicaid\Mass Health
A33: 2014-07-21 | B33: 2017-01-01 | C33: Sunday | D33: 09:00 - 10:00 | E33: 2017-01-01T09:53:03.860 | F33: 2017-01-01T10:36:25.213 | G33: 43 | H33: 10:29 AM: WALL 10:27 AM: REGGING 10:25 AM: INS VERIFIED | I33: Blue Cross\Blue Shield
A34: 1945-06-01 | B34: 2017-01-01 | C34: Sunday | D34: 09:00 - 10:00 | E34: 2017-01-01T09:53:09.850 | F34: 2017-01-01T10:06:32.937 | G34: 13 | H34: 10:06 AM: unable to see d/t insurance | I34: Other
A35: 1974-01-06 | B35: 2017-01-01 | C35: Sunday | D35: 09:00 - 10:00 | E35: 2017-01-01T09:57:15.250 | F35: 2017-01-01T10:46:27.563 | G35: 49 | H35: 10:39 AM: wall 10:36 AM: regged, on wall 10:02 AM: ins ver | I35: Fallon Community Health Plan
A36: 1966-11-26 | B36: 2017-01-01 | C36: Sunday | D36: 10:00 - 11:00 | E36: 2017-01-01T10:02:19.287 | F36: 2017-01-01T10:05:49.783 | G36: 3 | H36: 10:04 AM: nurse checking | I36: Blue Cross\Blue Shield
A37: 1954-06-30 | B37: 2017-01-01 | C37: Sunday | D37: 10:00 - 11:00 | E37: 2017-01-01T10:08:40.980 | F37: 2017-01-01T10:48:44.217 | G37: 40 | H37: 10:46 AM: regging 10:40 AM: regged, wall 10:13 AM: ins ver | I37: Blue Cross\Blue Shield
A38: 1959-06-21 | B38: 2017-01-01 | C38: Sunday | D38: 10:00 - 11:00 | E38: 2017-01-01T10:11:52.153 | F38: 2017-01-01T10:57:31.713 | G38: 46 | H38: 10:49 AM: regged, on wall 10:15 AM: ins ver | I38: Medicare
A39: 1989-05-13 | B39: 2017-01-01 | C39: Sunday | D39: 10:00 - 11:00 | E39: 2017-01-01T10:12:53.203 | F39: 2017-01-01T11:08:19.750 | G39: 56 | H39: 10:51 AM: wall 10:50 AM: regging 10:14 AM: ins ver | I39: Medicaid\Mass Health
A40: 1969-02-03 | B40: 2017-01-01 | C40: Sunday | D40: 10:00 - 11:00 | E40: 2017-01-01T10:14:57.273 | F40: 2017-01-01T11:16:14.683 | G40: 62 | H40: 10:56 AM: wall 10:55 AM: regging 10:15 AM: ins ver | I40: Tufts
A41: 1989-06-26 | B41: 2017-01-01 | C41: Sunday | D41: 10:00 - 11:00 | E41: 2017-01-01T10:18:10.067 | F41: 2017-01-01T10:42:11.207 | G41: 24 | I41: Fallon Community Health Plan
A42: 2006-05-02 | B42: 2017-01-01 | C42: Sunday | D42: 10:00 - 11:00 | E42: 2017-01-01T10:20:15.990 | F42: 2017-01-01T10:33:49.793 | G42: 13 | H42: 10:31 AM: WALL 10:28 AM: bump to next AL 10:26 AM: INS VERIFIED | I42: Fallon Community Health Plan
A43: 2006-09-12 | B43: 2017-01-01 | C43: Sunday | D43: 10:00 - 11:00 | E43: 2017-01-01T10:22:17.443 | F43: 2017-01-01T10:41:51.850 | G43: 19 | H43: 10:41 AM: regged, on wall 10:27 AM: INS VERIFIED | I43: Fallon Community Health Plan
A44: 1926-03-08 | B44: 2017-01-01 | C44: Sunday | D44: 10:00 - 11:00 | E44: 2017-01-01T10:24:48.947 | F44: 2017-01-01T11:31:32.297 | G44: 67 | H44: 11:11 AM: ON WALL 11:04 AM: regging 10:43 AM: new pt | I44: Blue Cross\Blue Shield
A45: 2014-06-25 | B45: 2017-01-01 | C45: Sunday | D45: 10:00 - 11:00 | E45: 2017-01-01T10:27:35.953 | F45: 2017-01-01T10:57:10.977 | G45: 30 | H45: 10:45 AM: weall 10:42 AM: regging | I45: Tufts
A46: 2015-07-03 | B46: 2017-01-01 | C46: Sunday | D46: 10:00 - 11:00 | E46: 2017-01-01T10:28:05.597 | F46: 2017-01-01T11:15:47.993 | G46: 47 | H46: 10:59 AM: wall 10:58 AM: regging 10:37 AM: ok to wait- Cough/congestion | I46: Blue Cross\Blue Shield
A47: 1981-06-07 | B47: 2017-01-01 | C47: Sunday | D47: 10:00 - 11:00 | E47: 2017-01-01T10:30:47.690 | F47: 2017-01-01T12:07:23.987 | G47: 97 | H47: 11:17 AM: ON WALL | I47: Blue Cross\Blue Shield
A48: 1955-06-17 | B48: 2017-01-01 | C48: Sunday | D48: 10:00 - 11:00 | E48: 2017-01-01T10:33:57.090 | F48: 2017-01-01T12:08:50.593 | G48: 95 | H48: 11:27 AM: WALL 10:37 AM: ins ver | I48: Medicaid\Mass Health
A49: 1986-01-24 | B49: 2017-01-01 | C49: Sunday | D49: 10:00 - 11:00 | E49: 2017-01-01T10:39:49.363 | F49: 2017-01-01T12:14:55.307 | G49: 95 | H49: 11:41 AM: ON WALL 11:34 AM: INS PROBLEM 10:45 AM: ins rejected | I49: Harvard Pilgrim
A50: 1984-03-19 | B50: 2017-01-01 | C50: Sunday | D50: 10:00 - 11:00 | E50: 2017-01-01T10:49:45.840 | F50: 2017-01-01T11:59:50.303 | G50: 70 | H50: 11:59 AM: fchp inactive - going to er | I50: Fallon Community Health Plan
A51: 2016-10-21 | B51: 2017-01-01 | C51: Sunday | D51: 10:00 - 11:00 | E51: 2017-01-01T10:52:08.323 | F51: 2017-01-01T11:15:50.900 | G51: 23 | H51: 11:02 AM: wall 11:00 AM: regging | I51: Medicaid\Mass Health
A52: 1992-10-26 | B52: 2017-01-01 | C52: Sunday | D52: 10:00 - 11:00 | E52: 2017-01-01T10:57:13.510 | F52: 2017-01-01T12:20:10.053 | G52: 83 | H52: 12:09 PM: regging | I52: Blue Cross\Blue Shield
A53: 2015-02-02 | B53: 2017-01-01 | C53: Sunday | D53: 10:00 - 11:00 | E53: 2017-01-01T10:57:25.253 | F53: 2017-01-01T11:30:38.030 | G53: 33 | H53: 11:21 AM: WALL 11:17 AM: REGGING | I53: Fallon Community Health Plan
A54: 2015-03-22 | B54: 2017-01-01 | C54: Sunday | D54: 10:00 - 11:00 | E54: 2017-01-01T10:57:29.517 | F54: 2017-01-01T11:34:13.823 | G54: 37 | H54: 11:23 AM: WALL 11:21 AM: REGGING | I54: Blue Cross\Blue Shield
A55: 1991-05-29 | B55: 2017-01-01 | C55: Sunday | D55: 11:00 - 12:00 | E55: 2017-01-01T11:11:22.367 | F55: 2017-01-01T13:50:07.287 | G55: 159 | H55: 1:50 PM: CALLED NO ANS 12:22 PM: CALLED, NO ANS | I55: Self Pay\No Insurance
A56: 1923-05-09 | B56: 2017-01-01 | C56: Sunday | D56: 11:00 - 12:00 | E56: 2017-01-01T11:16:46.540 | F56: 2017-01-01T12:24:09.240 | G56: 68 | H56: 12:08 PM: regged, on wall 12:03 PM: sore throat x1 weeks, 'muffled' voice - ok'ed jpc | I56: Medicaid\Mass Health
A57: 2016-10-03 | B57: 2017-01-01 | C57: Sunday | D57: 11:00 - 12:00 | E57: 2017-01-01T11:26:45.550 | F57: 2017-01-01T11:52:40.170 | G57: 26 | H57: 11:49 AM: WALL 11:47 AM: REGGING 11:42 AM: ins ver | I57: Medicaid\Mass Health
A58: 2007-01-25 | B58: 2017-01-01 | C58: Sunday | D58: 11:00 - 12:00 | E58: 2017-01-01T11:32:30.610 | F58: 2017-01-01T12:01:56.227 | G58: 29 | H58: 11:51 AM: WALL 11:50 AM: REGGING 11:46 AM: ins ver | I58: Medicaid\Mass Health
A59: 2009-07-25 | B59: 2017-01-01 | C59: Sunday | D59: 11:00 - 12:00 | E59: 2017-01-01T11:38:38.143 | F59: 2017-01-01T12:11:47.450 | G59: 33 | H59: 11:49 AM: ins ver | I59: Harvard Pilgrim
A60: 1969-06-17 | B60: 2017-01-01 | C60: Sunday | D60: 11:00 - 12:00 | E60: 2017-01-01T11:39:47.943 | F60: 2017-01-01T12:41:53.193 | G60: 62 | H60: 12:26 PM: WALL 12:23 PM: REGGING | I60: Blue Cross\Blue Shield
A61: 2005-02-02 | B61: 2017-01-01 | C61: Sunday | D61: 11:00 - 12:00 | E61: 2017-01-01T11:42:15.260 | F61: 2017-01-01T12:23:49.147 | G61: 41 | H61: 11:51 AM: ins ver | I61: Medicaid\Mass Health
A62: 1962-02-07 | B62: 2017-01-01 | C62: Sunday | D62: 11:00 - 12:00 | E62: 2017-01-01T11:48:39.853 | F62: 2017-01-01T12:30:50.267 | G62: 42 | H62: 12:27 PM: REGGING | I62: Harvard Pilgrim
A63: 1953-08-04 | B63: 2017-01-01 | C63: Sunday | D63: 11:00 - 12:00 | E63: 2017-01-01T11:50:21.903 | F63: 2017-01-01T13:18:53.620 | G63: 88 | H63: 12:40 PM: REGGED, ON WALL | I63: Fallon Community Health Plan
A64: 1967-01-17 | B64: 2017-01-01 | C64: Sunday | D64: 12:00 - 13:00 | E64: 2017-01-01T12:01:50.213 | F64: 2017-01-01T13:36:36.460 | G64: 95 | H64: 12:45 PM: REGGED, ON WALL | I64: Fallon Community Health Plan
A65: 2010-03-26 | B65: 2017-01-01 | C65: Sunday | D65: 12:00 - 13:00 | E65: 2017-01-01T12:04:39.363 | F65: 2017-01-01T12:24:04.177 | G65: 20 | I65: Blue Cross\Blue Shield
A66: 1964-05-12 | B66: 2017-01-01 | C66: Sunday | D66: 12:00 - 13:00 | E66: 2017-01-01T12:11:49.370 | F66: 2017-01-01T13:37:27.697 | G66: 86 | H66: 1:01 PM: ON WALL 12:58 PM: REGGING | I66: Fallon Community Health Plan
A67: 1949-12-01 | B67: 2017-01-01 | C67: Sunday | D67: 12:00 - 13:00 | E67: 2017-01-01T12:31:40.687 | F67: 2017-01-01T12:48:26.797 | G67: 17 | H67: 12:36 PM: blood draw only - order in epic. 12:36 PM: BLOOD DRAW PER WADE B
A68: 2015-04-28 | B68: 2017-01-01 | C68: Sunday | D68: 12:00 - 13:00 | E68: 2017-01-01T12:38:05.603 | F68: 2017-01-01T12:41:27.100 | G68: 3 | I68: Blue Cross\Blue Shield
A69: 2003-11-20 | B69: 2017-01-01 | C69: Sunday | D69: 12:00 - 13:00 | E69: 2017-01-01T12:39:35.537 | F69: 2017-01-01T12:42:42.977 | G69: 3 | I69: Blue Cross\Blue Shield
A70: 1978-09-26 | B70: 2017-01-01 | C70: Sunday | D70: 12:00 - 13:00 | E70: 2017-01-01T12:40:25.260 | F70: 2017-01-01T14:28:51.660 | G70: 108 | H70: 1:18 PM: WALL 1:16 PM: REGGING | I70: Other
A71: 2010-06-16 | B71: 2017-01-01 | C71: Sunday | D71: 12:00 - 13:00 | E71: 2017-01-01T12:40:47.990 | F71: 2017-01-01T13:01:31.587 | G71: 21 | H71: 12:52 PM: REGGED, ON WALL | I71: Medicaid\Mass Health
A72: 2011-07-15 | B72: 2017-01-01 | C72: Sunday | D72: 12:00 - 13:00 | E72: 2017-01-01T12:41:06.237 | F72: 2017-01-01T13:04:34.160 | G72: 23 | H72: 12:58 PM: WALL 12:52 PM: REGGING | I72: Other
A73: 2016-05-28 | B73: 2017-01-01 | C73: Sunday | D73: 12:00 - 13:00 | E73: 2017-01-01T12:45:36.803 | F73: 2017-01-01T13:24:50.363 | G73: 39 | H73: 1:13 PM: regged on wall 1:02 PM: REGGING | I73: Blue Cross\Blue Shield
A74: 2014-09-02 | B74: 2017-01-01 | C74: Sunday | D74: 12:00 - 13:00 | E74: 2017-01-01T12:49:04.207 | F74: 2017-01-01T13:09:12.500 | G74: 20 | I74: Harvard Pilgrim
A75: 2005-03-09 | B75: 2017-01-01 | C75: Sunday | D75: 13:00 - 14:00 | E75: 2017-01-01T13:06:02.630 | F75: 2017-01-01T13:10:43.360 | G75: 4 | I75: Fallon Community Health Plan
A76: 2001-09-20 | B76: 2017-01-01 | C76: Sunday | D76: 13:00 - 14:00 | E76: 2017-01-01T13:33:49.170 | F76: 2017-01-01T13:35:06.887 | G76: 2 | I76: Harvard Pilgrim
A77: 2015-09-23 | B77: 2017-01-01 | C77: Sunday | D77: 13:00 - 14:00 | E77: 2017-01-01T13:34:54.203 | F77: 2017-01-01T13:50:06.940 | G77: 16 | H77: 1:49 PM: REGGED, ON WALL 1:43 PM: new pt, ins ver, ?if referral needed | I77: Medicaid\Mass Health
A78: 1970-01-10 | B78: 2017-01-01 | C78: Sunday | D78: 13:00 - 14:00 | E78: 2017-01-01T13:53:33.260 | F78: 2017-01-01T14:16:33.077 | G78: 23 | H78: 1:58 PM: regged, on wall | I78: Other
A79: 1965-04-23 | B79: 2017-01-01 | C79: Sunday | D79: 13:00 - 14:00 | E79: 2017-01-01T13:54:00.430 | F79: 2017-01-01T14:05:34.680 | G79: 11 | H79: 2:05 PM: tufts health direct, not accepted here 2:04 PM: ins problem 1:59 PM: regging | I79: Tufts
A80: 1943-10-20 | B80: 2017-01-01 | C80: Sunday | D80: 13:00 - 14:00 | E80: 2017-01-01T13:58:45.827 | F80: 2017-01-01T14:33:07.050 | G80: 35 | H80: 2:08 PM: on wall 2:05 PM: regging | I80: Medicare
A81: 2011-09-09 | B81: 2017-01-01 | C81: Sunday | D81: 14:00 - 15:00 | E81: 2017-01-01T14:01:47.770 | F81: 2017-01-01T14:04:58.523 | G81: 3 | I81: Medicaid\Mass Health
A82: 1985-10-25 | B82: 2017-01-01 | C82: Sunday | D82: 14:00 - 15:00 | E82: 2017-01-01T14:05:44.550 | F82: 2017-01-01T14:48:19.177 | G82: 43 | H82: 2:16 PM: regged, on wall | I82: Fallon Community Health Plan
A83: 1998-11-05 | B83: 2017-01-01 | C83: Sunday | D83: 14:00 - 15:00 | E83: 2017-01-01T14:07:58.977 | F83: 2017-01-01T14:30:53.800 | G83: 23 | H83: 2:29 PM: WALL 2:27 PM: PEDI PT 2:22 PM: regging | I83: Fallon Community Health Plan
A84: 1964-03-06 | B84: 2017-01-01 | C84: Sunday | D84: 14:00 - 15:00 | E84: 2017-01-01T14:19:47.563 | F84: 2017-01-01T15:08:19.303 | G84: 49 | H84: 2:43 PM: REGGED, ON WALL | I84: Medicaid\Mass Health
A85: 2013-12-14 | B85: 2017-01-01 | C85: Sunday | D85: 14:00 - 15:00 | E85: 2017-01-01T14:22:10.410 | F85: 2017-01-01T14:30:44.520 | G85: 8 | H85: 2:30 PM: CALLED, NO ANS 2:29 PM: NEW INS 2:28 PM: REGGING | I85: Fallon Community Health Plan
A86: 2006-10-24 | B86: 2017-01-01 | C86: Sunday | D86: 14:00 - 15:00 | E86: 2017-01-01T14:28:11.770 | F86: 2017-01-01T14:37:06.140 | G86: 9 | I86: Fallon Community Health Plan
A87: 1954-03-07 | B87: 2017-01-01 | C87: Sunday | D87: 14:00 - 15:00 | E87: 2017-01-01T14:28:54.460 | F87: 2017-01-01T15:22:19.667 | G87: 54 | H87: 2:51 PM: REGGING | I87: Harvard Pilgrim
A88: 1923-07-15 | B88: 2017-01-01 | C88: Sunday | D88: 14:00 - 15:00 | E88: 2017-01-01T14:36:08.627 | F88: 2017-01-01T15:42:58.010 | G88: 66 | H88: 2:46 PM: ON WALL 2:45 PM: NOT ACTIVELY BLEEDING 2:44 PM: CHECKING IN BUBBLE | I88: Medicare
A89: 1974-08-03 | B89: 2017-01-01 | C89: Sunday | D89: 14:00 - 15:00 | E89: 2017-01-01T14:44:12.407 | F89: 2017-01-01T16:00:08.263 | G89: 76 | H89: 3:30 PM: on wall 3:30 PM: reg | I89: Medicaid\Mass Health
A90: 1968-05-25 | B90: 2017-01-01 | C90: Sunday | D90: 14:00 - 15:00 | E90: 2017-01-01T14:49:49.960 | F90: 2017-01-01T15:59:48.030 | G90: 70 | H90: 3:41 PM: ON WALL 3:35 PM: reg | I90: Medicaid\Mass Health
A91: 2011-04-07 | B91: 2017-01-01 | C91: Sunday | D91: 14:00 - 15:00 | E91: 2017-01-01T14:50:44.477 | F91: 2017-01-01T15:06:38.447 | G91: 16 | H91: 2:53 PM: NEW PT 2:52 PM: REGGING | I91: Tufts
A92: 2014-08-09 | B92: 2017-01-01 | C92: Sunday | D92: 14:00 - 15:00 | E92: 2017-01-01T14:51:08.777 | F92: 2017-01-01T14:59:56.200 | G92: 8 | I92: Blue Cross\Blue Shield
A93: 1996-07-09 | B93: 2017-01-01 | C93: Sunday | D93: 14:00 - 15:00 | E93: 2017-01-01T14:56:58.543 | F93: 2017-01-01T15:09:03.537 | G93: 13 | I93: Fallon Community Health Plan
A94: 1958-11-18 | B94: 2017-01-01 | C94: Sunday | D94: 15:00 - 16:00 | E94: 2017-01-01T15:00:32.723 | F94: 2017-01-01T16:29:11.523 | G94: 89 | H94: 4:06 PM: on wall 4:01 PM: 3:44 PM: REG | I94: Medicaid\Mass Health
A95: 2014-07-23 | B95: 2017-01-01 | C95: Sunday | D95: 15:00 - 16:00 | E95: 2017-01-01T15:01:55.527 | F95: 2017-01-01T15:12:27.597 | G95: 11 | I95: Fallon Community Health Plan
A96: 1966-01-30 | B96: 2017-01-01 | C96: Sunday | D96: 15:00 - 16:00 | E96: 2017-01-01T15:06:30.890 | F96: 2017-01-01T16:43:30.667 | G96: 97 | H96: 4:13 PM: on wall 4:08 PM: reg 4:04 PM: reg 4:02 PM: bc/bs website down? e-rejected but w/c | I96: Blue Cross\Blue Shield
A97: 1954-02-09 | B97: 2017-01-01 | C97: Sunday | D97: 15:00 - 16:00 | E97: 2017-01-01T15:13:52.270 | F97: 2017-01-01T16:43:08.247 | G97: 90 | H97: 4:13 PM: on wall 4:01 PM: ins verified 3:19 PM: OK TO WAIT, SATING 98%- AR | I97: Fallon Community Health Plan
A98: 2014-12-22 | B98: 2017-01-01 | C98: Sunday | D98: 15:00 - 16:00 | E98: 2017-01-01T15:18:33.250 | F98: 2017-01-01T15:34:26.800 | G98: 16 | I98: Medicaid\Mass Health
A99: 1960-11-10 | B99: 2017-01-01 | C99: Sunday | D99: 15:00 - 16:00 | E99: 2017-01-01T15:27:41.923 | F99: 2017-01-01T17:22:53.903 | G99: 115 | H99: 4:19 PM: on wall 4:15 PM: reg 4:01 PM: ins verified | I99: Fallon Community Health Plan
A100: 2016-02-04 | B100: 2017-01-01 | C100: Sunday | D100: 15:00 - 16:00 | E100: 2017-01-01T15:31:54.733 | F100: 2017-01-01T15:40:03.687 | G100: 9 | I100: Fallon Community Health Plan
A101: 2008-12-27 | B101: 2017-01-01 | C101: Sunday | D101: 15:00 - 16:00 | E101: 2017-01-01T15:39:40.477 | F101: 2017-01-01T15:47:08.163 | G101: 8 | H101: 3:46 PM: ins ver | I101: Fallon Community Health Plan
A102: 1968-07-07 | B102: 2017-01-01 | C102: Sunday | D102: 15:00 - 16:00 | E102: 2017-01-01T15:46:30.897 | F102: 2017-01-01T17:22:55.107 | G102: 96 | H102: 4:26 PM: on wall 4:25 PM: reg 4:03 PM: ?bc/bs down 3:59 PM: ins rejected | I102: Blue Cross\Blue Shield
A103: 1999-04-09 | B103: 2017-01-01 | C103: Sunday | D103: 15:00 - 16:00 | E103: 2017-01-01T15:57:29.190 | F103: 2017-01-01T16:06:08.493 | G103: 9 | H103: 4:03 PM: new ins | I103: Blue Cross\Blue Shield
A104: 2016-08-20 | B104: 2017-01-01 | C104: Sunday | D104: 16:00 - 17:00 | E104: 2017-01-01T16:02:21.520 | F104: 2017-01-01T16:12:15.833 | G104: 10 | H104: 4:04 PM: ins verified | I104: Blue Cross\Blue Shield
A105: 2016-02-10 | B105: 2017-01-01 | C105: Sunday | D105: 16:00 - 17:00 | E105: 2017-01-01T16:03:34.157 | F105: 2017-01-01T16:22:35.310 | G105: 19 | H105: 4:05 PM: ins verified | I105: Medicaid\Mass Health
A106: 2011-08-01 | B106: 2017-01-01 | C106: Sunday | D106: 16:00 - 17:00 | E106: 2017-01-01T16:04:39.777 | F106: 2017-01-01T16:25:45.963 | G106: 21 | H106: 4:06 PM: ins verified | I106: Medicaid\Mass Health
A107: 2016-10-09 | B107: 2017-01-01 | C107: Sunday | D107: 16:00 - 17:00 | E107: 2017-01-01T16:09:18.510 | F107: 2017-01-01T16:33:42.753 | G107: 24 | H107: 4:11 PM: ins verified, need to add pcp, may need referral | I107: Medicaid\Mass Health
A108: 2015-07-11 | B108: 2017-01-01 | C108: Sunday | D108: 16:00 - 17:00 | E108: 2017-01-01T16:16:39.483 | F108: 2017-01-01T16:36:08.547 | G108: 20 | H108: 4:21 PM: ins verified | I108: Blue Cross\Blue Shield
A109: 2014-07-11 | B109: 2017-01-01 | C109: Sunday | D109: 16:00 - 17:00 | E109: 2017-01-01T16:16:44.440 | F109: 2017-01-01T17:45:48.933 | G109: 89 | H109: 5:45 PM: called no ans 5:19 PM: called no ans 5:06 PM: call no answer 4:22 PM: ins verified | I109: Medicaid\Mass Health
A110: 1977-03-23 | B110: 2017-01-01 | C110: Sunday | D110: 16:00 - 17:00 | E110: 2017-01-01T16:19:44.307 | F110: 2017-01-01T17:24:33.323 | G110: 65 | H110: 4:37 PM: on wall 4:29 PM: 97% cold sx x 2 weeks - KN 4:24 PM: 2 in epic with same name, same dob | I110: Fallon Community Health Plan
A111: 1969-12-10 | B111: 2017-01-01 | C111: Sunday | D111: 16:00 - 17:00 | E111: 2017-01-01T16:27:09.020 | F111: 2017-01-01T17:45:51.650 | G111: 78 | H111: 4:52 PM: on wall 4:52 PM: reg 4:30 PM: ins verified | I111: Fallon Community Health Plan
A112: 1998-12-30 | B112: 2017-01-01 | C112: Sunday | D112: 16:00 - 17:00 | E112: 2017-01-01T16:30:35.750 | F112: 2017-01-01T17:05:48.353 | G112: 35 | H112: 5:01 PM: on wall 4:53 PM: reg 4:41 PM: ins verified | I112: Harvard Pilgrim
A113: 2015-07-19 | B113: 2017-01-01 | C113: Sunday | D113: 16:00 - 17:00 | E113: 2017-01-01T16:30:50.440 | F113: 2017-01-01T17:07:14.617 | G113: 37 | H113: 4:38 PM: ins verified | I113: Harvard Pilgrim
A114: 1995-06-13 | B114: 2017-01-01 | C114: Sunday | D114: 16:00 - 17:00 | E114: 2017-01-01T16:35:24.950 | F114: 2017-01-01T18:15:53.970 | G114: 100 | H114: 5:36 PM: regged, on wall 4:42 PM: plan mismatch | I114: Medicaid\Mass Health
A115: 2016-06-08 | B115: 2017-01-01 | C115: Sunday | D115: 16:00 - 17:00 | E115: 2017-01-01T16:36:41.127 | F115: 2017-01-01T16:47:28.150 | G115: 11 | H115: 4:45 PM: bump to next AL 4:39 PM: ins verified | I115: Medicaid\Mass Health
A116: 2014-04-26 | B116: 2017-01-01 | C116: Sunday | D116: 16:00 - 17:00 | E116: 2017-01-01T16:48:24.883 | F116: 2017-01-01T17:16:22.377 | G116: 28 | H116: 4:52 PM: ins verified | I116: Medicaid\Mass Health
A117: 2011-05-22 | B117: 2017-01-01 | C117: Sunday | D117: 16:00 - 17:00 | E117: 2017-01-01T16:53:29.223 | F117: 2017-01-01T17:28:25.837 | G117: 35 | H117: 5:23 PM: wall 5:19 PM: regging 5:03 PM: ins verified | I117: Fallon Community Health Plan
A118: 1976-05-09 | B118: 2017-01-01 | C118: Sunday | D118: 17:00 - 18:00 | E118: 2017-01-01T17:02:36.637 | F118: 2017-01-01T18:12:56.803 | G118: 70 | H118: 5:42 PM: wall 5:22 PM: OK POX 98% ?GERD 5:04 PM: pcp, plan mismatch | I118: Medicaid\Mass Health
A119: 2004-08-12 | B119: 2017-01-01 | C119: Sunday | D119: 17:00 - 18:00 | E119: 2017-01-01T17:05:48.840 | F119: 2017-01-01T17:29:01.163 | G119: 24 | H119: 5:26 PM: wall 5:23 PM: regging 5:07 PM: ins verified | I119: Blue Cross\Blue Shield
A120: 2008-03-17 | B120: 2017-01-01 | C120: Sunday | D120: 17:00 - 18:00 | E120: 2017-01-01T17:06:29.083 | F120: 2017-01-01T17:50:10.023 | G120: 44 | H120: 5:40 PM: wall 5:37 PM: regging 5:08 PM: ins verified | I120: Medicaid\Mass Health
A121: 2015-05-10 | B121: 2017-01-01 | C121: Sunday | D121: 17:00 - 18:00 | E121: 2017-01-01T17:06:31.543 | F121: 2017-01-01T17:40:26.530 | G121: 34 | H121: 5:09 PM: ins verified | I121: Fallon Community Health Plan
A122: 2012-08-07 | B122: 2017-01-01 | C122: Sunday | D122: 17:00 - 18:00 | E122: 2017-01-01T17:18:36.673 | F122: 2017-01-01T17:54:10.880 | G122: 36 | H122: 5:41 PM: called no ans 5:41 PM: regging 5:38 PM: ins ver | I122: Medicaid\Mass Health
A123: 1984-01-21 | B123: 2017-01-01 | C123: Sunday | D123: 17:00 - 18:00 | E123: 2017-01-01T17:26:27.347 | F123: 2017-01-01T18:17:17.987 | G123: 51 | H123: 5:53 PM: mild-moderate testicular pain x 3 days, frequent urination, okay to wait AR 5:44 PM: regged, on wall | I123: Blue Cross\Blue Shield
A124: 1985-09-27 | B124: 2017-01-01 | C124: Sunday | D124: 17:00 - 18:00 | E124: 2017-01-01T17:29:22.843 | F124: 2017-01-01T18:36:48.003 | G124: 67 | H124: 5:52 PM: regged, on wall - mva | I124: Blue Cross\Blue Shield
A125: 1961-04-15 | B125: 2017-01-01 | C125: Sunday | D125: 17:00 - 18:00 | E125: 2017-01-01T17:59:12.667 | F125: 2017-01-01T19:22:31.357 | G125: 83 | H125: 6:09 PM: on wall 6:09 PM: reg 6:03 PM: reg | I125: Cigna
A126: 2016-02-03 | B126: 2017-01-01 | C126: Sunday | D126: 18:00 - 19:00 | E126: 2017-01-01T18:07:53.943 | F126: 2017-01-01T18:17:56 | G126: 10 | H126: 6:14 PM: on wall 6:11 PM: reg | I126: Blue Cross\Blue Shield
A127: 2010-05-04 | B127: 2017-01-01 | C127: Sunday | D127: 18:00 - 19:00 | E127: 2017-01-01T18:13:25.990 | F127: 2017-01-01T18:21:33.780 | G127: 8 | H127: 6:16 PM: ins verified | I127: Fallon Community Health Plan
A128: 1976-12-26 | B128: 2017-01-01 | C128: Sunday | D128: 18:00 - 19:00 | E128: 2017-01-01T18:13:55.670 | F128: 2017-01-01T20:00:27.890 | G128: 107 | H128: 6:23 PM: wall 6:18 PM: reg | I128: Blue Cross\Blue Shield
A129: 1969-06-12 | B129: 2017-01-01 | C129: Sunday | D129: 18:00 - 19:00 | E129: 2017-01-01T18:16:56.967 | F129: 2017-01-01T18:32:06.740 | G129: 16 | H129: 6:32 PM: could not see insurance | I129: Tufts
A130: 1990-09-28 | B130: 2017-01-01 | C130: Sunday | D130: 18:00 - 19:00 | E130: 2017-01-01T18:25:34.923 | F130: 2017-01-01T19:25:00.810 | G130: 60 | H130: 6:44 PM: wall 6:44 PM: reg | I130: Harvard Pilgrim
A131: 2015-06-06 | B131: 2017-01-01 | C131: Sunday | D131: 18:00 - 19:00 | E131: 2017-01-01T18:38:27.783 | F131: 2017-01-01T18:39:53.843 | G131: 1 | I131: Fallon Community Health Plan
A132: 1935-12-26 | B132: 2017-01-01 | C132: Sunday | D132: 18:00 - 19:00 | E132: 2017-01-01T18:46:18.577 | F132: 2017-01-01T19:02:02.907 | G132: 16 | H132: 7:00 PM: could not see insurance - sent to ED | I132: United Health Care
A133: 2010-02-10 | B133: 2017-01-01 | C133: Sunday | D133: 18:00 - 19:00 | E133: 2017-01-01T18:56:04.950 | F133: 2017-01-01T18:57:47.267 | G133: 1 | I133: Blue Cross\Blue Shield
A134: 2005-11-13 | B134: 2017-01-01 | C134: Sunday | D134: 18:00 - 19:00 | E134: 2017-01-01T18:57:19.230 | F134: 2017-01-01T19:06:10.887 | G134: 9 | I134: Fallon Community Health Plan
A135: 1981-06-16 | B135: 2017-01-01 | C135: Sunday | D135: 18:00 - 19:00 | E135: 2017-01-01T18:58:57.410 | F135: 2017-01-01T19:52:25.820 | G135: 54 | H135: 7:19 PM: wall 7:19 PM: reg | I135: Blue Cross\Blue Shield
A136: 2015-06-09 | B136: 2017-01-01 | C136: Sunday | D136: 19:00 - 20:00 | E136: 2017-01-01T19:02:43.260 | F136: 2017-01-01T19:13:05.677 | G136: 11 | I136: Medicaid\Mass Health
A137: 2010-06-04 | B137: 2017-01-01 | C137: Sunday | D137: 19:00 - 20:00 | E137: 2017-01-01T19:05:19.377 | F137: 2017-01-01T19:14:13.490 | G137: 9 | I137: Medicaid\Mass Health
A138: 2013-08-27 | B138: 2017-01-01 | C138: Sunday | D138: 19:00 - 20:00 | E138: 2017-01-01T19:30:59.897 | F138: 2017-01-01T19:53:52.880 | G138: 23 | H138: 7:50 PM: ON WALL 7:37 PM: REG | I138: Aetna
A139: 1975-06-14 | B139: 2017-01-01 | C139: Sunday | D139: 19:00 - 20:00 | E139: 2017-01-01T19:42:21.667 | F139: 2017-01-01T20:00:42.797 | G139: 18 | H139: 7:57 PM: wall 7:57 PM: reg | I139: Fallon Community Health Plan
A140: 2016-08-15 | B140: 2017-01-01 | C140: Sunday | D140: 19:00 - 20:00 | E140: 2017-01-01T19:43:04.213 | F140: 2017-01-01T19:45:36.450 | G140: 2 | I140: Fallon Community Health Plan
A141: 1992-06-13 | B141: 2017-01-01 | C141: Sunday | D141: 11:00 - 12:00 | E141: 2017-01-01T11:03:10.263 | F141: 2017-01-01T11:46:15.160 | G141: 43 | H141: 11:12 AM: ON WALL
A142: 1963-01-10 | B142: 2017-01-01 | C142: Sunday | D142: 16:00 - 17:00 | E142: 2017-01-01T16:35:48.293 | F142: 2017-01-01T16:46:07.370 | G142: 11 | H142: 4:44 PM: regged, gave to nursing
A143: 2006-03-09 | B143: 2017-01-02 | C143: Monday | D143: 12:00 - 13:00 | E143: 2017-01-02T12:34:05.167 | F143: 2017-01-02T12:59:45.410 | G143: 25 | H143: 12:59 PM: duplicate 12:56 PM: ins needs updating
A144: 2013-08-14 | B144: 2017-01-02 | C144: Monday | D144: 18:00 - 19:00 | E144: 2017-01-02T18:30:32.670 | F144: 2017-01-02T18:36:47.920 | G144: 6 | H144: 6:32 PM: not scheduled 6:31 PM: ins ver
A145: 1981-02-20 | B145: 2017-01-02 | C145: Monday | D145: 08:00 - 09:00 | E145: 2017-01-02T08:53:22.427 | F145: 2017-01-02T08:55:53.957 | G145: 2 | H145: 8:54 AM: ins ver | I145: Blue Cross\Blue Shield
A146: 1942-04-14 | B146: 2017-01-02 | C146: Monday | D146: 08:00 - 09:00 | E146: 2017-01-02T08:54:01.070 | F146: 2017-01-02T08:55:55.970 | G146: 1 | H146: 8:54 AM: ins ver | I146: Medicare
A147: 2011-08-22 | B147: 2017-01-02 | C147: Monday | D147: 08:00 - 09:00 | E147: 2017-01-02T08:55:27.283 | F147: 2017-01-02T08:57:38.330 | G147: 2 | H147: 8:55 AM: ins ver | I147: Medicaid\Mass Health
A148: 1988-07-17 | B148: 2017-01-02 | C148: Monday | D148: 08:00 - 09:00 | E148: 2017-01-02T08:55:45.700 | F148: 2017-01-02T08:56:31.610 | G148: 1 | H148: 8:56 AM: ins ver | I148: Blue Cross\Blue Shield
A149: 2005-08-09 | B149: 2017-01-02 | C149: Monday | D149: 08:00 - 09:00 | E149: 2017-01-02T08:56:05.080 | F149: 2017-01-02T08:59:05.077 | G149: 3 | H149: 8:57 AM: ins ver | I149: United Health Care
A150: 1994-02-28 | B150: 2017-01-02 | C150: Monday | D150: 08:00 - 09:00 | E150: 2017-01-02T08:56:56.647 | F150: 2017-01-02T09:02:57.513 | G150: 6 | H150: 8:58 AM: ins ver | I150: Cigna
A151: 1958-10-17 | B151: 2017-01-02 | C151: Monday | D151: 08:00 - 09:00 | E151: 2017-01-02T08:57:12.317 | F151: 2017-01-02T08:58:08.517 | G151: 1 | I151: Harvard Pilgrim
A152: 1940-11-22 | B152: 2017-01-02 | C152: Monday | D152: 08:00 - 09:00 | E152: 2017-01-02T08:57:45.523 | F152: 2017-01-02T09:09:28.663 | G152: 12 | H152: 9:09 AM: arrived 9:00 AM: regging 8:58 AM: ins ver | I152: Tufts
A153: 1974-07-18 | B153: 2017-01-02 | C153: Monday | D153: 08:00 - 09:00 | E153: 2017-01-02T08:58:10.883 | F153: 2017-01-02T09:11:35.867 | G153: 13 | H153: 8:59 AM: ins ver | I153: Medicaid\Mass Health
A154: 2011-05-17 | B154: 2017-01-02 | C154: Monday | D154: 09:00 - 10:00 | E154: 2017-01-02T09:00:13.360 | F154: 2017-01-02T09:14:12.083 | G154: 14 | H154: 9:03 AM: ins needs updating | I154: Cigna
A155: 2009-07-16 | B155: 2017-01-02 | C155: Monday | D155: 09:00 - 10:00 | E155: 2017-01-02T09:01:26.200 | F155: 2017-01-02T09:13:06.177 | G155: 12 | H155: 9:03 AM: ins ver | I155: Aetna
A156: 1939-04-14 | B156: 2017-01-02 | C156: Monday | D156: 09:00 - 10:00 | E156: 2017-01-02T09:03:35.240 | F156: 2017-01-02T09:19:31.030 | G156: 16 | H156: 9:16 AM: arrived 9:11 AM: regging 9:04 AM: ins ver | I156: Medicare
A157: 1938-02-08 | B157: 2017-01-02 | C157: Monday | D157: 09:00 - 10:00 | E157: 2017-01-02T09:06:56.640 | F157: 2017-01-02T09:29:30.977 | G157: 23 | H157: 9:29 AM: arrived 9:20 AM: regging 9:10 AM: ins ver | I157: Tufts
A158: 2015-01-03 | B158: 2017-01-02 | C158: Monday | D158: 09:00 - 10:00 | E158: 2017-01-02T09:07:42.580 | F158: 2017-01-02T09:19:58.047 | G158: 12 | H158: 9:17 AM: ins ver | I158: Fallon Community Health Plan
A159: 1962-02-01 | B159: 2017-01-02 | C159: Monday | D159: 09:00 - 10:00 | E159: 2017-01-02T09:07:58.300 | F159: 2017-01-02T09:28:55.413 | G159: 21 | H159: 9:12 AM: ins need updating | I159: Tufts
A160: 2004-02-24 | B160: 2017-01-02 | C160: Monday | D160: 09:00 - 10:00 | E160: 2017-01-02T09:08:41.427 | F160: 2017-01-02T09:25:55.293 | G160: 17 | H160: 9:17 AM: ins ver | I160: Blue Cross\Blue Shield
A161: 1975-05-30 | B161: 2017-01-02 | C161: Monday | D161: 09:00 - 10:00 | E161: 2017-01-02T09:13:11.013 | F161: 2017-01-02T09:45:01.463 | G161: 32 | H161: 9:38 AM: arrived 9:35 AM: regging 9:16 AM: ins ver | I161: Medicaid\Mass Health
A162: 1993-06-28 | B162: 2017-01-02 | C162: Monday | D162: 09:00 - 10:00 | E162: 2017-01-02T09:15:54.370 | F162: 2017-01-02T09:48:04.290 | G162: 33 | H162: 9:45 AM: arrived 9:39 AM: regging 9:17 AM: ins ver | I162: Blue Cross\Blue Shield
A163: 1986-09-22 | B163: 2017-01-02 | C163: Monday | D163: 09:00 - 10:00 | E163: 2017-01-02T09:17:11.067 | F163: 2017-01-02T09:57:40.330 | G163: 40 | H163: 9:53 AM: arrived 9:47 AM: reggign 9:18 AM: ins ver | I163: Harvard Pilgrim
A164: 2016-04-24 | B164: 2017-01-02 | C164: Monday | D164: 09:00 - 10:00 | E164: 2017-01-02T09:18:46.817 | F164: 2017-01-02T09:29:25.507 | G164: 11 | H164: 9:19 AM: ins ver | I164: Aetna
A165: 2010-07-19 | B165: 2017-01-02 | C165: Monday | D165: 09:00 - 10:00 | E165: 2017-01-02T09:20:55.757 | F165: 2017-01-02T09:39:04.423 | G165: 19 | H165: 9:25 AM: ins ver | I165: Fallon Community Health Plan
A166: 2015-09-17 | B166: 2017-01-02 | C166: Monday | D166: 09:00 - 10:00 | E166: 2017-01-02T09:24:04.780 | F166: 2017-01-02T09:44:54.730 | G166: 20 | H166: 9:26 AM: mh not eligible | I166: Medicaid\Mass Health
A167: 1997-08-28 | B167: 2017-01-02 | C167: Monday | D167: 09:00 - 10:00 | E167: 2017-01-02T09:24:45.240 | F167: 2017-01-02T10:08:23.197 | G167: 44 | H167: 10:04 AM: arrived 9:58 AM: regging 9:26 AM: ins ver | I167: United Health Care
A168: 1965-06-24 | B168: 2017-01-02 | C168: Monday | D168: 09:00 - 10:00 | E168: 2017-01-02T09:24:46.207 | F168: 2017-01-02T10:59:16.767 | G168: 95 | H168: 10:48 AM: regging 10:43 AM: pt is back 9:47 AM: IN PEDS WITH SON 9:27 AM: ins ver | I168: Blue Cross\Blue Shield
A169: 2003-02-28 | B169: 2017-01-02 | C169: Monday | D169: 09:00 - 10:00 | E169: 2017-01-02T09:26:07.863 | F169: 2017-01-02T09:45:28.557 | G169: 19 | H169: 9:27 AM: ins ver | I169: Blue Cross\Blue Shield
A170: 2014-08-30 | B170: 2017-01-02 | C170: Monday | D170: 09:00 - 10:00 | E170: 2017-01-02T09:26:17.113 | F170: 2017-01-02T09:51:23.460 | G170: 25 | H170: 9:28 AM: ?new pt | I170: Blue Cross\Blue Shield
A171: 2012-11-09 | B171: 2017-01-02 | C171: Monday | D171: 09:00 - 10:00 | E171: 2017-01-02T09:27:54.420 | F171: 2017-01-02T09:56:41.017 | G171: 29 | H171: 9:28 AM: ins ver | I171: Medicaid\Mass Health
A172: 2016-09-19 | B172: 2017-01-02 | C172: Monday | D172: 09:00 - 10:00 | E172: 2017-01-02T09:29:13.107 | F172: 2017-01-02T10:04:51.043 | G172: 35 | H172: 9:47 AM: ok to wait 9:29 AM: ins ver | I172: Medicaid\Mass Health
A173: 1982-02-10 | B173: 2017-01-02 | C173: Monday | D173: 09:00 - 10:00 | E173: 2017-01-02T09:29:30.813 | F173: 2017-01-02T09:58:15.580 | G173: 29 | H173: 9:30 AM: ins ver | I173: Harvard Pilgrim
A174: 1971-06-16 | B174: 2017-01-02 | C174: Monday | D174: 09:00 - 10:00 | E174: 2017-01-02T09:33:27.370 | F174: 2017-01-02T10:18:31.347 | G174: 45 | H174: 10:17 AM: arrived 10:07 AM: regging 9:36 AM: ins ver | I174: Medicaid\Mass Health
A175: 2016-03-04 | B175: 2017-01-02 | C175: Monday | D175: 09:00 - 10:00 | E175: 2017-01-02T09:34:33.327 | F175: 2017-01-02T10:05:27.557 | G175: 31 | H175: 9:47 AM: ok to wait 9:36 AM: ins ver | I175: Fallon Community Health Plan
A176: 2006-03-06 | B176: 2017-01-02 | C176: Monday | D176: 09:00 - 10:00 | E176: 2017-01-02T09:36:01.870 | F176: 2017-01-02T10:15:05.707 | G176: 39 | H176: 9:37 AM: ins needs updating | I176: Cigna
A177: 1992-11-27 | B177: 2017-01-02 | C177: Monday | D177: 09:00 - 10:00 | E177: 2017-01-02T09:38:16.730 | F177: 2017-01-02T10:29:08.773 | G177: 51 | H177: 10:28 AM: arrived 10:21 AM: regging 9:42 AM: ins ver | I177: Blue Cross\Blue Shield
A178: 1965-04-08 | B178: 2017-01-02 | C178: Monday | D178: 09:00 - 10:00 | E178: 2017-01-02T09:39:59.183 | F178: 2017-01-02T11:41:57.267 | G178: 122 | H178: 10:48 AM: no answer 10:45 AM: no answer 10:29 AM: no answer 9:43 AM: ? wrong dob (3-8-65 ins ver) | I178: Blue Cross\Blue Shield
A179: 2015-10-13 | B179: 2017-01-02 | C179: Monday | D179: 09:00 - 10:00 | E179: 2017-01-02T09:47:00.820 | F179: 2017-01-02T10:19:14.720 | G179: 32 | H179: 9:51 AM: ins ver | I179: Fallon Community Health Plan
A180: 1986-09-24 | B180: 2017-01-02 | C180: Monday | D180: 09:00 - 10:00 | E180: 2017-01-02T09:47:08.123 | F180: 2017-01-02T10:06:03.963 | G180: 19 | H180: 10:05 AM: foing to carewell-cant get referral 9:51 AM: ?new pt | I180: Blue Cross\Blue Shield
A181: 1949-08-07 | B181: 2017-01-02 | C181: Monday | D181: 09:00 - 10:00 | E181: 2017-01-02T09:47:42.667 | F181: 2017-01-02T10:38:44.533 | G181: 51 | H181: 10:36 AM: arrived 10:30 AM: regging 9:53 AM: ins ver | I181: Cigna
A182: 1992-06-14 | B182: 2017-01-02 | C182: Monday | D182: 09:00 - 10:00 | E182: 2017-01-02T09:50:47.440 | F182: 2017-01-02T10:45:27.293 | G182: 55 | H182: 9:55 AM: ins ver | I182: Blue Cross\Blue Shield
A183: 2007-12-09 | B183: 2017-01-02 | C183: Monday | D183: 09:00 - 10:00 | E183: 2017-01-02T09:52:51.473 | F183: 2017-01-02T10:33:57.240 | G183: 41 | H183: 9:56 AM: ins ver | I183: United Health Care
A184: 2009-09-07 | B184: 2017-01-02 | C184: Monday | D184: 09:00 - 10:00 | E184: 2017-01-02T09:54:10.130 | F184: 2017-01-02T10:48:25.477 | G184: 54 | H184: 10:33 AM: waiting for a call back from pcp 10:23 AM: calling for referral 9:57 AM: ins ver-hmo outside provider | I184: Harvard Pilgrim
A185: 1973-01-23 | B185: 2017-01-02 | C185: Monday | D185: 09:00 - 10:00 | E185: 2017-01-02T09:55:26.543 | F185: 2017-01-02T11:41:49.187 | G185: 106 | H185: 11:39 AM: out of pedi- thanks 10:49 AM: in pedi with child 10:49 AM: called no answer 10:01 AM: ins ver | I185: Harvard Pilgrim
A186: 1986-05-02 | B186: 2017-01-02 | C186: Monday | D186: 09:00 - 10:00 | E186: 2017-01-02T09:59:02.623 | F186: 2017-01-02T10:49:35.667 | G186: 50 | H186: 10:01 AM: ins needs updating | I186: United Health Care
A187: 1984-12-27 | B187: 2017-01-02 | C187: Monday | D187: 09:00 - 10:00 | E187: 2017-01-02T09:59:48.323 | F187: 2017-01-02T11:22:41.640 | G187: 83 | H187: 11:10 AM: arrived 11:07 AM: regging 10:03 AM: ins ver | I187: Medicaid\Mass Health
A188: 2011-06-20 | B188: 2017-01-02 | C188: Monday | D188: 10:00 - 11:00 | E188: 2017-01-02T10:00:32.370 | F188: 2017-01-02T10:35:04.520 | G188: 35 | H188: 10:09 AM: ins ver | I188: Medicaid\Mass Health
A189: 2011-12-09 | B189: 2017-01-02 | C189: Monday | D189: 10:00 - 11:00 | E189: 2017-01-02T10:01:29.523 | F189: 2017-01-02T10:45:11.777 | G189: 44 | H189: 10:10 AM: ins ver | I189: Other
A190: 1962-02-07 | B190: 2017-01-02 | C190: Monday | D190: 10:00 - 11:00 | E190: 2017-01-02T10:01:57.250 | F190: 2017-01-02T11:24:05.513 | G190: 83 | H190: 11:20 AM: arrived 11:14 AM: regging 10:04 AM: ins ver | I190: Harvard Pilgrim
A191: 1946-10-08 | B191: 2017-01-02 | C191: Monday | D191: 10:00 - 11:00 | E191: 2017-01-02T10:04:13.523 | F191: 2017-01-02T11:31:44.180 | G191: 87 | H191: 11:29 AM: arrived 11:22 AM: regging 10:12 AM: ins ver | I191: Fallon Community Health Plan
A192: 2012-12-19 | B192: 2017-01-02 | C192: Monday | D192: 10:00 - 11:00 | E192: 2017-01-02T10:06:47.757 | F192: 2017-01-02T10:58:34.017 | G192: 52 | H192: 10:11 AM: ins ver | I192: Blue Cross\Blue Shield
A193: 2000-07-06 | B193: 2017-01-02 | C193: Monday | D193: 10:00 - 11:00 | E193: 2017-01-02T10:08:12.657 | F193: 2017-01-02T10:58:46.597 | G193: 50 | H193: 10:18 AM: unable to verify ins | I193: Other
A194: 2015-11-15 | B194: 2017-01-02 | C194: Monday | D194: 10:00 - 11:00 | E194: 2017-01-02T10:10:49.970 | F194: 2017-01-02T11:12:35.413 | G194: 62 | H194: 10:20 AM: ins ver | I194: Medicaid\Mass Health
A195: 1934-12-18 | B195: 2017-01-02 | C195: Monday | D195: 10:00 - 11:00 | E195: 2017-01-02T10:11:07.780 | F195: 2017-01-02T12:11:43.447 | G195: 120 | H195: 12:10 PM: arrived 12:08 PM: regging 11:51 AM: Pt in waiting room, pink jacket blue hat, hard of hearing. 11:35 AM: call no answer 10:14 AM: ins ver | I195: Tufts
A196: 1994-09-15 | B196: 2017-01-02 | C196: Monday | D196: 10:00 - 11:00 | E196: 2017-01-02T10:12:52.713 | F196: 2017-01-02T11:35:22.007 | G196: 83 | H196: 10:15 AM: ins ver | I196: Fallon Community Health Plan
A197: 1985-06-20 | B197: 2017-01-02 | C197: Monday | D197: 10:00 - 11:00 | E197: 2017-01-02T10:14:45.440 | F197: 2017-01-02T11:54:51.100 | G197: 100 | H197: 11:48 AM: arrived 11:45 AM: regging 10:16 AM: ins ver | I197: Medicaid\Mass Health
A198: 2012-12-06 | B198: 2017-01-02 | C198: Monday | D198: 10:00 - 11:00 | E198: 2017-01-02T10:15:16.390 | F198: 2017-01-02T11:23:22.937 | G198: 68 | H198: 10:20 AM: ins ver | I198: Blue Cross\Blue Shield
A199: 2010-04-14 | B199: 2017-01-02 | C199: Monday | D199: 10:00 - 11:00 | E199: 2017-01-02T10:15:52.453 | F199: 2017-01-02T11:31:00.603 | G199: 76 | H199: 10:23 AM: ins ver | I199: Blue Cross\Blue Shield
A200: 2016-03-21 | B200: 2017-01-02 | C200: Monday | D200: 10:00 - 11:00 | E200: 2017-01-02T10:21:19.057 | F200: 2017-01-02T11:51:06.913 | G200: 90 | H200: 10:24 AM: ins ver | I200: Medicaid\Mass Health
... 4096 more rows

Sheet February 2017
A1: DOB | B1: Visit Date | C1: Day | D1: Block | E1: Time Arrived | F1: Time Roomed | G1: Mins. Arrived to Roomed | H1: Notes | I1: Insurance
A2: 1993-10-29 | B2: 2017-02-01 | C2: Wednesday | D2: 10:00 - 11:00 | E2: 2017-02-01T10:55:10.053 | F2: 2017-02-01T11:20:17.480 | G2: 25 | H2: 11:14 AM: ARRIVED 11:12 AM: REG | I2: Harvard Pilgrim
A3: 1996-01-04 | B3: 2017-02-01 | C3: Wednesday | D3: 11:00 - 12:00 | E3: 2017-02-01T11:50:24.020 | F3: 2017-02-01T12:46:32.920 | G3: 56 | H3: 12:28 PM: arrived-on wall 12:26 PM: regging 12:17 PM: ins ver | I3: Fallon Community Health Plan
A4: 1978-12-08 | B4: 2017-02-01 | C4: Wednesday | D4: 11:00 - 12:00 | E4: 2017-02-01T11:56:25.007 | F4: 2017-02-01T12:59:29.757 | G4: 63 | H4: 12:34 PM: arrived-on wall 12:31 PM: REGGING 12:17 PM: new pt | I4: Blue Cross\Blue Shield
A5: 1967-08-18 | B5: 2017-02-01 | C5: Wednesday | D5: 12:00 - 13:00 | E5: 2017-02-01T12:20:57.877 | F5: 2017-02-01T13:04:26.537 | G5: 44 | H5: 12:57 PM: arrived-on wall 12:43 PM: regging 12:23 PM: ins ver | I5: Tufts
A6: 1996-09-11 | B6: 2017-02-01 | C6: Wednesday | D6: 12:00 - 13:00 | E6: 2017-02-01T12:39:52.543 | F6: 2017-02-01T13:17:54.813 | G6: 38 | H6: 1:06 PM: arrived-on wall 1:02 PM: regging 12:44 PM: ins ver | I6: Tufts
A7: 1999-01-05 | B7: 2017-02-01 | C7: Wednesday | D7: 12:00 - 13:00 | E7: 2017-02-01T12:58:15.513 | F7: 2017-02-01T13:29:43.700 | G7: 31 | H7: 1:21 PM: arrived-on wall 1:16 PM: REGGING 1:06 PM: new ins | I7: Blue Cross\Blue Shield
A8: 1996-06-08 | B8: 2017-02-01 | C8: Wednesday | D8: 13:00 - 14:00 | E8: 2017-02-01T13:03:06.620 | F8: 2017-02-01T13:33:45.807 | G8: 30 | H8: 1:09 PM: arrived-on wall 1:06 PM: regging | I8: Medicaid\Mass Health
A9: 1992-12-25 | B9: 2017-02-01 | C9: Wednesday | D9: 17:00 - 18:00 | E9: 2017-02-01T17:50:40.793 | F9: 2017-02-01T19:42:09.307 | G9: 112 | H9: 7:19 PM: on wall 7:07 PM: regging 5:57 PM: ver | I9: Blue Cross\Blue Shield
A10: 1967-08-04 | B10: 2017-02-01 | C10: Wednesday | D10: 17:00 - 18:00 | E10: 2017-02-01T17:59:53.373 | F10: 2017-02-01T19:41:58.167 | G10: 102 | H10: 7:16 PM: regged on wall 7:14 PM: regging 6:03 PM: insurance verified | I10: Fallon Community Health Plan
A11: 1968-04-04 | B11: 2017-02-01 | C11: Wednesday | D11: 18:00 - 19:00 | E11: 2017-02-01T18:16:49.240 | F11: 2017-02-01T19:41:33.557 | G11: 85 | H11: 7:38 PM: on wall 7:34 PM: regging 6:40 PM: insruance verified | I11: United Health Care
A12: 1978-03-20 | B12: 2017-02-01 | C12: Wednesday | D12: 19:00 - 20:00 | E12: 2017-02-01T19:48:53.897 | F12: 2017-02-01T20:04:38.860 | G12: 16 | H12: 7:59 PM: regged on wall 7:59 PM: regging | I12: Blue Cross\Blue Shield
A13: 1991-05-20 | B13: 2017-02-01 | C13: Wednesday | D13: 09:00 - 10:00 | E13: 2017-02-01T09:00:34.250 | F13: 2017-02-01T09:07:24.950 | G13: 7 | H13: 9:06 AM: on wall 9:05 AM: ARRIVED IN TRIAGE | I13: Fallon Community Health Plan
A14: 1998-03-18 | B14: 2017-02-01 | C14: Wednesday | D14: 09:00 - 10:00 | E14: 2017-02-01T09:01:06.333 | F14: 2017-02-01T09:11:25.697 | G14: 10 | H14: 9:09 AM: WALL 9:08 AM: ARRIVED IN TRIAGE 9:06 AM: REGGING | I14: Blue Cross\Blue Shield
A15: 2014-05-13 | B15: 2017-02-01 | C15: Wednesday | D15: 09:00 - 10:00 | E15: 2017-02-01T09:02:36.783 | F15: 2017-02-01T09:11:46.197 | G15: 9 | H15: 9:10 AM: WALL | I15: Blue Cross\Blue Shield
A16: 1990-08-23 | B16: 2017-02-01 | C16: Wednesday | D16: 09:00 - 10:00 | E16: 2017-02-01T09:03:14.190 | F16: 2017-02-01T09:16:01.917 | G16: 13 | H16: 9:15 AM: ARRIVED-ON WALL 9:13 AM: REGGING | I16: Fallon Community Health Plan
A17: 1996-03-27 | B17: 2017-02-01 | C17: Wednesday | D17: 09:00 - 10:00 | E17: 2017-02-01T09:08:02.123 | F17: 2017-02-01T09:21:39.913 | G17: 13 | H17: 9:20 AM: ARRIVED-ON WALL 9:16 AM: REGGING 9:15 AM: INS VER | I17: Medicaid\Mass Health
A18: 1969-12-17 | B18: 2017-02-01 | C18: Wednesday | D18: 09:00 - 10:00 | E18: 2017-02-01T09:09:31.770 | F18: 2017-02-01T09:27:12.850 | G18: 18 | H18: 9:22 AM: arrived-on wall 9:21 AM: regging 9:15 AM: INS VER | I18: Fallon Community Health Plan
A19: 1998-01-23 | B19: 2017-02-01 | C19: Wednesday | D19: 09:00 - 10:00 | E19: 2017-02-01T09:16:06.347 | F19: 2017-02-01T09:37:28.907 | G19: 21 | H19: 9:29 AM: ARRIVED-ON WALL 9:18 AM: NEW INS | I19: Blue Cross\Blue Shield
A20: 1987-05-22 | B20: 2017-02-01 | C20: Wednesday | D20: 09:00 - 10:00 | E20: 2017-02-01T09:17:49.317 | F20: 2017-02-01T09:37:22.500 | G20: 20 | H20: 9:36 AM: regged-on wall 9:31 AM: regging 9:19 AM: new ins | I20: Blue Cross\Blue Shield
A21: 1979-08-25 | B21: 2017-02-01 | C21: Wednesday | D21: 09:00 - 10:00 | E21: 2017-02-01T09:29:04.100 | F21: 2017-02-01T09:44:48.950 | G21: 15 | H21: 9:39 AM: REGGED-ON WALL 9:31 AM: NEW INS | I21: Blue Cross\Blue Shield
A22: 2007-03-28 | B22: 2017-02-01 | C22: Wednesday | D22: 09:00 - 10:00 | E22: 2017-02-01T09:30:59.010 | F22: 2017-02-01T09:39:01.737 | G22: 9 | H22: 9:35 AM: ins ver | I22: Fallon Community Health Plan
A23: 2003-10-24 | B23: 2017-02-01 | C23: Wednesday | D23: 09:00 - 10:00 | E23: 2017-02-01T09:34:06.893 | F23: 2017-02-01T09:43:57.140 | G23: 9 | H23: 9:42 AM: REGGED-ON WALL 9:35 AM: ins ver | I23: Harvard Pilgrim
A24: 1989-09-19 | B24: 2017-02-01 | C24: Wednesday | D24: 09:00 - 10:00 | E24: 2017-02-01T09:34:48.660 | F24: 2017-02-01T09:48:36.590 | G24: 14 | H24: 9:46 AM: arrived-on wall 9:44 AM: REGGING 9:36 AM: ins ver | I24: Fallon Community Health Plan
A25: 1955-05-12 | B25: 2017-02-01 | C25: Wednesday | D25: 09:00 - 10:00 | E25: 2017-02-01T09:38:53.183 | F25: 2017-02-01T10:02:13.943 | G25: 24 | H25: 9:55 AM: ARRIVED IN TRIAGE 9:54 AM: REGGING 9:46 AM: ins ver | I25: Blue Cross\Blue Shield
A26: 1998-11-01 | B26: 2017-02-01 | C26: Wednesday | D26: 09:00 - 10:00 | E26: 2017-02-01T09:40:08.213 | F26: 2017-02-01T10:22:51.373 | G26: 42 | H26: 10:08 AM: calling for ref 10:02 AM: REGGING 9:45 AM: NEW PT | I26: Blue Cross\Blue Shield
A27: 1960-06-20 | B27: 2017-02-01 | C27: Wednesday | D27: 09:00 - 10:00 | E27: 2017-02-01T09:42:56.320 | F27: 2017-02-01T10:08:56.037 | G27: 26 | H27: 9:45 AM: INS VER | I27: Fallon Community Health Plan
A28: 1962-03-11 | B28: 2017-02-01 | C28: Wednesday | D28: 09:00 - 10:00 | E28: 2017-02-01T09:45:29.413 | F28: 2017-02-01T10:11:02.347 | G28: 26 | H28: 9:47 AM: new pt | I28: Blue Cross\Blue Shield
A29: 1961-07-10 | B29: 2017-02-01 | C29: Wednesday | D29: 09:00 - 10:00 | E29: 2017-02-01T09:47:46.257 | F29: 2017-02-01T10:09:55.097 | G29: 22 | H29: 10:04 AM: ver | I29: Fallon Community Health Plan
A30: 1958-04-22 | B30: 2017-02-01 | C30: Wednesday | D30: 09:00 - 10:00 | E30: 2017-02-01T09:48:21.650 | F30: 2017-02-01T10:15:32.190 | G30: 27 | H30: 10:10 AM: checking on pt 10:06 AM: ver | I30: Harvard Pilgrim
A31: 1993-10-19 | B31: 2017-02-01 | C31: Wednesday | D31: 09:00 - 10:00 | E31: 2017-02-01T09:49:21.487 | F31: 2017-02-01T10:29:38.043 | G31: 40 | H31: 10:24 AM: ARRIVED IN TRIAGE 10:23 AM: REGGING 10:08 AM: ins ver but pcp pending..? | I31: Fallon Community Health Plan
A32: 1985-07-22 | B32: 2017-02-01 | C32: Wednesday | D32: 09:00 - 10:00 | E32: 2017-02-01T09:52:24.847 | F32: 2017-02-01T10:17:47.330 | G32: 25 | H32: 10:09 AM: ver | I32: Blue Cross\Blue Shield
A33: 1995-05-02 | B33: 2017-02-01 | C33: Wednesday | D33: 09:00 - 10:00 | E33: 2017-02-01T09:58:58.003 | F33: 2017-02-01T10:45:15.880 | G33: 47 | H33: 10:38 AM: ARRIVED IN TRIAGE 10:25 AM: ver 10:24 AM: WAITING TO CALL PT | I33: Blue Cross\Blue Shield
A34: 1996-06-16 | B34: 2017-02-01 | C34: Wednesday | D34: 10:00 - 11:00 | E34: 2017-02-01T10:06:50.293 | F34: 2017-02-01T10:18:17.580 | G34: 12 | I34: Fallon Community Health Plan
A35: 2009-09-09 | B35: 2017-02-01 | C35: Wednesday | D35: 10:00 - 11:00 | E35: 2017-02-01T10:20:43.303 | F35: 2017-02-01T10:50:49.287 | G35: 30 | H35: 10:36 AM: WALL | I35: Medicaid\Mass Health
A36: 2011-06-09 | B36: 2017-02-01 | C36: Wednesday | D36: 10:00 - 11:00 | E36: 2017-02-01T10:22:21.017 | F36: 2017-02-01T12:35:20.190 | G36: 133 | H36: 10:37 AM: DAD IS CALLING INS | I36: Medicaid\Mass Health
A37: 1984-06-06 | B37: 2017-02-01 | C37: Wednesday | D37: 10:00 - 11:00 | E37: 2017-02-01T10:23:46.660 | F37: 2017-02-01T10:33:36.010 | G37: 10 | H37: 10:26 AM: ver | I37: Fallon Community Health Plan
A38: 1993-11-18 | B38: 2017-02-01 | C38: Wednesday | D38: 10:00 - 11:00 | E38: 2017-02-01T10:32:29.417 | F38: 2017-02-01T11:00:19.127 | G38: 28 | H38: 10:51 AM: ARRIVED WALL 10:46 AM: REGGING 10:43 AM: NEW PT | I38: Medicaid\Mass Health
A39: 1985-02-09 | B39: 2017-02-01 | C39: Wednesday | D39: 10:00 - 11:00 | E39: 2017-02-01T10:33:59.393 | F39: 2017-02-01T11:19:17.627 | G39: 46 | H39: 10:58 AM: ARRIVED WALL 10:55 AM: need referal | I39: Blue Cross\Blue Shield
A40: 1969-03-20 | B40: 2017-02-01 | C40: Wednesday | D40: 10:00 - 11:00 | E40: 2017-02-01T10:35:24.540 | F40: 2017-02-01T11:18:48.087 | G40: 43 | H40: 11:02 AM: ARRIVE DIN TRIAGE 11:02 AM: REGGING | I40: Other
A41: 2001-10-14 | B41: 2017-02-01 | C41: Wednesday | D41: 10:00 - 11:00 | E41: 2017-02-01T10:47:39.537 | F41: 2017-02-01T11:44:08.240 | G41: 57 | H41: 11:11 AM: ARRIVED 11:09 AM: REG | I41: Fallon Community Health Plan
A42: 1970-10-29 | B42: 2017-02-01 | C42: Wednesday | D42: 11:00 - 12:00 | E42: 2017-02-01T11:06:30.593 | F42: 2017-02-01T11:29:34.813 | G42: 23 | H42: 11:29 AM: pt bumbed 11:17 AM: REG | I42: Fallon Community Health Plan
A43: 1968-12-02 | B43: 2017-02-01 | C43: Wednesday | D43: 11:00 - 12:00 | E43: 2017-02-01T11:12:25.153 | F43: 2017-02-01T11:37:54.447 | G43: 25 | H43: 11:36 AM: ARRIVED 11:30 AM: reg 11:21 AM: ver | I43: Harvard Pilgrim
A44: 1986-04-20 | B44: 2017-02-01 | C44: Wednesday | D44: 11:00 - 12:00 | E44: 2017-02-01T11:24:28.110 | F44: 2017-02-01T11:37:06.353 | G44: 13 | H44: 11:36 AM: called no answer x2 11:36 11:29 AM: call no answer | I44: Tufts
A45: 1950-01-09 | B45: 2017-02-01 | C45: Wednesday | D45: 11:00 - 12:00 | E45: 2017-02-01T11:28:55.227 | F45: 2017-02-01T12:22:07.477 | G45: 54 | H45: 11:39 AM: ARRIVED | I45: Cigna
A46: 1998-06-01 | B46: 2017-02-01 | C46: Wednesday | D46: 11:00 - 12:00 | E46: 2017-02-01T11:35:38.693 | F46: 2017-02-01T12:08:15.903 | G46: 33 | H46: 11:52 AM: ARRIVED 11:50 AM: new pt | I46: Medicaid\Mass Health
A47: 2015-10-29 | B47: 2017-02-01 | C47: Wednesday | D47: 11:00 - 12:00 | E47: 2017-02-01T11:37:06.120 | F47: 2017-02-01T12:27:16.053 | G47: 50 | H47: 11:54 AM: WALL | I47: Cigna
A48: 1941-09-16 | B48: 2017-02-01 | C48: Wednesday | D48: 11:00 - 12:00 | E48: 2017-02-01T11:40:16.307 | F48: 2017-02-01T12:45:08.513 | G48: 65 | H48: 12:00 PM: WALL 11:55 AM: ARRIVE DIN TRIAGE | I48: Medicare
A49: 1941-08-03 | B49: 2017-02-01 | C49: Wednesday | D49: 11:00 - 12:00 | E49: 2017-02-01T11:42:37.547 | F49: 2017-02-01T12:28:28.380 | G49: 46 | H49: 12:03 PM: ARRIVE DIN TRIAGE 12:02 PM: REGGING | I49: Medicare
A50: 1961-02-14 | B50: 2017-02-01 | C50: Wednesday | D50: 11:00 - 12:00 | E50: 2017-02-01T11:42:59.430 | F50: 2017-02-01T12:19:54.413 | G50: 37 | H50: 12:19 PM: arrived-on wall 12:15 PM: regging | I50: Tufts
A51: 1995-12-29 | B51: 2017-02-01 | C51: Wednesday | D51: 11:00 - 12:00 | E51: 2017-02-01T11:46:45.550 | F51: 2017-02-01T12:28:27.037 | G51: 42 | H51: 12:24 PM: arrived-on wall 12:21 PM: regging 11:50 AM: ver | I51: Fallon Community Health Plan
A52: 1975-07-06 | B52: 2017-02-01 | C52: Wednesday | D52: 11:00 - 12:00 | E52: 2017-02-01T11:52:31.530 | F52: 2017-02-01T12:14:03.260 | G52: 22 | H52: 12:14 PM: pt does not want to wait | I52: Blue Cross\Blue Shield
A53: 1985-06-27 | B53: 2017-02-01 | C53: Wednesday | D53: 12:00 - 13:00 | E53: 2017-02-01T12:11:35.420 | F53: 2017-02-01T13:11:43.473 | G53: 60 | H53: 1:11 PM: called no ans 12:55 PM: called no ans 12:41 PM: called no ans 12:18 PM: new pt | I53: Other
A54: 1957-07-11 | B54: 2017-02-01 | C54: Wednesday | D54: 12:00 - 13:00 | E54: 2017-02-01T12:16:56.600 | F54: 2017-02-01T13:11:44.393 | G54: 55 | H54: 1:11 PM: called no ans 12:55 PM: called no ans 12:41 PM: called no ans 12:18 PM: ins ver | I54: Tufts
A55: 1990-01-30 | B55: 2017-02-01 | C55: Wednesday | D55: 12:00 - 13:00 | E55: 2017-02-01T12:26:57.980 | F55: 2017-02-01T12:40:27.063 | G55: 14 | H55: 12:40 PM: pt has Maryland health ins-she does not want to self pay-PT referred to ER 12:37 PM: MH inactive | I55: Medicaid\Mass Health
A56: 2010-08-26 | B56: 2017-02-01 | C56: Wednesday | D56: 12:00 - 13:00 | E56: 2017-02-01T12:30:03.190 | F56: 2017-02-01T13:02:12.443 | G56: 32 | H56: 12:58 PM: regged-on wall 12:38 PM: ins ver | I56: Medicaid\Mass Health
A57: 1963-12-02 | B57: 2017-02-01 | C57: Wednesday | D57: 12:00 - 13:00 | E57: 2017-02-01T12:43:37.970 | F57: 2017-02-01T12:55:42.197 | G57: 12 | H57: 12:49 PM: regging 12:45 PM: ins ver | I57: Blue Cross\Blue Shield
A58: 2002-09-15 | B58: 2017-02-01 | C58: Wednesday | D58: 12:00 - 13:00 | E58: 2017-02-01T12:53:24.787 | F58: 2017-02-01T13:08:32.050 | G58: 15 | I58: Medicaid\Mass Health
A59: 1960-01-05 | B59: 2017-02-01 | C59: Wednesday | D59: 13:00 - 14:00 | E59: 2017-02-01T13:05:02.570 | F59: 2017-02-01T13:40:46.897 | G59: 35 | H59: 1:28 PM: arrived-on wall 1:23 PM: regging 1:07 PM: ins ver | I59: Fallon Community Health Plan
A60: 1984-04-01 | B60: 2017-02-01 | C60: Wednesday | D60: 13:00 - 14:00 | E60: 2017-02-01T13:05:41.313 | F60: 2017-02-01T13:47:06.867 | G60: 42 | H60: 1:38 PM: arrived-on wall 1:31 PM: regging 1:07 PM: ins ver | I60: Harvard Pilgrim
A61: 1985-12-08 | B61: 2017-02-01 | C61: Wednesday | D61: 13:00 - 14:00 | E61: 2017-02-01T13:07:08.250 | F61: 2017-02-01T14:21:03.790 | G61: 74 | H61: 1:43 PM: arrived-on wall 1:38 PM: regging 1:08 PM: ins ver | I61: Other
A62: 1943-05-14 | B62: 2017-02-01 | C62: Wednesday | D62: 13:00 - 14:00 | E62: 2017-02-01T13:07:37.920 | F62: 2017-02-01T13:51:55.223 | G62: 44 | H62: 1:49 PM: arrived-on wall 1:43 PM: regging 1:08 PM: ins ver | I62: Tufts
A63: 1997-09-03 | B63: 2017-02-01 | C63: Wednesday | D63: 13:00 - 14:00 | E63: 2017-02-01T13:13:07.280 | F63: 2017-02-01T14:00:15.093 | G63: 47 | H63: 1:51 PM: regging 1:14 PM: ins ver | I63: Cigna
A64: 2013-04-15 | B64: 2017-02-01 | C64: Wednesday | D64: 13:00 - 14:00 | E64: 2017-02-01T13:27:54.113 | F64: 2017-02-01T13:55:11.360 | G64: 28 | H64: 1:47 PM: ins ver | I64: Fallon Community Health Plan
A65: 1979-08-11 | B65: 2017-02-01 | C65: Wednesday | D65: 13:00 - 14:00 | E65: 2017-02-01T13:41:34.010 | F65: 2017-02-01T14:21:11.820 | G65: 40 | H65: 2:09 PM: on wall 2:06 PM: ARRIVED 1:43 PM: ins ver | I65: Medicaid\Mass Health
A66: 2010-03-26 | B66: 2017-02-01 | C66: Wednesday | D66: 13:00 - 14:00 | E66: 2017-02-01T13:44:47.720 | F66: 2017-02-01T14:16:21.307 | G66: 32 | H66: 2:01 PM: arrived-on adult wall 1:47 PM: ins ver | I66: Fallon Community Health Plan
A67: 1977-01-14 | B67: 2017-02-01 | C67: Wednesday | D67: 13:00 - 14:00 | E67: 2017-02-01T13:45:42.733 | F67: 2017-02-01T15:05:20.337 | G67: 80 | H67: 2:55 PM: regged-on wall 2:51 PM: pt back and ready to be seen 2:27 PM: PATIENT IS IN PEDI WITH CHILD 2:22 PM: called no answer 222 1:46 PM: ins ver | I67: Fallon Community Health Plan
A68: 2014-03-12 | B68: 2017-02-01 | C68: Wednesday | D68: 13:00 - 14:00 | E68: 2017-02-01T13:47:28.317 | F68: 2017-02-01T14:16:22.573 | G68: 29 | H68: 2:03 PM: arrived-on adult wall 2:02 PM: regging 1:47 PM: ins ver | I68: United Health Care
A69: 1989-02-15 | B69: 2017-02-01 | C69: Wednesday | D69: 13:00 - 14:00 | E69: 2017-02-01T13:48:47.843 | F69: 2017-02-01T14:22:57.117 | G69: 34 | H69: 1:49 PM: ins ver | I69: Tufts
A70: 2015-12-10 | B70: 2017-02-01 | C70: Wednesday | D70: 13:00 - 14:00 | E70: 2017-02-01T13:59:34.097 | F70: 2017-02-01T14:19:28.477 | G70: 20 | H70: 2:18 PM: arrived on wall 2:18 PM: reg | I70: Harvard Pilgrim
A71: 2008-08-28 | B71: 2017-02-01 | C71: Wednesday | D71: 14:00 - 15:00 | E71: 2017-02-01T14:05:04.327 | F71: 2017-02-01T14:27:24.413 | G71: 22 | H71: 2:21 PM: arrived | I71: Blue Cross\Blue Shield
A72: 2007-01-01 | B72: 2017-02-01 | C72: Wednesday | D72: 14:00 - 15:00 | E72: 2017-02-01T14:05:09.377 | F72: 2017-02-01T15:12:41.737 | G72: 67 | H72: 2:23 PM: ARRIVWED 2:22 PM: reg | I72: Fallon Community Health Plan
A73: 1971-06-01 | B73: 2017-02-01 | C73: Wednesday | D73: 14:00 - 15:00 | E73: 2017-02-01T14:05:20.267 | F73: 2017-02-01T15:09:49.880 | G73: 64 | H73: 2:34 PM: ARRIVED | I73: Other
A74: 1963-05-09 | B74: 2017-02-01 | C74: Wednesday | D74: 14:00 - 15:00 | E74: 2017-02-01T14:06:26.457 | F74: 2017-02-01T14:52:48.340 | G74: 46 | H74: 2:39 PM: INS VER | I74: Harvard Pilgrim
A75: 1991-09-07 | B75: 2017-02-01 | C75: Wednesday | D75: 14:00 - 15:00 | E75: 2017-02-01T14:06:29.210 | F75: 2017-02-01T15:12:19.910 | G75: 66 | H75: 3:00 PM: ARRIVED | I75: Self Pay\No Insurance
A76: 1992-12-20 | B76: 2017-02-01 | C76: Wednesday | D76: 14:00 - 15:00 | E76: 2017-02-01T14:08:06.023 | F76: 2017-02-01T14:44:04.640 | G76: 36 | H76: 2:44 PM: pt aware 2:42 PM: we do not take ins-Tufts Network | I76: Medicaid\Mass Health
A77: 1990-07-20 | B77: 2017-02-01 | C77: Wednesday | D77: 14:00 - 15:00 | E77: 2017-02-01T14:09:38.490 | F77: 2017-02-01T14:16:38.603 | G77: 7 | H77: 2:15 PM: arrived 2:13 PM: reg | I77: Blue Cross\Blue Shield
A78: 1953-06-18 | B78: 2017-02-01 | C78: Wednesday | D78: 14:00 - 15:00 | E78: 2017-02-01T14:14:54.680 | F78: 2017-02-01T14:29:47.270 | G78: 15 | H78: 2:24 PM: ARRIVED 2:23 PM: REG | I78: Fallon Community Health Plan
A79: 2009-08-05 | B79: 2017-02-01 | C79: Wednesday | D79: 14:00 - 15:00 | E79: 2017-02-01T14:22:20.500 | F79: 2017-02-01T15:13:30.067 | G79: 51 | H79: 2:50 PM: arrived-on adult wall 2:49 PM: regging 2:44 PM: ins ver | I79: Blue Cross\Blue Shield
A80: 1960-04-14 | B80: 2017-02-01 | C80: Wednesday | D80: 14:00 - 15:00 | E80: 2017-02-01T14:23:55.543 | F80: 2017-02-01T14:37:12.597 | G80: 14 | I80: United Health Care
A81: 1984-10-27 | B81: 2017-02-01 | C81: Wednesday | D81: 14:00 - 15:00 | E81: 2017-02-01T14:39:03.193 | F81: 2017-02-01T15:28:27.263 | G81: 49 | H81: 3:05 PM: arrived-on wall 2:40 PM: ver | I81: Fallon Community Health Plan
A82: 2016-10-25 | B82: 2017-02-01 | C82: Wednesday | D82: 14:00 - 15:00 | E82: 2017-02-01T14:42:50.680 | F82: 2017-02-01T15:08:54.160 | G82: 26 | H82: 3:08 PM: called no ans 2:45 PM: we do not take ins-Tufts Network Health | I82: Self Pay\No Insurance
A83: 1957-03-18 | B83: 2017-02-01 | C83: Wednesday | D83: 14:00 - 15:00 | E83: 2017-02-01T14:53:36.100 | F83: 2017-02-01T15:18:03.580 | G83: 25 | H83: 3:14 PM: arrived-on wall 3:10 PM: regging 3:08 PM: ins ver | I83: Blue Cross\Blue Shield
A84: 1981-07-06 | B84: 2017-02-01 | C84: Wednesday | D84: 14:00 - 15:00 | E84: 2017-02-01T14:57:34.530 | F84: 2017-02-01T15:07:17.037 | G84: 10 | H84: 3:06 PM: we do not take ins-tufts network health | I84: Medicaid\Mass Health
A85: 1989-11-27 | B85: 2017-02-01 | C85: Wednesday | D85: 15:00 - 16:00 | E85: 2017-02-01T15:08:18.927 | F85: 2017-02-01T15:23:28.360 | G85: 15 | H85: 3:20 PM: arrived-on wall 3:18 PM: regging 3:11 PM: ins ver | I85: Other
A86: 2016-05-31 | B86: 2017-02-01 | C86: Wednesday | D86: 15:00 - 16:00 | E86: 2017-02-01T15:17:01.687 | F86: 2017-02-01T15:37:40.917 | G86: 20 | H86: 3:24 PM: arrived-on adult wall 3:20 PM: regging | I86: Fallon Community Health Plan
A87: 1927-03-08 | B87: 2017-02-01 | C87: Wednesday | D87: 15:00 - 16:00 | E87: 2017-02-01T15:21:23.077 | F87: 2017-02-01T15:35:20.667 | G87: 14 | H87: 3:27 PM: regging | I87: Tufts
A88: 1999-12-16 | B88: 2017-02-01 | C88: Wednesday | D88: 15:00 - 16:00 | E88: 2017-02-01T15:23:18.423 | F88: 2017-02-01T16:04:36.233 | G88: 41 | H88: 3:47 PM: regged-on adult wall 3:46 PM: regging 3:30 PM: ins ver | I88: Harvard Pilgrim
A89: 1978-05-16 | B89: 2017-02-01 | C89: Wednesday | D89: 15:00 - 16:00 | E89: 2017-02-01T15:26:04.007 | F89: 2017-02-01T15:52:05.987 | G89: 26 | H89: 3:46 PM: regged-on wall 3:42 PM: regging 3:38 PM: ok to see per Jessica 3:29 PM: ins ver/needs referral | I89: Blue Cross\Blue Shield
A90: 2010-12-17 | B90: 2017-02-01 | C90: Wednesday | D90: 15:00 - 16:00 | E90: 2017-02-01T15:26:34.970 | F90: 2017-02-01T16:30:11.647 | G90: 64 | H90: 3:58 PM: regged-on adult wall 3:57 PM: regging 3:56 PM: ins ver | I90: Aetna
A91: 1988-12-29 | B91: 2017-02-01 | C91: Wednesday | D91: 15:00 - 16:00 | E91: 2017-02-01T15:27:44.433 | F91: 2017-02-01T16:03:27.140 | G91: 36 | H91: 4:00 PM: arrived-on wall 3:53 PM: regging 3:30 PM: ins ver | I91: Harvard Pilgrim
A92: 1969-09-15 | B92: 2017-02-01 | C92: Wednesday | D92: 15:00 - 16:00 | E92: 2017-02-01T15:40:07.650 | F92: 2017-02-01T16:13:23.433 | G92: 33 | H92: 4:07 PM: arrived-on wall 4:03 PM: pt needs referral 4:02 PM: regging 3:55 PM: new ins | I92: Blue Cross\Blue Shield
A93: 1931-07-24 | B93: 2017-02-01 | C93: Wednesday | D93: 15:00 - 16:00 | E93: 2017-02-01T15:54:14.657 | F93: 2017-02-01T16:16:26.103 | G93: 22 | H93: 4:13 PM: arrived-on wall 4:12 PM: regging 3:56 PM: ins ver | I93: Tufts
A94: 1978-12-12 | B94: 2017-02-01 | C94: Wednesday | D94: 15:00 - 16:00 | E94: 2017-02-01T15:56:24.483 | F94: 2017-02-01T16:29:10.817 | G94: 33 | H94: 4:24 PM: regged-on wall 4:21 PM: regging 4:00 PM: new pt | I94: Blue Cross\Blue Shield
A95: 1996-01-06 | B95: 2017-02-01 | C95: Wednesday | D95: 16:00 - 17:00 | E95: 2017-02-01T16:07:02.287 | F95: 2017-02-01T16:34:04.097 | G95: 27 | H95: 4:30 PM: arrived-on wall 4:27 PM: regging 4:08 PM: ins ver
A96: 1962-01-25 | B96: 2017-02-01 | C96: Wednesday | D96: 16:00 - 17:00 | E96: 2017-02-01T16:13:40.267 | F96: 2017-02-01T16:53:16.857 | G96: 40 | H96: 4:37 PM: regged-on wall 4:35 PM: regging 4:14 PM: ins ver | I96: Medicaid\Mass Health
A97: 2010-02-25 | B97: 2017-02-01 | C97: Wednesday | D97: 16:00 - 17:00 | E97: 2017-02-01T16:14:28.727 | F97: 2017-02-01T16:51:29.763 | G97: 37 | H97: 4:24 PM: regged-on adult wall 4:15 PM: ins ver | I97: Medicaid\Mass Health
A98: 2016-08-14 | B98: 2017-02-01 | C98: Wednesday | D98: 16:00 - 17:00 | E98: 2017-02-01T16:21:48.823 | F98: 2017-02-01T16:57:20.010 | G98: 36 | H98: 4:32 PM: arrived-on wall 4:30 PM: regging 4:25 PM: ins ver | I98: Blue Cross\Blue Shield
A99: 1969-04-06 | B99: 2017-02-01 | C99: Wednesday | D99: 16:00 - 17:00 | E99: 2017-02-01T16:40:46.870 | F99: 2017-02-01T17:19:31.657 | G99: 39 | H99: 4:54 PM: regged-on wall 4:48 PM: regging 4:41 PM: ins ver | I99: Fallon Community Health Plan
A100: 1984-05-28 | B100: 2017-02-01 | C100: Wednesday | D100: 16:00 - 17:00 | E100: 2017-02-01T16:42:31 | F100: 2017-02-01T17:18:06.503 | G100: 36 | H100: 5:04 PM: regged-on wall 4:56 PM: regging 4:44 PM: ins ver | I100: Medicaid\Mass Health
A101: 1973-08-14 | B101: 2017-02-01 | C101: Wednesday | D101: 16:00 - 17:00 | E101: 2017-02-01T16:51:42.547 | F101: 2017-02-01T17:18:39.783 | G101: 27 | H101: 5:13 PM: waiting by pedi 5:12 PM: regged on wall 5:11 PM: regging 4:53 PM: ins ver | I101: Other
A102: 2000-11-21 | B102: 2017-02-01 | C102: Wednesday | D102: 16:00 - 17:00 | E102: 2017-02-01T16:53:42.107 | F102: 2017-02-01T17:22:45.737 | G102: 29 | H102: 4:54 PM: ins ver | I102: Fallon Community Health Plan
A103: 2006-08-27 | B103: 2017-02-01 | C103: Wednesday | D103: 16:00 - 17:00 | E103: 2017-02-01T16:55:16.560 | F103: 2017-02-01T17:34:16.060 | G103: 39 | H103: 5:24 PM: ON WALL ADULT 5:21 PM: regging 5:17 PM: regged on wall 4:57 PM: new ins | I103: United Health Care
A104: 2016-04-26 | B104: 2017-02-01 | C104: Wednesday | D104: 17:00 - 18:00 | E104: 2017-02-01T17:01:43.127 | F104: 2017-02-01T17:40:59.603 | G104: 39 | H104: 5:40 PM: regged on wall adult 5:06 PM: new pt | I104: Medicaid\Mass Health
A105: 1964-04-04 | B105: 2017-02-01 | C105: Wednesday | D105: 17:00 - 18:00 | E105: 2017-02-01T17:07:46.303 | F105: 2017-02-01T17:26:23.623 | G105: 19 | H105: 5:24 PM: REGGED ONW ALL 5:19 PM: regging 5:09 PM: called no answer | I105: Medicare
A106: 2011-03-22 | B106: 2017-02-01 | C106: Wednesday | D106: 17:00 - 18:00 | E106: 2017-02-01T17:11:06.320 | F106: 2017-02-01T17:50:14.850 | G106: 39 | I106: Medicaid\Mass Health
A107: 2009-02-07 | B107: 2017-02-01 | C107: Wednesday | D107: 17:00 - 18:00 | E107: 2017-02-01T17:13:02.183 | F107: 2017-02-01T17:59:20.923 | G107: 46 | H107: 5:51 PM: regged on wall adult 5:44 PM: insur verif | I107: Blue Cross\Blue Shield
A108: 1961-12-07 | B108: 2017-02-01 | C108: Wednesday | D108: 17:00 - 18:00 | E108: 2017-02-01T17:15:17.503 | F108: 2017-02-01T17:35:34.760 | G108: 20 | H108: 5:27 PM: regging | I108: Medicaid\Mass Health
A109: 1993-12-22 | B109: 2017-02-01 | C109: Wednesday | D109: 17:00 - 18:00 | E109: 2017-02-01T17:15:57.460 | F109: 2017-02-01T17:35:44.730 | G109: 20 | I109: Medicaid\Mass Health
A110: 1969-09-01 | B110: 2017-02-01 | C110: Wednesday | D110: 17:00 - 18:00 | E110: 2017-02-01T17:21:51.957 | F110: 2017-02-01T17:51:00.270 | G110: 30 | H110: 5:43 PM: on wall 5:38 PM: regging | I110: Blue Cross\Blue Shield
A111: 1985-08-22 | B111: 2017-02-01 | C111: Wednesday | D111: 17:00 - 18:00 | E111: 2017-02-01T17:21:57.400 | F111: 2017-02-01T18:16:41.637 | G111: 55 | H111: 6:06 PM: regged on wall 5:52 PM: regging 5:39 PM: error 5:38 PM: regging | I111: Self Pay\No Insurance
A112: 2011-09-09 | B112: 2017-02-01 | C112: Wednesday | D112: 17:00 - 18:00 | E112: 2017-02-01T17:24:41.060 | F112: 2017-02-01T18:06:05.077 | G112: 42 | H112: 5:49 PM: regged onw all adult 5:44 PM: insurance verified | I112: Medicaid\Mass Health
A113: 1989-09-18 | B113: 2017-02-01 | C113: Wednesday | D113: 17:00 - 18:00 | E113: 2017-02-01T17:25:00.413 | F113: 2017-02-01T18:02:06.597 | G113: 37 | H113: 5:45 PM: insurance verified | I113: Medicaid\Mass Health
A114: 1988-03-08 | B114: 2017-02-01 | C114: Wednesday | D114: 17:00 - 18:00 | E114: 2017-02-01T17:25:29.790 | F114: 2017-02-01T18:45:37.610 | G114: 80 | H114: 6:27 PM: regged on wall 6:21 PM: regging 5:45 PM: insurance verified | I114: Aetna
A115: 2007-12-06 | B115: 2017-02-01 | C115: Wednesday | D115: 17:00 - 18:00 | E115: 2017-02-01T17:25:59.447 | F115: 2017-02-01T18:08:53.467 | G115: 43 | H115: 5:49 PM: on wall adult 5:48 PM: insurance verified | I115: Medicaid\Mass Health
A116: 1967-05-20 | B116: 2017-02-01 | C116: Wednesday | D116: 17:00 - 18:00 | E116: 2017-02-01T17:29:06.947 | F116: 2017-02-01T18:24:07.960 | G116: 55 | H116: 5:46 PM: insurance verified | I116: United Health Care
A117: 2010-08-04 | B117: 2017-02-01 | C117: Wednesday | D117: 17:00 - 18:00 | E117: 2017-02-01T17:31:31.943 | F117: 2017-02-01T18:30:01.023 | G117: 59 | H117: 5:59 PM: regged on wall adult 5:59 PM: insruance verified | I117: Fallon Community Health Plan
A118: 1991-02-12 | B118: 2017-02-01 | C118: Wednesday | D118: 17:00 - 18:00 | E118: 2017-02-01T17:34:13.733 | F118: 2017-02-01T18:49:44.937 | G118: 75 | H118: 6:37 PM: on wall 6:33 PM: regging 5:54 PM: insurance verified | I118: Medicaid\Mass Health
A119: 1964-01-16 | B119: 2017-02-01 | C119: Wednesday | D119: 17:00 - 18:00 | E119: 2017-02-01T17:36:13.113 | F119: 2017-02-01T19:17:50.677 | G119: 101 | H119: 6:53 PM: on wall 6:52 PM: regging 5:54 PM: ver | I119: Harvard Pilgrim
A120: 1960-04-10 | B120: 2017-02-01 | C120: Wednesday | D120: 17:00 - 18:00 | E120: 2017-02-01T17:40:16.113 | F120: 2017-02-01T19:20:01.613 | G120: 100 | H120: 7:01 PM: on wall 6:59 PM: regging 5:55 PM: ver 5:54 PM: insurance verified | I120: Tufts
A121: 1976-11-15 | B121: 2017-02-01 | C121: Wednesday | D121: 17:00 - 18:00 | E121: 2017-02-01T17:48:13.787 | F121: 2017-02-01T19:27:12.547 | G121: 99 | H121: 7:27 PM: no answer 7:06 PM: called no answer 5:55 PM: insurance verified | I121: Harvard Pilgrim
A122: 1993-08-05 | B122: 2017-02-01 | C122: Wednesday | D122: 17:00 - 18:00 | E122: 2017-02-01T17:49:19.603 | F122: 2017-02-01T18:14:40.433 | G122: 25 | H122: 6:14 PM: carewell 6:08 PM: regging 5:56 PM: needs to confirm pcp 5:56 PM: insruance verified | I122: Medicaid\Mass Health
A123: 1963-06-14 | B123: 2017-02-01 | C123: Wednesday | D123: 17:00 - 18:00 | E123: 2017-02-01T17:58:44.140 | F123: 2017-02-01T19:23:19.720 | G123: 85 | H123: 7:18 PM: regging 7:15 PM: regged on wall 7:11 PM: urine sample in bubble 6:02 PM: insruance verified | I123: Fallon Community Health Plan
A124: 2014-09-08 | B124: 2017-02-01 | C124: Wednesday | D124: 18:00 - 19:00 | E124: 2017-02-01T18:04:22.187 | F124: 2017-02-01T18:51:51.937 | G124: 47 | H124: 6:47 PM: on pedi wall 6:31 PM: regged on wall adult | I124: Blue Cross\Blue Shield
A125: 1985-08-10 | B125: 2017-02-01 | C125: Wednesday | D125: 18:00 - 19:00 | E125: 2017-02-01T18:09:47.180 | F125: 2017-02-01T19:33:54.670 | G125: 84 | H125: 7:31 PM: regged on wall 7:28 PM: regging 6:38 PM: isnraunce verified | I125: Fallon Community Health Plan
A126: 1942-06-07 | B126: 2017-02-01 | C126: Wednesday | D126: 18:00 - 19:00 | E126: 2017-02-01T18:18:29.840 | F126: 2017-02-01T19:00:10.963 | G126: 42 | H126: 6:40 PM: on wall 6:37 PM: regging 6:36 PM: insurance verified | I126: Tufts
A127: 1962-12-29 | B127: 2017-02-01 | C127: Wednesday | D127: 18:00 - 19:00 | E127: 2017-02-01T18:29:21.260 | F127: 2017-02-01T19:35:35.810 | G127: 66 | H127: 7:00 PM: insurance verified | I127: Fallon Community Health Plan
A128: 1974-07-19 | B128: 2017-02-01 | C128: Wednesday | D128: 18:00 - 19:00 | E128: 2017-02-01T18:30:13.517 | F128: 2017-02-01T19:08:21.633 | G128: 38 | H128: 6:46 PM: regging 6:41 PM: insurance verified | I128: United Health Care
A129: 2001-06-18 | B129: 2017-02-01 | C129: Wednesday | D129: 18:00 - 19:00 | E129: 2017-02-01T18:30:42.013 | F129: 2017-02-01T18:54:01.340 | G129: 24 | H129: 6:48 PM: new pt | I129: Harvard Pilgrim
A130: 1998-11-08 | B130: 2017-02-01 | C130: Wednesday | D130: 18:00 - 19:00 | E130: 2017-02-01T18:31:22.213 | F130: 2017-02-01T19:40:48.353 | G130: 69 | H130: 7:40 PM: called no answer 6:58 PM: called once | I130: Blue Cross\Blue Shield
A131: 1968-09-18 | B131: 2017-02-01 | C131: Wednesday | D131: 18:00 - 19:00 | E131: 2017-02-01T18:32:37.043 | F131: 2017-02-01T19:14:15.067 | G131: 42 | H131: 7:14 PM: pt could not be sceen due to ins 7:07 PM: celticare - can be self pay | I131: Medicaid\Mass Health
A132: 1987-07-19 | B132: 2017-02-01 | C132: Wednesday | D132: 18:00 - 19:00 | E132: 2017-02-01T18:33:44.820 | F132: 2017-02-01T19:47:15.087 | G132: 74 | H132: 7:47 PM: called no answer 7:38 PM: ? new pt | I132: Blue Cross\Blue Shield
A133: 1992-02-24 | B133: 2017-02-01 | C133: Wednesday | D133: 18:00 - 19:00 | E133: 2017-02-01T18:34:25 | F133: 2017-02-01T19:49:10.147 | G133: 75 | H133: 6:55 PM: sports PE/knows about $120 | I133: Harvard Pilgrim
A134: 2013-09-01 | B134: 2017-02-01 | C134: Wednesday | D134: 18:00 - 19:00 | E134: 2017-02-01T18:35:26.040 | F134: 2017-02-01T18:57:39.137 | G134: 22 | H134: 6:48 PM: on wall adult 6:48 PM: insruance verififed | I134: Medicaid\Mass Health
A135: 2015-07-03 | B135: 2017-02-01 | C135: Wednesday | D135: 18:00 - 19:00 | E135: 2017-02-01T18:36:34.613 | F135: 2017-02-01T19:06:35.290 | G135: 30 | H135: 6:50 PM: on wall adult | I135: Medicaid\Mass Health
A136: 2011-08-04 | B136: 2017-02-01 | C136: Wednesday | D136: 18:00 - 19:00 | E136: 2017-02-01T18:38:06.610 | F136: 2017-02-01T19:16:35.130 | G136: 38 | H136: 7:10 PM: regged on wall adult 6:54 PM: insurance verified | I136: Fallon Community Health Plan
A137: 1980-12-06 | B137: 2017-02-01 | C137: Wednesday | D137: 18:00 - 19:00 | E137: 2017-02-01T18:42:46.177 | F137: 2017-02-01T19:59:38.253 | G137: 77 | H137: 7:58 PM: called no answer 7:50 PM: called no answer 7:45 PM: insurance verified | I137: Blue Cross\Blue Shield
A138: 2014-05-19 | B138: 2017-02-01 | C138: Wednesday | D138: 18:00 - 19:00 | E138: 2017-02-01T18:49:15.520 | F138: 2017-02-01T19:21:44.300 | G138: 32 | H138: 7:14 PM: on wall adult 6:57 PM: insurance verified | I138: Medicaid\Mass Health
A139: 2014-07-23 | B139: 2017-02-01 | C139: Wednesday | D139: 18:00 - 19:00 | E139: 2017-02-01T18:56:00.323 | F139: 2017-02-01T19:37:10.607 | G139: 41 | H139: 7:22 PM: on wall adult | I139: Medicaid\Mass Health
A140: 1956-06-03 | B140: 2017-02-01 | C140: Wednesday | D140: 19:00 - 20:00 | E140: 2017-02-01T19:09:51.297 | F140: 2017-02-01T19:59:39.207 | G140: 50 | H140: 7:59 PM: called no answer 7:51 PM: called no answer 7:45 PM: insurance verified | I140: Fallon Community Health Plan
A141: 1999-04-26 | B141: 2017-02-01 | C141: Wednesday | D141: 19:00 - 20:00 | E141: 2017-02-01T19:14:20.987 | F141: 2017-02-01T19:48:56.227 | G141: 34 | H141: 7:24 PM: on wall adult | I141: Blue Cross\Blue Shield
A142: 1955-01-22 | B142: 2017-02-01 | C142: Wednesday | D142: 19:00 - 20:00 | E142: 2017-02-01T19:14:47.283 | F142: 2017-02-01T19:27:37.670 | G142: 13 | H142: 7:27 PM: called no answer | I142: Blue Cross\Blue Shield
A143: 1975-07-03 | B143: 2017-02-01 | C143: Wednesday | D143: 19:00 - 20:00 | E143: 2017-02-01T19:14:48.020 | F143: 2017-02-01T19:59:40.050 | G143: 45 | H143: 7:59 PM: called no answer 7:51 PM: called no answer 7:46 PM: insurance verified | I143: Fallon Community Health Plan
A144: 2014-02-05 | B144: 2017-02-01 | C144: Wednesday | D144: 19:00 - 20:00 | E144: 2017-02-01T19:15:59.923 | F144: 2017-02-01T19:48:58.897 | G144: 33 | H144: 7:33 PM: on wall adult | I144: Cigna
A145: 2005-03-22 | B145: 2017-02-01 | C145: Wednesday | D145: 19:00 - 20:00 | E145: 2017-02-01T19:19:27.380 | F145: 2017-02-01T20:03:37.097 | G145: 44 | H145: 8:02 PM: called no answer 7:57. 7:36 PM: on wall adult | I145: Fallon Community Health Plan
A146: 2004-03-04 | B146: 2017-02-01 | C146: Wednesday | D146: 19:00 - 20:00 | E146: 2017-02-01T19:26:48.970 | F146: 2017-02-01T20:02:36.657 | G146: 36 | H146: 7:41 PM: ins ver 7:40 PM: on wall adult | I146: Fallon Community Health Plan
A147: 2005-01-24 | B147: 2017-02-01 | C147: Wednesday | D147: 19:00 - 20:00 | E147: 2017-02-01T19:28:36.797 | F147: 2017-02-01T20:03:19.970 | G147: 35 | H147: 7:41 PM: on wall adult | I147: Fallon Community Health Plan
A148: 1971-01-30 | B148: 2017-02-01 | C148: Wednesday | D148: 19:00 - 20:00 | E148: 2017-02-01T19:36:41.420 | F148: 2017-02-01T19:46:09.477 | G148: 10 | H148: 7:43 PM: regging | I148: United Health Care
A149: 1983-06-29 | B149: 2017-02-01 | C149: Wednesday | D149: 19:00 - 20:00 | E149: 2017-02-01T19:43:05.660 | F149: 2017-02-01T19:57:47.097 | G149: 14 | H149: 7:55 PM: on wall 7:52 PM: regging | I149: Fallon Community Health Plan
A150: 2013-09-03 | B150: 2017-02-01 | C150: Wednesday | D150: 19:00 - 20:00 | E150: 2017-02-01T19:48:33.170 | F150: 2017-02-01T20:12:56.297 | G150: 24 | H150: 8:00 PM: on wall adult | I150: Harvard Pilgrim
A151: 2008-06-15 | B151: 2017-02-01 | C151: Wednesday | D151: 19:00 - 20:00 | E151: 2017-02-01T19:51:26.423 | F151: 2017-02-01T20:19:23.997 | G151: 28 | H151: 8:01 PM: on wall adult | I151: Medicaid\Mass Health
A152: 1988-06-24 | B152: 2017-02-01 | C152: Wednesday | D152: 09:00 - 10:00 | E152: 2017-02-01T09:47:46.680 | F152: 2017-02-01T09:55:44.510 | G152: 8 | H152: 9:55 AM: needs result letter, all done JJW
A153: 1999-05-16 | B153: 2017-02-01 | C153: Wednesday | D153: 13:00 - 14:00 | E153: 2017-02-01T13:16:37.883 | F153: 2017-02-01T13:19:01.970 | G153: 3
A154: 1993-03-20 | B154: 2017-02-01 | C154: Wednesday | D154: 18:00 - 19:00 | E154: 2017-02-01T18:02:06.560 | F154: 2017-02-01T18:42:32.783 | G154: 40 | H154: 6:24 PM: on wall 6:24 PM: dressing change
A155: 1978-01-14 | B155: 2017-02-02 | C155: Thursday | D155: 08:00 - 09:00 | E155: 2017-02-02T08:59:11.650 | F155: 2017-02-02T09:28:44.817 | G155: 29 | H155: 9:19 AM: REG 9:00 AM: ins ver | I155: Harvard Pilgrim
A156: 1996-08-08 | B156: 2017-02-02 | C156: Thursday | D156: 09:00 - 10:00 | E156: 2017-02-02T09:05:51.340 | F156: 2017-02-02T09:44:11.140 | G156: 39 | H156: 9:29 AM: REG+ 9:18 AM: NEW PT | I156: Cigna
A157: 1992-02-03 | B157: 2017-02-02 | C157: Thursday | D157: 10:00 - 11:00 | E157: 2017-02-02T10:02:12.973 | F157: 2017-02-02T11:09:13.903 | G157: 67 | H157: 10:27 AM: bcbs ver, fchp-contact cust. service | I157: Blue Cross\Blue Shield
A158: 1964-12-30 | B158: 2017-02-02 | C158: Thursday | D158: 10:00 - 11:00 | E158: 2017-02-02T10:08:56.860 | F158: 2017-02-02T11:23:13.430 | G158: 75 | H158: 11:19 AM: wall 11:16 AM: reg 10:32 AM: ins ver | I158: Blue Cross\Blue Shield
A159: 1993-05-19 | B159: 2017-02-02 | C159: Thursday | D159: 10:00 - 11:00 | E159: 2017-02-02T10:56:32.833 | F159: 2017-02-02T12:00:00.777 | G159: 64 | H159: 11:43 AM: regging, need referal 11:40 AM: new pt | I159: Harvard Pilgrim
A160: 1982-06-25 | B160: 2017-02-02 | C160: Thursday | D160: 11:00 - 12:00 | E160: 2017-02-02T11:22:35.837 | F160: 2017-02-02T12:22:16.487 | G160: 60 | H160: 12:20 PM: on wall 12:19 PM: REG 11:39 AM: ins verified | I160: Blue Cross\Blue Shield
A161: 1998-01-17 | B161: 2017-02-02 | C161: Thursday | D161: 11:00 - 12:00 | E161: 2017-02-02T11:38:51.137 | F161: 2017-02-02T12:38:34.527 | G161: 60 | H161: 12:32 PM: reg 11:41 AM: ma hlth plan mismatch | I161: Fallon Community Health Plan
A162: 1999-12-06 | B162: 2017-02-02 | C162: Thursday | D162: 11:00 - 12:00 | E162: 2017-02-02T11:40:48.623 | F162: 2017-02-02T12:51:23.240 | G162: 71 | H162: 12:43 PM: on wall 12:35 PM: reg 11:42 AM: ins verified | I162: Medicaid\Mass Health
A163: 1983-08-30 | B163: 2017-02-02 | C163: Thursday | D163: 11:00 - 12:00 | E163: 2017-02-02T11:51:17.550 | F163: 2017-02-02T13:02:39.923 | G163: 71 | H163: 12:45 PM: reg 11:57 AM: ins ver | I163: Aetna
A164: 1936-01-24 | B164: 2017-02-02 | C164: Thursday | D164: 12:00 - 13:00 | E164: 2017-02-02T12:13:59.017 | F164: 2017-02-02T13:32:27.443 | G164: 79 | H164: 1:28 PM: on wall 1:25 PM: reg 12:21 PM: ins ver | I164: Tufts
A165: 1985-07-30 | B165: 2017-02-02 | C165: Thursday | D165: 12:00 - 13:00 | E165: 2017-02-02T12:29:38.540 | F165: 2017-02-02T13:54:18.200 | G165: 85 | H165: 1:49 PM: on wall 1:45 PM: REG 1:26 PM: ins ver | I165: Fallon Community Health Plan
A166: 1940-05-09 | B166: 2017-02-02 | C166: Thursday | D166: 13:00 - 14:00 | E166: 2017-02-02T13:11:56.300 | F166: 2017-02-02T13:53:13.420 | G166: 42 | H166: 1:39 PM: on wall 1:31 PM: reg 1:20 PM: called, no answer | I166: Self Pay\No Insurance
A167: 1979-06-29 | B167: 2017-02-02 | C167: Thursday | D167: 16:00 - 17:00 | E167: 2017-02-02T16:21:08.093 | F167: 2017-02-02T18:22:19.480 | G167: 121 | H167: 5:50 PM: arrived, on wall 5:42 PM: regging 4:22 PM: ins ver | I167: Medicaid\Mass Health
A168: 2014-04-17 | B168: 2017-02-02 | C168: Thursday | D168: 14:00 - 15:00 | E168: 2017-02-02T14:05:38.347 | F168: 2017-02-02T14:51:16.190 | G168: 46 | H168: 2:23 PM: reg 2:20 PM: ins ver
A169: 1986-09-18 | B169: 2017-02-02 | C169: Thursday | D169: 08:00 - 09:00 | E169: 2017-02-02T08:54:30.920 | F169: 2017-02-02T09:03:57.577 | G169: 9 | H169: 9:03 AM: cant see ins. Celticare | I169: Medicaid\Mass Health
A170: 2007-03-14 | B170: 2017-02-02 | C170: Thursday | D170: 08:00 - 09:00 | E170: 2017-02-02T08:55:13.910 | F170: 2017-02-02T09:00:45.593 | G170: 5 | I170: Blue Cross\Blue Shield
A171: 1950-04-14 | B171: 2017-02-02 | C171: Thursday | D171: 08:00 - 09:00 | E171: 2017-02-02T08:56:20.933 | F171: 2017-02-02T09:01:13.797 | G171: 5 | I171: Tufts
A172: 1988-06-23 | B172: 2017-02-02 | C172: Thursday | D172: 08:00 - 09:00 | E172: 2017-02-02T08:56:34.083 | F172: 2017-02-02T09:21:42.507 | G172: 25 | H172: 9:19 AM: NO ANS 9:13 AM: NO ANSWER - NEEDS REFERRAL UMASS | I172: Medicaid\Mass Health
A173: 1993-05-12 | B173: 2017-02-02 | C173: Thursday | D173: 08:00 - 09:00 | E173: 2017-02-02T08:57:49.777 | F173: 2017-02-02T09:02:59.907 | G173: 5 | H173: 9:02 AM: ins ver | I173: Cigna
A174: 1940-07-15 | B174: 2017-02-02 | C174: Thursday | D174: 08:00 - 09:00 | E174: 2017-02-02T08:58:39.620 | F174: 2017-02-02T09:20:24.680 | G174: 22 | H174: 9:19 AM: ON WALL 9:16 AM: REG 9:01 AM: ins ver | I174: Fallon Community Health Plan
A175: 1965-07-16 | B175: 2017-02-02 | C175: Thursday | D175: 09:00 - 10:00 | E175: 2017-02-02T09:01:22.563 | F175: 2017-02-02T09:02:31.750 | G175: 1 | I175: Aetna
A176: 2006-09-12 | B176: 2017-02-02 | C176: Thursday | D176: 09:00 - 10:00 | E176: 2017-02-02T09:01:47.347 | F176: 2017-02-02T09:12:35.560 | G176: 11 | H176: 9:09 AM: ON WALL 9:04 AM: reg | I176: Blue Cross\Blue Shield
A177: 1993-12-15 | B177: 2017-02-02 | C177: Thursday | D177: 09:00 - 10:00 | E177: 2017-02-02T09:05:28.060 | F177: 2017-02-02T09:29:09.803 | G177: 24 | H177: 9:29 AM: PT WENT TO ED 9:28 AM: MASSHEALTH HSN 9:25 AM: REG 9:17 AM: INS VERIFIED | I177: Fallon Community Health Plan
A178: 1974-10-08 | B178: 2017-02-02 | C178: Thursday | D178: 09:00 - 10:00 | E178: 2017-02-02T09:06:29.070 | F178: 2017-02-02T10:02:18.790 | G178: 56 | H178: 9:39 AM: REG 9:35 AM: no insurance in epic | I178: Cigna
A179: 1955-05-31 | B179: 2017-02-02 | C179: Thursday | D179: 09:00 - 10:00 | E179: 2017-02-02T09:11:03.597 | F179: 2017-02-02T09:27:06.227 | G179: 16 | H179: 9:26 AM: DID NOT WANT TO WAIT | I179: Fallon Community Health Plan
A180: 1976-03-18 | B180: 2017-02-02 | C180: Thursday | D180: 09:00 - 10:00 | E180: 2017-02-02T09:21:47.533 | F180: 2017-02-02T09:46:33.907 | G180: 25 | H180: 9:36 AM: ins ver | I180: Fallon Community Health Plan
A181: 1986-05-02 | B181: 2017-02-02 | C181: Thursday | D181: 09:00 - 10:00 | E181: 2017-02-02T09:23:04.003 | F181: 2017-02-02T09:53:26.857 | G181: 30 | H181: 9:38 AM: ins ver | I181: Blue Cross\Blue Shield
A182: 1942-11-24 | B182: 2017-02-02 | C182: Thursday | D182: 09:00 - 10:00 | E182: 2017-02-02T09:24:31.337 | F182: 2017-02-02T10:08:46.067 | G182: 44 | H182: 10:00 AM: reg 9:37 AM: ins ver | I182: Medicaid\Mass Health
A183: 1986-04-23 | B183: 2017-02-02 | C183: Thursday | D183: 09:00 - 10:00 | E183: 2017-02-02T09:28:12.870 | F183: 2017-02-02T09:51:51.857 | G183: 23 | H183: 9:51 AM: pt being bumped, triage nurse gave floor nurse report 9:43 AM: REG 9:38 AM: ins ver | I183: Medicaid\Mass Health
A184: 1965-05-07 | B184: 2017-02-02 | C184: Thursday | D184: 09:00 - 10:00 | E184: 2017-02-02T09:31:01.057 | F184: 2017-02-02T09:32:21.910 | G184: 1 | I184: Harvard Pilgrim
A185: 1994-04-20 | B185: 2017-02-02 | C185: Thursday | D185: 09:00 - 10:00 | E185: 2017-02-02T09:36:34.677 | F185: 2017-02-02T10:05:36.430 | G185: 29 | H185: 9:47 AM: ins ver | I185: Fallon Community Health Plan
A186: 1974-05-09 | B186: 2017-02-02 | C186: Thursday | D186: 09:00 - 10:00 | E186: 2017-02-02T09:39:11.060 | F186: 2017-02-02T09:58:21.807 | G186: 19 | H186: 9:58 AM: Discussed situation at length with client, client states needs Hep B inj., client will follow up with ID. | I186: Blue Cross\Blue Shield
A187: 1988-06-23 | B187: 2017-02-02 | C187: Thursday | D187: 09:00 - 10:00 | E187: 2017-02-02T09:43:39.243 | F187: 2017-02-02T10:37:51.387 | G187: 54 | H187: 10:22 AM: on wall 10:10 AM: reg 9:47 AM: mh pcc umass pcp | I187: Medicaid\Mass Health
A188: 2016-02-25 | B188: 2017-02-02 | C188: Thursday | D188: 09:00 - 10:00 | E188: 2017-02-02T09:46:17.080 | F188: 2017-02-02T10:38:17.010 | G188: 52 | H188: 10:35 AM: REG 9:48 AM: ins ver | I188: Medicaid\Mass Health
A189: 1981-07-01 | B189: 2017-02-02 | C189: Thursday | D189: 09:00 - 10:00 | E189: 2017-02-02T09:55:13.020 | F189: 2017-02-02T10:48:22.397 | G189: 53 | H189: 10:44 AM: reg on wall 10:40 AM: REG 9:59 AM: ins ver | I189: Fallon Community Health Plan
A190: 1982-07-13 | B190: 2017-02-02 | C190: Thursday | D190: 09:00 - 10:00 | E190: 2017-02-02T09:55:39.657 | F190: 2017-02-02T10:51:02.257 | G190: 56 | H190: 10:50 AM: wall 10:50 AM: reg 10:25 AM: ins ver | I190: Blue Cross\Blue Shield
A191: 1954-06-01 | B191: 2017-02-02 | C191: Thursday | D191: 09:00 - 10:00 | E191: 2017-02-02T09:55:45.557 | F191: 2017-02-02T10:51:23.740 | G191: 56 | H191: 10:51 AM: no answer 10:03 AM: 1000: Client called twice, client did not answer either times. 10:00 AM: ins verified | I191: Cigna
A192: 1957-10-07 | B192: 2017-02-02 | C192: Thursday | D192: 10:00 - 11:00 | E192: 2017-02-02T10:01:17.440 | F192: 2017-02-02T11:00:48.643 | G192: 59 | H192: 10:59 AM: on wall 10:52 AM: reg 10:31 AM: ins ver 10:04 AM: masshealth commonwealth? | I192: Medicaid\Mass Health
A193: 1993-05-24 | B193: 2017-02-02 | C193: Thursday | D193: 10:00 - 11:00 | E193: 2017-02-02T10:01:49.250 | F193: 2017-02-02T10:09:11.677 | G193: 8 | H193: 10:09 AM: going to umass 10:05 AM: celticare | I193: Medicaid\Mass Health
A194: 1974-08-18 | B194: 2017-02-02 | C194: Thursday | D194: 10:00 - 11:00 | E194: 2017-02-02T10:03:18.477 | F194: 2017-02-02T11:04:03.423 | G194: 61 | H194: 10:38 AM: LLQ pain x 3 days, denies other symptoms, client states feels ok to wait - dsf 10:29 AM: ?new pt | I194: Blue Cross\Blue Shield
A195: 1995-08-28 | B195: 2017-02-02 | C195: Thursday | D195: 10:00 - 11:00 | E195: 2017-02-02T10:03:30.880 | F195: 2017-02-02T11:07:27.843 | G195: 64 | H195: 10:39 AM: Cough x 2 days , client breathing without difficulty, client speaking in full sentences, client states Hx of bronchitis, ok to wait -dsf 10:10 AM: also has bcbs | I195: Medicaid\Mass Health
A196: 1978-06-15 | B196: 2017-02-02 | C196: Thursday | D196: 10:00 - 11:00 | E196: 2017-02-02T10:04:23.617 | F196: 2017-02-02T11:18:08.543 | G196: 74 | H196: 11:16 AM: on wall 11:16 AM: wall 11:11 AM: reg 11:09 AM: no answer 11:08 AM: regging 10:30 AM: ins ver | I196: Fallon Community Health Plan
A197: 2003-08-15 | B197: 2017-02-02 | C197: Thursday | D197: 10:00 - 11:00 | E197: 2017-02-02T10:07:25.653 | F197: 2017-02-02T10:16:35.973 | G197: 9 | H197: 10:16 AM: patient is not eligible. going to hospital | I197: Medicaid\Mass Health
A198: 2002-07-21 | B198: 2017-02-02 | C198: Thursday | D198: 10:00 - 11:00 | E198: 2017-02-02T10:07:45.230 | F198: 2017-02-02T11:14:59.153 | G198: 67 | H198: 10:34 AM: PO2 97%, fever x 2 days RR12 patient okay to wait. JJW | I198: Fallon Community Health Plan
A199: 1969-03-10 | B199: 2017-02-02 | C199: Thursday | D199: 10:00 - 11:00 | E199: 2017-02-02T10:10:12.530 | F199: 2017-02-02T11:22:16.023 | G199: 72 | H199: 11:22 AM: removed, not here 11:20 AM: no answer 10:30 AM: ins ver | I199: Aetna
A200: 1983-05-27 | B200: 2017-02-02 | C200: Thursday | D200: 10:00 - 11:00 | E200: 2017-02-02T10:10:36.577 | F200: 2017-02-02T11:23:02.273 | G200: 73 | H200: 11:22 AM: removed, not here 11:21 AM: no answer 10:18 AM: ver | I200: Fallon Community Health Plan
... 4078 more rows

Sheet March 2017
A1: DOB | B1: Visit Date | C1: Day | D1: Block | E1: Time Arrived | F1: Time Roomed | G1: Mins. Arrived to Roomed | H1: Notes | I1: Insurance
A2: 1974-08-06 | B2: 2017-03-01 | C2: Wednesday | D2: 08:00 - 09:00 | E2: 2017-03-01T08:49:22.573 | F2: 2017-03-01T08:55:25.900 | G2: 6 | I2: Blue Cross\Blue Shield
A3: 1977-08-09 | B3: 2017-03-01 | C3: Wednesday | D3: 08:00 - 09:00 | E3: 2017-03-01T08:53:49.293 | F3: 2017-03-01T08:57:02.073 | G3: 4 | I3: Harvard Pilgrim
A4: 1977-08-09 | B4: 2017-03-01 | C4: Wednesday | D4: 08:00 - 09:00 | E4: 2017-03-01T08:57:42.903 | F4: 2017-03-01T08:58:23.807 | G4: 1 | I4: Harvard Pilgrim
A5: 1996-06-25 | B5: 2017-03-01 | C5: Wednesday | D5: 08:00 - 09:00 | E5: 2017-03-01T08:58:34.350 | F5: 2017-03-01T09:01:47.570 | G5: 3 | H5: 9:01 AM: arrived-on wall 8:59 AM: regging | I5: Medicaid\Mass Health
A6: 1987-04-18 | B6: 2017-03-01 | C6: Wednesday | D6: 08:00 - 09:00 | E6: 2017-03-01T08:59:33.143 | F6: 2017-03-01T09:06:08.693 | G6: 7 | H6: 9:05 AM: arrived-on wall 9:02 AM: regging | I6: Blue Cross\Blue Shield
A7: 1974-02-18 | B7: 2017-03-01 | C7: Wednesday | D7: 08:00 - 09:00 | E7: 2017-03-01T08:59:50.310 | F7: 2017-03-01T09:12:09.690 | G7: 13 | H7: 9:09 AM: arrived-on wall 9:05 AM: regging | I7: United Health Care
A8: 1990-12-12 | B8: 2017-03-01 | C8: Wednesday | D8: 09:00 - 10:00 | E8: 2017-03-01T09:01:28.683 | F8: 2017-03-01T09:15:08.050 | G8: 14 | H8: 9:14 AM: arrived-on wall 9:10 AM: regging | I8: Medicaid\Mass Health
A9: 1977-01-30 | B9: 2017-03-01 | C9: Wednesday | D9: 09:00 - 10:00 | E9: 2017-03-01T09:02:01.950 | F9: 2017-03-01T09:09:00.097 | G9: 7 | I9: Medicaid\Mass Health
A10: 1984-10-20 | B10: 2017-03-01 | C10: Wednesday | D10: 09:00 - 10:00 | E10: 2017-03-01T09:03:32.857 | F10: 2017-03-01T09:21:54.627 | G10: 18 | H10: 9:18 AM: arrived-on wall 9:15 AM: regging | I10: Blue Cross\Blue Shield
A11: 1995-08-12 | B11: 2017-03-01 | C11: Wednesday | D11: 09:00 - 10:00 | E11: 2017-03-01T09:03:50.160 | F11: 2017-03-01T09:25:09.343 | G11: 22 | H11: 9:19 AM: arrived-on wall 9:18 AM: regging | I11: Tufts
A12: 1958-10-11 | B12: 2017-03-01 | C12: Wednesday | D12: 09:00 - 10:00 | E12: 2017-03-01T09:07:52.917 | F12: 2017-03-01T09:34:47.917 | G12: 27 | H12: 9:23 AM: arrived-on wall 9:21 AM: regging | I12: Harvard Pilgrim
A13: 1991-03-22 | B13: 2017-03-01 | C13: Wednesday | D13: 09:00 - 10:00 | E13: 2017-03-01T09:10:23.553 | F13: 2017-03-01T09:33:15.307 | G13: 23 | H13: 9:33 AM: unable to obtain referral 9:25 AM: calling for referral 9:23 AM: regging | I13: Tufts
A14: 1977-04-23 | B14: 2017-03-01 | C14: Wednesday | D14: 09:00 - 10:00 | E14: 2017-03-01T09:22:17.583 | F14: 2017-03-01T09:35:34.917 | G14: 13 | H14: 9:34 AM: arrived-on wall 9:33 AM: regging 9:28 AM: ins ver | I14: Fallon Community Health Plan
A15: 2012-07-25 | B15: 2017-03-01 | C15: Wednesday | D15: 09:00 - 10:00 | E15: 2017-03-01T09:22:19.300 | F15: 2017-03-01T09:39:26.353 | G15: 17 | H15: 9:38 AM: arrived on wall 9:28 AM: ins ver | I15: Medicaid\Mass Health
A16: 1969-12-30 | B16: 2017-03-01 | C16: Wednesday | D16: 09:00 - 10:00 | E16: 2017-03-01T09:22:37.803 | F16: 2017-03-01T09:46:40.037 | G16: 24 | H16: 9:42 AM: arrived-on wall 9:40 AM: regging 9:29 AM: ins ver | I16: Fallon Community Health Plan
A17: 1953-06-06 | B17: 2017-03-01 | C17: Wednesday | D17: 09:00 - 10:00 | E17: 2017-03-01T09:24:19.173 | F17: 2017-03-01T10:41:59.593 | G17: 77 | H17: 9:54 AM: awaiting paperwork from Rosemary 9:46 AM: regging 9:29 AM: ver | I17: Fallon Community Health Plan
A18: 2012-07-25 | B18: 2017-03-01 | C18: Wednesday | D18: 09:00 - 10:00 | E18: 2017-03-01T09:25:23.320 | F18: 2017-03-01T09:29:58.200 | G18: 4 | I18: Medicaid\Mass Health
A19: 1994-12-15 | B19: 2017-03-01 | C19: Wednesday | D19: 09:00 - 10:00 | E19: 2017-03-01T09:26:13.963 | F19: 2017-03-01T10:10:09.793 | G19: 44 | H19: 10:10 AM: called no ans 10:00 AM: called no ans 9:55 AM: called no ans 9:54 AM: regging 9:30 AM: no MH | I19: Other
A20: 1961-03-26 | B20: 2017-03-01 | C20: Wednesday | D20: 09:00 - 10:00 | E20: 2017-03-01T09:41:19.170 | F20: 2017-03-01T09:46:09.897 | G20: 5 | H20: 9:42 AM: regging | I20: Fallon Community Health Plan
A21: 1966-02-27 | B21: 2017-03-01 | C21: Wednesday | D21: 09:00 - 10:00 | E21: 2017-03-01T09:52:21.110 | F21: 2017-03-01T10:12:47.073 | G21: 20 | H21: 9:58 AM: arrived-on wall 9:57 AM: po2-98%, 72pulse 9:55 AM: regging | I21: Cigna
A22: 1966-12-25 | B22: 2017-03-01 | C22: Wednesday | D22: 09:00 - 10:00 | E22: 2017-03-01T09:53:00.673 | F22: 2017-03-01T10:53:49.307 | G22: 60 | H22: 10:00 AM: arrived-on wall 9:59 AM: regging | I22: Medicare
A23: 2015-06-18 | B23: 2017-03-01 | C23: Wednesday | D23: 10:00 - 11:00 | E23: 2017-03-01T10:06:40.760 | F23: 2017-03-01T10:53:41.607 | G23: 47 | H23: 10:10 AM: arrived-on wall 10:08 AM: regging | I23: Medicaid\Mass Health
A24: 1989-03-13 | B24: 2017-03-01 | C24: Wednesday | D24: 10:00 - 11:00 | E24: 2017-03-01T10:07:02.623 | F24: 2017-03-01T10:18:10.027 | G24: 11 | H24: 10:12 AM: ok to wait - RT 10:12 AM: arrived-on wall 10:10 AM: regging | I24: Medicaid\Mass Health
A25: 1995-03-26 | B25: 2017-03-01 | C25: Wednesday | D25: 10:00 - 11:00 | E25: 2017-03-01T10:09:51.470 | F25: 2017-03-01T10:54:20.480 | G25: 45 | H25: 10:14 AM: arrived-on wall 10:13 AM: regging | I25: Blue Cross\Blue Shield
A26: 1960-09-15 | B26: 2017-03-01 | C26: Wednesday | D26: 10:00 - 11:00 | E26: 2017-03-01T10:11:07.660 | F26: 2017-03-01T11:07:22.757 | G26: 56 | H26: 10:16 AM: arrived-on wall 10:15 AM: regging | I26: Fallon Community Health Plan
A27: 1975-12-08 | B27: 2017-03-01 | C27: Wednesday | D27: 10:00 - 11:00 | E27: 2017-03-01T10:12:41.590 | F27: 2017-03-01T11:38:32.197 | G27: 86 | H27: 10:30 AM: arrived 10:28 AM: reg 10:20 AM: ins ver | I27: Blue Cross\Blue Shield
A28: 1962-02-06 | B28: 2017-03-01 | C28: Wednesday | D28: 10:00 - 11:00 | E28: 2017-03-01T10:14:09.493 | F28: 2017-03-01T11:49:34.740 | G28: 95 | H28: 11:02 AM: arrived-on wall 10:31 AM: reg 10:20 AM: ins ver | I28: Fallon Community Health Plan
A29: 2014-04-01 | B29: 2017-03-01 | C29: Wednesday | D29: 10:00 - 11:00 | E29: 2017-03-01T10:22:26.577 | F29: 2017-03-01T12:06:01.110 | G29: 104 | H29: 11:05 AM: arrived-on wall 10:23 AM: ins ver | I29: Medicaid\Mass Health
A30: 1990-01-22 | B30: 2017-03-01 | C30: Wednesday | D30: 10:00 - 11:00 | E30: 2017-03-01T10:23:03.680 | F30: 2017-03-01T11:13:20.130 | G30: 50 | I30: Self Pay\No Insurance
A31: 1991-07-19 | B31: 2017-03-01 | C31: Wednesday | D31: 10:00 - 11:00 | E31: 2017-03-01T10:25:37.093 | F31: 2017-03-01T12:12:11.373 | G31: 107 | H31: 11:16 AM: arrived-on wall 10:39 AM: ins ver | I31: Medicaid\Mass Health
A32: 1972-06-30 | B32: 2017-03-01 | C32: Wednesday | D32: 10:00 - 11:00 | E32: 2017-03-01T10:25:48.067 | F32: 2017-03-01T12:01:22.173 | G32: 96 | H32: 12:01 PM: called no ans 11:48 AM: called no ans 11:44 AM: called no ans 10:35 AM: plan mismatch? | I32: United Health Care
A33: 1927-06-18 | B33: 2017-03-01 | C33: Wednesday | D33: 10:00 - 11:00 | E33: 2017-03-01T10:39:46.260 | F33: 2017-03-01T12:15:21.527 | G33: 96 | H33: 11:47 AM: arrived-on wall 11:45 AM: regging 10:47 AM: pt is ok to wait-RT 10:43 AM: checking on pt | I33: Medicare
A34: 1971-03-28 | B34: 2017-03-01 | C34: Wednesday | D34: 10:00 - 11:00 | E34: 2017-03-01T10:42:10.457 | F34: 2017-03-01T13:23:02.527 | G34: 161 | H34: 12:51 PM: arrived-on wall 12:07 PM: called no ans 12:01 PM: called no ans 11:48 AM: called no ans 10:50 AM: pt will be back in an hour 10:49 AM: pt is ok to wait-RT 10:45 AM: ins ver | I34: United Health Care
A35: 1996-05-25 | B35: 2017-03-01 | C35: Wednesday | D35: 10:00 - 11:00 | E35: 2017-03-01T10:43:51.973 | F35: 2017-03-01T12:07:44.907 | G35: 84 | H35: 12:07 PM: called no ans 11:48 AM: called no ans 10:46 AM: ins ver | I35: Harvard Pilgrim
A36: 1997-08-11 | B36: 2017-03-01 | C36: Wednesday | D36: 10:00 - 11:00 | E36: 2017-03-01T10:43:59.167 | F36: 2017-03-01T12:00:24.157 | G36: 77 | H36: 12:00 PM: pt needs to fix insurance 11:49 AM: regging 10:46 AM: masshealth standard | I36: Self Pay\No Insurance
A37: 1975-01-10 | B37: 2017-03-01 | C37: Wednesday | D37: 10:00 - 11:00 | E37: 2017-03-01T10:49:24.933 | F37: 2017-03-01T11:44:55.493 | G37: 55 | H37: 10:58 AM: arrived-on wall 10:51 AM: ins ver | I37: Medicaid\Mass Health
A38: 1977-07-20 | B38: 2017-03-01 | C38: Wednesday | D38: 11:00 - 12:00 | E38: 2017-03-01T11:04:31.707 | F38: 2017-03-01T12:43:47.390 | G38: 99 | H38: 12:03 PM: arrived on wall 11:06 AM: ver | I38: Blue Cross\Blue Shield
A39: 1960-02-25 | B39: 2017-03-01 | C39: Wednesday | D39: 11:00 - 12:00 | E39: 2017-03-01T11:13:45.087 | F39: 2017-03-01T12:44:35.377 | G39: 91 | H39: 12:11 PM: arrived-on wall 12:09 PM: regging 11:15 AM: MVP HEALTHCARE | I39: Blue Cross\Blue Shield
A40: 1962-03-28 | B40: 2017-03-01 | C40: Wednesday | D40: 11:00 - 12:00 | E40: 2017-03-01T11:16:39.723 | F40: 2017-03-01T12:44:01.673 | G40: 88 | H40: 12:20 PM: arrived 12:15 PM: reg 11:17 AM: new ins | I40: Blue Cross\Blue Shield
A41: 1964-07-22 | B41: 2017-03-01 | C41: Wednesday | D41: 11:00 - 12:00 | E41: 2017-03-01T11:59:22.790 | F41: 2017-03-01T12:47:01.920 | G41: 48 | H41: 12:31 PM: arrived 12:22 PM: reg | I41: Other
A42: 2014-08-20 | B42: 2017-03-01 | C42: Wednesday | D42: 12:00 - 13:00 | E42: 2017-03-01T12:04:45.037 | F42: 2017-03-01T12:56:24.077 | G42: 52 | H42: 12:35 PM: arrived 12:33 PM: reg 12:11 PM: rash, recent amox | I42: Tufts
A43: 1947-08-12 | B43: 2017-03-01 | C43: Wednesday | D43: 12:00 - 13:00 | E43: 2017-03-01T12:05:31 | F43: 2017-03-01T13:31:41.823 | G43: 86 | H43: 12:45 PM: arrived 12:42 PM: reg | I43: Medicare
A44: 1970-05-29 | B44: 2017-03-01 | C44: Wednesday | D44: 12:00 - 13:00 | E44: 2017-03-01T12:28:52.687 | F44: 2017-03-01T14:19:47.427 | G44: 111 | H44: 1:56 PM: arrived-on wall 1:54 PM: PT CAME BACK 1:16 PM: called no ans 12:55 PM: called no ans 12:32 PM: call no answer | I44: Blue Cross\Blue Shield
A45: 1970-03-07 | B45: 2017-03-01 | C45: Wednesday | D45: 12:00 - 13:00 | E45: 2017-03-01T12:36:05.163 | F45: 2017-03-01T13:33:46.307 | G45: 57 | H45: 12:56 PM: arrived-on wall 12:55 PM: regging | I45: Blue Cross\Blue Shield
A46: 1953-12-31 | B46: 2017-03-01 | C46: Wednesday | D46: 12:00 - 13:00 | E46: 2017-03-01T12:37:31.490 | F46: 2017-03-01T13:42:24.677 | G46: 65 | H46: 1:03 PM: arrived-on wall 1:03 PM: sinus pressure
A47: 1980-12-26 | B47: 2017-03-01 | C47: Wednesday | D47: 12:00 - 13:00 | E47: 2017-03-01T12:40:08.277 | F47: 2017-03-01T13:48:53.470 | G47: 68 | H47: 1:05 PM: arrived-on wall 1:04 PM: regging | I47: Medicaid\Mass Health
A48: 1963-07-20 | B48: 2017-03-01 | C48: Wednesday | D48: 13:00 - 14:00 | E48: 2017-03-01T13:01:48.717 | F48: 2017-03-01T13:55:00.140 | G48: 54 | H48: 1:28 PM: arrived-on wall 1:26 PM: regging 1:06 PM: ins ver | I48: Fallon Community Health Plan
A49: 1983-10-09 | B49: 2017-03-01 | C49: Wednesday | D49: 13:00 - 14:00 | E49: 2017-03-01T13:03:54.860 | F49: 2017-03-01T14:27:39.973 | G49: 84 | H49: 1:36 PM: arrived-on wall 1:35 PM: regging 1:09 PM: new ins | I49: United Health Care
A50: 2008-10-24 | B50: 2017-03-01 | C50: Wednesday | D50: 13:00 - 14:00 | E50: 2017-03-01T13:05:32.050 | F50: 2017-03-01T13:15:10.750 | G50: 10 | H50: 1:13 PM: arrived-on wall 1:11 PM: regging | I50: Fallon Community Health Plan
A51: 1989-04-09 | B51: 2017-03-01 | C51: Wednesday | D51: 13:00 - 14:00 | E51: 2017-03-01T13:05:37.353 | F51: 2017-03-01T14:35:46.487 | G51: 90 | H51: 1:41 PM: arrived-on wall 1:38 PM: regging 1:11 PM: ins ver | I51: Fallon Community Health Plan
A52: 1988-04-13 | B52: 2017-03-01 | C52: Wednesday | D52: 13:00 - 14:00 | E52: 2017-03-01T13:12:19.150 | F52: 2017-03-01T14:47:34.497 | G52: 95 | H52: 1:45 PM: arrived-on wall 1:43 PM: regging 1:16 PM: ins ver | I52: Blue Cross\Blue Shield
A53: 1970-05-29 | B53: 2017-03-01 | C53: Wednesday | D53: 13:00 - 14:00 | E53: 2017-03-01T13:51:01.240 | F53: 2017-03-01T13:54:03.360 | G53: 3 | H53: 1:51 PM: regging | I53: Blue Cross\Blue Shield
A54: 1998-07-14 | B54: 2017-03-01 | C54: Wednesday | D54: 13:00 - 14:00 | E54: 2017-03-01T13:54:59.573 | F54: 2017-03-01T14:53:48.603 | G54: 59 | H54: 2:02 PM: arrived-on wall 1:59 PM: regging | I54: Blue Cross\Blue Shield
A55: 1958-03-10 | B55: 2017-03-01 | C55: Wednesday | D55: 14:00 - 15:00 | E55: 2017-03-01T14:01:50.950 | F55: 2017-03-01T15:06:05.927 | G55: 65 | H55: 2:34 PM: arrived-on wall 2:31 PM: regging 2:03 PM: ins ver | I55: Blue Cross\Blue Shield
A56: 2013-01-17 | B56: 2017-03-01 | C56: Wednesday | D56: 14:00 - 15:00 | E56: 2017-03-01T14:06:44.620 | F56: 2017-03-01T14:11:06.260 | G56: 5 | H56: 2:10 PM: arrived-on wall 2:07 PM: regging | I56: Fallon Community Health Plan
A57: 1985-06-13 | B57: 2017-03-01 | C57: Wednesday | D57: 14:00 - 15:00 | E57: 2017-03-01T14:16:46.290 | F57: 2017-03-01T14:57:39.663 | G57: 41 | H57: 2:30 PM: arrived-on wall 2:28 PM: not bleeding-regging | I57: Fallon Community Health Plan
A58: 1965-06-14 | B58: 2017-03-01 | C58: Wednesday | D58: 14:00 - 15:00 | E58: 2017-03-01T14:22:48.070 | F58: 2017-03-01T15:13:15.517 | G58: 51 | H58: 2:47 PM: arrived-on wall 2:46 PM: regging 2:36 PM: ins ver | I58: Tufts
A59: 1980-01-18 | B59: 2017-03-01 | C59: Wednesday | D59: 14:00 - 15:00 | E59: 2017-03-01T14:28:09.790 | F59: 2017-03-01T15:17:21.577 | G59: 49 | H59: 2:50 PM: arrived-on wall 2:48 PM: regging 2:38 PM: ins ver | I59: Aetna
A60: 1928-08-11 | B60: 2017-03-01 | C60: Wednesday | D60: 15:00 - 16:00 | E60: 2017-03-01T15:03:09.400 | F60: 2017-03-01T15:22:03.577 | G60: 19 | H60: 3:05 PM: arrived-on wall 3:03 PM: regging | I60: Tufts
A61: 1976-03-20 | B61: 2017-03-01 | C61: Wednesday | D61: 15:00 - 16:00 | E61: 2017-03-01T15:05:21.410 | F61: 2017-03-01T16:09:22.543 | G61: 64 | H61: 3:11 PM: arrived-on wall | I61: Other
A62: 1969-05-15 | B62: 2017-03-01 | C62: Wednesday | D62: 15:00 - 16:00 | E62: 2017-03-01T15:06:05.597 | F62: 2017-03-01T16:14:41.353 | G62: 68 | H62: 3:34 PM: arrived-on wall 3:30 PM: regging | I62: Tufts
A63: 1994-04-01 | B63: 2017-03-01 | C63: Wednesday | D63: 15:00 - 16:00 | E63: 2017-03-01T15:08:38.110 | F63: 2017-03-01T16:10:03.417 | G63: 62 | H63: 4:04 PM: pt is back in waiting room 3:19 PM: arrived-mom is with pedi | I63: Medicaid\Mass Health
A64: 2016-09-27 | B64: 2017-03-01 | C64: Wednesday | D64: 15:00 - 16:00 | E64: 2017-03-01T15:09:50.483 | F64: 2017-03-01T15:26:30.467 | G64: 17 | H64: 3:18 PM: arrived-on wall 3:12 PM: regging 3:12 PM: new pt | I64: Medicaid\Mass Health
A65: 2005-03-17 | B65: 2017-03-01 | C65: Wednesday | D65: 15:00 - 16:00 | E65: 2017-03-01T15:13:18.243 | F65: 2017-03-01T15:27:16.340 | G65: 14 | I65: Medicaid\Mass Health
A66: 1963-01-08 | B66: 2017-03-01 | C66: Wednesday | D66: 15:00 - 16:00 | E66: 2017-03-01T15:13:47.887 | F66: 2017-03-01T16:31:02.723 | G66: 78 | H66: 3:38 PM: arrived-on wall 3:35 PM: regging | I66: Fallon Community Health Plan
A67: 1980-05-18 | B67: 2017-03-01 | C67: Wednesday | D67: 15:00 - 16:00 | E67: 2017-03-01T15:13:54.893 | F67: 2017-03-01T15:48:10.237 | G67: 35 | H67: 3:26 PM: arrived-on wall 3:25 PM: calling for referral 3:22 PM: regging 3:21 PM: pt c/o lbp- 98% 80 16- speaking in full sentences- ok to wait jpc | I67: Medicaid\Mass Health
A68: 1997-08-24 | B68: 2017-03-01 | C68: Wednesday | D68: 15:00 - 16:00 | E68: 2017-03-01T15:32:23.253 | F68: 2017-03-01T16:49:13.357 | G68: 77 | H68: 3:53 PM: arrived-on wall | I68: Other
A69: 2010-10-17 | B69: 2017-03-01 | C69: Wednesday | D69: 15:00 - 16:00 | E69: 2017-03-01T15:34:35.220 | F69: 2017-03-01T15:59:24.640 | G69: 25 | H69: 3:40 PM: arrived-on wall 3:39 PM: regging | I69: Tufts
A70: 1968-03-18 | B70: 2017-03-01 | C70: Wednesday | D70: 15:00 - 16:00 | E70: 2017-03-01T15:37:22.787 | F70: 2017-03-01T15:50:46.003 | G70: 13 | H70: 3:44 PM: arrived-on wall | I70: Medicaid\Mass Health
A71: 2015-12-31 | B71: 2017-03-01 | C71: Wednesday | D71: 15:00 - 16:00 | E71: 2017-03-01T15:45:26.597 | F71: 2017-03-01T15:59:40.750 | G71: 14 | H71: 3:49 PM: arrived-on wall 3:47 PM: regging | I71: Blue Cross\Blue Shield
A72: 2016-01-15 | B72: 2017-03-01 | C72: Wednesday | D72: 15:00 - 16:00 | E72: 2017-03-01T15:46:38.950 | F72: 2017-03-01T16:02:29.857 | G72: 16 | H72: 3:49 PM: arrived-on wall 3:47 PM: regging | I72: Medicaid\Mass Health
A73: 1983-05-29 | B73: 2017-03-01 | C73: Wednesday | D73: 15:00 - 16:00 | E73: 2017-03-01T15:57:31.437 | F73: 2017-03-01T16:55:24.370 | G73: 58 | H73: 4:12 PM: arrived-on wall 4:11 PM: regging 3:58 PM: ins ver | I73: Medicaid\Mass Health
A74: 1959-09-08 | B74: 2017-03-01 | C74: Wednesday | D74: 16:00 - 17:00 | E74: 2017-03-01T16:00:29.870 | F74: 2017-03-01T17:10:13.457 | G74: 70 | H74: 4:16 PM: arrived-on wall 4:13 PM: regging 4:01 PM: ins ver | I74: Harvard Pilgrim
A75: 2016-02-18 | B75: 2017-03-01 | C75: Wednesday | D75: 16:00 - 17:00 | E75: 2017-03-01T16:05:48.570 | F75: 2017-03-01T16:07:10.497 | G75: 2 | I75: Harvard Pilgrim
A76: 1987-02-18 | B76: 2017-03-01 | C76: Wednesday | D76: 16:00 - 17:00 | E76: 2017-03-01T16:06:50.007 | F76: 2017-03-01T17:10:50.440 | G76: 64 | H76: 4:32 PM: called no ans 4:17 PM: called no ans 4:08 PM: ins ver | I76: Blue Cross\Blue Shield
A77: 1997-11-26 | B77: 2017-03-01 | C77: Wednesday | D77: 16:00 - 17:00 | E77: 2017-03-01T16:12:43.830 | F77: 2017-03-01T17:22:33.280 | G77: 70 | H77: 4:18 PM: arrived-on wall | I77: Medicaid\Mass Health
A78: 1953-01-24 | B78: 2017-03-01 | C78: Wednesday | D78: 16:00 - 17:00 | E78: 2017-03-01T16:13:56.003 | F78: 2017-03-01T17:30:17.480 | G78: 77 | H78: 4:35 PM: arrived-on wall 4:23 PM: ins ver | I78: Fallon Community Health Plan
A79: 1982-07-15 | B79: 2017-03-01 | C79: Wednesday | D79: 16:00 - 17:00 | E79: 2017-03-01T16:24:09.777 | F79: 2017-03-01T17:35:12.947 | G79: 71 | H79: 5:09 PM: arrived 4:24 PM: ins ver | I79: Medicaid\Mass Health
A80: 2016-12-12 | B80: 2017-03-01 | C80: Wednesday | D80: 16:00 - 17:00 | E80: 2017-03-01T16:26:14.857 | F80: 2017-03-01T16:32:53.173 | G80: 6 | I80: Fallon Community Health Plan
A81: 1985-05-30 | B81: 2017-03-01 | C81: Wednesday | D81: 16:00 - 17:00 | E81: 2017-03-01T16:26:40.710 | F81: 2017-03-01T17:54:17.330 | G81: 88 | H81: 5:13 PM: arrived 4:30 PM: check pcp | I81: Harvard Pilgrim
A82: 1976-12-14 | B82: 2017-03-01 | C82: Wednesday | D82: 16:00 - 17:00 | E82: 2017-03-01T16:30:29.683 | F82: 2017-03-01T17:54:17.643 | G82: 84 | H82: 5:20 PM: arrived 4:31 PM: ins ver | I82: Fallon Community Health Plan
A83: 2016-08-15 | B83: 2017-03-01 | C83: Wednesday | D83: 16:00 - 17:00 | E83: 2017-03-01T16:31:08.157 | F83: 2017-03-01T16:58:02.460 | G83: 27 | H83: 4:34 PM: called no ans 434p | I83: Fallon Community Health Plan
A84: 1929-08-02 | B84: 2017-03-01 | C84: Wednesday | D84: 16:00 - 17:00 | E84: 2017-03-01T16:36:58.230 | F84: 2017-03-01T17:03:18.287 | G84: 27 | I84: Medicaid\Mass Health
A85: 1988-10-15 | B85: 2017-03-01 | C85: Wednesday | D85: 16:00 - 17:00 | E85: 2017-03-01T16:39:33.200 | F85: 2017-03-01T17:58:07.033 | G85: 79 | H85: 5:56 PM: no answer 5:31 PM: no answer 5:05 PM: ver | I85: Medicaid\Mass Health
A86: 1980-09-08 | B86: 2017-03-01 | C86: Wednesday | D86: 16:00 - 17:00 | E86: 2017-03-01T16:42:17.927 | F86: 2017-03-01T18:17:41.383 | G86: 95 | H86: 5:34 PM: arrived 5:06 PM: ver | I86: Blue Cross\Blue Shield
A87: 1965-04-08 | B87: 2017-03-01 | C87: Wednesday | D87: 16:00 - 17:00 | E87: 2017-03-01T16:55:13.797 | F87: 2017-03-01T18:50:16.857 | G87: 115 | H87: 5:53 PM: arrived 5:05 PM: ver | I87: Fallon Community Health Plan
A88: 2015-11-27 | B88: 2017-03-01 | C88: Wednesday | D88: 16:00 - 17:00 | E88: 2017-03-01T16:55:22.197 | F88: 2017-03-01T17:09:07.707 | G88: 14 | I88: Medicaid\Mass Health
A89: 1967-09-14 | B89: 2017-03-01 | C89: Wednesday | D89: 17:00 - 18:00 | E89: 2017-03-01T17:02:12.483 | F89: 2017-03-01T19:06:35.803 | G89: 124 | H89: 5:57 PM: arrived 5:08 PM: ver | I89: Blue Cross\Blue Shield
A90: 2007-10-01 | B90: 2017-03-01 | C90: Wednesday | D90: 17:00 - 18:00 | E90: 2017-03-01T17:02:39.090 | F90: 2017-03-01T17:13:38.657 | G90: 11 | H90: 5:11 PM: ver | I90: Blue Cross\Blue Shield
A91: 1970-07-10 | B91: 2017-03-01 | C91: Wednesday | D91: 17:00 - 18:00 | E91: 2017-03-01T17:08:45.180 | F91: 2017-03-01T19:31:24.450 | G91: 143 | H91: 6:23 PM: ARRIVED 5:09 PM: ver | I91: Cigna
A92: 2016-05-07 | B92: 2017-03-01 | C92: Wednesday | D92: 17:00 - 18:00 | E92: 2017-03-01T17:15:34.037 | F92: 2017-03-01T17:18:21.047 | G92: 3 | I92: Tufts
A93: 1949-09-22 | B93: 2017-03-01 | C93: Wednesday | D93: 17:00 - 18:00 | E93: 2017-03-01T17:15:35.123 | F93: 2017-03-01T17:20:11.297 | G93: 5 | H93: 5:16 PM: checking | I93: Cigna
A94: 2013-10-19 | B94: 2017-03-01 | C94: Wednesday | D94: 17:00 - 18:00 | E94: 2017-03-01T17:16:09.917 | F94: 2017-03-01T17:34:13.183 | G94: 18 | H94: 5:22 PM: called no ans 522 | I94: Blue Cross\Blue Shield
A95: 2002-03-05 | B95: 2017-03-01 | C95: Wednesday | D95: 17:00 - 18:00 | E95: 2017-03-01T17:17:02.507 | F95: 2017-03-01T18:05:54.547 | G95: 48 | H95: 6:05 PM: oops shes in a room 5:40 PM: called no ans 540 5:23 PM: called no ans 523 | I95: Blue Cross\Blue Shield
A96: 2014-06-09 | B96: 2017-03-01 | C96: Wednesday | D96: 17:00 - 18:00 | E96: 2017-03-01T17:30:52.300 | F96: 2017-03-01T17:40:52.930 | G96: 10 | I96: Blue Cross\Blue Shield
A97: 2006-06-21 | B97: 2017-03-01 | C97: Wednesday | D97: 17:00 - 18:00 | E97: 2017-03-01T17:30:55.030 | F97: 2017-03-01T17:44:42.397 | G97: 14 | I97: Fallon Community Health Plan
A98: 2014-03-08 | B98: 2017-03-01 | C98: Wednesday | D98: 17:00 - 18:00 | E98: 2017-03-01T17:31:08.303 | F98: 2017-03-01T18:04:33.157 | G98: 33 | H98: 6:01 PM: arrived on adult wall | I98: Fallon Community Health Plan
A99: 1969-10-04 | B99: 2017-03-01 | C99: Wednesday | D99: 17:00 - 18:00 | E99: 2017-03-01T17:32:38.500 | F99: 2017-03-01T19:36:18.650 | G99: 124 | H99: 6:32 PM: arrived | I99: Tufts
A100: 2016-07-01 | B100: 2017-03-01 | C100: Wednesday | D100: 17:00 - 18:00 | E100: 2017-03-01T17:45:21.390 | F100: 2017-03-01T18:11:05.497 | G100: 26 | I100: United Health Care
A101: 1966-04-10 | B101: 2017-03-01 | C101: Wednesday | D101: 17:00 - 18:00 | E101: 2017-03-01T17:49:07.840 | F101: 2017-03-01T18:48:33.687 | G101: 59 | H101: 6:34 PM: BUMP PER JC 6:06 PM: arrived 6:03 PM: head cold and extended period x2 wks - ok'ed | I101: Medicaid\Mass Health
A102: 2016-04-25 | B102: 2017-03-01 | C102: Wednesday | D102: 18:00 - 19:00 | E102: 2017-03-01T18:02:07.340 | F102: 2017-03-01T18:14:02.400 | G102: 12 | I102: Blue Cross\Blue Shield
A103: 1972-09-25 | B103: 2017-03-01 | C103: Wednesday | D103: 18:00 - 19:00 | E103: 2017-03-01T18:04:47.357 | F103: 2017-03-01T19:53:03.363 | G103: 109 | H103: 6:59 PM: arrived | I103: Blue Cross\Blue Shield
A104: 1997-05-23 | B104: 2017-03-01 | C104: Wednesday | D104: 18:00 - 19:00 | E104: 2017-03-01T18:07:41.467 | F104: 2017-03-01T19:59:37.220 | G104: 112 | H104: 6:38 PM: pt c/o L side rib pain x>3 wks- 99% 82 16 speaking in full sentences- ok'ed to wait jpc 6:38 PM: arrived | I104: Harvard Pilgrim
A105: 2016-04-21 | B105: 2017-03-01 | C105: Wednesday | D105: 18:00 - 19:00 | E105: 2017-03-01T18:07:45.237 | F105: 2017-03-01T18:22:34.117 | G105: 15 | I105: Harvard Pilgrim
A106: 1969-11-26 | B106: 2017-03-01 | C106: Wednesday | D106: 18:00 - 19:00 | E106: 2017-03-01T18:16:41.990 | F106: 2017-03-01T20:04:46.313 | G106: 108 | H106: 7:17 PM: arrived 6:54 PM: ver umass pcp | I106: Fallon Community Health Plan
A107: 2008-09-03 | B107: 2017-03-01 | C107: Wednesday | D107: 18:00 - 19:00 | E107: 2017-03-01T18:18:27.697 | F107: 2017-03-01T18:42:47.157 | G107: 24 | I107: Cigna
A108: 1972-08-13 | B108: 2017-03-01 | C108: Wednesday | D108: 18:00 - 19:00 | E108: 2017-03-01T18:28:01.657 | F108: 2017-03-01T20:04:50.467 | G108: 96 | H108: 7:28 PM: arrived 6:55 PM: ver umass pcp | I108: Blue Cross\Blue Shield
A109: 2005-03-16 | B109: 2017-03-01 | C109: Wednesday | D109: 18:00 - 19:00 | E109: 2017-03-01T18:28:13.300 | F109: 2017-03-01T18:56:02.790 | G109: 28 | H109: 6:54 PM: actively vomiting x 3 days | I109: Harvard Pilgrim
A110: 1988-10-15 | B110: 2017-03-01 | C110: Wednesday | D110: 18:00 - 19:00 | E110: 2017-03-01T18:30:05.977 | F110: 2017-03-01T20:08:37.763 | G110: 98 | H110: 7:31 PM: arrived 6:56 PM: ver | I110: Medicaid\Mass Health
A111: 2008-11-16 | B111: 2017-03-01 | C111: Wednesday | D111: 18:00 - 19:00 | E111: 2017-03-01T18:30:33.700 | F111: 2017-03-01T18:40:01.827 | G111: 10 | H111: 6:35 PM: ins verified | I111: Medicaid\Mass Health
A112: 2007-07-20 | B112: 2017-03-01 | C112: Wednesday | D112: 18:00 - 19:00 | E112: 2017-03-01T18:30:59.647 | F112: 2017-03-01T18:42:07.670 | G112: 12 | H112: 6:32 PM: ins verified | I112: Medicaid\Mass Health
A113: 1957-04-08 | B113: 2017-03-01 | C113: Wednesday | D113: 18:00 - 19:00 | E113: 2017-03-01T18:39:41.917 | F113: 2017-03-01T19:37:43.180 | G113: 58 | H113: 6:56 PM: pt speaking in full sentences- 98% 80 18 - ok 6:56 PM: arrived | I113: Harvard Pilgrim
A114: 2003-07-03 | B114: 2017-03-01 | C114: Wednesday | D114: 18:00 - 19:00 | E114: 2017-03-01T18:43:58.950 | F114: 2017-03-01T19:11:52.427 | G114: 28 | I114: Medicaid\Mass Health
A115: 2009-08-26 | B115: 2017-03-01 | C115: Wednesday | D115: 18:00 - 19:00 | E115: 2017-03-01T18:45:21.480 | F115: 2017-03-01T19:19:23.500 | G115: 34 | I115: Medicaid\Mass Health
A116: 1949-06-16 | B116: 2017-03-01 | C116: Wednesday | D116: 18:00 - 19:00 | E116: 2017-03-01T18:59:25.133 | F116: 2017-03-01T20:08:33.107 | G116: 69 | H116: 8:08 PM: NO ANSWER 7:36 PM: no answer | I116: Medicaid\Mass Health
A117: 2015-06-18 | B117: 2017-03-01 | C117: Wednesday | D117: 18:00 - 19:00 | E117: 2017-03-01T18:59:35.617 | F117: 2017-03-01T19:25:42.920 | G117: 26 | H117: 7:19 PM: arrived 7:19 PM: regging | I117: Blue Cross\Blue Shield
A118: 2016-12-12 | B118: 2017-03-01 | C118: Wednesday | D118: 19:00 - 20:00 | E118: 2017-03-01T19:04:05.557 | F118: 2017-03-01T19:35:30.760 | G118: 31 | H118: 7:25 PM: on wall 7:24 PM: arrived | I118: Medicaid\Mass Health
A119: 1966-11-11 | B119: 2017-03-01 | C119: Wednesday | D119: 19:00 - 20:00 | E119: 2017-03-01T19:13:08.580 | F119: 2017-03-01T19:17:25.970 | G119: 4 | I119: Medicaid\Mass Health
A120: 2008-05-14 | B120: 2017-03-01 | C120: Wednesday | D120: 19:00 - 20:00 | E120: 2017-03-01T19:16:18.690 | F120: 2017-03-01T19:58:19.597 | G120: 42 | H120: 7:47 PM: on wall 7:46 PM: regged 7:38 PM: ins verified | I120: Medicaid\Mass Health
A121: 2013-07-16 | B121: 2017-03-01 | C121: Wednesday | D121: 19:00 - 20:00 | E121: 2017-03-01T19:19:06.300 | F121: 2017-03-01T19:45:25.477 | G121: 26 | H121: 7:40 PM: wall 7:39 PM: regging 7:38 PM: ins verified | I121: Medicaid\Mass Health
A122: 1995-03-09 | B122: 2017-03-01 | C122: Wednesday | D122: 19:00 - 20:00 | E122: 2017-03-01T19:27:31.523 | F122: 2017-03-01T20:28:45.537 | G122: 61 | H122: 7:59 PM: ARRIVED | I122: Medicaid\Mass Health
A123: 2010-01-01 | B123: 2017-03-01 | C123: Wednesday | D123: 19:00 - 20:00 | E123: 2017-03-01T19:34:59.380 | F123: 2017-03-01T20:10:28.513 | G123: 36 | H123: 7:42 PM: wall 7:40 PM: regging 7:37 PM: ins verified | I123: Medicaid\Mass Health
A124: 1960-01-17 | B124: 2017-03-01 | C124: Wednesday | D124: 19:00 - 20:00 | E124: 2017-03-01T19:36:30.570 | F124: 2017-03-01T20:39:14.970 | G124: 63 | H124: 8:01 PM: ARRIVED | I124: Fallon Community Health Plan
A125: 1947-10-21 | B125: 2017-03-01 | C125: Wednesday | D125: 19:00 - 20:00 | E125: 2017-03-01T19:43:38.213 | F125: 2017-03-01T20:43:46.687 | G125: 60 | H125: 8:07 PM: ARRIVED | I125: Other
A126: 1998-08-13 | B126: 2017-03-02 | C126: Thursday | D126: 09:00 - 10:00 | E126: 2017-03-02T09:45:52.850 | F126: 2017-03-02T10:06:46.637 | G126: 21 | H126: 9:57 AM: Not scheduled
A127: 2010-06-11 | B127: 2017-03-02 | C127: Thursday | D127: 14:00 - 15:00 | E127: 2017-03-02T14:18:26.580 | F127: 2017-03-02T14:28:58.443 | G127: 10
A128: 2016-01-10 | B128: 2017-03-02 | C128: Thursday | D128: 17:00 - 18:00 | E128: 2017-03-02T17:18:44.620 | F128: 2017-03-02T17:26:35.693 | G128: 8
A129: 2016-11-19 | B129: 2017-03-02 | C129: Thursday | D129: 18:00 - 19:00 | E129: 2017-03-02T18:48:32.620 | F129: 2017-03-02T19:06:51.607 | G129: 18 | H129: 7:00 PM: reggedo n wall
A130: 1995-01-05 | B130: 2017-03-02 | C130: Thursday | D130: 08:00 - 09:00 | E130: 2017-03-02T08:55:52.527 | F130: 2017-03-02T08:56:24.947 | G130: 1 | I130: Fallon Community Health Plan
A131: 1956-11-26 | B131: 2017-03-02 | C131: Thursday | D131: 08:00 - 09:00 | E131: 2017-03-02T08:56:51.160 | F131: 2017-03-02T08:58:52.337 | G131: 2 | I131: Tufts
A132: 1956-04-12 | B132: 2017-03-02 | C132: Thursday | D132: 08:00 - 09:00 | E132: 2017-03-02T08:56:53.243 | F132: 2017-03-02T09:00:20.553 | G132: 4 | I132: Fallon Community Health Plan
A133: 1962-09-26 | B133: 2017-03-02 | C133: Thursday | D133: 08:00 - 09:00 | E133: 2017-03-02T08:58:15.600 | F133: 2017-03-02T09:01:50.117 | G133: 3 | H133: 9:01 AM: regging in room | I133: Blue Cross\Blue Shield
A134: 1987-11-11 | B134: 2017-03-02 | C134: Thursday | D134: 08:00 - 09:00 | E134: 2017-03-02T08:59:57.343 | F134: 2017-03-02T09:05:39.693 | G134: 6 | H134: 9:05 AM: reg | I134: Other
A135: 1978-10-21 | B135: 2017-03-02 | C135: Thursday | D135: 09:00 - 10:00 | E135: 2017-03-02T09:01:27.777 | F135: 2017-03-02T09:14:48.517 | G135: 13 | H135: 9:10 AM: wall 9:07 AM: reg | I135: Fallon Community Health Plan
A136: 1958-11-30 | B136: 2017-03-02 | C136: Thursday | D136: 09:00 - 10:00 | E136: 2017-03-02T09:01:40.690 | F136: 2017-03-02T09:22:39.453 | G136: 21 | H136: 9:20 AM: wall 9:10 AM: reg | I136: Medicare
A137: 1962-02-04 | B137: 2017-03-02 | C137: Thursday | D137: 09:00 - 10:00 | E137: 2017-03-02T09:09:50.280 | F137: 2017-03-02T09:31:03.667 | G137: 22 | H137: 9:23 AM: reg 9:20 AM: no ins in epic | I137: Fallon Community Health Plan
A138: 1962-05-21 | B138: 2017-03-02 | C138: Thursday | D138: 09:00 - 10:00 | E138: 2017-03-02T09:11:17.687 | F138: 2017-03-02T09:23:07.937 | G138: 12 | H138: 9:22 AM: ins ver | I138: Blue Cross\Blue Shield
A139: 1989-01-18 | B139: 2017-03-02 | C139: Thursday | D139: 09:00 - 10:00 | E139: 2017-03-02T09:15:35.990 | F139: 2017-03-02T09:23:20.233 | G139: 8 | H139: 9:22 AM: ins ver | I139: Other
A140: 1965-11-23 | B140: 2017-03-02 | C140: Thursday | D140: 09:00 - 10:00 | E140: 2017-03-02T09:18:39.010 | F140: 2017-03-02T10:20:54.413 | G140: 62 | H140: 10:06 AM: NO ANSWER 9:38 AM: NO ANSWER 9:37 AM: REG 9:25 AM: ins ver | I140: Blue Cross\Blue Shield
A141: 1979-07-16 | B141: 2017-03-02 | C141: Thursday | D141: 09:00 - 10:00 | E141: 2017-03-02T09:19:06.137 | F141: 2017-03-02T09:34:20.807 | G141: 15 | I141: Medicaid\Mass Health
A142: 1957-09-01 | B142: 2017-03-02 | C142: Thursday | D142: 09:00 - 10:00 | E142: 2017-03-02T09:20:28.800 | F142: 2017-03-02T09:49:40.660 | G142: 29 | H142: 9:39 AM: REG | I142: Fallon Community Health Plan
A143: 1994-01-21 | B143: 2017-03-02 | C143: Thursday | D143: 09:00 - 10:00 | E143: 2017-03-02T09:25:34.087 | F143: 2017-03-02T09:52:59.753 | G143: 27 | H143: 9:49 AM: REG 9:33 AM: Sinus congestion/H/A x 2 weeks , ok to wait -DSF 9:33 AM: checking pt | I143: Fallon Community Health Plan
A144: 1932-10-15 | B144: 2017-03-02 | C144: Thursday | D144: 09:00 - 10:00 | E144: 2017-03-02T09:26:18.300 | F144: 2017-03-02T10:32:31.550 | G144: 66 | H144: 10:24 AM: WALL 10:09 AM: REG 10:06 AM: REG | I144: Blue Cross\Blue Shield
A145: 1988-08-20 | B145: 2017-03-02 | C145: Thursday | D145: 09:00 - 10:00 | E145: 2017-03-02T09:32:10.820 | F145: 2017-03-02T09:58:45.343 | G145: 26 | I145: Blue Cross\Blue Shield
A146: 1985-09-10 | B146: 2017-03-02 | C146: Thursday | D146: 09:00 - 10:00 | E146: 2017-03-02T09:35:26.963 | F146: 2017-03-02T09:46:38.723 | G146: 11 | H146: 9:37 AM: checking | I146: Blue Cross\Blue Shield
A147: 1995-09-29 | B147: 2017-03-02 | C147: Thursday | D147: 09:00 - 10:00 | E147: 2017-03-02T09:45:12.607 | F147: 2017-03-02T10:05:40.233 | G147: 20 | H147: 10:05 AM: COULD NOT GET REFERRAL 9:55 AM: chest pain with coughing pox 96% ok to wait db 9:53 AM: REG | I147: Harvard Pilgrim
A148: 1963-09-04 | B148: 2017-03-02 | C148: Thursday | D148: 09:00 - 10:00 | E148: 2017-03-02T09:51:42.690 | F148: 2017-03-02T10:43:19.530 | G148: 52 | H148: 10:28 AM: WALL 10:25 AM: REG 10:00 AM: ins ver | I148: Tufts
A149: 1973-12-01 | B149: 2017-03-02 | C149: Thursday | D149: 10:00 - 11:00 | E149: 2017-03-02T10:05:36.313 | F149: 2017-03-02T10:12:50.840 | G149: 7 | H149: 10:12 AM: do not take insurance - sent to carewell | I149: Medicaid\Mass Health
A150: 1985-04-26 | B150: 2017-03-02 | C150: Thursday | D150: 10:00 - 11:00 | E150: 2017-03-02T10:08:17.637 | F150: 2017-03-02T10:24:18.740 | G150: 16 | H150: 10:22 AM: REG 10:15 AM: ver | I150: Aetna
A151: 1998-02-20 | B151: 2017-03-02 | C151: Thursday | D151: 10:00 - 11:00 | E151: 2017-03-02T10:09:52.727 | F151: 2017-03-02T10:55:30.603 | G151: 46 | H151: 10:35 AM: WALL 10:33 AM: REG 10:16 AM: ver | I151: Blue Cross\Blue Shield
A152: 1990-11-30 | B152: 2017-03-02 | C152: Thursday | D152: 10:00 - 11:00 | E152: 2017-03-02T10:16:19.483 | F152: 2017-03-02T10:55:31.667 | G152: 39 | H152: 10:51 AM: WALL 10:36 AM: REG | I152: United Health Care
A153: 1993-12-14 | B153: 2017-03-02 | C153: Thursday | D153: 10:00 - 11:00 | E153: 2017-03-02T10:18:30.867 | F153: 2017-03-02T11:13:23.190 | G153: 55 | H153: 11:13 AM: 3RD CALL 11:04 AM: no answer 11:04 AM: called to reg, no answer | I153: Blue Cross\Blue Shield
A154: 1963-10-03 | B154: 2017-03-02 | C154: Thursday | D154: 10:00 - 11:00 | E154: 2017-03-02T10:27:25.010 | F154: 2017-03-02T11:04:29.163 | G154: 37 | H154: 10:37 AM: ver | I154: Blue Cross\Blue Shield
A155: 2007-03-30 | B155: 2017-03-02 | C155: Thursday | D155: 10:00 - 11:00 | E155: 2017-03-02T10:47:20.653 | F155: 2017-03-02T11:04:32.023 | G155: 17 | I155: Medicaid\Mass Health
A156: 1953-05-12 | B156: 2017-03-02 | C156: Thursday | D156: 10:00 - 11:00 | E156: 2017-03-02T10:51:09.593 | F156: 2017-03-02T11:23:05.453 | G156: 32 | H156: 11:17 AM: WALL 11:13 AM: REG | I156: Cigna
A157: 1974-09-09 | B157: 2017-03-02 | C157: Thursday | D157: 10:00 - 11:00 | E157: 2017-03-02T10:51:32.397 | F157: 2017-03-02T11:20:40.487 | G157: 29 | H157: 11:11 AM: WALL 10:59 AM: ? muscular pain from moving furniture ok to wait HR 62 sp02 99% LMC 10:55 AM: REG | I157: Aetna
A158: 1932-03-18 | B158: 2017-03-02 | C158: Thursday | D158: 10:00 - 11:00 | E158: 2017-03-02T10:51:52.090 | F158: 2017-03-02T11:25:40.593 | G158: 34 | H158: 11:22 AM: WALL 11:17 AM: REG 11:06 AM: ver | I158: Tufts
A159: 1971-03-24 | B159: 2017-03-02 | C159: Thursday | D159: 10:00 - 11:00 | E159: 2017-03-02T10:53:39.717 | F159: 2017-03-02T11:42:17.507 | G159: 49 | H159: 11:38 AM: WALL 11:35 AM: REG 11:11 AM: ins ver | I159: Blue Cross\Blue Shield
A160: 1984-09-28 | B160: 2017-03-02 | C160: Thursday | D160: 11:00 - 12:00 | E160: 2017-03-02T11:03:41.560 | F160: 2017-03-02T11:54:30.863 | G160: 51 | H160: 11:44 AM: WALL 11:38 AM: REG 11:12 AM: ins ver | I160: Blue Cross\Blue Shield
A161: 1981-02-17 | B161: 2017-03-02 | C161: Thursday | D161: 11:00 - 12:00 | E161: 2017-03-02T11:16:07.280 | F161: 2017-03-02T11:53:59.800 | G161: 37 | H161: 11:48 AM: WALL 11:44 AM: REG | I161: Blue Cross\Blue Shield
A162: 2011-12-12 | B162: 2017-03-02 | C162: Thursday | D162: 11:00 - 12:00 | E162: 2017-03-02T11:17:29.150 | F162: 2017-03-02T12:04:29.017 | G162: 47 | H162: 11:50 AM: WALL 11:50 AM: REG | I162: Fallon Community Health Plan
A163: 1991-06-10 | B163: 2017-03-02 | C163: Thursday | D163: 11:00 - 12:00 | E163: 2017-03-02T11:17:55.583 | F163: 2017-03-02T11:36:21.463 | G163: 19 | H163: 11:35 AM: WALL 11:34 AM: REG 11:24 AM: cough w cold spo2 99% hr 110 ok to wait LMC | I163: Harvard Pilgrim
A164: 2004-12-09 | B164: 2017-03-02 | C164: Thursday | D164: 11:00 - 12:00 | E164: 2017-03-02T11:53:42.553 | F164: 2017-03-02T12:16:23.853 | G164: 23 | H164: 12:05 PM: wall 12:05 PM: reg 11:56 AM: ver | I164: Medicaid\Mass Health
A165: 2010-11-16 | B165: 2017-03-02 | C165: Thursday | D165: 11:00 - 12:00 | E165: 2017-03-02T11:55:28.487 | F165: 2017-03-02T12:23:07.023 | G165: 28 | H165: 12:05 PM: wall 12:05 PM: reg 11:58 AM: ver | I165: Medicaid\Mass Health
A166: 1975-10-06 | B166: 2017-03-02 | C166: Thursday | D166: 12:00 - 13:00 | E166: 2017-03-02T12:16:22.417 | F166: 2017-03-02T12:32:16.833 | G166: 16 | H166: 12:22 PM: wall 12:22 PM: reg | I166: Tufts
A167: 2001-07-10 | B167: 2017-03-02 | C167: Thursday | D167: 12:00 - 13:00 | E167: 2017-03-02T12:32:33.940 | F167: 2017-03-02T12:51:15.027 | G167: 19 | H167: 12:44 PM: WALL 12:33 PM: reg | I167: Harvard Pilgrim
A168: 2010-06-01 | B168: 2017-03-02 | C168: Thursday | D168: 12:00 - 13:00 | E168: 2017-03-02T12:34:19.707 | F168: 2017-03-02T12:40:07.313 | G168: 6 | I168: Fallon Community Health Plan
A169: 1980-01-28 | B169: 2017-03-02 | C169: Thursday | D169: 12:00 - 13:00 | E169: 2017-03-02T12:34:22.610 | F169: 2017-03-02T12:42:27.390 | G169: 8 | I169: Blue Cross\Blue Shield
A170: 1957-06-07 | B170: 2017-03-02 | C170: Thursday | D170: 12:00 - 13:00 | E170: 2017-03-02T12:43:04.407 | F170: 2017-03-02T13:04:34.367 | G170: 21 | H170: 1:02 PM: regged on wall 12:53 PM: regging | I170: Medicare
A171: 1955-03-18 | B171: 2017-03-02 | C171: Thursday | D171: 12:00 - 13:00 | E171: 2017-03-02T12:57:14.280 | F171: 2017-03-02T13:02:36.667 | G171: 5 | I171: Blue Cross\Blue Shield
A172: 1978-12-20 | B172: 2017-03-02 | C172: Thursday | D172: 13:00 - 14:00 | E172: 2017-03-02T13:00:05.267 | F172: 2017-03-02T13:22:42.580 | G172: 22 | H172: 1:08 PM: regged on wall 1:03 PM: regging | I172: Fallon Community Health Plan
A173: 1985-09-24 | B173: 2017-03-02 | C173: Thursday | D173: 13:00 - 14:00 | E173: 2017-03-02T13:06:44.240 | F173: 2017-03-02T13:11:18.007 | G173: 5 | H173: 1:11 PM: patient is not giong to be seen today | I173: Tufts
A174: 1975-07-05 | B174: 2017-03-02 | C174: Thursday | D174: 13:00 - 14:00 | E174: 2017-03-02T13:10:04.303 | F174: 2017-03-02T13:26:01.390 | G174: 16 | H174: 1:21 PM: regged on wall | I174: Fallon Community Health Plan
A175: 1968-07-04 | B175: 2017-03-02 | C175: Thursday | D175: 13:00 - 14:00 | E175: 2017-03-02T13:10:39.280 | F175: 2017-03-02T13:47:51.287 | G175: 37 | H175: 1:31 PM: waiting for referall 1:22 PM: regging 1:15 PM: ins ver | I175: Harvard Pilgrim
A176: 2011-10-01 | B176: 2017-03-02 | C176: Thursday | D176: 13:00 - 14:00 | E176: 2017-03-02T13:16:46.333 | F176: 2017-03-02T13:17:20.143 | G176: 1 | I176: Blue Cross\Blue Shield
A177: 1994-10-23 | B177: 2017-03-02 | C177: Thursday | D177: 13:00 - 14:00 | E177: 2017-03-02T13:17:24.623 | F177: 2017-03-02T13:55:46.377 | G177: 38 | H177: 1:32 PM: regged on wall 1:31 PM: regging 1:25 PM: Cough/cold symptoms since yesterday morning, sore throat, fever. Client is currently ok to wait -DSF | I177: United Health Care
A178: 1993-05-21 | B178: 2017-03-02 | C178: Thursday | D178: 13:00 - 14:00 | E178: 2017-03-02T13:29:59.810 | F178: 2017-03-02T13:59:39.237 | G178: 30 | H178: 1:59 PM: regged on wall 1:49 PM: regging 1:45 PM: new pt | I178: Blue Cross\Blue Shield
A179: 1966-06-03 | B179: 2017-03-02 | C179: Thursday | D179: 13:00 - 14:00 | E179: 2017-03-02T13:46:06.083 | F179: 2017-03-02T15:02:33.493 | G179: 76 | H179: 2:44 PM: regged on wall 2:16 PM: here for abdominal pain 2:14 PM: regging
A180: 1994-09-27 | B180: 2017-03-02 | C180: Thursday | D180: 13:00 - 14:00 | E180: 2017-03-02T13:47:31.647 | F180: 2017-03-02T13:51:22.100 | G180: 4 | H180: 1:50 PM: regged on wall | I180: Blue Cross\Blue Shield
A181: 1985-01-04 | B181: 2017-03-02 | C181: Thursday | D181: 13:00 - 14:00 | E181: 2017-03-02T13:50:10.247 | F181: 2017-03-02T13:57:00.580 | G181: 7 | I181: Medicaid\Mass Health
A182: 1963-10-03 | B182: 2017-03-02 | C182: Thursday | D182: 13:00 - 14:00 | E182: 2017-03-02T13:54:12.437 | F182: 2017-03-02T14:09:31.187 | G182: 15 | H182: 1:59 PM: regged on wall | I182: Blue Cross\Blue Shield
A183: 2012-09-26 | B183: 2017-03-02 | C183: Thursday | D183: 13:00 - 14:00 | E183: 2017-03-02T13:55:37.730 | F183: 2017-03-02T14:04:21.203 | G183: 9 | I183: Harvard Pilgrim
A184: 1937-12-15 | B184: 2017-03-02 | C184: Thursday | D184: 13:00 - 14:00 | E184: 2017-03-02T13:58:13.797 | F184: 2017-03-02T14:11:38.420 | G184: 13 | H184: 2:05 PM: regged on wall 2:00 PM: Jill checking | I184: Tufts
A185: 1983-05-29 | B185: 2017-03-02 | C185: Thursday | D185: 14:00 - 15:00 | E185: 2017-03-02T14:07:44.247 | F185: 2017-03-02T14:16:04.057 | G185: 9 | H185: 2:11 PM: regged on wall | I185: Medicaid\Mass Health
A186: 1961-06-09 | B186: 2017-03-02 | C186: Thursday | D186: 14:00 - 15:00 | E186: 2017-03-02T14:11:27.723 | F186: 2017-03-02T15:07:08.053 | G186: 56 | H186: 2:20 PM: regged on wall 2:18 PM: regging | I186: Fallon Community Health Plan
A187: 1927-06-26 | B187: 2017-03-02 | C187: Thursday | D187: 14:00 - 15:00 | E187: 2017-03-02T14:15:05.500 | F187: 2017-03-02T15:08:01.570 | G187: 53 | H187: 2:36 PM: regged on wall | I187: Other
A188: 1971-06-06 | B188: 2017-03-02 | C188: Thursday | D188: 14:00 - 15:00 | E188: 2017-03-02T14:15:11.477 | F188: 2017-03-02T14:26:37.757 | G188: 11 | H188: 2:26 PM: called NA 2:26 PM: unable to find patient in waiting room | I188: Other
A189: 2016-03-13 | B189: 2017-03-02 | C189: Thursday | D189: 14:00 - 15:00 | E189: 2017-03-02T14:18:46.720 | F189: 2017-03-02T14:43:02.267 | G189: 25 | I189: Blue Cross\Blue Shield
A190: 1932-11-18 | B190: 2017-03-02 | C190: Thursday | D190: 14:00 - 15:00 | E190: 2017-03-02T14:19:12.940 | F190: 2017-03-02T15:31:26.107 | G190: 72 | H190: 2:36 PM: regged on wall | I190: Other
A191: 2010-10-24 | B191: 2017-03-02 | C191: Thursday | D191: 14:00 - 15:00 | E191: 2017-03-02T14:22:54.407 | F191: 2017-03-02T15:01:21.120 | G191: 39 | H191: 2:43 PM: regged on wall 2:42 PM: regging | I191: Tufts
A192: 1981-06-26 | B192: 2017-03-02 | C192: Thursday | D192: 14:00 - 15:00 | E192: 2017-03-02T14:23:38.257 | F192: 2017-03-02T15:30:00.607 | G192: 67 | H192: 2:44 PM: regged on wall | I192: Tufts
A193: 1987-09-10 | B193: 2017-03-02 | C193: Thursday | D193: 14:00 - 15:00 | E193: 2017-03-02T14:27:34.110 | F193: 2017-03-02T15:20:27.877 | G193: 53 | H193: 2:54 PM: regged on wall | I193: Blue Cross\Blue Shield
A194: 1938-12-16 | B194: 2017-03-02 | C194: Thursday | D194: 14:00 - 15:00 | E194: 2017-03-02T14:28:58.060 | F194: 2017-03-02T15:30:23.657 | G194: 62 | H194: 3:01 PM: regged on wall 2:57 PM: ins ver | I194: Tufts
A195: 1979-01-15 | B195: 2017-03-02 | C195: Thursday | D195: 14:00 - 15:00 | E195: 2017-03-02T14:33:13.053 | F195: 2017-03-02T15:24:21.487 | G195: 51 | H195: 3:24 PM: removed 3:12 PM: called to reg, no answer 3:03 PM: called to reg, no answer 2:57 PM: ins ver | I195: Fallon Community Health Plan
A196: 1934-04-25 | B196: 2017-03-02 | C196: Thursday | D196: 14:00 - 15:00 | E196: 2017-03-02T14:34:33.440 | F196: 2017-03-02T15:31:59.310 | G196: 57 | H196: 3:11 PM: reggedo n wall 3:02 PM: ins ver | I196: Fallon Community Health Plan
A197: 2004-07-23 | B197: 2017-03-02 | C197: Thursday | D197: 14:00 - 15:00 | E197: 2017-03-02T14:38:55.113 | F197: 2017-03-02T15:18:06.957 | G197: 40 | H197: 3:13 PM: new ins | I197: Harvard Pilgrim
A198: 1929-10-26 | B198: 2017-03-02 | C198: Thursday | D198: 14:00 - 15:00 | E198: 2017-03-02T14:39:52.270 | F198: 2017-03-02T15:56:35.083 | G198: 77 | H198: 3:14 PM: regged on wall 3:03 PM: ins ver | I198: Tufts
A199: 1997-01-02 | B199: 2017-03-02 | C199: Thursday | D199: 14:00 - 15:00 | E199: 2017-03-02T14:46:11.260 | F199: 2017-03-02T15:46:43.947 | G199: 60 | H199: 3:46 PM: removed 3:46 PM: called to reg, no answer 3:24 PM: called to reg, no answer 3:03 PM: new pt | I199: United Health Care
A200: 1942-02-20 | B200: 2017-03-02 | C200: Thursday | D200: 14:00 - 15:00 | E200: 2017-03-02T14:50:38.673 | F200: 2017-03-02T15:33:09.467 | G200: 43 | H200: 3:33 PM: patient is out of network, is going to carewell ] 3:06 PM: ins ver | I200: Medicare
... 4244 more rows

Sheet April 2017
A1: DOB | B1: Visit Date | C1: Day | D1: Block | E1: Time Arrived | F1: Time Roomed | G1: Mins. Arrived to Roomed | H1: Notes | I1: Insurance
A2: 2017-03-27 | B2: 2017-04-01 | C2: Saturday | D2: 08:00 - 09:00 | E2: 2017-04-01T08:58:05.273 | F2: 2017-04-01T09:06:19.470 | G2: 8
A3: 2005-07-21 | B3: 2017-04-01 | C3: Saturday | D3: 14:00 - 15:00 | E3: 2017-04-01T14:27:18.303 | F3: 2017-04-01T14:40:15.700 | G3: 13
A4: 1966-04-03 | B4: 2017-04-01 | C4: Saturday | D4: 08:00 - 09:00 | E4: 2017-04-01T08:49:03.667 | F4: 2017-04-01T09:02:56.030 | G4: 13 | I4: Blue Cross\Blue Shield
A5: 1959-12-17 | B5: 2017-04-01 | C5: Saturday | D5: 08:00 - 09:00 | E5: 2017-04-01T08:49:11.950 | F5: 2017-04-01T09:02:58.673 | G5: 13 | I5: Tufts
A6: 1993-05-28 | B6: 2017-04-01 | C6: Saturday | D6: 08:00 - 09:00 | E6: 2017-04-01T08:49:25.713 | F6: 2017-04-01T09:14:19.127 | G6: 25 | H6: 9:13 AM: cant take insurance 9:08 AM: regging | I6: Harvard Pilgrim
A7: 2010-06-23 | B7: 2017-04-01 | C7: Saturday | D7: 08:00 - 09:00 | E7: 2017-04-01T08:50:45.240 | F7: 2017-04-01T08:53:43.313 | G7: 3 | I7: Aetna
A8: 2007-05-02 | B8: 2017-04-01 | C8: Saturday | D8: 08:00 - 09:00 | E8: 2017-04-01T08:51:17.747 | F8: 2017-04-01T09:07:31.907 | G8: 16 | I8: Medicaid\Mass Health
A9: 2012-12-31 | B9: 2017-04-01 | C9: Saturday | D9: 08:00 - 09:00 | E9: 2017-04-01T08:52:26.593 | F9: 2017-04-01T09:07:33.047 | G9: 15 | I9: Medicaid\Mass Health
A10: 2009-09-09 | B10: 2017-04-01 | C10: Saturday | D10: 08:00 - 09:00 | E10: 2017-04-01T08:55:29.060 | F10: 2017-04-01T09:28:13.063 | G10: 33 | I10: Medicaid\Mass Health
A11: 1978-10-18 | B11: 2017-04-01 | C11: Saturday | D11: 09:00 - 10:00 | E11: 2017-04-01T09:03:23.783 | F11: 2017-04-01T09:13:30.063 | G11: 10 | I11: Medicare
A12: 1956-04-14 | B12: 2017-04-01 | C12: Saturday | D12: 09:00 - 10:00 | E12: 2017-04-01T09:03:43.967 | F12: 2017-04-01T09:23:24.173 | G12: 20 | H12: 9:21 AM: on wall 9:15 AM: regging | I12: Fallon Community Health Plan
A13: 1995-11-01 | B13: 2017-04-01 | C13: Saturday | D13: 09:00 - 10:00 | E13: 2017-04-01T09:04:41.277 | F13: 2017-04-01T10:00:26.203 | G13: 56 | H13: 9:49 AM: on wall 9:23 AM: new patient | I13: Blue Cross\Blue Shield
A14: 1985-02-24 | B14: 2017-04-01 | C14: Saturday | D14: 09:00 - 10:00 | E14: 2017-04-01T09:08:55.943 | F14: 2017-04-01T09:38:21.577 | G14: 30 | I14: Fallon Community Health Plan
A15: 1967-10-17 | B15: 2017-04-01 | C15: Saturday | D15: 09:00 - 10:00 | E15: 2017-04-01T09:09:04.153 | F15: 2017-04-01T09:59:05.610 | G15: 50 | H15: 9:55 AM: on wall 9:50 AM: ins ver 9:50 AM: regging | I15: Fallon Community Health Plan
A16: 1967-07-05 | B16: 2017-04-01 | C16: Saturday | D16: 09:00 - 10:00 | E16: 2017-04-01T09:11:42.417 | F16: 2017-04-01T10:09:25.983 | G16: 58 | H16: 10:07 AM: on wall 9:56 AM: new insurance entered | I16: Fallon Community Health Plan
A17: 2016-05-10 | B17: 2017-04-01 | C17: Saturday | D17: 09:00 - 10:00 | E17: 2017-04-01T09:15:03.843 | F17: 2017-04-01T09:32:07.470 | G17: 17 | I17: Fallon Community Health Plan
A18: 2015-12-02 | B18: 2017-04-01 | C18: Saturday | D18: 09:00 - 10:00 | E18: 2017-04-01T09:15:39.310 | F18: 2017-04-01T09:38:30.423 | G18: 23 | I18: Fallon Community Health Plan
A19: 1990-01-03 | B19: 2017-04-01 | C19: Saturday | D19: 09:00 - 10:00 | E19: 2017-04-01T09:17:32.583 | F19: 2017-04-01T09:33:12.327 | G19: 16 | I19: Self Pay\No Insurance
A20: 2015-11-19 | B20: 2017-04-01 | C20: Saturday | D20: 09:00 - 10:00 | E20: 2017-04-01T09:26:39.527 | F20: 2017-04-01T09:49:15.423 | G20: 23 | I20: Blue Cross\Blue Shield
A21: 1934-10-16 | B21: 2017-04-01 | C21: Saturday | D21: 09:00 - 10:00 | E21: 2017-04-01T09:28:49.690 | F21: 2017-04-01T10:12:01.030 | G21: 44 | H21: 10:06 AM: on wall 10:03 AM: regging | I21: Tufts
A22: 1962-02-09 | B22: 2017-04-01 | C22: Saturday | D22: 09:00 - 10:00 | E22: 2017-04-01T09:35:38.350 | F22: 2017-04-01T10:21:32.280 | G22: 46 | H22: 10:15 AM: on wall workers comp | I22: Blue Cross\Blue Shield
A23: 2012-07-20 | B23: 2017-04-01 | C23: Saturday | D23: 09:00 - 10:00 | E23: 2017-04-01T09:40:32.343 | F23: 2017-04-01T10:32:48.577 | G23: 52 | H23: 10:11 AM: ins ver | I23: Fallon Community Health Plan
A24: 2011-05-20 | B24: 2017-04-01 | C24: Saturday | D24: 09:00 - 10:00 | E24: 2017-04-01T09:49:12.043 | F24: 2017-04-01T10:37:51.250 | G24: 48 | I24: Cigna
A25: 2012-04-12 | B25: 2017-04-01 | C25: Saturday | D25: 09:00 - 10:00 | E25: 2017-04-01T09:50:41.430 | F25: 2017-04-01T10:57:02.827 | G25: 67 | I25: Medicaid\Mass Health
A26: 1946-12-25 | B26: 2017-04-01 | C26: Saturday | D26: 09:00 - 10:00 | E26: 2017-04-01T09:53:22.437 | F26: 2017-04-01T10:41:31.593 | G26: 48 | H26: 10:27 AM: on wall 10:27 AM: regging 10:18 AM: new patient 2 insurances | I26: Medicare
A27: 1989-01-20 | B27: 2017-04-01 | C27: Saturday | D27: 09:00 - 10:00 | E27: 2017-04-01T09:53:36.783 | F27: 2017-04-01T10:37:57.767 | G27: 44 | H27: 10:36 AM: wall 10:30 AM: regging | I27: Blue Cross\Blue Shield
A28: 1997-05-28 | B28: 2017-04-01 | C28: Saturday | D28: 09:00 - 10:00 | E28: 2017-04-01T09:55:51.143 | F28: 2017-04-01T11:07:26.970 | G28: 72 | H28: 11:07 AM: called twice no anwser 9:57 AM: tufts hmo-umass pcp | I28: Tufts
A29: 2010-08-30 | B29: 2017-04-01 | C29: Saturday | D29: 10:00 - 11:00 | E29: 2017-04-01T10:01:28.980 | F29: 2017-04-01T11:06:05.827 | G29: 65 | H29: 11:02 AM: regged on wall 11:00 AM: regging | I29: Fallon Community Health Plan
A30: 2016-11-08 | B30: 2017-04-01 | C30: Saturday | D30: 10:00 - 11:00 | E30: 2017-04-01T10:10:24.860 | F30: 2017-04-01T10:11:45.470 | G30: 1 | I30: United Health Care
A31: 1965-03-04 | B31: 2017-04-01 | C31: Saturday | D31: 10:00 - 11:00 | E31: 2017-04-01T10:18:03.837 | F31: 2017-04-01T10:47:39.017 | G31: 29 | H31: 10:45 AM: regged on wall 10:42 AM: regging 10:41 AM: ok cough cold | I31: Blue Cross\Blue Shield
A32: 1962-01-02 | B32: 2017-04-01 | C32: Saturday | D32: 10:00 - 11:00 | E32: 2017-04-01T10:21:08.773 | F32: 2017-04-01T11:00:49.233 | G32: 39 | H32: 10:51 AM: regged on wall | I32: Other
A33: 1975-12-13 | B33: 2017-04-01 | C33: Saturday | D33: 10:00 - 11:00 | E33: 2017-04-01T10:32:16.847 | F33: 2017-04-01T11:00:49.483 | G33: 28 | H33: 10:49 AM: regged on wall | I33: Blue Cross\Blue Shield
A34: 1959-04-03 | B34: 2017-04-01 | C34: Saturday | D34: 10:00 - 11:00 | E34: 2017-04-01T10:47:25.833 | F34: 2017-04-01T11:18:05.780 | G34: 31 | H34: 11:08 AM: regged 10:56 AM: pt ok to wait 10:55 AM: PO 98% 10:53 AM: Asmatic on prednisone | I34: United Health Care
A35: 2011-06-15 | B35: 2017-04-01 | C35: Saturday | D35: 10:00 - 11:00 | E35: 2017-04-01T10:55:42.890 | F35: 2017-04-01T11:15:40.250 | G35: 20 | I35: Blue Cross\Blue Shield
A36: 1986-06-05 | B36: 2017-04-01 | C36: Saturday | D36: 11:00 - 12:00 | E36: 2017-04-01T11:01:27.680 | F36: 2017-04-01T11:11:39 | G36: 10 | H36: 11:09 AM: regged on wall | I36: Other
A37: 2015-12-18 | B37: 2017-04-01 | C37: Saturday | D37: 11:00 - 12:00 | E37: 2017-04-01T11:02:29.193 | F37: 2017-04-01T11:22:40.313 | G37: 20 | H37: 11:18 AM: new patient | I37: Medicaid\Mass Health
A38: 1979-11-29 | B38: 2017-04-01 | C38: Saturday | D38: 11:00 - 12:00 | E38: 2017-04-01T11:02:59.253 | F38: 2017-04-01T11:15:20.733 | G38: 13 | I38: Blue Cross\Blue Shield
A39: 2016-08-04 | B39: 2017-04-01 | C39: Saturday | D39: 11:00 - 12:00 | E39: 2017-04-01T11:09:54.640 | F39: 2017-04-01T11:30:59.983 | G39: 21 | H39: 11:27 AM: regging adult 11:18 AM: verified | I39: Fallon Community Health Plan
A40: 2014-11-06 | B40: 2017-04-01 | C40: Saturday | D40: 11:00 - 12:00 | E40: 2017-04-01T11:11:36.650 | F40: 2017-04-01T11:31:19.327 | G40: 20 | H40: 11:31 AM: on wall 11:20 AM: veriified | I40: Fallon Community Health Plan
A41: 1976-07-09 | B41: 2017-04-01 | C41: Saturday | D41: 11:00 - 12:00 | E41: 2017-04-01T11:16:55.143 | F41: 2017-04-01T11:48:12.593 | G41: 32 | H41: 11:38 AM: new 11:24 AM: on wall 11:22 AM: regging | I41: Blue Cross\Blue Shield
A42: 2015-09-21 | B42: 2017-04-01 | C42: Saturday | D42: 11:00 - 12:00 | E42: 2017-04-01T11:17:35.150 | F42: 2017-04-01T11:49:19.923 | G42: 32 | H42: 11:32 AM: entered in epic, gave info to pedi 11:25 AM: new patient | I42: Fallon Community Health Plan
A43: 2010-12-20 | B43: 2017-04-01 | C43: Saturday | D43: 11:00 - 12:00 | E43: 2017-04-01T11:17:43.393 | F43: 2017-04-01T11:56:24.767 | G43: 39 | H43: 11:24 AM: ins verified | I43: Medicaid\Mass Health
A44: 1980-08-17 | B44: 2017-04-01 | C44: Saturday | D44: 11:00 - 12:00 | E44: 2017-04-01T11:18:36.813 | F44: 2017-04-01T11:58:01.970 | G44: 40 | H44: 11:52 AM: arrived on wall 11:36 AM: regging | I44: Blue Cross\Blue Shield
A45: 2016-12-07 | B45: 2017-04-01 | C45: Saturday | D45: 11:00 - 12:00 | E45: 2017-04-01T11:25:54.053 | F45: 2017-04-01T12:18:57.563 | G45: 53 | H45: 12:16 PM: regging in adult | I45: Blue Cross\Blue Shield
A46: 2002-04-12 | B46: 2017-04-01 | C46: Saturday | D46: 11:00 - 12:00 | E46: 2017-04-01T11:25:54.363 | F46: 2017-04-01T12:40:54.953 | G46: 75 | H46: 12:40 PM: on wall 12:35 PM: reg adult | I46: Cigna
A47: 1997-05-28 | B47: 2017-04-01 | C47: Saturday | D47: 11:00 - 12:00 | E47: 2017-04-01T11:27:56.567 | F47: 2017-04-01T12:14:52.907 | G47: 47 | H47: 12:03 PM: regged on wall 11:53 AM: regging | I47: Tufts
A48: 2013-10-10 | B48: 2017-04-01 | C48: Saturday | D48: 11:00 - 12:00 | E48: 2017-04-01T11:34:51.913 | F48: 2017-04-01T12:46:52.487 | G48: 72 | I48: Fallon Community Health Plan
A49: 1958-03-10 | B49: 2017-04-01 | C49: Saturday | D49: 11:00 - 12:00 | E49: 2017-04-01T11:41:33.333 | F49: 2017-04-01T12:10:29.890 | G49: 29 | H49: 12:07 PM: on wall 12:04 PM: regging 12:00 PM: ins ver | I49: Fallon Community Health Plan
A50: 1986-08-28 | B50: 2017-04-01 | C50: Saturday | D50: 11:00 - 12:00 | E50: 2017-04-01T11:42:07.673 | F50: 2017-04-01T12:16:47.327 | G50: 34 | H50: 12:10 PM: on wall 12:01 PM: ins ver | I50: Fallon Community Health Plan
A51: 1996-09-29 | B51: 2017-04-01 | C51: Saturday | D51: 11:00 - 12:00 | E51: 2017-04-01T11:42:31.857 | F51: 2017-04-01T12:17:35.610 | G51: 35 | H51: 12:02 PM: ins ver | I51: Harvard Pilgrim
A52: 1991-05-21 | B52: 2017-04-01 | C52: Saturday | D52: 11:00 - 12:00 | E52: 2017-04-01T11:43:18.827 | F52: 2017-04-01T12:29:43.517 | G52: 46 | H52: 12:29 PM: hmo with oput of state pcp - going to carewell 12:02 PM: new patient | I52: Blue Cross\Blue Shield
A53: 1983-06-22 | B53: 2017-04-01 | C53: Saturday | D53: 11:00 - 12:00 | E53: 2017-04-01T11:48:35.060 | F53: 2017-04-01T12:31:37.500 | G53: 43 | H53: 12:31 PM: could not see insurance not vaild 12:21 PM: regging 12:03 PM: new ins | I53: Harvard Pilgrim
A54: 2014-05-12 | B54: 2017-04-01 | C54: Saturday | D54: 11:00 - 12:00 | E54: 2017-04-01T11:48:46.610 | F54: 2017-04-01T12:53:08.847 | G54: 65 | H54: 12:48 PM: ins verified | I54: Harvard Pilgrim
A55: 1997-06-23 | B55: 2017-04-01 | C55: Saturday | D55: 11:00 - 12:00 | E55: 2017-04-01T11:49:38.390 | F55: 2017-04-01T13:04:42.767 | G55: 75 | H55: 1:04 PM: called twice 12:34 PM: called once 12:04 PM: ins ver | I55: Cigna
A56: 2016-11-21 | B56: 2017-04-01 | C56: Saturday | D56: 11:00 - 12:00 | E56: 2017-04-01T11:49:49.770 | F56: 2017-04-01T12:53:10.017 | G56: 64 | H56: 12:49 PM: ins verified | I56: Harvard Pilgrim
A57: 1963-08-29 | B57: 2017-04-01 | C57: Saturday | D57: 12:00 - 13:00 | E57: 2017-04-01T12:03:29.583 | F57: 2017-04-01T12:37:44.220 | G57: 34 | H57: 12:33 PM: regged on wall 12:33 PM: OK TO WAIT | I57: Fallon Community Health Plan
A58: 2012-11-21 | B58: 2017-04-01 | C58: Saturday | D58: 12:00 - 13:00 | E58: 2017-04-01T12:17:08 | F58: 2017-04-01T12:58:53.713 | G58: 41 | H58: 12:49 PM: ins verified | I58: Blue Cross\Blue Shield
A59: 2010-12-27 | B59: 2017-04-01 | C59: Saturday | D59: 12:00 - 13:00 | E59: 2017-04-01T12:18:36.847 | F59: 2017-04-01T13:17:36.263 | G59: 59 | H59: 12:50 PM: ins verified | I59: Aetna
A60: 1928-04-23 | B60: 2017-04-01 | C60: Saturday | D60: 12:00 - 13:00 | E60: 2017-04-01T12:19:40.833 | F60: 2017-04-01T12:26:39.423 | G60: 7 | I60: Tufts
A61: 1956-04-05 | B61: 2017-04-01 | C61: Saturday | D61: 12:00 - 13:00 | E61: 2017-04-01T12:36:15.007 | F61: 2017-04-01T12:47:59.257 | G61: 11 | H61: 12:46 PM: on wall 12:44 PM: regging | I61: Tufts
A62: 2006-01-23 | B62: 2017-04-01 | C62: Saturday | D62: 12:00 - 13:00 | E62: 2017-04-01T12:39:20.640 | F62: 2017-04-01T13:33:33.123 | G62: 54 | H62: 12:51 PM: ins verified | I62: Harvard Pilgrim
A63: 1957-04-26 | B63: 2017-04-01 | C63: Saturday | D63: 12:00 - 13:00 | E63: 2017-04-01T12:41:17.950 | F63: 2017-04-01T13:09:20.887 | G63: 28 | H63: 12:50 PM: on wall regged | I63: Other
A64: 2016-06-01 | B64: 2017-04-01 | C64: Saturday | D64: 12:00 - 13:00 | E64: 2017-04-01T12:42:48.343 | F64: 2017-04-01T13:39:12.233 | G64: 57 | H64: 1:34 PM: reg adult 12:51 PM: ins verified | I64: Medicaid\Mass Health
A65: 2011-10-08 | B65: 2017-04-01 | C65: Saturday | D65: 12:00 - 13:00 | E65: 2017-04-01T12:43:33.913 | F65: 2017-04-01T13:39:13.123 | G65: 56 | H65: 1:36 PM: regging adult 12:52 PM: ins verified | I65: Medicaid\Mass Health
A66: 1997-05-22 | B66: 2017-04-01 | C66: Saturday | D66: 12:00 - 13:00 | E66: 2017-04-01T12:45:48.253 | F66: 2017-04-01T13:03:54.470 | G66: 18 | H66: 1:00 PM: pt ok to wait 12:58 PM: regged on wall 12:53 PM: pt ok 12:51 PM: checking and regging | I66: Harvard Pilgrim
A67: 1970-05-07 | B67: 2017-04-01 | C67: Saturday | D67: 12:00 - 13:00 | E67: 2017-04-01T12:48:30.267 | F67: 2017-04-01T13:16:01.747 | G67: 28 | H67: 1:04 PM: on wall 1:02 PM: regging 1:01 PM: pt ok o2 sat 99% 12:53 PM: ins verified | I67: Fallon Community Health Plan
A68: 1973-02-22 | B68: 2017-04-01 | C68: Saturday | D68: 12:00 - 13:00 | E68: 2017-04-01T12:50:01.390 | F68: 2017-04-01T13:27:09.170 | G68: 37 | H68: 1:17 PM: on wall 1:14 PM: regging 12:54 PM: ins verified | I68: Harvard Pilgrim
A69: 2002-07-17 | B69: 2017-04-01 | C69: Saturday | D69: 13:00 - 14:00 | E69: 2017-04-01T13:02:48.880 | F69: 2017-04-01T13:22:25.543 | G69: 20 | H69: 1:21 PM: toldand sent then to carewell 1:18 PM: network health | I69: Medicaid\Mass Health
A70: 1938-06-17 | B70: 2017-04-01 | C70: Saturday | D70: 13:00 - 14:00 | E70: 2017-04-01T13:05:22.100 | F70: 2017-04-01T13:27:10.747 | G70: 22 | H70: 1:26 PM: wall 1:22 PM: regging | I70: Blue Cross\Blue Shield
A71: 1982-02-12 | B71: 2017-04-01 | C71: Saturday | D71: 13:00 - 14:00 | E71: 2017-04-01T13:08:18.997 | F71: 2017-04-01T13:43:32.873 | G71: 35 | H71: 1:33 PM: arrived on wall 1:19 PM: cca one care | I71: Medicaid\Mass Health
A72: 1996-06-06 | B72: 2017-04-01 | C72: Saturday | D72: 13:00 - 14:00 | E72: 2017-04-01T13:11:07.453 | F72: 2017-04-01T14:20:12.997 | G72: 69 | H72: 1:54 PM: wall 1:41 PM: new pt | I72: Fallon Community Health Plan
A73: 1991-06-28 | B73: 2017-04-01 | C73: Saturday | D73: 13:00 - 14:00 | E73: 2017-04-01T13:26:11.550 | F73: 2017-04-01T14:20:54.293 | G73: 54 | H73: 2:01 PM: On wall 1:57 PM: regging | I73: Fallon Community Health Plan
A74: 2001-08-19 | B74: 2017-04-01 | C74: Saturday | D74: 13:00 - 14:00 | E74: 2017-04-01T13:40:34.037 | F74: 2017-04-01T13:47:14.137 | G74: 7 | H74: 1:45 PM: ins verified | I74: Blue Cross\Blue Shield
A75: 1997-09-08 | B75: 2017-04-01 | C75: Saturday | D75: 13:00 - 14:00 | E75: 2017-04-01T13:44:45.670 | F75: 2017-04-01T14:03:18.840 | G75: 19 | H75: 2:03 PM: Sent to care well 1:47 PM: neighborhood health - not commercial, can not see here | I75: Medicaid\Mass Health
A76: 1942-01-13 | B76: 2017-04-01 | C76: Saturday | D76: 13:00 - 14:00 | E76: 2017-04-01T13:49:32.500 | F76: 2017-04-01T14:25:18.327 | G76: 36 | H76: 2:07 PM: on wall regged | I76: Medicare
A77: 2016-06-18 | B77: 2017-04-01 | C77: Saturday | D77: 14:00 - 15:00 | E77: 2017-04-01T14:01:58.577 | F77: 2017-04-01T14:08:36.077 | G77: 7 | I77: Medicaid\Mass Health
A78: 2012-12-19 | B78: 2017-04-01 | C78: Saturday | D78: 14:00 - 15:00 | E78: 2017-04-01T14:06:27.983 | F78: 2017-04-01T14:19:14.153 | G78: 13 | I78: Blue Cross\Blue Shield
A79: 1959-08-25 | B79: 2017-04-01 | C79: Saturday | D79: 14:00 - 15:00 | E79: 2017-04-01T14:10:30.497 | F79: 2017-04-01T14:40:07.780 | G79: 30 | H79: 2:30 PM: On wall 2:15 PM: regging | I79: Medicaid\Mass Health
A80: 1945-10-04 | B80: 2017-04-01 | C80: Saturday | D80: 14:00 - 15:00 | E80: 2017-04-01T14:10:50.997 | F80: 2017-04-01T14:14:44.590 | G80: 4 | H80: 2:14 PM: duplicate | I80: Medicare
A81: 1945-10-04 | B81: 2017-04-01 | C81: Saturday | D81: 14:00 - 15:00 | E81: 2017-04-01T14:12:31.037 | F81: 2017-04-01T14:40:42.403 | G81: 28 | H81: 2:34 PM: on wall 2:32 PM: Regging | I81: Blue Cross\Blue Shield
A82: 2007-03-05 | B82: 2017-04-01 | C82: Saturday | D82: 14:00 - 15:00 | E82: 2017-04-01T14:12:35.487 | F82: 2017-04-01T14:19:01.263 | G82: 7 | H82: 2:14 PM: ins verified | I82: Tufts
A83: 2016-09-02 | B83: 2017-04-01 | C83: Saturday | D83: 14:00 - 15:00 | E83: 2017-04-01T14:20:51.833 | F83: 2017-04-01T14:49:01.717 | G83: 29 | I83: Blue Cross\Blue Shield
A84: 2017-01-14 | B84: 2017-04-01 | C84: Saturday | D84: 14:00 - 15:00 | E84: 2017-04-01T14:21:42.550 | F84: 2017-04-01T14:54:38.310 | G84: 33 | I84: Medicaid\Mass Health
A85: 1998-02-10 | B85: 2017-04-01 | C85: Saturday | D85: 14:00 - 15:00 | E85: 2017-04-01T14:23:45.387 | F85: 2017-04-01T14:38:12.670 | G85: 15 | H85: 2:38 PM: cannot take insurance 2:35 PM: regging | I85: Other
A86: 2013-03-20 | B86: 2017-04-01 | C86: Saturday | D86: 14:00 - 15:00 | E86: 2017-04-01T14:27:22.307 | F86: 2017-04-01T15:00:02.340 | G86: 33 | I86: Blue Cross\Blue Shield
A87: 1940-10-18 | B87: 2017-04-01 | C87: Saturday | D87: 14:00 - 15:00 | E87: 2017-04-01T14:36:06.160 | F87: 2017-04-01T14:56:22.013 | G87: 20 | H87: 2:42 PM: regged on wall | I87: Tufts
A88: 1975-08-22 | B88: 2017-04-01 | C88: Saturday | D88: 14:00 - 15:00 | E88: 2017-04-01T14:41:53.113 | F88: 2017-04-01T15:02:28.887 | G88: 21 | H88: 2:58 PM: regged 2:44 PM: regging | I88: Blue Cross\Blue Shield
A89: 1974-07-05 | B89: 2017-04-01 | C89: Saturday | D89: 14:00 - 15:00 | E89: 2017-04-01T14:45:03.370 | F89: 2017-04-01T15:21:38.903 | G89: 36 | H89: 3:19 PM: REGGED, ON WALL | I89: Medicaid\Mass Health
A90: 2001-06-07 | B90: 2017-04-01 | C90: Saturday | D90: 14:00 - 15:00 | E90: 2017-04-01T14:49:13.463 | F90: 2017-04-01T15:13:22.780 | G90: 24 | I90: Cigna
A91: 2015-03-18 | B91: 2017-04-01 | C91: Saturday | D91: 14:00 - 15:00 | E91: 2017-04-01T14:52:36.643 | F91: 2017-04-01T15:21:21.107 | G91: 29 | H91: 3:17 PM: ins ver | I91: Medicaid\Mass Health
A92: 1951-06-25 | B92: 2017-04-01 | C92: Saturday | D92: 14:00 - 15:00 | E92: 2017-04-01T14:58:02.883 | F92: 2017-04-01T15:25:20.733 | G92: 27 | H92: 3:23 PM: REGGING 3:12 PM: ins ver | I92: Harvard Pilgrim
A93: 1988-04-03 | B93: 2017-04-01 | C93: Saturday | D93: 14:00 - 15:00 | E93: 2017-04-01T14:58:09.100 | F93: 2017-04-01T15:32:14.793 | G93: 34 | H93: 3:30 PM: WALL 3:25 PM: REGGING 3:10 PM: ins ver | I93: Fallon Community Health Plan
A94: 1971-04-13 | B94: 2017-04-01 | C94: Saturday | D94: 14:00 - 15:00 | E94: 2017-04-01T14:59:07.970 | F94: 2017-04-01T15:06:42.810 | G94: 7 | H94: 3:03 PM: regged on wall had appointment on wall
A95: 1971-04-13 | B95: 2017-04-01 | C95: Saturday | D95: 15:00 - 16:00 | E95: 2017-04-01T15:03:28.540 | F95: 2017-04-01T15:10:47.937 | G95: 7 | H95: 3:07 PM: regged on wall 3:07 PM: Had appointment at 9 take in normal order | I95: Fallon Community Health Plan
A96: 2007-03-24 | B96: 2017-04-01 | C96: Saturday | D96: 15:00 - 16:00 | E96: 2017-04-01T15:06:57.680 | F96: 2017-04-01T15:40:14.623 | G96: 34 | H96: 3:14 PM: ins ver | I96: Medicaid\Mass Health
A97: 1965-08-20 | B97: 2017-04-01 | C97: Saturday | D97: 15:00 - 16:00 | E97: 2017-04-01T15:23:14.657 | F97: 2017-04-01T15:32:36.137 | G97: 9 | H97: 3:31 PM: WALL 3:30 PM: REGGING 3:30 PM: REGGING | I97: United Health Care
A98: 1992-10-25 | B98: 2017-04-01 | C98: Saturday | D98: 15:00 - 16:00 | E98: 2017-04-01T15:25:03.553 | F98: 2017-04-01T15:45:35.793 | G98: 20 | H98: 3:34 PM: REGGED, ON WALL 3:30 PM: ins ver 3:29 PM: oms ver | I98: Medicaid\Mass Health
A99: 1974-08-26 | B99: 2017-04-01 | C99: Saturday | D99: 15:00 - 16:00 | E99: 2017-04-01T15:30:29.100 | F99: 2017-04-01T15:51:49.857 | G99: 21 | H99: 3:43 PM: REGGED, ON WALL | I99: Medicaid\Mass Health
A100: 2008-11-24 | B100: 2017-04-01 | C100: Saturday | D100: 15:00 - 16:00 | E100: 2017-04-01T15:34:39.527 | F100: 2017-04-01T15:48:13.950 | G100: 14 | I100: Fallon Community Health Plan
A101: 1972-03-11 | B101: 2017-04-01 | C101: Saturday | D101: 15:00 - 16:00 | E101: 2017-04-01T15:38:45.567 | F101: 2017-04-01T15:59:30.373 | G101: 21 | H101: 3:46 PM: REGGED, ON WALL | I101: United Health Care
A102: 1992-12-06 | B102: 2017-04-01 | C102: Saturday | D102: 15:00 - 16:00 | E102: 2017-04-01T15:45:36.130 | F102: 2017-04-01T16:17:06.920 | G102: 32 | H102: 4:07 PM: regged, on wall | I102: Fallon Community Health Plan
A103: 2015-11-08 | B103: 2017-04-01 | C103: Saturday | D103: 15:00 - 16:00 | E103: 2017-04-01T15:51:51.770 | F103: 2017-04-01T15:52:44.013 | G103: 1 | I103: Fallon Community Health Plan
A104: 2015-02-03 | B104: 2017-04-01 | C104: Saturday | D104: 15:00 - 16:00 | E104: 2017-04-01T15:53:38.927 | F104: 2017-04-01T16:13:00.670 | G104: 20 | I104: Blue Cross\Blue Shield
A105: 1970-02-19 | B105: 2017-04-01 | C105: Saturday | D105: 15:00 - 16:00 | E105: 2017-04-01T15:59:03.140 | F105: 2017-04-01T16:27:39.903 | G105: 28 | H105: 4:10 PM: on waal 4:08 PM: regging | I105: Cigna
A106: 1982-06-10 | B106: 2017-04-01 | C106: Saturday | D106: 16:00 - 17:00 | E106: 2017-04-01T16:08:15.107 | F106: 2017-04-01T16:49:52.840 | G106: 41 | H106: 4:49 PM: searched entire waiting room/bathroom 449 pm no pt found, removed from kiosk 4:49 PM: called no ans 420pm 4:12 PM: called no ans 412p, also checked bathrooms | I106: Fallon Community Health Plan
A107: 1952-04-18 | B107: 2017-04-01 | C107: Saturday | D107: 16:00 - 17:00 | E107: 2017-04-01T16:12:45.967 | F107: 2017-04-01T16:28:01.840 | G107: 16 | H107: 4:25 PM: regged, on wall | I107: Medicare
A108: 1976-08-26 | B108: 2017-04-01 | C108: Saturday | D108: 16:00 - 17:00 | E108: 2017-04-01T16:23:09.617 | F108: 2017-04-01T16:39:10.793 | G108: 16 | H108: 4:33 PM: regged, on wall | I108: Tufts
A109: 2014-10-25 | B109: 2017-04-01 | C109: Saturday | D109: 16:00 - 17:00 | E109: 2017-04-01T16:49:45.743 | F109: 2017-04-01T16:52:25.937 | G109: 3 | I109: Blue Cross\Blue Shield
A110: 2006-05-04 | B110: 2017-04-01 | C110: Saturday | D110: 16:00 - 17:00 | E110: 2017-04-01T16:54:07.243 | F110: 2017-04-01T17:03:01.780 | G110: 9 | I110: Harvard Pilgrim
A111: 1964-11-15 | B111: 2017-04-01 | C111: Saturday | D111: 16:00 - 17:00 | E111: 2017-04-01T16:55:12.243 | F111: 2017-04-01T17:05:37.637 | G111: 10 | H111: 4:56 PM: regging | I111: Cigna
A112: 1952-12-29 | B112: 2017-04-01 | C112: Saturday | D112: 17:00 - 18:00 | E112: 2017-04-01T17:00:45.490 | F112: 2017-04-01T17:08:15.263 | G112: 8 | H112: 5:06 PM: wall 5:02 PM: shoulder pain | I112: Medicaid\Mass Health
A113: 1971-02-23 | B113: 2017-04-01 | C113: Saturday | D113: 17:00 - 18:00 | E113: 2017-04-01T17:05:08.123 | F113: 2017-04-01T17:13:59.983 | G113: 8 | H113: 5:12 PM: 98% 77 hr, on wall 5:06 PM: regging | I113: Harvard Pilgrim
A114: 1974-04-17 | B114: 2017-04-01 | C114: Saturday | D114: 17:00 - 18:00 | E114: 2017-04-01T17:05:09.720 | F114: 2017-04-01T17:21:17.967 | G114: 16 | H114: 5:15 PM: regging | I114: Blue Cross\Blue Shield
A115: 1983-02-24 | B115: 2017-04-01 | C115: Saturday | D115: 17:00 - 18:00 | E115: 2017-04-01T17:11:29.593 | F115: 2017-04-01T17:30:06.340 | G115: 19 | H115: 5:27 PM: wall | I115: Medicaid\Mass Health
A116: 2015-09-12 | B116: 2017-04-01 | C116: Saturday | D116: 17:00 - 18:00 | E116: 2017-04-01T17:14:33.030 | F116: 2017-04-01T17:16:57.043 | G116: 2 | I116: Medicaid\Mass Health
A117: 1966-07-07 | B117: 2017-04-01 | C117: Saturday | D117: 17:00 - 18:00 | E117: 2017-04-01T17:16:32.260 | F117: 2017-04-01T17:37:06.637 | G117: 21 | I117: Medicaid\Mass Health
A118: 1963-05-19 | B118: 2017-04-01 | C118: Saturday | D118: 17:00 - 18:00 | E118: 2017-04-01T17:44:32.353 | F118: 2017-04-01T17:57:28.217 | G118: 13 | H118: 5:53 PM: wall 5:50 PM: regging | I118: Medicaid\Mass Health
A119: 1948-01-10 | B119: 2017-04-01 | C119: Saturday | D119: 17:00 - 18:00 | E119: 2017-04-01T17:45:51.147 | F119: 2017-04-01T18:09:00.637 | G119: 24 | H119: 6:07 PM: on wall | I119: Tufts
A120: 2003-05-06 | B120: 2017-04-01 | C120: Saturday | D120: 17:00 - 18:00 | E120: 2017-04-01T17:56:16.690 | F120: 2017-04-01T17:57:27.137 | G120: 1 | I120: Harvard Pilgrim
A121: 1962-01-20 | B121: 2017-04-01 | C121: Saturday | D121: 18:00 - 19:00 | E121: 2017-04-01T18:02:20.993 | F121: 2017-04-01T19:08:42.637 | G121: 66 | H121: 7:07 PM: on wall 6:29 PM: not regged, new ins needed 6:28 PM: regged, need to collect copay 6:05 PM: with child in pedi rm 160 | I121: Harvard Pilgrim
A122: 1959-03-18 | B122: 2017-04-01 | C122: Saturday | D122: 18:00 - 19:00 | E122: 2017-04-01T18:14:17.203 | F122: 2017-04-01T18:24:47.387 | G122: 10 | H122: 6:24 PM: wall 6:17 PM: regging | I122: Fallon Community Health Plan
A123: 2007-08-13 | B123: 2017-04-01 | C123: Saturday | D123: 18:00 - 19:00 | E123: 2017-04-01T18:17:01.023 | F123: 2017-04-01T18:21:37.840 | G123: 4 | H123: 6:18 PM: ins ver | I123: Tufts
A124: 2001-11-22 | B124: 2017-04-01 | C124: Saturday | D124: 18:00 - 19:00 | E124: 2017-04-01T18:28:53.207 | F124: 2017-04-01T18:39:23.840 | G124: 11 | I124: Harvard Pilgrim
A125: 2012-08-16 | B125: 2017-04-01 | C125: Saturday | D125: 18:00 - 19:00 | E125: 2017-04-01T18:36:24.353 | F125: 2017-04-01T18:48:27.077 | G125: 12 | I125: Blue Cross\Blue Shield
A126: 1959-01-15 | B126: 2017-04-01 | C126: Saturday | D126: 18:00 - 19:00 | E126: 2017-04-01T18:37:55.670 | F126: 2017-04-01T18:52:54.497 | G126: 15 | H126: 6:49 PM: regging | I126: Aetna
A127: 2014-11-04 | B127: 2017-04-01 | C127: Saturday | D127: 18:00 - 19:00 | E127: 2017-04-01T18:39:51.540 | F127: 2017-04-01T18:49:52.123 | G127: 10 | I127: Medicaid\Mass Health
A128: 1989-09-11 | B128: 2017-04-01 | C128: Saturday | D128: 18:00 - 19:00 | E128: 2017-04-01T18:41:40.037 | F128: 2017-04-01T19:17:34.747 | G128: 36 | H128: 6:53 PM: regging | I128: Blue Cross\Blue Shield
A129: 2017-01-15 | B129: 2017-04-01 | C129: Saturday | D129: 18:00 - 19:00 | E129: 2017-04-01T18:56:50.013 | F129: 2017-04-01T19:02:32.903 | G129: 6 | I129: United Health Care
A130: 2014-04-10 | B130: 2017-04-01 | C130: Saturday | D130: 19:00 - 20:00 | E130: 2017-04-01T19:12:00.897 | F130: 2017-04-01T19:13:54.357 | G130: 1 | I130: Blue Cross\Blue Shield
A131: 1988-09-18 | B131: 2017-04-01 | C131: Saturday | D131: 19:00 - 20:00 | E131: 2017-04-01T19:14:08.313 | F131: 2017-04-01T19:26:15.170 | G131: 12 | H131: 7:18 PM: lump in breast | I131: Harvard Pilgrim
A132: 2014-06-11 | B132: 2017-04-01 | C132: Saturday | D132: 19:00 - 20:00 | E132: 2017-04-01T19:14:48.977 | F132: 2017-04-01T19:20:20.937 | G132: 6 | I132: Medicaid\Mass Health
A133: 1975-12-30 | B133: 2017-04-01 | C133: Saturday | D133: 19:00 - 20:00 | E133: 2017-04-01T19:18:47.843 | F133: 2017-04-01T19:35:07.043 | G133: 17 | H133: 7:32 PM: WALL 7:26 PM: REGGING | I133: Harvard Pilgrim
A134: 1992-01-05 | B134: 2017-04-01 | C134: Saturday | D134: 19:00 - 20:00 | E134: 2017-04-01T19:20:46.747 | F134: 2017-04-01T19:38:42.077 | G134: 18 | H134: 7:36 PM: WALL 7:33 PM: REGGING | I134: Blue Cross\Blue Shield
A135: 1992-08-11 | B135: 2017-04-01 | C135: Saturday | D135: 19:00 - 20:00 | E135: 2017-04-01T19:25:46.533 | F135: 2017-04-01T19:32:27.437 | G135: 7 | H135: 7:32 PM: GOING TO ER 7:29 PM: tufts network health, unable to be seen | I135: Medicaid\Mass Health
A136: 2012-03-13 | B136: 2017-04-01 | C136: Saturday | D136: 19:00 - 20:00 | E136: 2017-04-01T19:26:47.270 | F136: 2017-04-01T19:27:46.043 | G136: 1 | I136: Medicaid\Mass Health
A137: 1959-08-19 | B137: 2017-04-01 | C137: Saturday | D137: 19:00 - 20:00 | E137: 2017-04-01T19:27:03.287 | F137: 2017-04-01T19:53:55.137 | G137: 26 | H137: 7:43 PM: WALL 7:39 PM: amanda out 7:37 PM: AMANDA GET OUT OF CHART PLEASE 7:31 PM: ins ver | I137: Medicaid\Mass Health
A138: 2003-01-30 | B138: 2017-04-01 | C138: Saturday | D138: 19:00 - 20:00 | E138: 2017-04-01T19:27:28.573 | F138: 2017-04-01T19:36:45.327 | G138: 9 | I138: Blue Cross\Blue Shield
A139: 1997-05-14 | B139: 2017-04-01 | C139: Saturday | D139: 19:00 - 20:00 | E139: 2017-04-01T19:33:27.517 | F139: 2017-04-01T19:56:15.950 | G139: 23 | H139: 7:47 PM: WALL 7:44 PM: REGGING | I139: Blue Cross\Blue Shield
A140: 2006-08-03 | B140: 2017-04-01 | C140: Saturday | D140: 19:00 - 20:00 | E140: 2017-04-01T19:34:20.403 | F140: 2017-04-01T19:45:56.340 | G140: 11 | I140: Fallon Community Health Plan
A141: 2014-07-07 | B141: 2017-04-01 | C141: Saturday | D141: 19:00 - 20:00 | E141: 2017-04-01T19:36:33.270 | F141: 2017-04-01T19:48:15.827 | G141: 12 | I141: Medicaid\Mass Health
A142: 2014-08-11 | B142: 2017-04-02 | C142: Sunday | D142: 08:00 - 09:00 | E142: 2017-04-02T08:48:08.860 | F142: 2017-04-02T08:54:36.347 | G142: 6 | H142: 8:53 AM: arrived, brought to pedi wall 8:50 AM: regging | I142: Blue Cross\Blue Shield
A143: 2014-09-11 | B143: 2017-04-02 | C143: Sunday | D143: 08:00 - 09:00 | E143: 2017-04-02T08:55:00.120 | F143: 2017-04-02T09:17:33.003 | G143: 22 | H143: 9:09 AM: arrived 8:59 AM: new patient 8:55 AM: regging | I143: Blue Cross\Blue Shield
A144: 2000-08-03 | B144: 2017-04-02 | C144: Sunday | D144: 08:00 - 09:00 | E144: 2017-04-02T08:55:25.880 | F144: 2017-04-02T08:56:27.973 | G144: 1 | I144: Tufts
A145: 1985-05-07 | B145: 2017-04-02 | C145: Sunday | D145: 08:00 - 09:00 | E145: 2017-04-02T08:55:57.700 | F145: 2017-04-02T09:07:45.583 | G145: 12 | H145: 8:57 AM: new insurance | I145: Blue Cross\Blue Shield
A146: 1975-07-01 | B146: 2017-04-02 | C146: Sunday | D146: 08:00 - 09:00 | E146: 2017-04-02T08:59:05.203 | F146: 2017-04-02T09:00:53.927 | G146: 1 | I146: Fallon Community Health Plan
A147: 1971-01-25 | B147: 2017-04-02 | C147: Sunday | D147: 09:00 - 10:00 | E147: 2017-04-02T09:01:49.607 | F147: 2017-04-02T09:24:52.240 | G147: 23 | H147: 9:17 AM: arrived 9:15 AM: regging | I147: Blue Cross\Blue Shield
A148: 1955-10-07 | B148: 2017-04-02 | C148: Sunday | D148: 09:00 - 10:00 | E148: 2017-04-02T09:02:34.827 | F148: 2017-04-02T09:03:56.897 | G148: 1 | I148: Fallon Community Health Plan
A149: 1960-04-23 | B149: 2017-04-02 | C149: Sunday | D149: 09:00 - 10:00 | E149: 2017-04-02T09:03:55.857 | F149: 2017-04-02T09:25:31.630 | G149: 22 | H149: 9:23 AM: arrived 9:18 AM: regging | I149: Fallon Community Health Plan
A150: 1969-12-04 | B150: 2017-04-02 | C150: Sunday | D150: 09:00 - 10:00 | E150: 2017-04-02T09:05:00.097 | F150: 2017-04-02T09:36:41.193 | G150: 31 | H150: 9:34 AM: arrived, on wall 9:30 AM: regging 9:28 AM: ummm? Amanda in chart lol | I150: Blue Cross\Blue Shield
A151: 2016-09-26 | B151: 2017-04-02 | C151: Sunday | D151: 09:00 - 10:00 | E151: 2017-04-02T09:07:34.617 | F151: 2017-04-02T09:08:50.067 | G151: 1 | I151: Fallon Community Health Plan
A152: 2008-09-16 | B152: 2017-04-02 | C152: Sunday | D152: 09:00 - 10:00 | E152: 2017-04-02T09:07:57.697 | F152: 2017-04-02T09:17:39.723 | G152: 10 | I152: Medicaid\Mass Health
A153: 2014-07-21 | B153: 2017-04-02 | C153: Sunday | D153: 09:00 - 10:00 | E153: 2017-04-02T09:10:18.947 | F153: 2017-04-02T09:23:59.147 | G153: 13 | I153: Medicaid\Mass Health
A154: 1984-02-13 | B154: 2017-04-02 | C154: Sunday | D154: 09:00 - 10:00 | E154: 2017-04-02T09:14:16.070 | F154: 2017-04-02T09:31:39.240 | G154: 17 | H154: 9:28 AM: arrived, on wall 9:27 AM: speaking in full sentences, 97% 97 16 - ok'ed to wait jpc 9:25 AM: regging | I154: United Health Care
A155: 2012-08-31 | B155: 2017-04-02 | C155: Sunday | D155: 09:00 - 10:00 | E155: 2017-04-02T09:14:17.213 | F155: 2017-04-02T09:24:32.240 | G155: 10 | I155: Harvard Pilgrim
A156: 1958-12-13 | B156: 2017-04-02 | C156: Sunday | D156: 09:00 - 10:00 | E156: 2017-04-02T09:15:06.310 | F156: 2017-04-02T09:33:07.003 | G156: 18 | H156: 9:27 AM: ins ver | I156: Cigna
A157: 1998-06-04 | B157: 2017-04-02 | C157: Sunday | D157: 09:00 - 10:00 | E157: 2017-04-02T09:21:10.950 | F157: 2017-04-02T09:44:48.443 | G157: 23 | H157: 9:39 AM: arrived, on wall 9:37 AM: pain with cough x 3 days- tx with pcn for strep and not improving- ok'ed jpc 9:27 AM: ins ver | I157: Other
A158: 2002-01-02 | B158: 2017-04-02 | C158: Sunday | D158: 09:00 - 10:00 | E158: 2017-04-02T09:24:31.947 | F158: 2017-04-02T09:32:25.537 | G158: 8 | I158: Medicaid\Mass Health
A159: 2007-04-21 | B159: 2017-04-02 | C159: Sunday | D159: 09:00 - 10:00 | E159: 2017-04-02T09:24:33.733 | F159: 2017-04-02T09:36:42.443 | G159: 12 | I159: Medicaid\Mass Health
A160: 1954-04-13 | B160: 2017-04-02 | C160: Sunday | D160: 09:00 - 10:00 | E160: 2017-04-02T09:31:50.477 | F160: 2017-04-02T10:08:48.037 | G160: 37 | H160: 9:59 AM: arrived, on wall 9:53 AM: calling in bcbs 9:40 AM: regging | I160: Blue Cross\Blue Shield
A161: 2013-04-30 | B161: 2017-04-02 | C161: Sunday | D161: 09:00 - 10:00 | E161: 2017-04-02T09:35:17.403 | F161: 2017-04-02T09:41:12.723 | G161: 6 | H161: 9:40 AM: ins ver | I161: Blue Cross\Blue Shield
A162: 2004-03-17 | B162: 2017-04-02 | C162: Sunday | D162: 09:00 - 10:00 | E162: 2017-04-02T09:39:51.887 | F162: 2017-04-02T10:07:13.130 | G162: 28 | H162: 9:41 AM: ins ver | I162: Fallon Community Health Plan
A163: 1977-12-09 | B163: 2017-04-02 | C163: Sunday | D163: 09:00 - 10:00 | E163: 2017-04-02T09:46:20.190 | F163: 2017-04-02T10:22:23.113 | G163: 36 | H163: 10:08 AM: arrived, onw all 10:03 AM: regging | I163: Blue Cross\Blue Shield
A164: 1958-10-12 | B164: 2017-04-02 | C164: Sunday | D164: 09:00 - 10:00 | E164: 2017-04-02T09:46:37.860 | F164: 2017-04-02T10:34:01.990 | G164: 48 | H164: 10:28 AM: arrived 10:14 AM: regging | I164: Fallon Community Health Plan
A165: 2008-01-11 | B165: 2017-04-02 | C165: Sunday | D165: 09:00 - 10:00 | E165: 2017-04-02T09:47:50.507 | F165: 2017-04-02T10:25:48.160 | G165: 38 | I165: Fallon Community Health Plan
A166: 1982-06-01 | B166: 2017-04-02 | C166: Sunday | D166: 09:00 - 10:00 | E166: 2017-04-02T09:48:19.513 | F166: 2017-04-02T11:04:23.240 | G166: 76 | H166: 11:02 AM: arrived, on wall 10:34 AM: arrived-IN PEDI WITH CHILD 10:28 AM: regging | I166: Fallon Community Health Plan
A167: 2014-10-01 | B167: 2017-04-02 | C167: Sunday | D167: 09:00 - 10:00 | E167: 2017-04-02T09:49:28.243 | F167: 2017-04-02T10:37:11.567 | G167: 48 | H167: 10:28 AM: 10:28 called no answer | I167: Fallon Community Health Plan
A168: 1940-01-26 | B168: 2017-04-02 | C168: Sunday | D168: 09:00 - 10:00 | E168: 2017-04-02T09:49:54.980 | F168: 2017-04-02T10:42:31.927 | G168: 53 | H168: 10:42 AM: ins ver | I168: Tufts
A169: 1938-05-02 | B169: 2017-04-02 | C169: Sunday | D169: 09:00 - 10:00 | E169: 2017-04-02T09:54:05.237 | F169: 2017-04-02T10:43:10.520 | G169: 49 | H169: 10:43 AM: ins ver | I169: Tufts
A170: 1966-07-25 | B170: 2017-04-02 | C170: Sunday | D170: 09:00 - 10:00 | E170: 2017-04-02T09:57:26.760 | F170: 2017-04-02T10:53:12.427 | G170: 56 | H170: 10:50 AM: arrived, onw all 10:47 AM: regging | I170: Cigna
A171: 1937-08-09 | B171: 2017-04-02 | C171: Sunday | D171: 10:00 - 11:00 | E171: 2017-04-02T10:00:03.277 | F171: 2017-04-02T11:00:01.723 | G171: 60 | H171: 10:59 AM: arrived, onw all 10:51 AM: regging (new insurance) | I171: Medicaid\Mass Health
A172: 2016-10-26 | B172: 2017-04-02 | C172: Sunday | D172: 10:00 - 11:00 | E172: 2017-04-02T10:04:23.560 | F172: 2017-04-02T10:29:34.270 | G172: 25 | I172: United Health Care
A173: 1999-06-04 | B173: 2017-04-02 | C173: Sunday | D173: 10:00 - 11:00 | E173: 2017-04-02T10:07:14.020 | F173: 2017-04-02T10:43:51.613 | G173: 36 | I173: Blue Cross\Blue Shield
A174: 1999-01-19 | B174: 2017-04-02 | C174: Sunday | D174: 10:00 - 11:00 | E174: 2017-04-02T10:13:01.320 | F174: 2017-04-02T10:58:25.597 | G174: 45 | H174: 10:58 AM: new york medicaid 10:53 AM: new patient | I174: Other
A175: 2015-07-02 | B175: 2017-04-02 | C175: Sunday | D175: 10:00 - 11:00 | E175: 2017-04-02T10:14:00.140 | F175: 2017-04-02T11:03:06.050 | G175: 49 | I175: Blue Cross\Blue Shield
A176: 1960-12-10 | B176: 2017-04-02 | C176: Sunday | D176: 10:00 - 11:00 | E176: 2017-04-02T10:16:03.623 | F176: 2017-04-02T10:49:57.410 | G176: 33 | H176: 10:43 AM: arrived, on wall 10:38 AM: productive cough, pox 97%-regging | I176: Blue Cross\Blue Shield
A177: 2016-01-22 | B177: 2017-04-02 | C177: Sunday | D177: 10:00 - 11:00 | E177: 2017-04-02T10:17:49.770 | F177: 2017-04-02T11:24:54.207 | G177: 67 | I177: Medicaid\Mass Health
A178: 1974-07-29 | B178: 2017-04-02 | C178: Sunday | D178: 10:00 - 11:00 | E178: 2017-04-02T10:24:06.447 | F178: 2017-04-02T11:10:31.550 | G178: 46 | H178: 11:06 AM: arrived, on wall 11:02 AM: regging 10:55 AM: ins ver | I178: Other
A179: 1997-07-08 | B179: 2017-04-02 | C179: Sunday | D179: 10:00 - 11:00 | E179: 2017-04-02T10:24:52.077 | F179: 2017-04-02T11:49:10.287 | G179: 85 | H179: 11:49 AM: called to reg, removed 11:27 AM: called to reg, no answer 11:08 AM: call, no answer 11:07 AM: regging | I179: Blue Cross\Blue Shield
A180: 2010-03-05 | B180: 2017-04-02 | C180: Sunday | D180: 10:00 - 11:00 | E180: 2017-04-02T10:25:23.567 | F180: 2017-04-02T11:43:40.800 | G180: 78 | I180: United Health Care
A181: 2012-03-06 | B181: 2017-04-02 | C181: Sunday | D181: 10:00 - 11:00 | E181: 2017-04-02T10:26:00.513 | F181: 2017-04-02T11:46:01.223 | G181: 80 | I181: Medicaid\Mass Health
A182: 2015-07-07 | B182: 2017-04-02 | C182: Sunday | D182: 10:00 - 11:00 | E182: 2017-04-02T10:39:43.007 | F182: 2017-04-02T10:50:32.363 | G182: 11 | I182: Tufts
A183: 2013-05-21 | B183: 2017-04-02 | C183: Sunday | D183: 10:00 - 11:00 | E183: 2017-04-02T10:39:51.523 | F183: 2017-04-02T11:55:49.083 | G183: 76 | I183: Medicaid\Mass Health
A184: 1993-03-15 | B184: 2017-04-02 | C184: Sunday | D184: 10:00 - 11:00 | E184: 2017-04-02T10:41:40.853 | F184: 2017-04-02T11:19:42.817 | G184: 38 | H184: 11:15 AM: arrived, on wall 11:14 AM: cough/cold pox 99%-speaking in full sentences. Pt is ok. EEG 11:12 AM: regging 10:54 AM: ins ver | I184: Medicaid\Mass Health
A185: 1972-10-18 | B185: 2017-04-02 | C185: Sunday | D185: 10:00 - 11:00 | E185: 2017-04-02T10:43:05.220 | F185: 2017-04-02T11:28:01.880 | G185: 45 | H185: 11:20 AM: arrived, on wall 11:17 AM: regging | I185: Blue Cross\Blue Shield
A186: 1944-02-23 | B186: 2017-04-02 | C186: Sunday | D186: 10:00 - 11:00 | E186: 2017-04-02T10:48:14.487 | F186: 2017-04-02T11:32:12.770 | G186: 44 | H186: 11:27 AM: arrived, on wall 11:20 AM: regging | I186: Other
A187: 2005-12-20 | B187: 2017-04-02 | C187: Sunday | D187: 10:00 - 11:00 | E187: 2017-04-02T10:53:47.140 | F187: 2017-04-02T12:15:01.177 | G187: 82 | I187: Fallon Community Health Plan
A188: 1958-05-28 | B188: 2017-04-02 | C188: Sunday | D188: 10:00 - 11:00 | E188: 2017-04-02T10:54:10.440 | F188: 2017-04-02T11:34:43.910 | G188: 40 | H188: 11:33 AM: arrived, on wall 11:27 AM: regging | I188: Blue Cross\Blue Shield
A189: 1965-07-21 | B189: 2017-04-02 | C189: Sunday | D189: 10:00 - 11:00 | E189: 2017-04-02T10:55:21.440 | F189: 2017-04-02T11:46:50.880 | G189: 51 | H189: 11:40 AM: arrived 11:33 AM: regging | I189: Blue Cross\Blue Shield
A190: 1993-10-10 | B190: 2017-04-02 | C190: Sunday | D190: 10:00 - 11:00 | E190: 2017-04-02T10:58:13.213 | F190: 2017-04-02T11:57:31.003 | G190: 59 | H190: 11:56 AM: arrived, on wall 11:55 AM: (new insurance-no card :O( ) 11:47 AM: regging | I190: Cigna
A191: 1950-06-22 | B191: 2017-04-02 | C191: Sunday | D191: 11:00 - 12:00 | E191: 2017-04-02T11:06:27.437 | F191: 2017-04-02T12:57:59.613 | G191: 111 | H191: 12:08 PM: arrived, on wall 11:56 AM: regging | I191: Blue Cross\Blue Shield
A192: 1967-09-24 | B192: 2017-04-02 | C192: Sunday | D192: 11:00 - 12:00 | E192: 2017-04-02T11:06:42.663 | F192: 2017-04-02T12:18:55.020 | G192: 72 | H192: 12:14 PM: arrived, on wall 12:10 PM: regging 11:49 AM: ins ver | I192: Cigna
A193: 2015-04-07 | B193: 2017-04-02 | C193: Sunday | D193: 11:00 - 12:00 | E193: 2017-04-02T11:12:54.500 | F193: 2017-04-02T11:33:32.550 | G193: 21 | I193: Harvard Pilgrim
A194: 2011-09-02 | B194: 2017-04-02 | C194: Sunday | D194: 11:00 - 12:00 | E194: 2017-04-02T11:23:45.197 | F194: 2017-04-02T12:17:27.147 | G194: 54 | I194: Fallon Community Health Plan
A195: 1959-07-05 | B195: 2017-04-02 | C195: Sunday | D195: 11:00 - 12:00 | E195: 2017-04-02T11:28:05.263 | F195: 2017-04-02T12:28:05.753 | G195: 60 | H195: 12:22 PM: arrived, on wall 12:15 PM: regging 11:50 AM: no ins in epic | I195: United Health Care
A196: 1921-12-02 | B196: 2017-04-02 | C196: Sunday | D196: 11:00 - 12:00 | E196: 2017-04-02T11:31:02.327 | F196: 2017-04-02T11:52:19.927 | G196: 21 | H196: 11:52 AM: unable to be seen, bcbs hmo | I196: Blue Cross\Blue Shield
A197: 1972-03-19 | B197: 2017-04-02 | C197: Sunday | D197: 11:00 - 12:00 | E197: 2017-04-02T11:35:17.450 | F197: 2017-04-02T12:03:06.787 | G197: 28 | H197: 12:01 PM: regging 11:53 AM: ins ver | I197: Blue Cross\Blue Shield
A198: 1970-10-08 | B198: 2017-04-02 | C198: Sunday | D198: 11:00 - 12:00 | E198: 2017-04-02T11:43:04.697 | F198: 2017-04-02T12:37:27.647 | G198: 54 | H198: 12:35 PM: arrived 12:25 PM: regging | I198: Fallon Community Health Plan
A199: 1993-05-07 | B199: 2017-04-02 | C199: Sunday | D199: 11:00 - 12:00 | E199: 2017-04-02T11:49:20.423 | F199: 2017-04-02T12:59:35.397 | G199: 70 | H199: 12:58 PM: regged on wall 12:54 PM: regging 11:56 AM: mh standard now | I199: Medicaid\Mass Health
A200: 1955-07-19 | B200: 2017-04-02 | C200: Sunday | D200: 11:00 - 12:00 | E200: 2017-04-02T11:52:32.003 | F200: 2017-04-02T12:59:08.833 | G200: 67 | I200: Fallon Community Health Plan
... 4267 more rows

Sheet May 2017
A1: DOB | B1: Visit Date | C1: Day | D1: Block | E1: Time Arrived | F1: Time Roomed | G1: Mins. Arrived to Roomed | H1: Notes | I1: Insurance
A2: 1942-10-25 | B2: 2017-05-01 | C2: Monday | D2: 14:00 - 15:00 | E2: 2017-05-01T14:30:43.053 | F2: 2017-05-01T14:38:26.513 | G2: 8 | H2: 2:37 PM: regged on wall
A3: 2014-10-31 | B3: 2017-05-01 | C3: Monday | D3: 15:00 - 16:00 | E3: 2017-05-01T15:47:21.420 | F3: 2017-05-01T16:33:52.263 | G3: 46 | H3: 4:16 PM: REGGED ON WALL 3:50 PM: ver no schedule
A4: 2015-09-10 | B4: 2017-05-01 | C4: Monday | D4: 15:00 - 16:00 | E4: 2017-05-01T15:50:26.810 | F4: 2017-05-01T17:26:23.077 | G4: 96 | H4: 4:34 PM: regged on adult wall 3:53 PM: ver 3:51 PM: 4pm apt-
A5: 2010-01-24 | B5: 2017-05-01 | C5: Monday | D5: 16:00 - 17:00 | E5: 2017-05-01T16:58:21.353 | F5: 2017-05-01T17:08:42.077 | G5: 10
A6: 1959-12-17 | B6: 2017-05-01 | C6: Monday | D6: 08:00 - 09:00 | E6: 2017-05-01T08:49:41.343 | F6: 2017-05-01T09:01:43.507 | G6: 12 | I6: Tufts
A7: 1990-07-26 | B7: 2017-05-01 | C7: Monday | D7: 08:00 - 09:00 | E7: 2017-05-01T08:51:34.783 | F7: 2017-05-01T09:02:18.773 | G7: 11 | I7: Blue Cross\Blue Shield
A8: 1957-07-16 | B8: 2017-05-01 | C8: Monday | D8: 08:00 - 09:00 | E8: 2017-05-01T08:52:42.180 | F8: 2017-05-01T09:02:18.650 | G8: 10 | I8: Blue Cross\Blue Shield
A9: 1973-04-09 | B9: 2017-05-01 | C9: Monday | D9: 08:00 - 09:00 | E9: 2017-05-01T08:53:55.100 | F9: 2017-05-01T09:05:30.820 | G9: 12 | H9: 9:04 AM: ARRIVED ON WALL 9:03 AM: regging | I9: Cigna
A10: 1985-02-27 | B10: 2017-05-01 | C10: Monday | D10: 08:00 - 09:00 | E10: 2017-05-01T08:57:52.413 | F10: 2017-05-01T09:12:33.757 | G10: 15 | H10: 9:08 AM: WALL 9:05 AM: REGGING | I10: Blue Cross\Blue Shield
A11: 1982-03-13 | B11: 2017-05-01 | C11: Monday | D11: 09:00 - 10:00 | E11: 2017-05-01T09:00:26.620 | F11: 2017-05-01T09:07:46.430 | G11: 7 | I11: Harvard Pilgrim
A12: 2005-11-03 | B12: 2017-05-01 | C12: Monday | D12: 09:00 - 10:00 | E12: 2017-05-01T09:01:39.707 | F12: 2017-05-01T09:02:38.180 | G12: 1 | I12: Blue Cross\Blue Shield
A13: 1998-12-15 | B13: 2017-05-01 | C13: Monday | D13: 09:00 - 10:00 | E13: 2017-05-01T09:03:43.407 | F13: 2017-05-01T09:14:12.853 | G13: 11 | H13: 9:11 AM: ARRIVED ON WALL 9:09 AM: REGGING | I13: Medicaid\Mass Health
A14: 1985-07-24 | B14: 2017-05-01 | C14: Monday | D14: 09:00 - 10:00 | E14: 2017-05-01T09:07:01.380 | F14: 2017-05-01T09:18:03.477 | G14: 11 | H14: 9:17 AM: WALL 9:14 AM: regging | I14: Fallon Community Health Plan
A15: 1972-10-19 | B15: 2017-05-01 | C15: Monday | D15: 09:00 - 10:00 | E15: 2017-05-01T09:08:17.660 | F15: 2017-05-01T09:35:36.227 | G15: 27 | H15: 9:23 AM: ARRIVED ONW ALL 9:19 AM: MVA 9:18 AM: REGGING | I15: Fallon Community Health Plan
A16: 1974-07-18 | B16: 2017-05-01 | C16: Monday | D16: 09:00 - 10:00 | E16: 2017-05-01T09:13:24.740 | F16: 2017-05-01T09:20:02.040 | G16: 7 | H16: 9:19 AM: ver | I16: Medicaid\Mass Health
A17: 2008-06-21 | B17: 2017-05-01 | C17: Monday | D17: 09:00 - 10:00 | E17: 2017-05-01T09:13:30.663 | F17: 2017-05-01T09:41:12.307 | G17: 28 | H17: 9:32 AM: arrived on wall 9:24 AM: REGGING 9:20 AM: ver | I17: United Health Care
A18: 1972-08-31 | B18: 2017-05-01 | C18: Monday | D18: 09:00 - 10:00 | E18: 2017-05-01T09:16:57.673 | F18: 2017-05-01T09:47:27.103 | G18: 31 | H18: 9:36 AM: ARRIVED ONW ALL 9:35 AM: REGGING 9:21 AM: ver | I18: Other
A19: 2015-05-16 | B19: 2017-05-01 | C19: Monday | D19: 09:00 - 10:00 | E19: 2017-05-01T09:22:36.177 | F19: 2017-05-01T09:47:38.307 | G19: 25 | H19: 9:44 AM: ARRIVED ON WALL 9:37 AM: REGGING 9:26 AM: no MH 9:25 AM: no ins in epic | I19: Other
A20: 1984-09-23 | B20: 2017-05-01 | C20: Monday | D20: 09:00 - 10:00 | E20: 2017-05-01T09:25:48.970 | F20: 2017-05-01T09:57:07.947 | G20: 32 | H20: 9:56 AM: ARRIVE DON WALL 9:55 AM: REGGING 9:27 AM: VER | I20: Harvard Pilgrim
A21: 1977-02-14 | B21: 2017-05-01 | C21: Monday | D21: 09:00 - 10:00 | E21: 2017-05-01T09:29:42.637 | F21: 2017-05-01T10:15:05.570 | G21: 46 | H21: 10:09 AM: ARRIVED ON WALL 10:01 AM: NEW INS, I HAVE TO CALL TO COMFIRM ELIGIBILITY 9:59 AM: REGGING | I21: Other
A22: 1984-03-24 | B22: 2017-05-01 | C22: Monday | D22: 09:00 - 10:00 | E22: 2017-05-01T09:45:00.267 | F22: 2017-05-01T10:00:43.197 | G22: 15 | I22: Harvard Pilgrim
A23: 1961-10-21 | B23: 2017-05-01 | C23: Monday | D23: 09:00 - 10:00 | E23: 2017-05-01T09:54:24.307 | F23: 2017-05-01T10:39:37.807 | G23: 45 | H23: 10:10 AM: PT IS CALLING WIFE TO GET ID NUMBER 10:03 AM: no ins in epic
A24: 1994-11-16 | B24: 2017-05-01 | C24: Monday | D24: 09:00 - 10:00 | E24: 2017-05-01T09:56:17.107 | F24: 2017-05-01T10:25:19.477 | G24: 29 | H24: 10:23 AM: umass would not give us a ref, pt have a pedi doctor, and has not seen her in 2 years, has a lot of no call no ashow 10:18 AM: calling for ref 10:13 AM: REGGING 10:05 AM: mh standard, managed by umass 10:03 AM: new pt? | I24: Medicaid\Mass Health
A25: 1961-08-21 | B25: 2017-05-01 | C25: Monday | D25: 09:00 - 10:00 | E25: 2017-05-01T09:56:53.127 | F25: 2017-05-01T09:59:41.087 | G25: 3 | H25: 9:59 AM: 9:59 AM: duplicate
A26: 1983-09-13 | B26: 2017-05-01 | C26: Monday | D26: 09:00 - 10:00 | E26: 2017-05-01T09:57:47.043 | F26: 2017-05-01T10:17:11.273 | G26: 20 | H26: 10:06 AM: new ins? | I26: Blue Cross\Blue Shield
A27: 2016-06-26 | B27: 2017-05-01 | C27: Monday | D27: 09:00 - 10:00 | E27: 2017-05-01T09:59:55.180 | F27: 2017-05-01T10:18:28.117 | G27: 19 | H27: 10:06 AM: ins ver | I27: Medicaid\Mass Health
A28: 1972-05-16 | B28: 2017-05-01 | C28: Monday | D28: 10:00 - 11:00 | E28: 2017-05-01T10:01:36.840 | F28: 2017-05-01T10:20:36.150 | G28: 19 | H28: 10:07 AM: ver | I28: Fallon Community Health Plan
A29: 1953-07-03 | B29: 2017-05-01 | C29: Monday | D29: 10:00 - 11:00 | E29: 2017-05-01T10:03:29.410 | F29: 2017-05-01T10:09:27.257 | G29: 6 | H29: 10:07 AM: ver | I29: Fallon Community Health Plan
A30: 1987-04-15 | B30: 2017-05-01 | C30: Monday | D30: 10:00 - 11:00 | E30: 2017-05-01T10:06:18.200 | F30: 2017-05-01T10:48:19.493 | G30: 42 | H30: 10:43 AM: WALL 10:25 AM: calling for ref 10:18 AM: ok to wait 02 97 10:10 AM: e-rejected- new ins? | I30: Blue Cross\Blue Shield
A31: 1969-07-31 | B31: 2017-05-01 | C31: Monday | D31: 10:00 - 11:00 | E31: 2017-05-01T10:13:32.977 | F31: 2017-05-01T10:26:16.587 | G31: 13 | H31: 10:24 AM: ver | I31: Medicaid\Mass Health
A32: 1946-04-06 | B32: 2017-05-01 | C32: Monday | D32: 10:00 - 11:00 | E32: 2017-05-01T10:14:53.303 | F32: 2017-05-01T11:03:51.697 | G32: 49 | H32: 11:03 AM: pt walked out 10:52 AM: INS PROBLEM 10:44 AM: REGGING 10:29 AM: new ins entered and ver | I32: Harvard Pilgrim
A33: 1979-04-14 | B33: 2017-05-01 | C33: Monday | D33: 10:00 - 11:00 | E33: 2017-05-01T10:16:52.960 | F33: 2017-05-01T11:04:18.040 | G33: 48 | H33: 10:20 AM: ok to wait 02 98% speaking in full sentances | I33: Cigna
A34: 1960-12-21 | B34: 2017-05-01 | C34: Monday | D34: 10:00 - 11:00 | E34: 2017-05-01T10:22:21.823 | F34: 2017-05-01T10:41:15.650 | G34: 19 | H34: 10:30 AM: ver | I34: Other
A35: 1961-01-05 | B35: 2017-05-01 | C35: Monday | D35: 10:00 - 11:00 | E35: 2017-05-01T10:29:31.910 | F35: 2017-05-01T11:04:37.697 | G35: 35 | H35: 10:30 AM: ver | I35: Harvard Pilgrim
A36: 1960-02-19 | B36: 2017-05-01 | C36: Monday | D36: 10:00 - 11:00 | E36: 2017-05-01T10:34:18.393 | F36: 2017-05-01T11:12:34.257 | G36: 38 | H36: 11:11 AM: ARRIVED ON WALL 11:08 AM: regging | I36: Blue Cross\Blue Shield
A37: 1982-02-12 | B37: 2017-05-01 | C37: Monday | D37: 10:00 - 11:00 | E37: 2017-05-01T10:34:51.340 | F37: 2017-05-01T11:10:31.040 | G37: 36 | H37: 10:57 AM: bcbs ver- MVA? | I37: Blue Cross\Blue Shield
A38: 1979-06-01 | B38: 2017-05-01 | C38: Monday | D38: 10:00 - 11:00 | E38: 2017-05-01T10:41:52.690 | F38: 2017-05-01T11:08:59.243 | G38: 27 | H38: 10:48 AM: ver | I38: United Health Care
A39: 1975-04-22 | B39: 2017-05-01 | C39: Monday | D39: 10:00 - 11:00 | E39: 2017-05-01T10:43:55.430 | F39: 2017-05-01T11:19:09.273 | G39: 36 | H39: 11:14 AM: ARRIVE DON WALL 11:12 AM: REGGING 10:48 AM: ver | I39: Fallon Community Health Plan
A40: 1966-01-27 | B40: 2017-05-01 | C40: Monday | D40: 10:00 - 11:00 | E40: 2017-05-01T10:47:01.583 | F40: 2017-05-01T11:15:48.820 | G40: 28 | I40: Blue Cross\Blue Shield
A41: 1976-09-26 | B41: 2017-05-01 | C41: Monday | D41: 10:00 - 11:00 | E41: 2017-05-01T10:48:31.277 | F41: 2017-05-01T11:37:51.023 | G41: 49 | H41: 11:19 AM: ARRIVED ON WALL 11:18 AM: REGGING 10:50 AM: ver | I41: Cigna
A42: 1935-08-08 | B42: 2017-05-01 | C42: Monday | D42: 10:00 - 11:00 | E42: 2017-05-01T10:53:18.550 | F42: 2017-05-01T11:43:52.853 | G42: 50 | H42: 11:21 AM: ARRIVED ON WALL 11:20 AM: REGGING | I42: Medicaid\Mass Health
A43: 1968-11-29 | B43: 2017-05-01 | C43: Monday | D43: 11:00 - 12:00 | E43: 2017-05-01T11:01:04.553 | F43: 2017-05-01T11:50:13.577 | G43: 49 | H43: 11:30 AM: ARRIVED ON WALL 11:29 AM: REGGING 11:07 AM: ins ver | I43: Medicaid\Mass Health
A44: 1996-03-01 | B44: 2017-05-01 | C44: Monday | D44: 11:00 - 12:00 | E44: 2017-05-01T11:01:52.697 | F44: 2017-05-01T11:50:54.910 | G44: 49 | H44: 11:43 AM: ARRIVED ON WALL 11:41 AM: REGGING 11:09 AM: ins ver | I44: Fallon Community Health Plan
A45: 1932-01-03 | B45: 2017-05-01 | C45: Monday | D45: 11:00 - 12:00 | E45: 2017-05-01T11:11:34.133 | F45: 2017-05-01T12:00:56.337 | G45: 49 | H45: 11:46 AM: ARRIVED ON WALL 11:15 AM: please go out to get her for rooming, will not hear name called 11:13 AM: PT HARD OF HEARING, SHE IS WEARING PINK JACKET, BLUE JEANS | I45: Tufts
A46: 1988-11-18 | B46: 2017-05-01 | C46: Monday | D46: 11:00 - 12:00 | E46: 2017-05-01T11:14:31.940 | F46: 2017-05-01T11:57:59.420 | G46: 43 | H46: 11:56 AM: CALLED NO ANSWER | I46: Fallon Community Health Plan
A47: 2003-03-29 | B47: 2017-05-01 | C47: Monday | D47: 11:00 - 12:00 | E47: 2017-05-01T11:16:21.020 | F47: 2017-05-01T12:29:05.437 | G47: 73 | H47: 12:02 PM: arrived on wall 11:58 AM: REGGING 11:42 AM: ver | I47: Medicaid\Mass Health
A48: 1994-12-06 | B48: 2017-05-01 | C48: Monday | D48: 11:00 - 12:00 | E48: 2017-05-01T11:16:21.260 | F48: 2017-05-01T12:08:26.677 | G48: 52 | H48: 12:05 PM: not active 11:44 AM: no MH | I48: Medicaid\Mass Health
A49: 1964-06-06 | B49: 2017-05-01 | C49: Monday | D49: 11:00 - 12:00 | E49: 2017-05-01T11:19:33.800 | F49: 2017-05-01T12:32:28.060 | G49: 73 | H49: 12:14 PM: ARRIVED ON WALL 12:10 PM: regging 11:44 AM: ver | I49: United Health Care
A50: 1987-05-31 | B50: 2017-05-01 | C50: Monday | D50: 11:00 - 12:00 | E50: 2017-05-01T11:19:49.933 | F50: 2017-05-01T12:39:54.497 | G50: 80 | H50: 12:23 PM: ARRIVED ON WALL 12:17 PM: REGGING 11:45 AM: ver | I50: Fallon Community Health Plan
A51: 1977-05-31 | B51: 2017-05-01 | C51: Monday | D51: 11:00 - 12:00 | E51: 2017-05-01T11:23:31.580 | F51: 2017-05-01T12:45:43.187 | G51: 82 | H51: 12:42 PM: regged on wall 12:39 PM: regging 11:47 AM: ver | I51: Harvard Pilgrim
A52: 1998-09-03 | B52: 2017-05-01 | C52: Monday | D52: 11:00 - 12:00 | E52: 2017-05-01T11:36:00.013 | F52: 2017-05-01T12:46:17.937 | G52: 70 | I52: Medicaid\Mass Health
A53: 1946-10-15 | B53: 2017-05-01 | C53: Monday | D53: 11:00 - 12:00 | E53: 2017-05-01T11:36:02.240 | F53: 2017-05-01T13:08:06.077 | G53: 92 | H53: 1:03 PM: called to reg, no answer 12:53 PM: called to reg, no answer 12:50 PM: regging 11:46 AM: ver | I53: Blue Cross\Blue Shield
A54: 1923-02-22 | B54: 2017-05-01 | C54: Monday | D54: 11:00 - 12:00 | E54: 2017-05-01T11:37:30.030 | F54: 2017-05-01T12:54:47.653 | G54: 77 | H54: 11:51 AM: Back pain x 2 weeks 11:48 AM: ver | I54: Tufts
A55: 2000-10-22 | B55: 2017-05-01 | C55: Monday | D55: 11:00 - 12:00 | E55: 2017-05-01T11:38:24.930 | F55: 2017-05-01T12:59:04.763 | G55: 81 | H55: 12:57 PM: regged on wall 12:55 PM: regging 12:13 PM: PT OK TO BE SEEN ALONE,. SISTER LEFT AND PT HAVE PHONE TO CALL MOM TO GET OK TO BE SEEN 11:48 AM: ver | I55: Fallon Community Health Plan
A56: 1975-06-08 | B56: 2017-05-01 | C56: Monday | D56: 11:00 - 12:00 | E56: 2017-05-01T11:46:22.740 | F56: 2017-05-01T13:01:08.497 | G56: 75 | H56: 11:58 AM: AO 11:57 AM: trauma to ribs ok to wait 11:51 AM: checking | I56: Medicaid\Mass Health
A57: 1934-11-17 | B57: 2017-05-01 | C57: Monday | D57: 11:00 - 12:00 | E57: 2017-05-01T11:47:15.710 | F57: 2017-05-01T13:17:10.280 | G57: 90 | H57: 1:17 PM: called no answer 1:08 PM: called no ans 1:02 PM: called to reg, no answer 11:49 AM: ver | I57: Tufts
A58: 1962-02-04 | B58: 2017-05-01 | C58: Monday | D58: 12:00 - 13:00 | E58: 2017-05-01T12:06:01.043 | F58: 2017-05-01T13:17:56.140 | G58: 71 | H58: 1:17 PM: called no answer 1:03 PM: called to reg, no answer | I58: Blue Cross\Blue Shield
A59: 1996-07-11 | B59: 2017-05-01 | C59: Monday | D59: 12:00 - 13:00 | E59: 2017-05-01T12:12:03.407 | F59: 2017-05-01T13:06:34.390 | G59: 54 | H59: 1:06 PM: unable to be seen 1:00 PM: ins ver, umass pcp | I59: Medicaid\Mass Health
A60: 1946-04-21 | B60: 2017-05-01 | C60: Monday | D60: 12:00 - 13:00 | E60: 2017-05-01T12:14:27.117 | F60: 2017-05-01T13:12:08.937 | G60: 58 | H60: 1:10 PM: regged on wall 1:09 PM: regging | I60: Tufts
A61: 1980-03-29 | B61: 2017-05-01 | C61: Monday | D61: 12:00 - 13:00 | E61: 2017-05-01T12:15:19.020 | F61: 2017-05-01T13:42:49.967 | G61: 87 | H61: 1:39 PM: regged on wall 1:35 PM: needs referral 1:30 PM: REGGING 1:18 PM: BACK IN WAITING ROOM 1:11 PM: called to reg, no answer | I61: Blue Cross\Blue Shield
A62: 1983-02-26 | B62: 2017-05-01 | C62: Monday | D62: 12:00 - 13:00 | E62: 2017-05-01T12:16:54.273 | F62: 2017-05-01T13:08:29.937 | G62: 52 | I62: Medicaid\Mass Health
A63: 2002-07-21 | B63: 2017-05-01 | C63: Monday | D63: 12:00 - 13:00 | E63: 2017-05-01T12:31:01.260 | F63: 2017-05-01T13:18:48.857 | G63: 47 | I63: Medicaid\Mass Health
A64: 1993-05-25 | B64: 2017-05-01 | C64: Monday | D64: 12:00 - 13:00 | E64: 2017-05-01T12:31:44.073 | F64: 2017-05-01T13:27:58.200 | G64: 56 | H64: 1:27 PM: UNABLE TO BE SEEN. GOING TO HER DR 1:21 PM: trying to obtain a referral 1:12 PM: regging 1:10 PM: no ins in epic | I64: Harvard Pilgrim
A65: 2017-03-07 | B65: 2017-05-01 | C65: Monday | D65: 12:00 - 13:00 | E65: 2017-05-01T12:43:29.370 | F65: 2017-05-01T13:34:15.247 | G65: 51 | H65: 1:34 PM: CALLED NOA SNWER 12:59 PM: called no answer | I65: Fallon Community Health Plan
A66: 1972-05-11 | B66: 2017-05-01 | C66: Monday | D66: 12:00 - 13:00 | E66: 2017-05-01T12:54:34.077 | F66: 2017-05-01T14:01:53.297 | G66: 67 | H66: 2:00 PM: regged on wall 1:58 PM: needs referral 1:55 PM: regging 1:01 PM: ins ver, st v pcp | I66: Medicaid\Mass Health
A67: 1951-02-11 | B67: 2017-05-01 | C67: Monday | D67: 13:00 - 14:00 | E67: 2017-05-01T13:08:43.960 | F67: 2017-05-01T13:55:29.687 | G67: 47 | H67: 1:55 PM: unable to be seen 1:47 PM: reggig 1:11 PM: MVA 3/3/17 | I67: Other
A68: 1992-04-24 | B68: 2017-05-01 | C68: Monday | D68: 13:00 - 14:00 | E68: 2017-05-01T13:24:16.963 | F68: 2017-05-01T13:59:28.640 | G68: 35 | H68: 1:35 PM: ver | I68: Cigna
A69: 2016-08-15 | B69: 2017-05-01 | C69: Monday | D69: 13:00 - 14:00 | E69: 2017-05-01T13:27:33.220 | F69: 2017-05-01T13:34:16.310 | G69: 7 | I69: Medicaid\Mass Health
A70: 1970-08-17 | B70: 2017-05-01 | C70: Monday | D70: 13:00 - 14:00 | E70: 2017-05-01T13:29:58.597 | F70: 2017-05-01T13:33:48.373 | G70: 4 | I70: Fallon Community Health Plan
A71: 1941-08-23 | B71: 2017-05-01 | C71: Monday | D71: 13:00 - 14:00 | E71: 2017-05-01T13:37:29.213 | F71: 2017-05-01T14:09:46.373 | G71: 32 | H71: 2:04 PM: regged on wall 2:01 PM: regging | I71: Other
A72: 1969-02-26 | B72: 2017-05-01 | C72: Monday | D72: 13:00 - 14:00 | E72: 2017-05-01T13:41:10.817 | F72: 2017-05-01T14:13:26.780 | G72: 32 | H72: 2:10 PM: regged on wall 2:05 PM: ins ver | I72: United Health Care
A73: 1970-05-19 | B73: 2017-05-01 | C73: Monday | D73: 13:00 - 14:00 | E73: 2017-05-01T13:48:41.970 | F73: 2017-05-01T14:29:51.390 | G73: 41 | H73: 2:28 PM: regged on wall 2:15 PM: regging | I73: Blue Cross\Blue Shield
A74: 2016-10-21 | B74: 2017-05-01 | C74: Monday | D74: 13:00 - 14:00 | E74: 2017-05-01T13:52:46.883 | F74: 2017-05-01T14:15:51.280 | G74: 23 | I74: Fallon Community Health Plan
A75: 2003-11-08 | B75: 2017-05-01 | C75: Monday | D75: 14:00 - 15:00 | E75: 2017-05-01T14:02:31.613 | F75: 2017-05-01T14:32:29.873 | G75: 30 | I75: Blue Cross\Blue Shield
A76: 1954-11-08 | B76: 2017-05-01 | C76: Monday | D76: 14:00 - 15:00 | E76: 2017-05-01T14:10:55.037 | F76: 2017-05-01T14:26:32.607 | G76: 16 | I76: Blue Cross\Blue Shield
A77: 1993-09-07 | B77: 2017-05-01 | C77: Monday | D77: 14:00 - 15:00 | E77: 2017-05-01T14:11:16.190 | F77: 2017-05-01T14:26:16.670 | G77: 15 | H77: 2:25 PM: new ins enterred | I77: Fallon Community Health Plan
A78: 1979-12-31 | B78: 2017-05-01 | C78: Monday | D78: 14:00 - 15:00 | E78: 2017-05-01T14:12:33.777 | F78: 2017-05-01T14:32:59.217 | G78: 20 | H78: 2:30 PM: regged on wall 2:22 PM: ins ver | I78: Fallon Community Health Plan
A79: 1992-07-22 | B79: 2017-05-01 | C79: Monday | D79: 14:00 - 15:00 | E79: 2017-05-01T14:19:13.210 | F79: 2017-05-01T14:36:46.297 | G79: 17 | H79: 2:33 PM: regged on wall 2:22 PM: ins ver | I79: Fallon Community Health Plan
A80: 1938-08-13 | B80: 2017-05-01 | C80: Monday | D80: 14:00 - 15:00 | E80: 2017-05-01T14:35:10.110 | F80: 2017-05-01T14:47:31.687 | G80: 12 | H80: 2:39 PM: regged on wall | I80: Medicaid\Mass Health
A81: 2012-05-04 | B81: 2017-05-01 | C81: Monday | D81: 14:00 - 15:00 | E81: 2017-05-01T14:37:56.910 | F81: 2017-05-01T14:42:44.513 | G81: 5 | I81: Fallon Community Health Plan
A82: 2008-10-02 | B82: 2017-05-01 | C82: Monday | D82: 14:00 - 15:00 | E82: 2017-05-01T14:38:48.573 | F82: 2017-05-01T14:43:23.140 | G82: 5 | I82: Fallon Community Health Plan
A83: 1958-07-19 | B83: 2017-05-01 | C83: Monday | D83: 14:00 - 15:00 | E83: 2017-05-01T14:39:22.430 | F83: 2017-05-01T15:04:36.140 | G83: 25 | H83: 2:50 PM: regged on wall 2:49 PM: regging | I83: Medicaid\Mass Health
A84: 2000-08-06 | B84: 2017-05-01 | C84: Monday | D84: 14:00 - 15:00 | E84: 2017-05-01T14:42:07.447 | F84: 2017-05-01T15:07:45.327 | G84: 25 | H84: 2:43 PM: ins ver | I84: Fallon Community Health Plan
A85: 1987-12-16 | B85: 2017-05-01 | C85: Monday | D85: 14:00 - 15:00 | E85: 2017-05-01T14:45:45.133 | F85: 2017-05-01T15:10:49.343 | G85: 25 | H85: 3:10 PM: unable to be seen 3:01 PM: regging | I85: Other
A86: 1956-07-18 | B86: 2017-05-01 | C86: Monday | D86: 14:00 - 15:00 | E86: 2017-05-01T14:47:13.093 | F86: 2017-05-01T15:52:13.593 | G86: 65 | H86: 3:15 PM: regged on wall 3:14 PM: regging 3:11 PM: ins ver | I86: Fallon Community Health Plan
A87: 1978-08-11 | B87: 2017-05-01 | C87: Monday | D87: 14:00 - 15:00 | E87: 2017-05-01T14:48:39.240 | F87: 2017-05-01T14:55:21.357 | G87: 7 | I87: Harvard Pilgrim
A88: 1999-04-13 | B88: 2017-05-01 | C88: Monday | D88: 14:00 - 15:00 | E88: 2017-05-01T14:52:47.790 | F88: 2017-05-01T15:41:53.577 | G88: 49 | H88: 3:24 PM: regged on wall 3:12 PM: ins ver | I88: Medicaid\Mass Health
A89: 2015-10-22 | B89: 2017-05-01 | C89: Monday | D89: 14:00 - 15:00 | E89: 2017-05-01T14:55:17.527 | F89: 2017-05-01T15:17:49.920 | G89: 22 | I89: Medicare
A90: 2003-03-15 | B90: 2017-05-01 | C90: Monday | D90: 14:00 - 15:00 | E90: 2017-05-01T14:56:49.760 | F90: 2017-05-01T15:32:52.857 | G90: 36 | I90: Fallon Community Health Plan
A91: 1973-07-18 | B91: 2017-05-01 | C91: Monday | D91: 15:00 - 16:00 | E91: 2017-05-01T15:03:37.343 | F91: 2017-05-01T15:46:41.310 | G91: 43 | H91: 3:27 PM: regged on wall 3:25 PM: regging 3:18 PM: ins ver | I91: Fallon Community Health Plan
A92: 1997-11-05 | B92: 2017-05-01 | C92: Monday | D92: 15:00 - 16:00 | E92: 2017-05-01T15:12:10.130 | F92: 2017-05-01T15:52:54.373 | G92: 40 | H92: 3:36 PM: regged on wall 3:18 PM: ins ver | I92: Fallon Community Health Plan
A93: 1997-11-18 | B93: 2017-05-01 | C93: Monday | D93: 15:00 - 16:00 | E93: 2017-05-01T15:15:35.143 | F93: 2017-05-01T15:22:40.607 | G93: 7 | H93: 3:22 PM: unable to be seen | I93: Medicaid\Mass Health
A94: 1996-12-19 | B94: 2017-05-01 | C94: Monday | D94: 15:00 - 16:00 | E94: 2017-05-01T15:19:29.730 | F94: 2017-05-01T16:04:47.483 | G94: 45 | H94: 3:51 PM: regged on wall 3:43 PM: regging | I94: Blue Cross\Blue Shield
A95: 1934-11-14 | B95: 2017-05-01 | C95: Monday | D95: 15:00 - 16:00 | E95: 2017-05-01T15:21:26.970 | F95: 2017-05-01T16:06:16.263 | G95: 45 | H95: 4:03 PM: regged on wall 3:30 PM: ver 3:30 PM: dob 11-17-34? | I95: Tufts
A96: 2011-11-09 | B96: 2017-05-01 | C96: Monday | D96: 15:00 - 16:00 | E96: 2017-05-01T15:22:32.820 | F96: 2017-05-01T15:39:09.903 | G96: 17 | I96: Fallon Community Health Plan
A97: 1994-01-03 | B97: 2017-05-01 | C97: Monday | D97: 15:00 - 16:00 | E97: 2017-05-01T15:23:29.650 | F97: 2017-05-01T16:20:17.483 | G97: 57 | H97: 4:10 PM: regged on wall 4:09 PM: regging 3:28 PM: ins ver | I97: Medicaid\Mass Health
A98: 2016-11-15 | B98: 2017-05-01 | C98: Monday | D98: 15:00 - 16:00 | E98: 2017-05-01T15:24:12.620 | F98: 2017-05-01T15:57:55.810 | G98: 33 | H98: 3:53 PM: ver 3:32 PM: ok to wait per Felicia 3:29 PM: checking | I98: Medicaid\Mass Health
A99: 1996-01-30 | B99: 2017-05-01 | C99: Monday | D99: 15:00 - 16:00 | E99: 2017-05-01T15:25:11.567 | F99: 2017-05-01T16:24:03.343 | G99: 59 | H99: 3:31 PM: no ins in epic | I99: United Health Care
A100: 2015-08-17 | B100: 2017-05-01 | C100: Monday | D100: 15:00 - 16:00 | E100: 2017-05-01T15:36:42.993 | F100: 2017-05-01T16:13:14.997 | G100: 37 | H100: 4:00 PM: REGGED ON ADULT WALL 3:53 PM: regging | I100: Medicaid\Mass Health
A101: 1997-11-10 | B101: 2017-05-01 | C101: Monday | D101: 15:00 - 16:00 | E101: 2017-05-01T15:40:31.030 | F101: 2017-05-01T16:31:55.547 | G101: 51 | H101: 4:27 PM: regged on wall 3:46 PM: ver | I101: Medicaid\Mass Health
A102: 2017-03-16 | B102: 2017-05-01 | C102: Monday | D102: 15:00 - 16:00 | E102: 2017-05-01T15:42:49.507 | F102: 2017-05-01T15:58:48.047 | G102: 16 | H102: 3:47 PM: ver | I102: Fallon Community Health Plan
A103: 2016-06-07 | B103: 2017-05-01 | C103: Monday | D103: 15:00 - 16:00 | E103: 2017-05-01T15:46:22.307 | F103: 2017-05-01T16:16:33.937 | G103: 30 | H103: 4:08 PM: regged on adult on wall 4:06 PM: regging 3:49 PM: ver | I103: Tufts
A104: 1940-01-06 | B104: 2017-05-01 | C104: Monday | D104: 15:00 - 16:00 | E104: 2017-05-01T15:47:17.970 | F104: 2017-05-01T16:47:53.700 | G104: 60 | H104: 4:33 PM: regged on wall 3:54 PM: ver | I104: Tufts
A105: 2017-01-11 | B105: 2017-05-01 | C105: Monday | D105: 15:00 - 16:00 | E105: 2017-05-01T15:47:31.267 | F105: 2017-05-01T17:12:45.747 | G105: 85 | H105: 4:28 PM: regging 3:53 PM: ver | I105: Medicaid\Mass Health
A106: 1969-10-16 | B106: 2017-05-01 | C106: Monday | D106: 15:00 - 16:00 | E106: 2017-05-01T15:52:42.657 | F106: 2017-05-01T16:51:16.937 | G106: 59 | H106: 4:36 PM: regged on wall 3:55 PM: ver | I106: Medicaid\Mass Health
A107: 2001-01-04 | B107: 2017-05-01 | C107: Monday | D107: 16:00 - 17:00 | E107: 2017-05-01T16:03:44.263 | F107: 2017-05-01T16:39:18.857 | G107: 36 | H107: 4:39 PM: unable to be seen going to carewell 4:37 PM: regging | I107: Medicaid\Mass Health
A108: 2008-09-22 | B108: 2017-05-01 | C108: Monday | D108: 16:00 - 17:00 | E108: 2017-05-01T16:04:04.260 | F108: 2017-05-01T17:34:10.640 | G108: 90 | H108: 5:04 PM: regged on adult wall, mom being seen in adult 5:03 PM: regging 4:40 PM: ins ver | I108: Medicaid\Mass Health
A109: 2014-10-31 | B109: 2017-05-01 | C109: Monday | D109: 16:00 - 17:00 | E109: 2017-05-01T16:05:23.507 | F109: 2017-05-01T16:33:53.687 | G109: 28 | H109: 4:16 PM: REGGED ON WALL | I109: Medicaid\Mass Health
A110: 1971-11-22 | B110: 2017-05-01 | C110: Monday | D110: 16:00 - 17:00 | E110: 2017-05-01T16:05:31.567 | F110: 2017-05-01T17:12:44.700 | G110: 67 | H110: 4:47 PM: regged on wall | I110: Medicaid\Mass Health
A111: 1978-07-22 | B111: 2017-05-01 | C111: Monday | D111: 16:00 - 17:00 | E111: 2017-05-01T16:09:54.527 | F111: 2017-05-01T16:31:15.297 | G111: 22 | I111: Other
A112: 2016-03-21 | B112: 2017-05-01 | C112: Monday | D112: 16:00 - 17:00 | E112: 2017-05-01T16:14:26.620 | F112: 2017-05-01T17:28:04.437 | G112: 74 | H112: 4:50 PM: regged on adult wall | I112: Blue Cross\Blue Shield
A113: 2001-07-02 | B113: 2017-05-01 | C113: Monday | D113: 16:00 - 17:00 | E113: 2017-05-01T16:16:11.490 | F113: 2017-05-01T17:44:37.827 | G113: 88 | H113: 5:14 PM: regged on wall 4:54 PM: ver | I113: Cigna
A114: 1988-06-18 | B114: 2017-05-01 | C114: Monday | D114: 16:00 - 17:00 | E114: 2017-05-01T16:17:25.687 | F114: 2017-05-01T17:17:30.357 | G114: 60 | H114: 4:57 PM: regged on wall 4:52 PM: ins ver | I114: Blue Cross\Blue Shield
A115: 1982-04-16 | B115: 2017-05-01 | C115: Monday | D115: 16:00 - 17:00 | E115: 2017-05-01T16:28:53.883 | F115: 2017-05-01T17:22:19.373 | G115: 54 | H115: 5:06 PM: regged on wall 4:52 PM: ins ver | I115: Fallon Community Health Plan
A116: 2007-02-01 | B116: 2017-05-01 | C116: Monday | D116: 16:00 - 17:00 | E116: 2017-05-01T16:37:24.567 | F116: 2017-05-01T17:59:59.950 | G116: 82 | H116: 5:59 PM: called no answer 5:15 PM: called to reg, no answer 5:01 PM: ins ver' 4:54 PM: new pt? | I116: Fallon Community Health Plan
A117: 2016-07-06 | B117: 2017-05-01 | C117: Monday | D117: 16:00 - 17:00 | E117: 2017-05-01T16:38:04.877 | F117: 2017-05-01T18:00:06.343 | G117: 82 | H117: 6:00 PM: called no answer 5:24 PM: called no answer 4:55 PM: ver | I117: Blue Cross\Blue Shield
A118: 1981-05-03 | B118: 2017-05-01 | C118: Monday | D118: 16:00 - 17:00 | E118: 2017-05-01T16:38:37.017 | F118: 2017-05-01T17:23:07.950 | G118: 45 | H118: 5:11 PM: regged on wall 4:52 PM: ins ver | I118: Medicaid\Mass Health
A119: 2013-04-05 | B119: 2017-05-01 | C119: Monday | D119: 16:00 - 17:00 | E119: 2017-05-01T16:54:18.490 | F119: 2017-05-01T17:51:31.513 | G119: 57 | H119: 5:38 PM: ver 5:26 PM: regged on wall 5:01 PM: ok to wait, no distress O2 97% AL | I119: Medicaid\Mass Health
A120: 1964-05-27 | B120: 2017-05-01 | C120: Monday | D120: 16:00 - 17:00 | E120: 2017-05-01T16:56:39.013 | F120: 2017-05-01T17:38:13.030 | G120: 42 | H120: 5:32 PM: regged on wall 5:29 PM: regging | I120: Other
A121: 1996-06-19 | B121: 2017-05-01 | C121: Monday | D121: 17:00 - 18:00 | E121: 2017-05-01T17:02:30.707 | F121: 2017-05-01T18:02:06.280 | G121: 60 | H121: 5:48 PM: regged on wall 5:40 PM: regging 5:31 PM: new ins | I121: Blue Cross\Blue Shield
A122: 2010-01-24 | B122: 2017-05-01 | C122: Monday | D122: 17:00 - 18:00 | E122: 2017-05-01T17:05:42.427 | F122: 2017-05-01T18:00:12.530 | G122: 55 | H122: 5:52 PM: regged on wall adult 5:50 PM: regging 5:38 PM: ver | I122: Fallon Community Health Plan
A123: 1975-04-12 | B123: 2017-05-01 | C123: Monday | D123: 17:00 - 18:00 | E123: 2017-05-01T17:06:34.883 | F123: 2017-05-01T17:33:22.513 | G123: 27 | H123: 5:31 PM: ins ver | I123: Harvard Pilgrim
A124: 2016-04-24 | B124: 2017-05-01 | C124: Monday | D124: 17:00 - 18:00 | E124: 2017-05-01T17:06:50.663 | F124: 2017-05-01T18:07:22.093 | G124: 61 | H124: 6:03 PM: on wall adult 6:01 PM: regging 5:39 PM: ver | I124: Fallon Community Health Plan
A125: 2016-07-06 | B125: 2017-05-01 | C125: Monday | D125: 17:00 - 18:00 | E125: 2017-05-01T17:07:39.440 | F125: 2017-05-01T18:10:41.797 | G125: 63 | H125: 6:10 PM: 2nd call no answer, 6:00 PM: called no answer 5:39 PM: ver | I125: Blue Cross\Blue Shield
A126: 2016-07-10 | B126: 2017-05-01 | C126: Monday | D126: 17:00 - 18:00 | E126: 2017-05-01T17:08:37.310 | F126: 2017-05-01T18:21:26.060 | G126: 73 | H126: 6:21 PM: CALLED NO ANSWER 6:18 PM: called no answer 5:40 PM: ver | I126: Blue Cross\Blue Shield
A127: 2016-02-11 | B127: 2017-05-01 | C127: Monday | D127: 17:00 - 18:00 | E127: 2017-05-01T17:11:04.503 | F127: 2017-05-01T17:44:42.450 | G127: 33 | H127: 5:40 PM: ver | I127: Blue Cross\Blue Shield
A128: 1984-02-15 | B128: 2017-05-01 | C128: Monday | D128: 17:00 - 18:00 | E128: 2017-05-01T17:23:58.507 | F128: 2017-05-01T17:49:43.810 | G128: 26 | H128: 5:40 PM: regged on wall 5:38 PM: 99%, not short of breath, good air movement on both sides. 5:35 PM: regging 5:32 PM: ins ver | I128: Harvard Pilgrim
A129: 1978-07-22 | B129: 2017-05-01 | C129: Monday | D129: 17:00 - 18:00 | E129: 2017-05-01T17:26:18.870 | F129: 2017-05-01T18:13:28.497 | G129: 47 | H129: 6:09 PM: regged on wall 6:06 PM: regging 5:33 PM: new patient | I129: Other
A130: 1960-05-10 | B130: 2017-05-01 | C130: Monday | D130: 17:00 - 18:00 | E130: 2017-05-01T17:38:41.563 | F130: 2017-05-01T17:57:01.937 | G130: 19 | I130: Blue Cross\Blue Shield
A131: 1984-08-08 | B131: 2017-05-01 | C131: Monday | D131: 17:00 - 18:00 | E131: 2017-05-01T17:42:04.610 | F131: 2017-05-01T18:28:31.827 | G131: 46 | H131: 6:11 PM: regging 5:49 PM: sinus pressure x 1 week 5:44 PM: ok to wait | I131: Blue Cross\Blue Shield
A132: 2016-05-29 | B132: 2017-05-01 | C132: Monday | D132: 17:00 - 18:00 | E132: 2017-05-01T17:48:24.520 | F132: 2017-05-01T18:21:26.997 | G132: 33 | H132: 5:57 PM: regged on wall 5:57 PM: 97%, no retractions, ok to wait-AO | I132: Blue Cross\Blue Shield
A133: 2002-05-30 | B133: 2017-05-01 | C133: Monday | D133: 17:00 - 18:00 | E133: 2017-05-01T17:50:07.517 | F133: 2017-05-01T18:27:38.700 | G133: 37 | H133: 6:14 PM: ins V | I133: Aetna
A134: 2002-12-19 | B134: 2017-05-01 | C134: Monday | D134: 17:00 - 18:00 | E134: 2017-05-01T17:50:10.217 | F134: 2017-05-01T18:39:19.717 | G134: 49 | H134: 6:31 PM: on wall adult 6:27 PM: regging 6:18 PM: PLEASE REG 6:15 PM: ? new pt | I134: Blue Cross\Blue Shield
A135: 1969-09-04 | B135: 2017-05-01 | C135: Monday | D135: 17:00 - 18:00 | E135: 2017-05-01T17:55:27.073 | F135: 2017-05-01T18:46:18.357 | G135: 51 | H135: 6:16 PM: regged on wall 6:14 PM: regging | I135: United Health Care
A136: 1956-10-01 | B136: 2017-05-01 | C136: Monday | D136: 17:00 - 18:00 | E136: 2017-05-01T17:57:45.040 | F136: 2017-05-01T18:59:22.577 | G136: 62 | H136: 6:34 PM: regged on wall 6:33 PM: regging 6:25 PM: insurance verified | I136: Medicaid\Mass Health
A137: 2015-02-18 | B137: 2017-05-01 | C137: Monday | D137: 17:00 - 18:00 | E137: 2017-05-01T17:58:51.313 | F137: 2017-05-01T18:34:50.560 | G137: 36 | H137: 6:16 PM: ins V | I137: Medicaid\Mass Health
A138: 2012-12-09 | B138: 2017-05-01 | C138: Monday | D138: 18:00 - 19:00 | E138: 2017-05-01T18:02:11.387 | F138: 2017-05-01T18:50:04.920 | G138: 48 | H138: 6:38 PM: regged on wal adult 6:36 PM: regging 6:17 PM: ins V | I138: Blue Cross\Blue Shield
A139: 1989-07-23 | B139: 2017-05-01 | C139: Monday | D139: 18:00 - 19:00 | E139: 2017-05-01T18:03:07.433 | F139: 2017-05-01T18:43:06.733 | G139: 40 | H139: 6:43 PM: PT TO URGETN CARE OF HOLDEN ACCEPTS HIS INSURANCE 6:40 PM: CELTICARE | I139: Medicaid\Mass Health
A140: 2009-01-29 | B140: 2017-05-01 | C140: Monday | D140: 18:00 - 19:00 | E140: 2017-05-01T18:13:17.257 | F140: 2017-05-01T18:57:54.450 | G140: 44 | H140: 6:46 PM: REGGED ON WALL ADULT 6:45 PM: REGGING 6:18 PM: ins V | I140: Aetna
A141: 1927-09-06 | B141: 2017-05-01 | C141: Monday | D141: 18:00 - 19:00 | E141: 2017-05-01T18:15:03.577 | F141: 2017-05-01T18:30:45.717 | G141: 15 | H141: 6:20 PM: regging | I141: Tufts
A142: 2006-06-22 | B142: 2017-05-01 | C142: Monday | D142: 18:00 - 19:00 | E142: 2017-05-01T18:22:06.847 | F142: 2017-05-01T19:07:18.607 | G142: 45 | H142: 6:54 PM: regged on wall 6:50 PM: REGGING 6:28 PM: ins V | I142: Fallon Community Health Plan
A143: 1990-11-08 | B143: 2017-05-01 | C143: Monday | D143: 18:00 - 19:00 | E143: 2017-05-01T18:23:22.520 | F143: 2017-05-01T18:59:56.373 | G143: 36 | H143: 6:58 PM: regged on wall 6:55 PM: regging | I143: Harvard Pilgrim
A144: 1984-10-13 | B144: 2017-05-01 | C144: Monday | D144: 18:00 - 19:00 | E144: 2017-05-01T18:33:09.587 | F144: 2017-05-01T19:09:23.653 | G144: 36 | H144: 7:05 PM: regged on wall 7:00 PM: regging 6:44 PM: INSURANCE VERIFIED | I144: Fallon Community Health Plan
A145: 1990-09-22 | B145: 2017-05-01 | C145: Monday | D145: 18:00 - 19:00 | E145: 2017-05-01T18:34:12.620 | F145: 2017-05-01T19:14:00.343 | G145: 40 | H145: 7:11 PM: regged on wall 7:10 PM: regging 6:43 PM: tufts hmo, outside pcp | I145: Tufts
A146: 2013-07-17 | B146: 2017-05-01 | C146: Monday | D146: 18:00 - 19:00 | E146: 2017-05-01T18:34:51.680 | F146: 2017-05-01T19:16:41.733 | G146: 42 | H146: 7:08 PM: regged on wall adult 7:07 PM: regging 6:49 PM: ins V | I146: Blue Cross\Blue Shield
A147: 2012-03-01 | B147: 2017-05-01 | C147: Monday | D147: 18:00 - 19:00 | E147: 2017-05-01T18:38:42.407 | F147: 2017-05-01T19:24:17.797 | G147: 46 | H147: 7:16 PM: regged on wall adult 7:13 PM: reggomg 7:04 PM: ins V | I147: Harvard Pilgrim
A148: 2013-07-16 | B148: 2017-05-01 | C148: Monday | D148: 18:00 - 19:00 | E148: 2017-05-01T18:53:49.373 | F148: 2017-05-01T19:34:28.497 | G148: 41 | H148: 7:04 PM: ins V | I148: Other
A149: 1994-10-20 | B149: 2017-05-01 | C149: Monday | D149: 18:00 - 19:00 | E149: 2017-05-01T18:55:44.363 | F149: 2017-05-01T19:43:24.903 | G149: 48 | H149: 7:37 PM: unable to see - do not accept insurance 7:28 PM: new ins | I149: Aetna
A150: 1999-05-27 | B150: 2017-05-01 | C150: Monday | D150: 18:00 - 19:00 | E150: 2017-05-01T18:57:54.990 | F150: 2017-05-01T19:38:12.060 | G150: 41 | H150: 7:05 PM: PLEASE REG 7:05 PM: ? new pt | I150: Blue Cross\Blue Shield
A151: 2002-04-16 | B151: 2017-05-01 | C151: Monday | D151: 19:00 - 20:00 | E151: 2017-05-01T19:02:45.480 | F151: 2017-05-01T19:43:27.700 | G151: 41 | H151: 7:06 PM: ins V | I151: Medicaid\Mass Health
A152: 1963-08-26 | B152: 2017-05-01 | C152: Monday | D152: 19:00 - 20:00 | E152: 2017-05-01T19:04:13.193 | F152: 2017-05-01T19:30:14.497 | G152: 26 | I152: Fallon Community Health Plan
A153: 1966-11-16 | B153: 2017-05-01 | C153: Monday | D153: 19:00 - 20:00 | E153: 2017-05-01T19:05:32.217 | F153: 2017-05-01T19:40:10.670 | G153: 35 | H153: 7:36 PM: checking - we do not take insurance 7:22 PM: regged on wall | I153: Medicaid\Mass Health
A154: 1985-04-09 | B154: 2017-05-01 | C154: Monday | D154: 19:00 - 20:00 | E154: 2017-05-01T19:09:01.970 | F154: 2017-05-01T19:44:59.967 | G154: 35 | H154: 7:29 PM: outside pcp 7:13 PM: ins ver | I154: Tufts
A155: 2003-02-27 | B155: 2017-05-01 | C155: Monday | D155: 19:00 - 20:00 | E155: 2017-05-01T19:10:51.053 | F155: 2017-05-01T19:54:30.857 | G155: 44 | H155: 7:50 PM: regged on wall adult 7:45 PM: regging 7:19 PM: PLEASE REG 7:19 PM: ? new pt | I155: Aetna
A156: 2002-05-16 | B156: 2017-05-01 | C156: Monday | D156: 19:00 - 20:00 | E156: 2017-05-01T19:16:41.403 | F156: 2017-05-01T19:31:53.687 | G156: 15 | H156: 7:31 PM: tufts network health 7:19 PM: PLEASE REG 7:19 PM: ? new pt | I156: Medicaid\Mass Health
A157: 2012-08-21 | B157: 2017-05-01 | C157: Monday | D157: 19:00 - 20:00 | E157: 2017-05-01T19:20:52.483 | F157: 2017-05-01T19:57:17.873 | G157: 37 | H157: 7:52 PM: regged on wall adult 7:36 PM: insurance verified | I157: Medicaid\Mass Health
A158: 2015-09-22 | B158: 2017-05-01 | C158: Monday | D158: 19:00 - 20:00 | E158: 2017-05-01T19:22:17.610 | F158: 2017-05-01T20:22:03.640 | G158: 60 | H158: 8:13 PM: called no answer 8:02 PM: called- no answer. 7:54 PM: regged on wall adult 7:36 PM: insraunce verified | I158: Other
A159: 1999-12-09 | B159: 2017-05-01 | C159: Monday | D159: 19:00 - 20:00 | E159: 2017-05-01T19:22:22.880 | F159: 2017-05-01T20:02:36.560 | G159: 40 | H159: 8:01 PM: regged on wall 7:56 PM: regging 7:36 PM: insurance verified 7:30 PM: MVA-5/29/17 seen at ED that night o2 99% pulse 92 ok to wait 7:24 PM: checking | I159: Fallon Community Health Plan
A160: 1998-11-30 | B160: 2017-05-01 | C160: Monday | D160: 19:00 - 20:00 | E160: 2017-05-01T19:23:36.413 | F160: 2017-05-01T19:51:45.903 | G160: 28 | H160: 7:44 PM: regged on wall 7:43 PM: MVA saturday, mild concussive symptoms-AO | I160: Medicaid\Mass Health
A161: 2009-01-19 | B161: 2017-05-01 | C161: Monday | D161: 19:00 - 20:00 | E161: 2017-05-01T19:23:52.477 | F161: 2017-05-01T20:13:54.153 | G161: 50 | H161: 8:04 PM: regged on wall 8:02 PM: regging 7:37 PM: insurance verified 7:31 PM: ok to wait, O2 100%, no distress. AL | I161: Blue Cross\Blue Shield
A162: 2007-02-01 | B162: 2017-05-01 | C162: Monday | D162: 19:00 - 20:00 | E162: 2017-05-01T19:24:33.653 | F162: 2017-05-01T20:20:30.513 | G162: 56 | H162: 8:09 PM: regged on wall 8:06 PM: ergging 7:37 PM: insurance verified 7:37 PM: ins V | I162: Fallon Community Health Plan
A163: 1990-05-26 | B163: 2017-05-01 | C163: Monday | D163: 19:00 - 20:00 | E163: 2017-05-01T19:25:03.030 | F163: 2017-05-01T20:10:17.873 | G163: 45 | H163: 8:10 PM: called no answer 8:06 PM: called no answer 7:29 PM: bcbs hmo, outside pcp | I163: Blue Cross\Blue Shield
A164: 2005-10-17 | B164: 2017-05-01 | C164: Monday | D164: 19:00 - 20:00 | E164: 2017-05-01T19:39:55.407 | F164: 2017-05-01T20:22:45.733 | G164: 43 | H164: 8:09 PM: regged on wall 8:04 PM: insruance verified | I164: Fallon Community Health Plan
A165: 1989-11-20 | B165: 2017-05-01 | C165: Monday | D165: 19:00 - 20:00 | E165: 2017-05-01T19:42:34.333 | F165: 2017-05-01T19:58:15.060 | G165: 16 | I165: Aetna
A166: 1976-05-28 | B166: 2017-05-01 | C166: Monday | D166: 19:00 - 20:00 | E166: 2017-05-01T19:52:50.573 | F166: 2017-05-01T20:05:42.450 | G166: 13 | H166: 7:58 PM: ins ver | I166: Tufts
A167: 2015-09-21 | B167: 2017-05-01 | C167: Monday | D167: 19:00 - 20:00 | E167: 2017-05-01T19:54:01.583 | F167: 2017-05-01T20:22:46.343 | G167: 28 | H167: 8:14 PM: regged on wall | I167: Fallon Community Health Plan
A168: 2016-06-01 | B168: 2017-05-01 | C168: Monday | D168: 19:00 - 20:00 | E168: 2017-05-01T19:58:03.220 | F168: 2017-05-01T20:24:08.263 | G168: 26 | H168: 8:17 PM: O2 96%, P 141, no distress AL 8:13 PM: regged on wall 8:12 PM: in bubble | I168: Medicaid\Mass Health
A169: 1993-10-20 | B169: 2017-05-01 | C169: Monday | D169: 11:00 - 12:00 | E169: 2017-05-01T11:22:27.933 | F169: 2017-05-01T11:32:11.930 | G169: 10 | H169: 11:32 AM: JUST HERE FOR LETTER
A170: 1927-11-19 | B170: 2017-05-01 | C170: Monday | D170: 11:00 - 12:00 | E170: 2017-05-01T11:48:55.793 | F170: 2017-05-01T12:07:29.117 | G170: 19 | H170: 11:55 AM: WALL 11:50 AM: post op recheck 11:50 AM: ver
A171: 1959-04-24 | B171: 2017-05-01 | C171: Monday | D171: 11:00 - 12:00 | E171: 2017-05-01T11:49:49.737 | F171: 2017-05-01T11:52:18.557 | G171: 3 | H171: 11:52 AM: ct
A172: 1989-10-31 | B172: 2017-05-01 | C172: Monday | D172: 14:00 - 15:00 | E172: 2017-05-01T14:48:37.643 | F172: 2017-05-01T15:00:21.763 | G172: 12 | H172: 2:55 PM: regged on wall 2:51 PM: scheduled wound recheck, please reg next
A173: 1973-07-21 | B173: 2017-05-01 | C173: Monday | D173: 17:00 - 18:00 | E173: 2017-05-01T17:05:49.603 | F173: 2017-05-01T17:15:23.607 | G173: 10 | H173: 5:07 PM: regged on wall
A174: 1935-04-22 | B174: 2017-05-02 | C174: Tuesday | D174: 10:00 - 11:00 | E174: 2017-05-02T10:12:32.307 | F174: 2017-05-02T10:34:42.177 | G174: 22 | H174: 10:34 AM: INFUSION
A175: 1985-01-29 | B175: 2017-05-02 | C175: Tuesday | D175: 08:00 - 09:00 | E175: 2017-05-02T08:46:42.193 | F175: 2017-05-02T08:57:48.550 | G175: 11 | I175: Blue Cross\Blue Shield
A176: 2005-03-25 | B176: 2017-05-02 | C176: Tuesday | D176: 08:00 - 09:00 | E176: 2017-05-02T08:47:51.590 | F176: 2017-05-02T09:00:21.973 | G176: 13 | H176: 8:55 AM: ins verified | I176: Medicaid\Mass Health
A177: 1960-11-02 | B177: 2017-05-02 | C177: Tuesday | D177: 08:00 - 09:00 | E177: 2017-05-02T08:52:22.457 | F177: 2017-05-02T09:03:07.270 | G177: 11 | I177: Blue Cross\Blue Shield
A178: 2014-12-10 | B178: 2017-05-02 | C178: Tuesday | D178: 09:00 - 10:00 | E178: 2017-05-02T09:01:19.870 | F178: 2017-05-02T09:12:05.097 | G178: 11 | H178: 9:04 AM: regging | I178: United Health Care
A179: 2014-11-09 | B179: 2017-05-02 | C179: Tuesday | D179: 09:00 - 10:00 | E179: 2017-05-02T09:03:31.477 | F179: 2017-05-02T09:09:42.503 | G179: 6 | I179: Medicaid\Mass Health
A180: 1963-10-03 | B180: 2017-05-02 | C180: Tuesday | D180: 09:00 - 10:00 | E180: 2017-05-02T09:04:37.560 | F180: 2017-05-02T09:07:41.613 | G180: 3 | I180: Blue Cross\Blue Shield
A181: 1967-06-27 | B181: 2017-05-02 | C181: Tuesday | D181: 09:00 - 10:00 | E181: 2017-05-02T09:10:53.877 | F181: 2017-05-02T09:20:05.143 | G181: 10 | H181: 9:17 AM: REGGED 9:11 AM: REGGING | I181: Fallon Community Health Plan
A182: 1965-06-28 | B182: 2017-05-02 | C182: Tuesday | D182: 09:00 - 10:00 | E182: 2017-05-02T09:20:15.740 | F182: 2017-05-02T09:26:41.270 | G182: 6 | H182: 9:21 AM: regging | I182: Harvard Pilgrim
A183: 2016-01-02 | B183: 2017-05-02 | C183: Tuesday | D183: 09:00 - 10:00 | E183: 2017-05-02T09:22:48.277 | F183: 2017-05-02T09:34:33.800 | G183: 12 | H183: 9:29 AM: REGGED 9:24 AM: REGGIBNG | I183: Fallon Community Health Plan
A184: 1932-06-23 | B184: 2017-05-02 | C184: Tuesday | D184: 09:00 - 10:00 | E184: 2017-05-02T09:26:09.983 | F184: 2017-05-02T09:50:57.707 | G184: 24 | H184: 9:34 AM: REGGED 9:29 AM: REGGING 9:27 AM: ver | I184: Tufts
A185: 2006-09-24 | B185: 2017-05-02 | C185: Tuesday | D185: 09:00 - 10:00 | E185: 2017-05-02T09:26:57.910 | F185: 2017-05-02T10:03:04.550 | G185: 37 | H185: 9:48 AM: on wall 9:35 AM: REGGING 9:32 AM: ?new patient, mh standard, umass pcp | I185: Medicaid\Mass Health
A186: 1982-05-10 | B186: 2017-05-02 | C186: Tuesday | D186: 09:00 - 10:00 | E186: 2017-05-02T09:30:43.053 | F186: 2017-05-02T10:04:46.690 | G186: 34 | H186: 9:52 AM: ON WALL 9:49 AM: regging | I186: Blue Cross\Blue Shield
A187: 1956-06-14 | B187: 2017-05-02 | C187: Tuesday | D187: 09:00 - 10:00 | E187: 2017-05-02T09:38:21.403 | F187: 2017-05-02T10:12:55.753 | G187: 34 | H187: 10:00 AM: on wall 9:52 AM: REGGING | I187: Other
A188: 2005-04-18 | B188: 2017-05-02 | C188: Tuesday | D188: 09:00 - 10:00 | E188: 2017-05-02T09:46:12.960 | F188: 2017-05-02T10:20:20.067 | G188: 34 | H188: 10:10 AM: mom is going t o be seen wituh pt | I188: Other
A189: 1987-12-23 | B189: 2017-05-02 | C189: Tuesday | D189: 09:00 - 10:00 | E189: 2017-05-02T09:52:41.903 | F189: 2017-05-02T10:28:50.473 | G189: 36 | H189: 10:12 AM: REGGING | I189: Harvard Pilgrim
A190: 1963-04-26 | B190: 2017-05-02 | C190: Tuesday | D190: 09:00 - 10:00 | E190: 2017-05-02T09:56:49.763 | F190: 2017-05-02T10:48:41.847 | G190: 52 | H190: 10:46 AM: REGGED 10:20 AM: 10:20 pt called no answer | I190: Blue Cross\Blue Shield
A191: 2000-09-07 | B191: 2017-05-02 | C191: Tuesday | D191: 10:00 - 11:00 | E191: 2017-05-02T10:05:23.300 | F191: 2017-05-02T10:31:07.723 | G191: 26 | H191: 10:23 AM: regged | I191: Fallon Community Health Plan
A192: 1943-05-23 | B192: 2017-05-02 | C192: Tuesday | D192: 10:00 - 11:00 | E192: 2017-05-02T10:09:04.923 | F192: 2017-05-02T10:40:10.237 | G192: 31 | H192: 10:29 AM: REGGED | I192: Tufts
A193: 1992-09-08 | B193: 2017-05-02 | C193: Tuesday | D193: 10:00 - 11:00 | E193: 2017-05-02T10:13:02.497 | F193: 2017-05-02T10:18:16.753 | G193: 5 | H193: 10:18 AM: REGGED | I193: Fallon Community Health Plan
A194: 1988-04-22 | B194: 2017-05-02 | C194: Tuesday | D194: 10:00 - 11:00 | E194: 2017-05-02T10:34:47.877 | F194: 2017-05-02T10:58:50.707 | G194: 24 | H194: 10:56 AM: REGGED | I194: Other
A195: 1937-10-25 | B195: 2017-05-02 | C195: Tuesday | D195: 10:00 - 11:00 | E195: 2017-05-02T10:50:34.700 | F195: 2017-05-02T11:08:26.363 | G195: 18 | I195: Fallon Community Health Plan
A196: 1968-07-20 | B196: 2017-05-02 | C196: Tuesday | D196: 10:00 - 11:00 | E196: 2017-05-02T10:50:56.317 | F196: 2017-05-02T11:16:19.473 | G196: 26 | H196: 11:02 AM: mh careplus tufts-network health | I196: Medicaid\Mass Health
A197: 1941-12-24 | B197: 2017-05-02 | C197: Tuesday | D197: 10:00 - 11:00 | E197: 2017-05-02T10:51:52.430 | F197: 2017-05-02T11:16:20.503 | G197: 25 | H197: 11:01 AM: Pt okay to wait. POX 96%, P-76 ongoing cough, NO acute distress, denies any L. sided CP | I197: Other
A198: 2016-06-13 | B198: 2017-05-02 | C198: Tuesday | D198: 10:00 - 11:00 | E198: 2017-05-02T10:59:41.177 | F198: 2017-05-02T11:19:57.567 | G198: 20 | H198: 11:13 AM: REGGED 11:07 AM: ver | I198: Medicaid\Mass Health
A199: 1956-03-16 | B199: 2017-05-02 | C199: Tuesday | D199: 11:00 - 12:00 | E199: 2017-05-02T11:00:57.933 | F199: 2017-05-02T11:08:55.270 | G199: 8 | H199: 11:07 AM: ver | I199: Tufts
A200: 1976-06-27 | B200: 2017-05-02 | C200: Tuesday | D200: 11:00 - 12:00 | E200: 2017-05-02T11:04:17.270 | F200: 2017-05-02T11:19:26.783 | G200: 15 | H200: 11:16 AM: REGGED 11:10 AM: ver | I200: Fallon Community Health Plan
... 4376 more rows

Sheet June 2017
A1: DOB | B1: Visit Date | C1: Day | D1: Block | E1: Time Arrived | F1: Time Roomed | G1: Mins. Arrived to Roomed | H1: Notes | I1: Insurance
A2: 1962-10-15 | B2: 2017-06-01 | C2: Thursday | D2: 08:00 - 09:00 | E2: 2017-06-01T08:47:08.150 | F2: 2017-06-01T08:53:37.787 | G2: 6 | I2: Other
A3: 1955-03-30 | B3: 2017-06-01 | C3: Thursday | D3: 08:00 - 09:00 | E3: 2017-06-01T08:47:33.077 | F3: 2017-06-01T08:54:27.113 | G3: 7 | I3: United Health Care
A4: 1993-01-18 | B4: 2017-06-01 | C4: Thursday | D4: 08:00 - 09:00 | E4: 2017-06-01T08:48:51.893 | F4: 2017-06-01T08:57:49.330 | G4: 9 | I4: Blue Cross\Blue Shield
A5: 1970-08-13 | B5: 2017-06-01 | C5: Thursday | D5: 08:00 - 09:00 | E5: 2017-06-01T08:48:55.883 | F5: 2017-06-01T09:11:44.233 | G5: 23 | H5: 9:06 AM: on wall 9:03 AM: regging | I5: Medicaid\Mass Health
A6: 1960-09-25 | B6: 2017-06-01 | C6: Thursday | D6: 08:00 - 09:00 | E6: 2017-06-01T08:49:42.687 | F6: 2017-06-01T09:04:16.970 | G6: 15 | I6: Medicare
A7: 1951-03-14 | B7: 2017-06-01 | C7: Thursday | D7: 08:00 - 09:00 | E7: 2017-06-01T08:51:31.330 | F7: 2017-06-01T09:05:16.627 | G7: 14 | I7: Other
A8: 1984-01-12 | B8: 2017-06-01 | C8: Thursday | D8: 08:00 - 09:00 | E8: 2017-06-01T08:52:00.803 | F8: 2017-06-01T09:12:45.653 | G8: 20 | I8: Fallon Community Health Plan
A9: 1975-06-11 | B9: 2017-06-01 | C9: Thursday | D9: 08:00 - 09:00 | E9: 2017-06-01T08:52:26.603 | F9: 2017-06-01T09:12:51.623 | G9: 20 | I9: Fallon Community Health Plan
A10: 1970-05-30 | B10: 2017-06-01 | C10: Thursday | D10: 08:00 - 09:00 | E10: 2017-06-01T08:53:32.147 | F10: 2017-06-01T09:23:50.930 | G10: 30 | H10: 9:20 AM: on wall 9:15 AM: regging 9:12 AM: regged | I10: Fallon Community Health Plan
A11: 1978-03-24 | B11: 2017-06-01 | C11: Thursday | D11: 08:00 - 09:00 | E11: 2017-06-01T08:56:17.633 | F11: 2017-06-01T09:26:45.960 | G11: 30 | H11: 9:25 AM: on wall 9:21 AM: regging | I11: Harvard Pilgrim
A12: 1966-03-11 | B12: 2017-06-01 | C12: Thursday | D12: 08:00 - 09:00 | E12: 2017-06-01T08:56:20.650 | F12: 2017-06-01T10:06:40.087 | G12: 70 | H12: 9:33 AM: on wall 9:27 AM: regging | I12: Blue Cross\Blue Shield
A13: 1972-10-25 | B13: 2017-06-01 | C13: Thursday | D13: 09:00 - 10:00 | E13: 2017-06-01T09:02:55.733 | F13: 2017-06-01T09:52:02.450 | G13: 50 | H13: 9:45 AM: regged on wall 9:42 AM: regging | I13: Fallon Community Health Plan
A14: 1998-02-14 | B14: 2017-06-01 | C14: Thursday | D14: 09:00 - 10:00 | E14: 2017-06-01T09:04:10.203 | F14: 2017-06-01T10:49:33.617 | G14: 105 | H14: 10:49 AM: called no answer 10:27 AM: called no ans 10:07 AM: CALLED NOT IN LOBBY 9:49 AM: regged on wall 9:41 AM: ins ver | I14: Blue Cross\Blue Shield
A15: 1991-03-27 | B15: 2017-06-01 | C15: Thursday | D15: 09:00 - 10:00 | E15: 2017-06-01T09:04:58.670 | F15: 2017-06-01T09:59:57.447 | G15: 55 | H15: 9:56 AM: regged on wall 9:53 AM: regging | I15: Aetna
A16: 1952-11-01 | B16: 2017-06-01 | C16: Thursday | D16: 09:00 - 10:00 | E16: 2017-06-01T09:05:32.007 | F16: 2017-06-01T10:01:26.650 | G16: 56 | H16: 10:01 AM: patient decided to leave 9:57 AM: ins ver 9:14 AM: 98%, speaking in full sentences, ok to waitAO | I16: Fallon Community Health Plan
A17: 1985-08-19 | B17: 2017-06-01 | C17: Thursday | D17: 09:00 - 10:00 | E17: 2017-06-01T09:05:55.180 | F17: 2017-06-01T10:07:04.413 | G17: 62 | H17: 10:05 AM: regged on wall 9:58 AM: new ins | I17: Blue Cross\Blue Shield
A18: 2013-05-17 | B18: 2017-06-01 | C18: Thursday | D18: 09:00 - 10:00 | E18: 2017-06-01T09:07:25.263 | F18: 2017-06-01T11:06:44.860 | G18: 119 | H18: 11:06 AM: called no ans 1106a 10:53 AM: called to reg, no answer 10:08 AM: called to reg, no answer 10:07 AM: regging 9:58 AM: new pt | I18: Blue Cross\Blue Shield
A19: 1993-02-02 | B19: 2017-06-01 | C19: Thursday | D19: 09:00 - 10:00 | E19: 2017-06-01T09:08:43.437 | F19: 2017-06-01T10:07:46.600 | G19: 59 | H19: 9:58 AM: ins ver | I19: Blue Cross\Blue Shield
A20: 1983-10-04 | B20: 2017-06-01 | C20: Thursday | D20: 09:00 - 10:00 | E20: 2017-06-01T09:12:04.010 | F20: 2017-06-01T10:28:26.780 | G20: 76 | H20: 10:17 AM: regged on wall 10:12 AM: regging 9:22 AM: 99%, speaking in full sentences, ok to wait-AO | I20: Blue Cross\Blue Shield
A21: 1952-11-29 | B21: 2017-06-01 | C21: Thursday | D21: 09:00 - 10:00 | E21: 2017-06-01T09:29:44.510 | F21: 2017-06-01T10:32:48.607 | G21: 63 | H21: 10:24 AM: regged on wall | I21: Medicaid\Mass Health
A22: 1966-07-01 | B22: 2017-06-01 | C22: Thursday | D22: 09:00 - 10:00 | E22: 2017-06-01T09:32:40.113 | F22: 2017-06-01T09:42:02.783 | G22: 10 | H22: 9:39 AM: regged | I22: Fallon Community Health Plan
A23: 1992-10-30 | B23: 2017-06-01 | C23: Thursday | D23: 09:00 - 10:00 | E23: 2017-06-01T09:56:37.607 | F23: 2017-06-01T10:40:28.213 | G23: 44 | H23: 10:27 AM: regged on wall | I23: Fallon Community Health Plan
A24: 1987-12-03 | B24: 2017-06-01 | C24: Thursday | D24: 10:00 - 11:00 | E24: 2017-06-01T10:00:08.510 | F24: 2017-06-01T10:19:43.723 | G24: 19 | H24: 10:11 AM: regged on wall 10:07 AM: PPD plant, please reg | I24: United Health Care
A25: 2008-12-31 | B25: 2017-06-01 | C25: Thursday | D25: 10:00 - 11:00 | E25: 2017-06-01T10:17:49.630 | F25: 2017-06-01T10:41:15.997 | G25: 24 | H25: 10:30 AM: regged on wall | I25: Fallon Community Health Plan
A26: 1963-02-09 | B26: 2017-06-01 | C26: Thursday | D26: 10:00 - 11:00 | E26: 2017-06-01T10:17:57.570 | F26: 2017-06-01T10:50:51.023 | G26: 33 | H26: 10:35 AM: regged on wall | I26: Fallon Community Health Plan
A27: 1948-05-23 | B27: 2017-06-01 | C27: Thursday | D27: 10:00 - 11:00 | E27: 2017-06-01T10:25:21.063 | F27: 2017-06-01T10:55:28.647 | G27: 30 | H27: 10:38 AM: regged on wall 10:38 AM: 97%, speaking in full sentances, ok to wait. AO | I27: Fallon Community Health Plan
A28: 1988-04-16 | B28: 2017-06-01 | C28: Thursday | D28: 10:00 - 11:00 | E28: 2017-06-01T10:32:39.540 | F28: 2017-06-01T11:05:37.313 | G28: 33 | H28: 10:43 AM: regged on wall | I28: United Health Care
A29: 1970-01-18 | B29: 2017-06-01 | C29: Thursday | D29: 10:00 - 11:00 | E29: 2017-06-01T10:37:09.620 | F29: 2017-06-01T11:09:09.890 | G29: 32 | H29: 10:59 AM: regged on wall | I29: Other
A30: 1994-04-08 | B30: 2017-06-01 | C30: Thursday | D30: 10:00 - 11:00 | E30: 2017-06-01T10:44:27.937 | F30: 2017-06-01T10:57:16.583 | G30: 13 | H30: 10:52 AM: regged on wall | I30: Other
A31: 1986-01-30 | B31: 2017-06-01 | C31: Thursday | D31: 11:00 - 12:00 | E31: 2017-06-01T11:00:11.420 | F31: 2017-06-01T11:13:13.200 | G31: 13 | H31: 11:08 AM: regged on wall 11:07 AM: regging | I31: Medicaid\Mass Health
A32: 1985-03-30 | B32: 2017-06-01 | C32: Thursday | D32: 11:00 - 12:00 | E32: 2017-06-01T11:03:57.073 | F32: 2017-06-01T11:28:08.197 | G32: 25 | H32: 11:24 AM: regged on wall 11:19 AM: regging | I32: Other
A33: 1973-10-20 | B33: 2017-06-01 | C33: Thursday | D33: 11:00 - 12:00 | E33: 2017-06-01T11:09:19.517 | F33: 2017-06-01T11:30:45.837 | G33: 21 | H33: 11:26 AM: regged on wall 11:25 AM: regging | I33: Fallon Community Health Plan
A34: 1975-05-17 | B34: 2017-06-01 | C34: Thursday | D34: 11:00 - 12:00 | E34: 2017-06-01T11:10:33.757 | F34: 2017-06-01T11:40:59.627 | G34: 30 | H34: 11:38 AM: regged on wall 11:27 AM: tufts network health 11:27 AM: unable to be seen | I34: Tufts
A35: 1971-09-27 | B35: 2017-06-01 | C35: Thursday | D35: 11:00 - 12:00 | E35: 2017-06-01T11:27:53.300 | F35: 2017-06-01T11:32:59.710 | G35: 5 | I35: Blue Cross\Blue Shield
A36: 1948-03-19 | B36: 2017-06-01 | C36: Thursday | D36: 11:00 - 12:00 | E36: 2017-06-01T11:34:34.743 | F36: 2017-06-01T11:46:02.267 | G36: 12 | H36: 11:44 AM: regged on wall 11:41 AM: regging | I36: Blue Cross\Blue Shield
A37: 1975-11-26 | B37: 2017-06-01 | C37: Thursday | D37: 12:00 - 13:00 | E37: 2017-06-01T12:02:10.333 | F37: 2017-06-01T12:07:53.650 | G37: 5 | H37: 12:05 PM: regged on wall | I37: Fallon Community Health Plan
A38: 2016-09-08 | B38: 2017-06-01 | C38: Thursday | D38: 12:00 - 13:00 | E38: 2017-06-01T12:03:25.463 | F38: 2017-06-01T12:15:00.520 | G38: 12 | H38: 12:08 PM: regged on wal | I38: Fallon Community Health Plan
A39: 1990-11-28 | B39: 2017-06-01 | C39: Thursday | D39: 12:00 - 13:00 | E39: 2017-06-01T12:04:07.623 | F39: 2017-06-01T12:19:50.927 | G39: 15 | H39: 12:10 PM: regged on wall | I39: Blue Cross\Blue Shield
A40: 1959-04-18 | B40: 2017-06-01 | C40: Thursday | D40: 12:00 - 13:00 | E40: 2017-06-01T12:21:37.387 | F40: 2017-06-01T12:26:33.377 | G40: 5 | I40: Harvard Pilgrim
A41: 1980-12-23 | B41: 2017-06-01 | C41: Thursday | D41: 12:00 - 13:00 | E41: 2017-06-01T12:22:51.177 | F41: 2017-06-01T12:27:53.750 | G41: 5 | I41: Medicaid\Mass Health
A42: 1967-03-21 | B42: 2017-06-01 | C42: Thursday | D42: 12:00 - 13:00 | E42: 2017-06-01T12:23:40.097 | F42: 2017-06-01T12:34:37.873 | G42: 11 | H42: 12:31 PM: on wall 12:30 PM: regging | I42: Fallon Community Health Plan
A43: 1982-05-17 | B43: 2017-06-01 | C43: Thursday | D43: 12:00 - 13:00 | E43: 2017-06-01T12:26:45.920 | F43: 2017-06-01T12:47:14.510 | G43: 21 | H43: 12:36 PM: regged, on wall | I43: Medicaid\Mass Health
A44: 1949-03-11 | B44: 2017-06-01 | C44: Thursday | D44: 12:00 - 13:00 | E44: 2017-06-01T12:34:21.807 | F44: 2017-06-01T12:46:42.680 | G44: 12 | H44: 12:40 PM: regged, on wall 12:38 PM: in bubbler | I44: Medicaid\Mass Health
A45: 1973-02-01 | B45: 2017-06-01 | C45: Thursday | D45: 12:00 - 13:00 | E45: 2017-06-01T12:38:13.157 | F45: 2017-06-01T12:57:00.583 | G45: 19 | H45: 12:48 PM: regged, on wall | I45: Aetna
A46: 1992-10-31 | B46: 2017-06-01 | C46: Thursday | D46: 12:00 - 13:00 | E46: 2017-06-01T12:48:40.420 | F46: 2017-06-01T13:24:43.557 | G46: 36 | H46: 12:56 PM: ON WALL | I46: Harvard Pilgrim
A47: 1967-12-30 | B47: 2017-06-01 | C47: Thursday | D47: 12:00 - 13:00 | E47: 2017-06-01T12:50:04.997 | F47: 2017-06-01T13:18:40.577 | G47: 28 | H47: 12:59 PM: ON WALL 12:57 PM: REGING | I47: Fallon Community Health Plan
A48: 1930-10-08 | B48: 2017-06-01 | C48: Thursday | D48: 13:00 - 14:00 | E48: 2017-06-01T13:00:00.790 | F48: 2017-06-01T13:24:48.870 | G48: 24 | H48: 1:03 PM: ON WALL 1:01 PM: REGGING | I48: Medicare
A49: 1978-01-01 | B49: 2017-06-01 | C49: Thursday | D49: 13:00 - 14:00 | E49: 2017-06-01T13:02:02.553 | F49: 2017-06-01T13:12:31.297 | G49: 10 | H49: 1:10 PM: ON WALL 1:04 PM: REGGING | I49: Medicaid\Mass Health
A50: 1990-01-29 | B50: 2017-06-01 | C50: Thursday | D50: 13:00 - 14:00 | E50: 2017-06-01T13:11:43.163 | F50: 2017-06-01T13:56:04.640 | G50: 45 | H50: 1:23 PM: ON WALL 1:18 PM: REGGING
A51: 1966-10-12 | B51: 2017-06-01 | C51: Thursday | D51: 13:00 - 14:00 | E51: 2017-06-01T13:18:03.067 | F51: 2017-06-01T14:03:50.043 | G51: 45 | H51: 1:34 PM: ON WALL 1:24 PM: REGGING | I51: Fallon Community Health Plan
A52: 1969-10-26 | B52: 2017-06-01 | C52: Thursday | D52: 13:00 - 14:00 | E52: 2017-06-01T13:41:02.030 | F52: 2017-06-01T13:59:23.903 | G52: 18 | H52: 1:53 PM: ON WALL 1:48 PM: CALLING FOR REFERRAL 1:48 PM: REGGING | I52: Medicaid\Mass Health
A53: 1972-12-03 | B53: 2017-06-01 | C53: Thursday | D53: 13:00 - 14:00 | E53: 2017-06-01T13:43:14.720 | F53: 2017-06-01T14:20:28.537 | G53: 37 | H53: 2:01 PM: ON WALL 1:59 PM: REGGING | I53: Fallon Community Health Plan
A54: 1963-05-30 | B54: 2017-06-01 | C54: Thursday | D54: 13:00 - 14:00 | E54: 2017-06-01T13:46:30.167 | F54: 2017-06-01T13:58:31.233 | G54: 12 | H54: 1:58 PM: REGGED 1:53 PM: CHECKING ON PT | I54: Fallon Community Health Plan
A55: 1937-04-17 | B55: 2017-06-01 | C55: Thursday | D55: 13:00 - 14:00 | E55: 2017-06-01T13:58:11.917 | F55: 2017-06-01T14:25:41.267 | G55: 27 | H55: 2:04 PM: ON WALL 2:01 PM: REGGING | I55: Blue Cross\Blue Shield
A56: 1987-02-11 | B56: 2017-06-01 | C56: Thursday | D56: 14:00 - 15:00 | E56: 2017-06-01T14:00:27.200 | F56: 2017-06-01T14:47:15.087 | G56: 47 | H56: 2:08 PM: ON WALL 2:05 PM: REGGING | I56: Fallon Community Health Plan
A57: 1976-07-05 | B57: 2017-06-01 | C57: Thursday | D57: 14:00 - 15:00 | E57: 2017-06-01T14:02:12.763 | F57: 2017-06-01T15:15:15 | G57: 73 | H57: 2:11 PM: ON WALL 2:10 PM: REGGING | I57: Fallon Community Health Plan
A58: 1954-07-30 | B58: 2017-06-01 | C58: Thursday | D58: 14:00 - 15:00 | E58: 2017-06-01T14:14:57.720 | F58: 2017-06-01T15:25:30.713 | G58: 71 | H58: 2:20 PM: ON WALL 2:15 PM: REGGING | I58: Fallon Community Health Plan
A59: 1980-01-14 | B59: 2017-06-01 | C59: Thursday | D59: 14:00 - 15:00 | E59: 2017-06-01T14:21:31.770 | F59: 2017-06-01T15:25:44.043 | G59: 64 | H59: 2:26 PM: ON WALL 2:26 PM: No LOC. Pt hit head on ceiling beam last night. LMC 2:24 PM: checking | I59: Tufts
A60: 1985-08-17 | B60: 2017-06-01 | C60: Thursday | D60: 14:00 - 15:00 | E60: 2017-06-01T14:41:47.177 | F60: 2017-06-01T15:36:50.833 | G60: 55 | H60: 2:52 PM: arrived 2:50 PM: reg | I60: Fallon Community Health Plan
A61: 1953-03-25 | B61: 2017-06-01 | C61: Thursday | D61: 14:00 - 15:00 | E61: 2017-06-01T14:44:05.183 | F61: 2017-06-01T14:49:24.930 | G61: 5 | H61: 2:49 PM: duplicate | I61: Fallon Community Health Plan
A62: 1953-03-25 | B62: 2017-06-01 | C62: Thursday | D62: 14:00 - 15:00 | E62: 2017-06-01T14:47:52.077 | F62: 2017-06-01T15:44:48.707 | G62: 57 | H62: 2:56 PM: arrived 2:54 PM: reg | I62: Fallon Community Health Plan
A63: 1959-12-30 | B63: 2017-06-01 | C63: Thursday | D63: 14:00 - 15:00 | E63: 2017-06-01T14:50:02.650 | F63: 2017-06-01T16:02:51.640 | G63: 72 | H63: 3:18 PM: ON WALL 3:11 PM: REGGING | I63: Fallon Community Health Plan
A64: 1992-08-19 | B64: 2017-06-01 | C64: Thursday | D64: 14:00 - 15:00 | E64: 2017-06-01T14:57:42.050 | F64: 2017-06-01T15:09:12.830 | G64: 12 | H64: 3:00 PM: arrived | I64: Other
A65: 2005-02-03 | B65: 2017-06-01 | C65: Thursday | D65: 15:00 - 16:00 | E65: 2017-06-01T15:10:04.360 | F65: 2017-06-01T15:12:24.610 | G65: 2 | I65: Fallon Community Health Plan
A66: 1987-09-14 | B66: 2017-06-01 | C66: Thursday | D66: 15:00 - 16:00 | E66: 2017-06-01T15:11:38.480 | F66: 2017-06-01T15:44:56.973 | G66: 33 | H66: 3:33 PM: REGGING 3:33 PM: CAME BACK WITH PASSPORT 3:25 PM: NO ID - SENT TO ER | I66: Self Pay\No Insurance
A67: 2012-08-16 | B67: 2017-06-01 | C67: Thursday | D67: 15:00 - 16:00 | E67: 2017-06-01T15:32:11.233 | F67: 2017-06-01T15:37:23.367 | G67: 5 | I67: Fallon Community Health Plan
A68: 1934-01-05 | B68: 2017-06-01 | C68: Thursday | D68: 15:00 - 16:00 | E68: 2017-06-01T15:33:58.910 | F68: 2017-06-01T16:08:04.600 | G68: 35 | H68: 3:50 PM: ON WALL 3:46 PM: REGGING | I68: Tufts
A69: 2003-11-26 | B69: 2017-06-01 | C69: Thursday | D69: 15:00 - 16:00 | E69: 2017-06-01T15:40:41.900 | F69: 2017-06-01T15:55:12 | G69: 15 | I69: Fallon Community Health Plan
A70: 1963-05-29 | B70: 2017-06-01 | C70: Thursday | D70: 16:00 - 17:00 | E70: 2017-06-01T16:17:41.800 | F70: 2017-06-01T16:33:24.967 | G70: 16 | H70: 4:31 PM: ON WALL 4:31 PM: REGGING | I70: Blue Cross\Blue Shield
A71: 2016-10-27 | B71: 2017-06-01 | C71: Thursday | D71: 16:00 - 17:00 | E71: 2017-06-01T16:21:28.517 | F71: 2017-06-01T16:25:31.953 | G71: 4 | I71: Fallon Community Health Plan
A72: 1965-12-10 | B72: 2017-06-01 | C72: Thursday | D72: 16:00 - 17:00 | E72: 2017-06-01T16:31:43.233 | F72: 2017-06-01T16:46:19.977 | G72: 15 | H72: 4:44 PM: REGGED ON WALL | I72: Blue Cross\Blue Shield
A73: 1985-04-13 | B73: 2017-06-01 | C73: Thursday | D73: 16:00 - 17:00 | E73: 2017-06-01T16:38:00.497 | F73: 2017-06-01T16:50:39.227 | G73: 12 | H73: 4:50 PM: REGGED ON WALL | I73: Fallon Community Health Plan
A74: 1945-07-03 | B74: 2017-06-01 | C74: Thursday | D74: 16:00 - 17:00 | E74: 2017-06-01T16:50:56.760 | F74: 2017-06-01T16:56:30.897 | G74: 6 | H74: 4:55 PM: REGGED ON WALL | I74: Tufts
A75: 1946-06-09 | B75: 2017-06-01 | C75: Thursday | D75: 16:00 - 17:00 | E75: 2017-06-01T16:53:11.683 | F75: 2017-06-01T17:06:01.643 | G75: 13 | H75: 5:02 PM: regged on wall 5:00 PM: REGGING | I75: Blue Cross\Blue Shield
A76: 1963-01-10 | B76: 2017-06-01 | C76: Thursday | D76: 16:00 - 17:00 | E76: 2017-06-01T16:59:21.917 | F76: 2017-06-01T17:15:21.653 | G76: 16 | H76: 5:06 PM: regged on wall | I76: Medicaid\Mass Health
A77: 1988-11-06 | B77: 2017-06-01 | C77: Thursday | D77: 17:00 - 18:00 | E77: 2017-06-01T17:02:45.977 | F77: 2017-06-01T17:26:57.353 | G77: 24 | H77: 5:21 PM: regged on wall | I77: Blue Cross\Blue Shield
A78: 1985-02-14 | B78: 2017-06-01 | C78: Thursday | D78: 17:00 - 18:00 | E78: 2017-06-01T17:07:29.133 | F78: 2017-06-01T17:27:50.493 | G78: 20 | H78: 5:26 PM: REGGED ON WALL | I78: Medicaid\Mass Health
A79: 1952-04-18 | B79: 2017-06-01 | C79: Thursday | D79: 17:00 - 18:00 | E79: 2017-06-01T17:11:53.320 | F79: 2017-06-01T17:37:37.287 | G79: 26 | H79: 5:33 PM: REGGED ON WALL | I79: Tufts
A80: 1940-12-01 | B80: 2017-06-01 | C80: Thursday | D80: 17:00 - 18:00 | E80: 2017-06-01T17:13:20.553 | F80: 2017-06-01T17:38:50.597 | G80: 25 | H80: 5:38 PM: REGGED ON WALL 5:16 PM: No x ray, changed to walk in, r/o DVT
A81: 1999-03-18 | B81: 2017-06-01 | C81: Thursday | D81: 17:00 - 18:00 | E81: 2017-06-01T17:20:33.653 | F81: 2017-06-01T17:24:22.510 | G81: 4 | H81: 5:21 PM: Has Pedi PCP- can you see in pedi? | I81: Tufts
A82: 1955-10-07 | B82: 2017-06-01 | C82: Thursday | D82: 17:00 - 18:00 | E82: 2017-06-01T17:27:03.130 | F82: 2017-06-01T18:07:44.807 | G82: 40 | H82: 5:57 PM: REGGED ON WALL | I82: Medicare
A83: 2011-09-03 | B83: 2017-06-01 | C83: Thursday | D83: 17:00 - 18:00 | E83: 2017-06-01T17:27:38.553 | F83: 2017-06-01T17:36:42.303 | G83: 9 | I83: Harvard Pilgrim
A84: 1983-09-19 | B84: 2017-06-01 | C84: Thursday | D84: 17:00 - 18:00 | E84: 2017-06-01T17:30:17.540 | F84: 2017-06-01T18:20:40.520 | G84: 50 | H84: 6:20 PM: 6:20 PM: CALLED NO ANSWER 5:59 PM: CALLED NO ANSWER 5:40 PM: CALLED NO ANSWER | I84: Aetna
A85: 2010-05-05 | B85: 2017-06-01 | C85: Thursday | D85: 17:00 - 18:00 | E85: 2017-06-01T17:30:24.370 | F85: 2017-06-01T17:43:17.597 | G85: 13 | I85: Medicaid\Mass Health
A86: 1982-09-10 | B86: 2017-06-01 | C86: Thursday | D86: 17:00 - 18:00 | E86: 2017-06-01T17:37:46.680 | F86: 2017-06-01T17:50:34.157 | G86: 13 | H86: 5:45 PM: REGGED ON WALL 5:43 PM: abd pain and took 9 aleve in 24 hours - ok | I86: Blue Cross\Blue Shield
A87: 1984-07-15 | B87: 2017-06-01 | C87: Thursday | D87: 17:00 - 18:00 | E87: 2017-06-01T17:40:06.173 | F87: 2017-06-01T18:14:06.037 | G87: 34 | H87: 6:08 PM: REGGED ON WALL | I87: Aetna
A88: 2006-04-13 | B88: 2017-06-01 | C88: Thursday | D88: 17:00 - 18:00 | E88: 2017-06-01T17:44:19.027 | F88: 2017-06-01T17:49:16.907 | G88: 5 | I88: Fallon Community Health Plan
A89: 1979-07-16 | B89: 2017-06-01 | C89: Thursday | D89: 17:00 - 18:00 | E89: 2017-06-01T17:46:53.033 | F89: 2017-06-01T18:18:04.007 | G89: 32 | H89: 6:13 PM: REGGED ON WALL | I89: Fallon Community Health Plan
A90: 1976-06-22 | B90: 2017-06-01 | C90: Thursday | D90: 17:00 - 18:00 | E90: 2017-06-01T17:49:50.257 | F90: 2017-06-01T18:23:57.753 | G90: 34 | H90: 6:22 PM: REGGED ON WALL | I90: Medicaid\Mass Health
A91: 1997-02-28 | B91: 2017-06-01 | C91: Thursday | D91: 17:00 - 18:00 | E91: 2017-06-01T17:51:55.643 | F91: 2017-06-01T18:17:36.897 | G91: 26 | H91: 6:12 PM: can see in pedi 5:56 PM: 98% ok to wait-AO | I91: Blue Cross\Blue Shield
A92: 1953-03-12 | B92: 2017-06-01 | C92: Thursday | D92: 18:00 - 19:00 | E92: 2017-06-01T18:00:22.227 | F92: 2017-06-01T18:31:15.470 | G92: 31 | H92: 6:27 PM: REGGED ON WALL | I92: Fallon Community Health Plan
A93: 1995-07-23 | B93: 2017-06-01 | C93: Thursday | D93: 18:00 - 19:00 | E93: 2017-06-01T18:03:37.670 | F93: 2017-06-01T18:45:12.463 | G93: 42 | H93: 6:31 PM: REGGED ON WALL | I93: Fallon Community Health Plan
A94: 2013-11-10 | B94: 2017-06-01 | C94: Thursday | D94: 18:00 - 19:00 | E94: 2017-06-01T18:25:45.890 | F94: 2017-06-01T18:27:51.940 | G94: 2 | I94: Blue Cross\Blue Shield
A95: 1973-08-13 | B95: 2017-06-01 | C95: Thursday | D95: 18:00 - 19:00 | E95: 2017-06-01T18:27:23.193 | F95: 2017-06-01T18:52:48.303 | G95: 25 | H95: 6:40 PM: REGGED ON WALL 6:33 PM: CALLED NO ANSWER | I95: Fallon Community Health Plan
A96: 2011-08-03 | B96: 2017-06-01 | C96: Thursday | D96: 18:00 - 19:00 | E96: 2017-06-01T18:28:17.510 | F96: 2017-06-01T18:37:39.090 | G96: 9 | I96: Medicaid\Mass Health
A97: 2011-05-16 | B97: 2017-06-01 | C97: Thursday | D97: 18:00 - 19:00 | E97: 2017-06-01T18:36:18.580 | F97: 2017-06-01T18:47:50.133 | G97: 11 | I97: Medicaid\Mass Health
A98: 2015-08-26 | B98: 2017-06-01 | C98: Thursday | D98: 18:00 - 19:00 | E98: 2017-06-01T18:46:33.010 | F98: 2017-06-01T18:59:31.647 | G98: 13 | I98: Medicaid\Mass Health
A99: 1962-01-20 | B99: 2017-06-01 | C99: Thursday | D99: 18:00 - 19:00 | E99: 2017-06-01T18:49:29.450 | F99: 2017-06-01T18:58:26.397 | G99: 9 | H99: 6:56 PM: REGGED ON WALL | I99: Medicaid\Mass Health
A100: 2014-03-29 | B100: 2017-06-01 | C100: Thursday | D100: 18:00 - 19:00 | E100: 2017-06-01T18:50:37.433 | F100: 2017-06-01T19:00:13.943 | G100: 10 | I100: Harvard Pilgrim
A101: 1998-03-10 | B101: 2017-06-01 | C101: Thursday | D101: 18:00 - 19:00 | E101: 2017-06-01T18:53:17.770 | F101: 2017-06-01T19:16:30.187 | G101: 23 | H101: 7:04 PM: REGGED ON WALL | I101: Aetna
A102: 1974-08-19 | B102: 2017-06-01 | C102: Thursday | D102: 18:00 - 19:00 | E102: 2017-06-01T18:53:24.693 | F102: 2017-06-01T19:01:57.223 | G102: 8 | I102: Aetna
A103: 2016-08-18 | B103: 2017-06-01 | C103: Thursday | D103: 18:00 - 19:00 | E103: 2017-06-01T18:54:20.930 | F103: 2017-06-01T19:14:58.640 | G103: 20 | I103: Tufts
A104: 1987-12-26 | B104: 2017-06-01 | C104: Thursday | D104: 18:00 - 19:00 | E104: 2017-06-01T18:55:31.717 | F104: 2017-06-01T19:11:09.827 | G104: 16 | H104: 7:09 PM: REGGED ON WALL | I104: Harvard Pilgrim
A105: 1986-10-16 | B105: 2017-06-01 | C105: Thursday | D105: 18:00 - 19:00 | E105: 2017-06-01T18:55:36.610 | F105: 2017-06-01T19:32:30.447 | G105: 37 | H105: 7:19 PM: REGGED ON WALL | I105: Blue Cross\Blue Shield
A106: 2006-02-02 | B106: 2017-06-01 | C106: Thursday | D106: 18:00 - 19:00 | E106: 2017-06-01T18:58:30.527 | F106: 2017-06-01T19:15:07.640 | G106: 17 | I106: Other
A107: 1977-05-25 | B107: 2017-06-01 | C107: Thursday | D107: 19:00 - 20:00 | E107: 2017-06-01T19:03:59.583 | F107: 2017-06-01T19:40:42.677 | G107: 37 | H107: 7:24 PM: REGGED ON WALL | I107: Fallon Community Health Plan
A108: 1993-10-12 | B108: 2017-06-01 | C108: Thursday | D108: 19:00 - 20:00 | E108: 2017-06-01T19:04:06.797 | F108: 2017-06-01T19:19:18.857 | G108: 15 | H108: 7:14 PM: REGGED ON WALL 7:12 PM: cough and cold- 98% 108 18 speaking in full sentences | I108: Cigna
A109: 1990-10-28 | B109: 2017-06-01 | C109: Thursday | D109: 19:00 - 20:00 | E109: 2017-06-01T19:05:26.463 | F109: 2017-06-01T19:29:08.227 | G109: 24 | H109: 7:10 PM: 98 % CA 7:08 PM: mom in pedi rm 160 , not chest pain no sob cough | I109: Fallon Community Health Plan
A110: 2014-05-12 | B110: 2017-06-01 | C110: Thursday | D110: 19:00 - 20:00 | E110: 2017-06-01T19:05:41.807 | F110: 2017-06-01T19:28:28.557 | G110: 23 | I110: Blue Cross\Blue Shield
A111: 1951-01-09 | B111: 2017-06-01 | C111: Thursday | D111: 19:00 - 20:00 | E111: 2017-06-01T19:11:56.930 | F111: 2017-06-01T19:43:47.363 | G111: 32 | H111: 7:39 PM: REGGED ON WALL | I111: Cigna
A112: 1990-10-16 | B112: 2017-06-01 | C112: Thursday | D112: 19:00 - 20:00 | E112: 2017-06-01T19:13:26.040 | F112: 2017-06-01T20:10:24.197 | G112: 57 | H112: 7:52 PM: called no ans 7:41 PM: CALLED NO ANSWER | I112: Fallon Community Health Plan
A113: 2015-05-30 | B113: 2017-06-01 | C113: Thursday | D113: 19:00 - 20:00 | E113: 2017-06-01T19:16:50.517 | F113: 2017-06-01T19:36:23.413 | G113: 20 | I113: Blue Cross\Blue Shield
A114: 1974-11-13 | B114: 2017-06-01 | C114: Thursday | D114: 19:00 - 20:00 | E114: 2017-06-01T19:24:33.027 | F114: 2017-06-01T19:57:43.640 | G114: 33 | H114: 7:52 PM: REGGED ON WALL | I114: Medicaid\Mass Health
A115: 1990-12-11 | B115: 2017-06-01 | C115: Thursday | D115: 19:00 - 20:00 | E115: 2017-06-01T19:31:26.130 | F115: 2017-06-01T19:34:43.587 | G115: 3 | I115: Blue Cross\Blue Shield
A116: 2016-09-08 | B116: 2017-06-01 | C116: Thursday | D116: 19:00 - 20:00 | E116: 2017-06-01T19:32:48.830 | F116: 2017-06-01T19:46:58.470 | G116: 14 | I116: Fallon Community Health Plan
A117: 2007-09-23 | B117: 2017-06-01 | C117: Thursday | D117: 19:00 - 20:00 | E117: 2017-06-01T19:40:10.003 | F117: 2017-06-01T19:57:27.920 | G117: 17 | H117: 7:55 PM: ins ver | I117: Fallon Community Health Plan
A118: 1988-08-02 | B118: 2017-06-01 | C118: Thursday | D118: 19:00 - 20:00 | E118: 2017-06-01T19:42:22.067 | F118: 2017-06-01T20:10:30.587 | G118: 28 | H118: 8:08 PM: REGGED ON WALL 7:48 PM: Needs PPD plant | I118: Blue Cross\Blue Shield
A119: 1969-09-03 | B119: 2017-06-01 | C119: Thursday | D119: 19:00 - 20:00 | E119: 2017-06-01T19:42:30.327 | F119: 2017-06-01T19:54:44.123 | G119: 12 | I119: Cigna
A120: 1990-12-11 | B120: 2017-06-01 | C120: Thursday | D120: 19:00 - 20:00 | E120: 2017-06-01T19:47:29.053 | F120: 2017-06-01T20:26:35.597 | G120: 39 | H120: 8:11 PM: REGGED ON WALL 7:50 PM: PPD read, ok to book | I120: Blue Cross\Blue Shield
A121: 2002-01-05 | B121: 2017-06-01 | C121: Thursday | D121: 19:00 - 20:00 | E121: 2017-06-01T19:50:48.777 | F121: 2017-06-01T19:57:41.483 | G121: 7 | H121: 7:56 PM: ins ver | I121: Fallon Community Health Plan
A122: 2008-06-25 | B122: 2017-06-01 | C122: Thursday | D122: 19:00 - 20:00 | E122: 2017-06-01T19:53:34.837 | F122: 2017-06-01T20:10:47.947 | G122: 17 | H122: 8:10 PM: h/a is better 8:10 PM: mom leaving 7:56 PM: ins ver | I122: United Health Care
A123: 1992-06-16 | B123: 2017-06-01 | C123: Thursday | D123: 19:00 - 20:00 | E123: 2017-06-01T19:58:02.300 | F123: 2017-06-01T20:26:34.910 | G123: 28 | H123: 8:21 PM: NO INSURANCE - GOING TO UMASS 8:01 PM: laceration to L great toe | I123: Tufts
A124: 1951-02-22 | B124: 2017-06-01 | C124: Thursday | D124: 08:00 - 09:00 | E124: 2017-06-01T08:57:57.177 | F124: 2017-06-01T09:20:06.353 | G124: 23 | H124: 9:14 AM: on wall 9:10 AM: 915 scheduled appt, please reg
A125: 1939-05-24 | B125: 2017-06-01 | C125: Thursday | D125: 11:00 - 12:00 | E125: 2017-06-01T11:44:02.063 | F125: 2017-06-01T11:57:04.170 | G125: 13 | H125: 11:51 AM: regged on wall 11:50 AM: regging
A126: 1979-05-12 | B126: 2017-06-02 | C126: Friday | D126: 08:00 - 09:00 | E126: 2017-06-02T08:47:20.863 | F126: 2017-06-02T08:54:03.960 | G126: 7 | H126: 8:54 AM: tufts network health 8:50 AM: regging | I126: Medicaid\Mass Health
A127: 1997-05-30 | B127: 2017-06-02 | C127: Friday | D127: 08:00 - 09:00 | E127: 2017-06-02T08:49:23.480 | F127: 2017-06-02T09:00:39.550 | G127: 11 | H127: 8:56 AM: on wall 8:54 AM: regging | I127: Fallon Community Health Plan
A128: 1966-03-04 | B128: 2017-06-02 | C128: Friday | D128: 08:00 - 09:00 | E128: 2017-06-02T08:49:34.727 | F128: 2017-06-02T09:03:48.330 | G128: 14 | H128: 8:59 AM: on wall 8:57 AM: regging | I128: Medicaid\Mass Health
A129: 2005-08-22 | B129: 2017-06-02 | C129: Friday | D129: 08:00 - 09:00 | E129: 2017-06-02T08:53:10.177 | F129: 2017-06-02T09:05:05.893 | G129: 12 | I129: Medicaid\Mass Health
A130: 2001-11-23 | B130: 2017-06-02 | C130: Friday | D130: 08:00 - 09:00 | E130: 2017-06-02T08:53:16.207 | F130: 2017-06-02T09:12:19.890 | G130: 19 | H130: 9:05 AM: on wall 9:04 AM: regging | I130: Medicaid\Mass Health
A131: 1966-02-14 | B131: 2017-06-02 | C131: Friday | D131: 08:00 - 09:00 | E131: 2017-06-02T08:57:33.790 | F131: 2017-06-02T09:05:07.707 | G131: 8 | I131: Blue Cross\Blue Shield
A132: 1982-12-14 | B132: 2017-06-02 | C132: Friday | D132: 08:00 - 09:00 | E132: 2017-06-02T08:58:43.863 | F132: 2017-06-02T09:12:23.047 | G132: 14 | H132: 9:08 AM: on wall 9:07 AM: regging | I132: Harvard Pilgrim
A133: 1990-06-10 | B133: 2017-06-02 | C133: Friday | D133: 09:00 - 10:00 | E133: 2017-06-02T09:01:31.533 | F133: 2017-06-02T09:25:00.730 | G133: 24 | H133: 9:19 AM: on wall 9:11 AM: regging | I133: Harvard Pilgrim
A134: 1994-03-23 | B134: 2017-06-02 | C134: Friday | D134: 09:00 - 10:00 | E134: 2017-06-02T09:02:52.063 | F134: 2017-06-02T09:18:18.670 | G134: 16 | I134: Harvard Pilgrim
A135: 1947-04-27 | B135: 2017-06-02 | C135: Friday | D135: 09:00 - 10:00 | E135: 2017-06-02T09:10:06.270 | F135: 2017-06-02T09:27:22.040 | G135: 17 | H135: 9:23 AM: on wall 9:22 AM: regging 9:18 AM: ver | I135: Blue Cross\Blue Shield
A136: 1992-03-04 | B136: 2017-06-02 | C136: Friday | D136: 09:00 - 10:00 | E136: 2017-06-02T09:12:59.760 | F136: 2017-06-02T09:32:16.787 | G136: 20 | H136: 9:29 AM: on wall 9:25 AM: regging | I136: Self Pay\No Insurance
A137: 1988-02-01 | B137: 2017-06-02 | C137: Friday | D137: 09:00 - 10:00 | E137: 2017-06-02T09:14:28.270 | F137: 2017-06-02T09:28:12.320 | G137: 14 | H137: 9:22 AM: ver | I137: Medicaid\Mass Health
A138: 1934-11-17 | B138: 2017-06-02 | C138: Friday | D138: 09:00 - 10:00 | E138: 2017-06-02T09:15:57.393 | F138: 2017-06-02T09:38:20.130 | G138: 23 | H138: 9:34 AM: on wall 9:31 AM: regging 9:24 AM: ver | I138: Medicare
A139: 1993-02-24 | B139: 2017-06-02 | C139: Friday | D139: 09:00 - 10:00 | E139: 2017-06-02T09:17:46.503 | F139: 2017-06-02T09:38:26.490 | G139: 21 | H139: 9:37 AM: on wall 9:25 AM: ver | I139: United Health Care
A140: 1955-07-14 | B140: 2017-06-02 | C140: Friday | D140: 09:00 - 10:00 | E140: 2017-06-02T09:20:35.163 | F140: 2017-06-02T09:48:53.987 | G140: 28 | H140: 9:41 AM: on wall 9:39 AM: regging 9:25 AM: ver | I140: Blue Cross\Blue Shield
A141: 1953-03-05 | B141: 2017-06-02 | C141: Friday | D141: 09:00 - 10:00 | E141: 2017-06-02T09:21:24.603 | F141: 2017-06-02T10:15:11.080 | G141: 54 | H141: 9:51 AM: on wall 9:46 AM: regging 9:32 AM: pt states has medicare 9:28 AM: no fchp, no mh | I141: Medicaid\Mass Health
A142: 1957-06-25 | B142: 2017-06-02 | C142: Friday | D142: 09:00 - 10:00 | E142: 2017-06-02T09:26:06.170 | F142: 2017-06-02T10:22:56.347 | G142: 56 | H142: 10:17 AM: CALLED NO ANSWER 10:02 AM: called no answer 9:40 AM: called no answer, checking on ins, new pt vjm | I142: Other
A143: 1987-09-18 | B143: 2017-06-02 | C143: Friday | D143: 09:00 - 10:00 | E143: 2017-06-02T09:28:41.720 | F143: 2017-06-02T09:37:30.910 | G143: 9 | H143: 9:37 AM: mh limited only, advised pt cannot see vjm | I143: Fallon Community Health Plan
A144: 2008-07-01 | B144: 2017-06-02 | C144: Friday | D144: 09:00 - 10:00 | E144: 2017-06-02T09:36:32.577 | F144: 2017-06-02T09:50:50.970 | G144: 14 | H144: 9:38 AM: ver | I144: Medicaid\Mass Health
A145: 1994-12-17 | B145: 2017-06-02 | C145: Friday | D145: 10:00 - 11:00 | E145: 2017-06-02T10:04:40.537 | F145: 2017-06-02T10:16:04.593 | G145: 12 | H145: 10:08 AM: ON WALL 10:07 AM: REGGING | I145: Blue Cross\Blue Shield
A146: 1960-12-08 | B146: 2017-06-02 | C146: Friday | D146: 10:00 - 11:00 | E146: 2017-06-02T10:05:40.510 | F146: 2017-06-02T10:17:03.623 | G146: 12 | H146: 10:15 AM: ON WALL 10:11 AM: REGGING | I146: United Health Care
A147: 1993-10-19 | B147: 2017-06-02 | C147: Friday | D147: 10:00 - 11:00 | E147: 2017-06-02T10:14:02.303 | F147: 2017-06-02T10:21:23.020 | G147: 7 | H147: 10:19 AM: REGGING | I147: Fallon Community Health Plan
A148: 1937-06-26 | B148: 2017-06-02 | C148: Friday | D148: 10:00 - 11:00 | E148: 2017-06-02T10:17:14.130 | F148: 2017-06-02T10:34:28.760 | G148: 17 | H148: 10:26 AM: ON WALL | I148: Medicare
A149: 1964-11-07 | B149: 2017-06-02 | C149: Friday | D149: 10:00 - 11:00 | E149: 2017-06-02T10:23:35.347 | F149: 2017-06-02T10:34:33.010 | G149: 11 | H149: 10:30 AM: ON WALL | I149: Other
A150: 1972-08-01 | B150: 2017-06-02 | C150: Friday | D150: 10:00 - 11:00 | E150: 2017-06-02T10:25:47.323 | F150: 2017-06-02T10:55:17.487 | G150: 30 | H150: 10:34 AM: ON WALL 10:31 AM: ver | I150: Fallon Community Health Plan
A151: 1955-05-20 | B151: 2017-06-02 | C151: Friday | D151: 10:00 - 11:00 | E151: 2017-06-02T10:39:28.277 | F151: 2017-06-02T10:45:31.770 | G151: 6 | H151: 10:45 AM: NETWORK HEALTH | I151: Tufts
A152: 1976-06-04 | B152: 2017-06-02 | C152: Friday | D152: 10:00 - 11:00 | E152: 2017-06-02T10:46:17.957 | F152: 2017-06-02T10:57:31.203 | G152: 11 | H152: 10:51 AM: on wall 10:50 AM: regging | I152: Medicaid\Mass Health
A153: 1963-08-27 | B153: 2017-06-02 | C153: Friday | D153: 10:00 - 11:00 | E153: 2017-06-02T10:52:48.453 | F153: 2017-06-02T11:04:52.060 | G153: 12 | H153: 11:03 AM: ON WALL 10:56 AM: regging | I153: Other
A154: 1979-07-27 | B154: 2017-06-02 | C154: Friday | D154: 10:00 - 11:00 | E154: 2017-06-02T10:53:46.790 | F154: 2017-06-02T11:21:18.320 | G154: 28 | H154: 11:17 AM: ON WALL | I154: Fallon Community Health Plan
A155: 1935-07-03 | B155: 2017-06-02 | C155: Friday | D155: 10:00 - 11:00 | E155: 2017-06-02T10:59:07.597 | F155: 2017-06-02T11:08:35.497 | G155: 9 | H155: 11:05 AM: REGGING | I155: Medicare
A156: 1953-09-22 | B156: 2017-06-02 | C156: Friday | D156: 10:00 - 11:00 | E156: 2017-06-02T10:59:17.667 | F156: 2017-06-02T11:16:59.760 | G156: 17 | H156: 11:02 AM: Pt with cold and cough ok to wait. sp02 98% HR 74 LMC 11:01 AM: REGGING | I156: Harvard Pilgrim
A157: 1982-11-14 | B157: 2017-06-02 | C157: Friday | D157: 11:00 - 12:00 | E157: 2017-06-02T11:00:52.857 | F157: 2017-06-02T11:46:10.637 | G157: 46 | H157: 11:31 AM: ON WALL 11:27 AM: REGGING | I157: Blue Cross\Blue Shield
A158: 1964-12-12 | B158: 2017-06-02 | C158: Friday | D158: 11:00 - 12:00 | E158: 2017-06-02T11:04:05.247 | F158: 2017-06-02T11:56:14.807 | G158: 52 | H158: 11:34 AM: ON WALL 11:32 AM: REGGING | I158: United Health Care
A159: 2012-06-27 | B159: 2017-06-02 | C159: Friday | D159: 11:00 - 12:00 | E159: 2017-06-02T11:12:14.147 | F159: 2017-06-02T12:13:49.987 | G159: 61 | H159: 11:52 AM: ON WALL 11:50 AM: REGGING | I159: Other
A160: 1962-04-09 | B160: 2017-06-02 | C160: Friday | D160: 11:00 - 12:00 | E160: 2017-06-02T11:12:35.753 | F160: 2017-06-02T11:32:50.363 | G160: 20 | H160: 11:25 AM: ON WALL 11:19 AM: REGGING | I160: Fallon Community Health Plan
A161: 1975-01-11 | B161: 2017-06-02 | C161: Friday | D161: 11:00 - 12:00 | E161: 2017-06-02T11:15:01.197 | F161: 2017-06-02T12:19:51.987 | G161: 64 | H161: 12:04 PM: ON WALL 11:53 AM: REGGING | I161: Blue Cross\Blue Shield
A162: 2014-03-20 | B162: 2017-06-02 | C162: Friday | D162: 11:00 - 12:00 | E162: 2017-06-02T11:15:21.857 | F162: 2017-06-02T13:07:10.187 | G162: 112 | H162: 1:07 PM: called no answer 12:06 PM: CALLED NO ANSWER | I162: Blue Cross\Blue Shield
A163: 1969-11-15 | B163: 2017-06-02 | C163: Friday | D163: 11:00 - 12:00 | E163: 2017-06-02T11:17:53.660 | F163: 2017-06-02T12:20:33.173 | G163: 63 | H163: 12:18 PM: going to er 12:13 PM: on wall 12:11 PM: no mh 12:09 PM: REGGING | I163: Other
A164: 2011-12-24 | B164: 2017-06-02 | C164: Friday | D164: 11:00 - 12:00 | E164: 2017-06-02T11:21:21.190 | F164: 2017-06-02T12:31:10.887 | G164: 70 | H164: 12:19 PM: on wall | I164: Medicaid\Mass Health
A165: 2006-08-16 | B165: 2017-06-02 | C165: Friday | D165: 11:00 - 12:00 | E165: 2017-06-02T11:26:14.760 | F165: 2017-06-02T13:11:18.590 | G165: 105 | H165: 12:33 PM: 12:26 PM: on wall 12:22 PM: regging 11:44 AM: not actively bleeding, ok to wait. jen d | I165: Medicaid\Mass Health
A166: 1961-06-23 | B166: 2017-06-02 | C166: Friday | D166: 11:00 - 12:00 | E166: 2017-06-02T11:31:09.830 | F166: 2017-06-02T12:23:09.750 | G166: 52 | H166: 11:39 AM: Pt with flu like symptoms x 2 wks pt ok to wait LMC sp02 99% HR 74 | I166: Fallon Community Health Plan
A167: 1960-04-23 | B167: 2017-06-02 | C167: Friday | D167: 11:00 - 12:00 | E167: 2017-06-02T11:37:59.700 | F167: 2017-06-02T13:07:02.937 | G167: 90 | H167: 12:33 PM: 12:33 called no answer 12:27 PM: called no answer | I167: Cigna
A168: 1992-10-31 | B168: 2017-06-02 | C168: Friday | D168: 11:00 - 12:00 | E168: 2017-06-02T11:40:18.450 | F168: 2017-06-02T12:01:02.600 | G168: 21 | H168: 11:44 AM: REGGED ' | I168: Harvard Pilgrim
A169: 1992-02-21 | B169: 2017-06-02 | C169: Friday | D169: 11:00 - 12:00 | E169: 2017-06-02T11:52:17.103 | F169: 2017-06-02T11:55:02.073 | G169: 3 | I169: Blue Cross\Blue Shield
A170: 1991-02-09 | B170: 2017-06-02 | C170: Friday | D170: 11:00 - 12:00 | E170: 2017-06-02T11:54:09.263 | F170: 2017-06-02T12:32:17.557 | G170: 38 | H170: 12:30 PM: on wall 12:28 PM: regging | I170: Blue Cross\Blue Shield
A171: 1967-02-04 | B171: 2017-06-02 | C171: Friday | D171: 12:00 - 13:00 | E171: 2017-06-02T12:08:35.533 | F171: 2017-06-02T13:06:58.920 | G171: 58 | H171: 12:34 PM: regging | I171: Other
A172: 1995-10-12 | B172: 2017-06-02 | C172: Friday | D172: 12:00 - 13:00 | E172: 2017-06-02T12:12:00.590 | F172: 2017-06-02T14:31:27.043 | G172: 139 | H172: 2:02 PM: REGGED 1:14 PM: 1:10 PT CALLD NOA NSWER 12:16 PM: called no answer | I172: Fallon Community Health Plan
A173: 1950-03-02 | B173: 2017-06-02 | C173: Friday | D173: 12:00 - 13:00 | E173: 2017-06-02T12:13:44.513 | F173: 2017-06-02T13:25:51.380 | G173: 72 | H173: 1:14 PM: REGGED 1:12 PM: REGGING | I173: Tufts
A174: 2011-06-11 | B174: 2017-06-02 | C174: Friday | D174: 12:00 - 13:00 | E174: 2017-06-02T12:14:13.490 | F174: 2017-06-02T13:30:53.287 | G174: 76 | H174: 1:30 PM: called no answer 1:11 PM: called no answer 1:03 PM: ver | I174: Fallon Community Health Plan
A175: 1978-02-26 | B175: 2017-06-02 | C175: Friday | D175: 12:00 - 13:00 | E175: 2017-06-02T12:20:40.547 | F175: 2017-06-02T13:14:14.543 | G175: 54 | I175: Cigna
A176: 1953-08-03 | B176: 2017-06-02 | C176: Friday | D176: 12:00 - 13:00 | E176: 2017-06-02T12:25:27.560 | F176: 2017-06-02T13:14:44.650 | G176: 49 | I176: Fallon Community Health Plan
A177: 1984-09-11 | B177: 2017-06-02 | C177: Friday | D177: 12:00 - 13:00 | E177: 2017-06-02T12:36:13.230 | F177: 2017-06-02T13:26:02.333 | G177: 50 | H177: 1:25 PM: REGGED 1:17 PM: REGGING | I177: Blue Cross\Blue Shield
A178: 1956-09-07 | B178: 2017-06-02 | C178: Friday | D178: 12:00 - 13:00 | E178: 2017-06-02T12:39:40.590 | F178: 2017-06-02T13:29:53.427 | G178: 50 | H178: 1:29 PM: REGGED 1:27 PM: REGGING | I178: Fallon Community Health Plan
A179: 2016-12-20 | B179: 2017-06-02 | C179: Friday | D179: 12:00 - 13:00 | E179: 2017-06-02T12:43:58.987 | F179: 2017-06-02T13:22:57.350 | G179: 39 | H179: 1:07 PM: pedi checking 1:02 PM: ver | I179: Medicaid\Mass Health
A180: 1966-04-18 | B180: 2017-06-02 | C180: Friday | D180: 12:00 - 13:00 | E180: 2017-06-02T12:57:11.653 | F180: 2017-06-02T13:37:18.627 | G180: 40 | H180: 1:33 PM: ERGGED | I180: Medicaid\Mass Health
A181: 1925-05-04 | B181: 2017-06-02 | C181: Friday | D181: 12:00 - 13:00 | E181: 2017-06-02T12:58:54.900 | F181: 2017-06-02T13:12:35.997 | G181: 14 | H181: 1:11 PM: REGGED | I181: Tufts
A182: 1980-07-19 | B182: 2017-06-02 | C182: Friday | D182: 13:00 - 14:00 | E182: 2017-06-02T13:01:29.650 | F182: 2017-06-02T14:07:30.147 | G182: 66 | H182: 1:46 PM: PCP MISMATCH PT does not want to self pay 1:46 PM: 1:34 PM: REGGING | I182: Harvard Pilgrim
A183: 1986-11-16 | B183: 2017-06-02 | C183: Friday | D183: 13:00 - 14:00 | E183: 2017-06-02T13:08:18.763 | F183: 2017-06-02T14:38:18.430 | G183: 90 | H183: 2:10 PM: REGGD | I183: Blue Cross\Blue Shield
A184: 1973-09-26 | B184: 2017-06-02 | C184: Friday | D184: 13:00 - 14:00 | E184: 2017-06-02T13:11:40.027 | F184: 2017-06-02T14:38:19.807 | G184: 87 | H184: 2:13 PM: REGGED | I184: Medicaid\Mass Health
A185: 1984-08-31 | B185: 2017-06-02 | C185: Friday | D185: 13:00 - 14:00 | E185: 2017-06-02T13:24:34.447 | F185: 2017-06-02T15:08:57.950 | G185: 104 | H185: 2:21 PM: REGGED 1:27 PM: ver | I185: Aetna
A186: 1991-09-21 | B186: 2017-06-02 | C186: Friday | D186: 13:00 - 14:00 | E186: 2017-06-02T13:31:01.963 | F186: 2017-06-02T15:09:06.843 | G186: 98 | H186: 2:31 PM: REGGED | I186: Harvard Pilgrim
A187: 1999-10-23 | B187: 2017-06-02 | C187: Friday | D187: 13:00 - 14:00 | E187: 2017-06-02T13:31:19.210 | F187: 2017-06-02T13:32:55.707 | G187: 1 | I187: Medicaid\Mass Health
A188: 1970-09-11 | B188: 2017-06-02 | C188: Friday | D188: 13:00 - 14:00 | E188: 2017-06-02T13:34:25.213 | F188: 2017-06-02T14:14:29.253 | G188: 40 | H188: 1:49 PM: Cough and cold ok to wait HR 100 Sp02 99% LMC 1:49 PM: REGGED | I188: Fallon Community Health Plan
A189: 1956-11-21 | B189: 2017-06-02 | C189: Friday | D189: 13:00 - 14:00 | E189: 2017-06-02T13:37:18.037 | F189: 2017-06-02T14:16:19.423 | G189: 39 | H189: 1:54 PM: REGGED 1:52 PM: cough x 5 wks ok to wait sp02 99% Hr 88 LMC | I189: Fallon Community Health Plan
A190: 1984-07-27 | B190: 2017-06-02 | C190: Friday | D190: 13:00 - 14:00 | E190: 2017-06-02T13:37:36.803 | F190: 2017-06-02T14:20:30.500 | G190: 43 | H190: 2:04 PM: ok to wait. Pt states "throat burns when he smokes" x 1 year LMC SP02 97% HR 74 1:59 PM: REGGED | I190: Blue Cross\Blue Shield
A191: 1987-06-02 | B191: 2017-06-02 | C191: Friday | D191: 13:00 - 14:00 | E191: 2017-06-02T13:37:44.297 | F191: 2017-06-02T15:14:04.870 | G191: 97 | H191: 3:13 PM: CALLED- NOT IN LOBBY 2:33 PM: 2:30 PT called no answer | I191: Fallon Community Health Plan
A192: 1928-03-24 | B192: 2017-06-02 | C192: Friday | D192: 13:00 - 14:00 | E192: 2017-06-02T13:43:43.767 | F192: 2017-06-02T15:16:25.793 | G192: 93 | H192: 2:36 PM: REGGED | I192: Tufts
A193: 1994-08-19 | B193: 2017-06-02 | C193: Friday | D193: 13:00 - 14:00 | E193: 2017-06-02T13:51:41.483 | F193: 2017-06-02T14:54:41.330 | G193: 63 | H193: 2:41 PM: NURSE VISIT, REGGED 2:36 PM: INS VER | I193: Blue Cross\Blue Shield
A194: 1986-11-16 | B194: 2017-06-02 | C194: Friday | D194: 13:00 - 14:00 | E194: 2017-06-02T13:56:56.473 | F194: 2017-06-02T14:35:34.963 | G194: 39 | H194: 2:35 PM: DUPLICATE | I194: Blue Cross\Blue Shield
A195: 2003-12-15 | B195: 2017-06-02 | C195: Friday | D195: 13:00 - 14:00 | E195: 2017-06-02T13:58:57.813 | F195: 2017-06-02T14:01:17.460 | G195: 3 | I195: Tufts
A196: 1995-09-02 | B196: 2017-06-02 | C196: Friday | D196: 14:00 - 15:00 | E196: 2017-06-02T14:00:20.723 | F196: 2017-06-02T15:48:20.217 | G196: 108 | H196: 3:39 PM: REGGED 3:05 PM: is in waiting room 2:48 PM: 2:48 pt called no answer 2:36 PM: in pedi with child 2:31 PM: INS VER | I196: Medicaid\Mass Health
A197: 2016-08-05 | B197: 2017-06-02 | C197: Friday | D197: 14:00 - 15:00 | E197: 2017-06-02T14:00:32.280 | F197: 2017-06-02T14:09:59.223 | G197: 9 | H197: 2:06 PM: fever 101, ear pain, cough/triaged by PCP office 2:02 PM: pedi checking | I197: Medicaid\Mass Health
A198: 1975-04-18 | B198: 2017-06-02 | C198: Friday | D198: 14:00 - 15:00 | E198: 2017-06-02T14:06:12.633 | F198: 2017-06-02T15:21:10.837 | G198: 75 | H198: 3:08 PM: REGGED 2:30 PM: INS VER- MH PCC HAS UMASS-LINCOLN ST LISTED AS PRIMARY - PT CHART SAYS HOLLA | I198: Medicaid\Mass Health
A199: 2012-08-17 | B199: 2017-06-02 | C199: Friday | D199: 14:00 - 15:00 | E199: 2017-06-02T14:19:59.750 | F199: 2017-06-02T14:39:39.260 | G199: 20 | I199: Fallon Community Health Plan
A200: 1982-05-19 | B200: 2017-06-02 | C200: Friday | D200: 14:00 - 15:00 | E200: 2017-06-02T14:25:14.963 | F200: 2017-06-02T15:23:07.180 | G200: 58 | H200: 3:16 PM: REGGED 2:28 PM: INS VER | I200: Medicaid\Mass Health
... 4020 more rows

Sheet July 2017
A1: DOB | B1: Visit Date | C1: Day | D1: Block | E1: Time Arrived | F1: Time Roomed | G1: Mins. Arrived to Roomed | H1: Notes | I1: Insurance
A2: 1959-03-28 | B2: 2017-07-01 | C2: Saturday | D2: 09:00 - 10:00 | E2: 2017-07-01T09:29:44.610 | F2: 2017-07-01T10:20:43.453 | G2: 51 | H2: 10:02 AM: regged on wall
A3: 1920-02-02 | B3: 2017-07-01 | C3: Saturday | D3: 08:00 - 09:00 | E3: 2017-07-01T08:44:41.180 | F3: 2017-07-01T08:51:20.610 | G3: 7 | I3: Tufts
A4: 1965-02-25 | B4: 2017-07-01 | C4: Saturday | D4: 08:00 - 09:00 | E4: 2017-07-01T08:51:07.630 | F4: 2017-07-01T08:52:37.033 | G4: 1 | I4: Tufts
A5: 1978-04-11 | B5: 2017-07-01 | C5: Saturday | D5: 08:00 - 09:00 | E5: 2017-07-01T08:51:09.990 | F5: 2017-07-01T09:01:13.547 | G5: 10 | H5: 9:00 AM: regged on wall 8:57 AM: regging | I5: Harvard Pilgrim
A6: 1964-05-09 | B6: 2017-07-01 | C6: Saturday | D6: 08:00 - 09:00 | E6: 2017-07-01T08:51:33.260 | F6: 2017-07-01T08:58:31.517 | G6: 7 | I6: Other
A7: 1961-01-15 | B7: 2017-07-01 | C7: Saturday | D7: 08:00 - 09:00 | E7: 2017-07-01T08:53:16.677 | F7: 2017-07-01T09:08:06.627 | G7: 15 | I7: Fallon Community Health Plan
A8: 1978-08-08 | B8: 2017-07-01 | C8: Saturday | D8: 08:00 - 09:00 | E8: 2017-07-01T08:53:29.947 | F8: 2017-07-01T09:03:05.140 | G8: 10 | I8: Fallon Community Health Plan
A9: 1993-09-18 | B9: 2017-07-01 | C9: Saturday | D9: 08:00 - 09:00 | E9: 2017-07-01T08:53:51.267 | F9: 2017-07-01T09:47:37.360 | G9: 54 | H9: 9:05 AM: new patient | I9: Medicaid\Mass Health
A10: 1991-05-21 | B10: 2017-07-01 | C10: Saturday | D10: 08:00 - 09:00 | E10: 2017-07-01T08:54:45.950 | F10: 2017-07-01T09:14:33.237 | G10: 20 | I10: Medicaid\Mass Health
A11: 1954-02-12 | B11: 2017-07-01 | C11: Saturday | D11: 08:00 - 09:00 | E11: 2017-07-01T08:58:01.110 | F11: 2017-07-01T09:13:26.377 | G11: 15 | H11: 9:08 AM: will bump. Cough x 3 weeks. Increased cp with deep breaths and cough 9:07 AM: regged on wall | I11: Blue Cross\Blue Shield
A12: 1940-02-07 | B12: 2017-07-01 | C12: Saturday | D12: 09:00 - 10:00 | E12: 2017-07-01T09:00:20.697 | F12: 2017-07-01T09:23:47.377 | G12: 23 | H12: 9:21 AM: regged on wall | I12: Blue Cross\Blue Shield
A13: 1945-10-11 | B13: 2017-07-01 | C13: Saturday | D13: 09:00 - 10:00 | E13: 2017-07-01T09:01:07.470 | F13: 2017-07-01T09:03:52.110 | G13: 2 | I13: Harvard Pilgrim
A14: 1948-01-05 | B14: 2017-07-01 | C14: Saturday | D14: 09:00 - 10:00 | E14: 2017-07-01T09:02:53.243 | F14: 2017-07-01T09:38:44.767 | G14: 36 | H14: 9:24 AM: regged on wall | I14: Fallon Community Health Plan
A15: 1934-12-08 | B15: 2017-07-01 | C15: Saturday | D15: 09:00 - 10:00 | E15: 2017-07-01T09:05:48.557 | F15: 2017-07-01T09:22:31.657 | G15: 17 | I15: Tufts
A16: 1979-05-30 | B16: 2017-07-01 | C16: Saturday | D16: 09:00 - 10:00 | E16: 2017-07-01T09:07:09.720 | F16: 2017-07-01T09:45:43.343 | G16: 38 | H16: 9:41 AM: regged on wall | I16: Blue Cross\Blue Shield
A17: 1958-05-05 | B17: 2017-07-01 | C17: Saturday | D17: 09:00 - 10:00 | E17: 2017-07-01T09:11:57.130 | F17: 2017-07-01T09:54:06.453 | G17: 43 | H17: 9:54 AM: unable to be seen here 9:49 AM: regging 9:43 AM: ins ver | I17: Fallon Community Health Plan
A18: 2015-09-28 | B18: 2017-07-01 | C18: Saturday | D18: 09:00 - 10:00 | E18: 2017-07-01T09:12:12.213 | F18: 2017-07-01T09:15:02.593 | G18: 3 | I18: Blue Cross\Blue Shield
A19: 1964-05-18 | B19: 2017-07-01 | C19: Saturday | D19: 09:00 - 10:00 | E19: 2017-07-01T09:15:06.340 | F19: 2017-07-01T09:35:18.047 | G19: 20 | I19: Harvard Pilgrim
A20: 1961-10-20 | B20: 2017-07-01 | C20: Saturday | D20: 09:00 - 10:00 | E20: 2017-07-01T09:15:27.433 | F20: 2017-07-01T10:46:23.533 | G20: 91 | H20: 10:16 AM: regged on wall 10:10 AM: called to reg, no answer 9:52 AM: called to reg, no answer | I20: Self Pay\No Insurance
A21: 1973-10-23 | B21: 2017-07-01 | C21: Saturday | D21: 09:00 - 10:00 | E21: 2017-07-01T09:15:36.703 | F21: 2017-07-01T10:04:33.203 | G21: 49 | H21: 9:58 AM: regged on wall 9:54 AM: regging | I21: Blue Cross\Blue Shield
A22: 1999-04-02 | B22: 2017-07-01 | C22: Saturday | D22: 09:00 - 10:00 | E22: 2017-07-01T09:17:31.560 | F22: 2017-07-01T10:14:30.563 | G22: 57 | H22: 10:10 AM: regged on wall | I22: Blue Cross\Blue Shield
A23: 1981-07-15 | B23: 2017-07-01 | C23: Saturday | D23: 09:00 - 10:00 | E23: 2017-07-01T09:18:28.780 | F23: 2017-07-01T10:15:21.360 | G23: 57 | H23: 10:12 AM: regged on wall | I23: Fallon Community Health Plan
A24: 2016-06-29 | B24: 2017-07-01 | C24: Saturday | D24: 09:00 - 10:00 | E24: 2017-07-01T09:19:16.600 | F24: 2017-07-01T09:22:00.703 | G24: 3 | I24: Medicaid\Mass Health
A25: 1978-02-09 | B25: 2017-07-01 | C25: Saturday | D25: 09:00 - 10:00 | E25: 2017-07-01T09:26:28.903 | F25: 2017-07-01T10:52:05.877 | G25: 86 | H25: 10:34 AM: regged on wall 10:00 AM: ok to wait 9:59 AM: cough x2 months, o2 97%, pt states CP when coughing | I25: Fallon Community Health Plan
A26: 1943-11-12 | B26: 2017-07-01 | C26: Saturday | D26: 09:00 - 10:00 | E26: 2017-07-01T09:28:02.020 | F26: 2017-07-01T10:32:18.343 | G26: 64 | H26: 10:26 AM: regged on wall 10:25 AM: ins ver | I26: Tufts
A27: 1975-06-18 | B27: 2017-07-01 | C27: Saturday | D27: 09:00 - 10:00 | E27: 2017-07-01T09:29:28.953 | F27: 2017-07-01T11:20:22.017 | G27: 111 | H27: 10:44 AM: regged on wall 9:59 AM: ok to wait 9:55 AM: 99%, cough and cold symptoms for a month and a half | I27: Fallon Community Health Plan
A28: 2015-05-27 | B28: 2017-07-01 | C28: Saturday | D28: 09:00 - 10:00 | E28: 2017-07-01T09:32:49.687 | F28: 2017-07-01T09:37:43.487 | G28: 5 | I28: Medicaid\Mass Health
A29: 1945-05-02 | B29: 2017-07-01 | C29: Saturday | D29: 09:00 - 10:00 | E29: 2017-07-01T09:33:37.357 | F29: 2017-07-01T10:28:28.437 | G29: 55 | H29: 10:05 AM: regged on wall 9:57 AM: cut above left eye that happened last night, no active bleeding right now, pt hit head on microwave corner | I29: Tufts
A30: 1975-05-22 | B30: 2017-07-01 | C30: Saturday | D30: 09:00 - 10:00 | E30: 2017-07-01T09:37:35.647 | F30: 2017-07-01T10:12:16.640 | G30: 35 | H30: 10:01 AM: regged on wall 9:56 AM: WILL BUMP! 98%, duoneb at 7am this morning, been on prednisone since tuesday, very Wheezy, will bump PT. | I30: Blue Cross\Blue Shield
A31: 1966-08-21 | B31: 2017-07-01 | C31: Saturday | D31: 09:00 - 10:00 | E31: 2017-07-01T09:38:31.330 | F31: 2017-07-01T11:14:22.423 | G31: 96 | H31: 10:48 AM: regged on wall 10:30 AM: ins ver | I31: Fallon Community Health Plan
A32: 2015-04-24 | B32: 2017-07-01 | C32: Saturday | D32: 09:00 - 10:00 | E32: 2017-07-01T09:38:52.597 | F32: 2017-07-01T09:45:48.360 | G32: 7 | I32: Blue Cross\Blue Shield
A33: 1951-08-16 | B33: 2017-07-01 | C33: Saturday | D33: 09:00 - 10:00 | E33: 2017-07-01T09:44:00.563 | F33: 2017-07-01T11:19:47.860 | G33: 95 | H33: 10:56 AM: regged on wall 10:31 AM: ins ver | I33: Fallon Community Health Plan
A34: 1975-03-24 | B34: 2017-07-01 | C34: Saturday | D34: 09:00 - 10:00 | E34: 2017-07-01T09:52:15.560 | F34: 2017-07-01T11:34:45.797 | G34: 102 | H34: 11:09 AM: regged, on wall | I34: Fallon Community Health Plan
A35: 1984-10-03 | B35: 2017-07-01 | C35: Saturday | D35: 09:00 - 10:00 | E35: 2017-07-01T09:52:42.920 | F35: 2017-07-01T12:07:32.250 | G35: 135 | H35: 12:07 PM: no answer- removed 12:04 PM: ROOM AND REG NEXT FEW PLEASE 11:28 AM: called no answer 11:10 AM: called no ans 1110 | I35: Fallon Community Health Plan
A36: 2011-04-13 | B36: 2017-07-01 | C36: Saturday | D36: 09:00 - 10:00 | E36: 2017-07-01T09:54:45.150 | F36: 2017-07-01T09:56:07.017 | G36: 2 | I36: Medicaid\Mass Health
A37: 1992-12-10 | B37: 2017-07-01 | C37: Saturday | D37: 09:00 - 10:00 | E37: 2017-07-01T09:57:46.930 | F37: 2017-07-01T11:50:04.500 | G37: 113 | H37: 11:17 AM: WALL 11:11 AM: REGGING | I37: Blue Cross\Blue Shield
A38: 2006-07-11 | B38: 2017-07-01 | C38: Saturday | D38: 09:00 - 10:00 | E38: 2017-07-01T09:59:31.340 | F38: 2017-07-01T10:03:52.203 | G38: 4 | I38: Fallon Community Health Plan
A39: 1957-11-13 | B39: 2017-07-01 | C39: Saturday | D39: 10:00 - 11:00 | E39: 2017-07-01T10:06:34.843 | F39: 2017-07-01T11:56:57.767 | G39: 110 | H39: 11:38 AM: regged, on wall 11:28 AM: pt in waiting room 11:18 AM: CALLED NO ANS 1118 | I39: Blue Cross\Blue Shield
A40: 1960-01-05 | B40: 2017-07-01 | C40: Saturday | D40: 10:00 - 11:00 | E40: 2017-07-01T10:14:42.837 | F40: 2017-07-01T12:02:02.767 | G40: 108 | H40: 11:42 AM: regged, on wall | I40: Fallon Community Health Plan
A41: 1950-03-04 | B41: 2017-07-01 | C41: Saturday | D41: 10:00 - 11:00 | E41: 2017-07-01T10:29:24.150 | F41: 2017-07-01T11:29:21.063 | G41: 60 | I41: Medicaid\Mass Health
A42: 2014-08-14 | B42: 2017-07-01 | C42: Saturday | D42: 10:00 - 11:00 | E42: 2017-07-01T10:32:59.360 | F42: 2017-07-01T10:35:19.937 | G42: 3 | I42: Fallon Community Health Plan
A43: 2013-10-07 | B43: 2017-07-01 | C43: Saturday | D43: 10:00 - 11:00 | E43: 2017-07-01T10:33:24.303 | F43: 2017-07-01T10:39:21.860 | G43: 6 | I43: Medicaid\Mass Health
A44: 1989-09-03 | B44: 2017-07-01 | C44: Saturday | D44: 10:00 - 11:00 | E44: 2017-07-01T10:34:29.017 | F44: 2017-07-01T11:50:00.547 | G44: 76 | H44: 11:49 AM: has neighborhood health through mass health unable to see here, sent to carewell 10:54 AM: ok to wait 10:54 AM: pt is at 96% o2, wheezing going on since wednesday. CP when coughing. | I44: Medicaid\Mass Health
A45: 2008-02-29 | B45: 2017-07-01 | C45: Saturday | D45: 10:00 - 11:00 | E45: 2017-07-01T10:40:38.040 | F45: 2017-07-01T12:03:14.140 | G45: 83 | H45: 12:03 PM: DID NOT WANT TO PAY $50 COPAY 11:55 AM: regging 11:19 AM: called no answer #2 10:49 AM: called no answer 10:48 AM: new patient | I45: Blue Cross\Blue Shield
A46: 2016-08-09 | B46: 2017-07-01 | C46: Saturday | D46: 10:00 - 11:00 | E46: 2017-07-01T10:46:53.023 | F46: 2017-07-01T10:49:27.390 | G46: 3 | I46: Fallon Community Health Plan
A47: 2001-06-26 | B47: 2017-07-01 | C47: Saturday | D47: 10:00 - 11:00 | E47: 2017-07-01T10:48:56.950 | F47: 2017-07-01T11:00:45.203 | G47: 12 | I47: Harvard Pilgrim
A48: 1946-03-17 | B48: 2017-07-01 | C48: Saturday | D48: 10:00 - 11:00 | E48: 2017-07-01T10:52:59.880 | F48: 2017-07-01T12:32:10.987 | G48: 100 | H48: 12:15 PM: WALL 12:14 PM: REGGING 12:07 PM: ins ver | I48: Tufts
A49: 1968-05-25 | B49: 2017-07-01 | C49: Saturday | D49: 10:00 - 11:00 | E49: 2017-07-01T10:55:27.147 | F49: 2017-07-01T12:31:30.640 | G49: 96 | H49: 12:23 PM: WALL - W/C 12:08 PM: ins ver | I49: Other
A50: 2014-08-20 | B50: 2017-07-01 | C50: Saturday | D50: 10:00 - 11:00 | E50: 2017-07-01T10:58:06.527 | F50: 2017-07-01T11:07:38.330 | G50: 9 | I50: Medicaid\Mass Health
A51: 1938-08-25 | B51: 2017-07-01 | C51: Saturday | D51: 11:00 - 12:00 | E51: 2017-07-01T11:04:48.153 | F51: 2017-07-01T11:23:33.033 | G51: 19 | H51: 11:23 AM: REGGED, GAVE TO NURSING 11:22 AM: O2 93%, HX OF COPD, COUGH | I51: Medicare
A52: 2012-07-02 | B52: 2017-07-01 | C52: Saturday | D52: 11:00 - 12:00 | E52: 2017-07-01T11:07:01.127 | F52: 2017-07-01T11:15:03.720 | G52: 8 | I52: Fallon Community Health Plan
A53: 2016-02-25 | B53: 2017-07-01 | C53: Saturday | D53: 11:00 - 12:00 | E53: 2017-07-01T11:08:48.073 | F53: 2017-07-01T11:20:29.360 | G53: 12 | I53: Fallon Community Health Plan
A54: 1996-06-20 | B54: 2017-07-01 | C54: Saturday | D54: 11:00 - 12:00 | E54: 2017-07-01T11:16:28.183 | F54: 2017-07-01T11:32:00.750 | G54: 16 | H54: 11:30 AM: on pedi wall 11:27 AM: POX 98 % no acute distress Intermittent fever/dry cough 11:24 AM: PEDI PCP | I54: Cigna
A55: 1952-05-27 | B55: 2017-07-01 | C55: Saturday | D55: 11:00 - 12:00 | E55: 2017-07-01T11:16:57.257 | F55: 2017-07-01T12:52:37.407 | G55: 96 | H55: 12:41 PM: wall 12:38 PM: regging 12:09 PM: ins ver | I55: Tufts
A56: 2011-12-29 | B56: 2017-07-01 | C56: Saturday | D56: 11:00 - 12:00 | E56: 2017-07-01T11:17:05.720 | F56: 2017-07-01T11:39:03.953 | G56: 22 | I56: Other
A57: 2003-08-08 | B57: 2017-07-01 | C57: Saturday | D57: 11:00 - 12:00 | E57: 2017-07-01T11:24:02.980 | F57: 2017-07-01T12:02:01.547 | G57: 38 | H57: 11:43 AM: new patient? | I57: Fallon Community Health Plan
A58: 2017-02-26 | B58: 2017-07-01 | C58: Saturday | D58: 11:00 - 12:00 | E58: 2017-07-01T11:34:22.713 | F58: 2017-07-01T12:15:03.937 | G58: 41 | H58: 11:44 AM: ver | I58: Medicaid\Mass Health
A59: 2006-10-28 | B59: 2017-07-01 | C59: Saturday | D59: 11:00 - 12:00 | E59: 2017-07-01T11:36:10.707 | F59: 2017-07-01T12:28:43.890 | G59: 52 | H59: 12:28 PM: WALL 12:24 PM: REGGING | I59: Aetna
A60: 1929-09-23 | B60: 2017-07-01 | C60: Saturday | D60: 11:00 - 12:00 | E60: 2017-07-01T11:37:42.257 | F60: 2017-07-01T12:39:24.517 | G60: 62 | H60: 11:45 AM: gen surg pt | I60: Medicare
A61: 2006-07-08 | B61: 2017-07-01 | C61: Saturday | D61: 11:00 - 12:00 | E61: 2017-07-01T11:48:05.283 | F61: 2017-07-01T12:36:19.237 | G61: 48 | H61: 12:33 PM: WALL 12:30 PM: REGGING | I61: Tufts
A62: 1928-01-23 | B62: 2017-07-01 | C62: Saturday | D62: 11:00 - 12:00 | E62: 2017-07-01T11:57:20.050 | F62: 2017-07-01T12:39:37.487 | G62: 42 | H62: 12:36 PM: new ins | I62: Medicare
A63: 1950-09-22 | B63: 2017-07-01 | C63: Saturday | D63: 12:00 - 13:00 | E63: 2017-07-01T12:01:16.183 | F63: 2017-07-01T12:12:53.720 | G63: 11 | H63: 12:12 PM: REGGED, ON WALL | I63: Harvard Pilgrim
A64: 1989-11-26 | B64: 2017-07-01 | C64: Saturday | D64: 12:00 - 13:00 | E64: 2017-07-01T12:04:58.547 | F64: 2017-07-01T13:21:00.407 | G64: 77 | H64: 1:06 PM: WALL 1:01 PM: RECD VERBAL OK TO TREAT 1:00 PM: ok for referral per covering 12:53 PM: back to waiting room 12:49 PM: on phone 12:47 PM: needs referral 12:41 PM: regging | I64: Harvard Pilgrim
A65: 1941-05-28 | B65: 2017-07-01 | C65: Saturday | D65: 12:00 - 13:00 | E65: 2017-07-01T12:05:43.893 | F65: 2017-07-01T12:53:27.110 | G65: 48 | H65: 12:53 PM: ins ver | I65: Tufts
A66: 1967-05-11 | B66: 2017-07-01 | C66: Saturday | D66: 12:00 - 13:00 | E66: 2017-07-01T12:06:53.723 | F66: 2017-07-01T13:51:10.297 | G66: 105 | H66: 1:48 PM: WALL 1:46 PM: REGGING 12:56 PM: called no ans 12:55 PM: regging | I66: Blue Cross\Blue Shield
A67: 1960-08-18 | B67: 2017-07-01 | C67: Saturday | D67: 12:00 - 13:00 | E67: 2017-07-01T12:11:16.943 | F67: 2017-07-01T12:55:15.220 | G67: 44 | H67: 12:35 PM: ins ver | I67: Medicaid\Mass Health
A68: 2012-04-28 | B68: 2017-07-01 | C68: Saturday | D68: 12:00 - 13:00 | E68: 2017-07-01T12:16:59.910 | F68: 2017-07-01T12:52:06.517 | G68: 36 | H68: 12:38 PM: wall 12:33 PM: REGGING | I68: Medicaid\Mass Health
A69: 1955-05-15 | B69: 2017-07-01 | C69: Saturday | D69: 12:00 - 13:00 | E69: 2017-07-01T12:22:07.800 | F69: 2017-07-01T13:14:36.017 | G69: 52 | H69: 1:00 PM: ON WALL 12:57 PM: regging | I69: Blue Cross\Blue Shield
A70: 1931-04-04 | B70: 2017-07-01 | C70: Saturday | D70: 12:00 - 13:00 | E70: 2017-07-01T12:23:12.843 | F70: 2017-07-01T13:29:03 | G70: 66 | H70: 1:13 PM: WALL 1:07 PM: REGGING | I70: Tufts
A71: 1973-09-17 | B71: 2017-07-01 | C71: Saturday | D71: 12:00 - 13:00 | E71: 2017-07-01T12:27:09.607 | F71: 2017-07-01T12:37:20.610 | G71: 10 | H71: 12:35 PM: regged on wall | I71: Fallon Community Health Plan
A72: 1963-11-26 | B72: 2017-07-01 | C72: Saturday | D72: 12:00 - 13:00 | E72: 2017-07-01T12:33:22.030 | F72: 2017-07-01T13:52:29.203 | G72: 79 | H72: 1:18 PM: WALL 1:16 PM: NOT MVA FELL OF BICYCLE | I72: Blue Cross\Blue Shield
A73: 1940-03-18 | B73: 2017-07-01 | C73: Saturday | D73: 12:00 - 13:00 | E73: 2017-07-01T12:44:13.250 | F73: 2017-07-01T15:05:20.127 | G73: 141 | H73: 3:05 PM: called no answer 1:49 PM: CALLED NO ANS 149 1:19 PM: CALLED NO ANS | I73: Tufts
A74: 2014-12-06 | B74: 2017-07-01 | C74: Saturday | D74: 12:00 - 13:00 | E74: 2017-07-01T12:46:36.387 | F74: 2017-07-01T12:53:37.830 | G74: 7 | I74: Medicaid\Mass Health
A75: 2013-03-16 | B75: 2017-07-01 | C75: Saturday | D75: 12:00 - 13:00 | E75: 2017-07-01T12:55:56.627 | F75: 2017-07-01T13:05:40.437 | G75: 10 | H75: 1:04 PM: ver | I75: Fallon Community Health Plan
A76: 1991-09-19 | B76: 2017-07-01 | C76: Saturday | D76: 13:00 - 14:00 | E76: 2017-07-01T13:00:11.693 | F76: 2017-07-01T13:30:03.033 | G76: 30 | H76: 1:30 PM: NEEDED REFERRAL, SENT TO CAREWELL | I76: Harvard Pilgrim
A77: 1999-12-02 | B77: 2017-07-01 | C77: Saturday | D77: 13:00 - 14:00 | E77: 2017-07-01T13:13:25.113 | F77: 2017-07-01T13:31:09.487 | G77: 18 | H77: 1:19 PM: pt in 179-no regged. pt in no distress. speaking in full sentences. 1:14 PM: checking | I77: Fallon Community Health Plan
A78: 2000-02-24 | B78: 2017-07-01 | C78: Saturday | D78: 13:00 - 14:00 | E78: 2017-07-01T13:15:02.793 | F78: 2017-07-01T13:51:39.330 | G78: 36 | H78: 1:32 PM: WALL 1:31 PM: REGGING | I78: Fallon Community Health Plan
A79: 2009-09-07 | B79: 2017-07-01 | C79: Saturday | D79: 13:00 - 14:00 | E79: 2017-07-01T13:21:19.663 | F79: 2017-07-01T14:06:03.907 | G79: 45 | H79: 1:42 PM: WALL 1:33 PM: NEW PT REGGING | I79: Fallon Community Health Plan
A80: 2017-06-29 | B80: 2017-07-01 | C80: Saturday | D80: 13:00 - 14:00 | E80: 2017-07-01T13:21:21.507 | F80: 2017-07-01T13:31:13.407 | G80: 10 | H80: 1:27 PM: in room 160-not regged | I80: Self Pay\No Insurance
A81: 1984-07-10 | B81: 2017-07-01 | C81: Saturday | D81: 13:00 - 14:00 | E81: 2017-07-01T13:22:06.313 | F81: 2017-07-01T14:20:37.140 | G81: 58 | H81: 2:01 PM: REGGING 2:01 PM: NEW PT 1:49 PM: CALLED NO ANS 149 | I81: Harvard Pilgrim
A82: 1992-08-03 | B82: 2017-07-01 | C82: Saturday | D82: 13:00 - 14:00 | E82: 2017-07-01T13:24:52.460 | F82: 2017-07-01T13:57:14 | G82: 33 | H82: 1:52 PM: WALL | I82: Medicaid\Mass Health
A83: 2013-10-19 | B83: 2017-07-01 | C83: Saturday | D83: 13:00 - 14:00 | E83: 2017-07-01T13:27:17.737 | F83: 2017-07-01T14:07:16.673 | G83: 40 | H83: 1:45 PM: WALL 1:43 PM: REGGING | I83: Blue Cross\Blue Shield
A84: 2005-04-18 | B84: 2017-07-01 | C84: Saturday | D84: 13:00 - 14:00 | E84: 2017-07-01T13:29:51.660 | F84: 2017-07-01T14:15:11.080 | G84: 46 | H84: 1:58 PM: REGGED, ON WALL | I84: Blue Cross\Blue Shield
A85: 2003-03-18 | B85: 2017-07-01 | C85: Saturday | D85: 13:00 - 14:00 | E85: 2017-07-01T13:30:20.100 | F85: 2017-07-01T14:16:28.453 | G85: 46 | H85: 2:16 PM: NETWORK HEALTH 2:14 PM: REGGING | I85: Tufts
A86: 1994-06-14 | B86: 2017-07-01 | C86: Saturday | D86: 13:00 - 14:00 | E86: 2017-07-01T13:31:42.657 | F86: 2017-07-01T13:57:40.797 | G86: 26 | H86: 1:55 PM: WALL 1:53 PM: REGGING | I86: Fallon Community Health Plan
A87: 1984-06-06 | B87: 2017-07-01 | C87: Saturday | D87: 13:00 - 14:00 | E87: 2017-07-01T13:35:00.093 | F87: 2017-07-01T14:00:24.580 | G87: 25 | H87: 2:00 PM: PEDI PT 2:00 PM: DUP WRONG DOB | I87: Other
A88: 2016-06-09 | B88: 2017-07-01 | C88: Saturday | D88: 13:00 - 14:00 | E88: 2017-07-01T13:36:55.050 | F88: 2017-07-01T14:19:58.047 | G88: 43 | I88: Other
A89: 1948-04-19 | B89: 2017-07-01 | C89: Saturday | D89: 13:00 - 14:00 | E89: 2017-07-01T13:38:22.813 | F89: 2017-07-01T14:33:42.360 | G89: 55 | H89: 2:12 PM: REGGED, ON WALL | I89: Tufts
A90: 2008-08-29 | B90: 2017-07-01 | C90: Saturday | D90: 13:00 - 14:00 | E90: 2017-07-01T13:56:30.043 | F90: 2017-07-01T14:29:54.360 | G90: 33 | H90: 2:20 PM: ins verified | I90: Medicaid\Mass Health
A91: 1932-04-28 | B91: 2017-07-01 | C91: Saturday | D91: 13:00 - 14:00 | E91: 2017-07-01T13:58:34.203 | F91: 2017-07-01T14:43:01.173 | G91: 45 | H91: 2:23 PM: on wall | I91: United Health Care
A92: 1951-02-19 | B92: 2017-07-01 | C92: Saturday | D92: 13:00 - 14:00 | E92: 2017-07-01T13:58:45.890 | F92: 2017-07-01T14:43:30.890 | G92: 45 | H92: 2:40 PM: on wall 2:39 PM: regging | I92: Harvard Pilgrim
A93: 1976-12-16 | B93: 2017-07-01 | C93: Saturday | D93: 14:00 - 15:00 | E93: 2017-07-01T14:00:46.833 | F93: 2017-07-01T14:52:31.407 | G93: 52 | H93: 2:46 PM: wall 2:21 PM: has cca one care now | I93: Medicaid\Mass Health
A94: 1959-08-07 | B94: 2017-07-01 | C94: Saturday | D94: 14:00 - 15:00 | E94: 2017-07-01T14:14:27.810 | F94: 2017-07-01T14:19:48.063 | G94: 5 | H94: 2:19 PM: network health | I94: Medicaid\Mass Health
A95: 1965-01-23 | B95: 2017-07-01 | C95: Saturday | D95: 14:00 - 15:00 | E95: 2017-07-01T14:18:41.037 | F95: 2017-07-01T14:32:26.203 | G95: 14 | H95: 2:32 PM: wants to go to hudson | I95: Blue Cross\Blue Shield
A96: 1999-05-17 | B96: 2017-07-01 | C96: Saturday | D96: 14:00 - 15:00 | E96: 2017-07-01T14:21:36.273 | F96: 2017-07-01T14:57:59.877 | G96: 36 | H96: 2:55 PM: PEDI PLEASE, ON WALL 2:36 PM: not mh | I96: Tufts
A97: 1958-07-15 | B97: 2017-07-01 | C97: Saturday | D97: 14:00 - 15:00 | E97: 2017-07-01T14:23:59.580 | F97: 2017-07-01T15:05:09.813 | G97: 42 | H97: 3:03 PM: WALL 2:57 PM: REGGING | I97: Blue Cross\Blue Shield
A98: 1988-12-18 | B98: 2017-07-01 | C98: Saturday | D98: 14:00 - 15:00 | E98: 2017-07-01T14:35:45.447 | F98: 2017-07-01T15:16:44.987 | G98: 41 | H98: 3:08 PM: WALL | I98: Medicaid\Mass Health
A99: 1971-11-07 | B99: 2017-07-01 | C99: Saturday | D99: 14:00 - 15:00 | E99: 2017-07-01T14:36:24.210 | F99: 2017-07-01T15:16:16.330 | G99: 40 | H99: 3:09 PM: REGGING | I99: Other
A100: 1992-12-05 | B100: 2017-07-01 | C100: Saturday | D100: 14:00 - 15:00 | E100: 2017-07-01T14:46:09.547 | F100: 2017-07-01T15:31:19 | G100: 45 | H100: 3:26 PM: WALL | I100: United Health Care
A101: 1996-03-03 | B101: 2017-07-01 | C101: Saturday | D101: 15:00 - 16:00 | E101: 2017-07-01T15:08:22.297 | F101: 2017-07-01T15:51:37.017 | G101: 43 | H101: 3:42 PM: WALL 3:31 PM: REGGING | I101: Blue Cross\Blue Shield
A102: 1996-11-07 | B102: 2017-07-01 | C102: Saturday | D102: 15:00 - 16:00 | E102: 2017-07-01T15:09:48.657 | F102: 2017-07-01T15:36:27.783 | G102: 27 | I102: Fallon Community Health Plan
A103: 2004-01-19 | B103: 2017-07-01 | C103: Saturday | D103: 15:00 - 16:00 | E103: 2017-07-01T15:17:07.750 | F103: 2017-07-01T15:20:52.937 | G103: 3
A104: 1967-07-21 | B104: 2017-07-01 | C104: Saturday | D104: 15:00 - 16:00 | E104: 2017-07-01T15:19:21.227 | F104: 2017-07-01T15:48:42.220 | G104: 29 | H104: 3:46 PM: ON WALL 3:45 PM: ASTHMA - O2 95%, WHEEZY 3:30 PM: ins ver, umass pcp | I104: Medicaid\Mass Health
A105: 1984-09-23 | B105: 2017-07-01 | C105: Saturday | D105: 15:00 - 16:00 | E105: 2017-07-01T15:20:58.977 | F105: 2017-07-01T15:53:46.843 | G105: 33 | H105: 3:50 PM: ON WALL 3:29 PM: ins ver | I105: Medicaid\Mass Health
A106: 1989-03-07 | B106: 2017-07-01 | C106: Saturday | D106: 15:00 - 16:00 | E106: 2017-07-01T15:22:11.897 | F106: 2017-07-01T16:29:19.687 | G106: 67 | H106: 4:27 PM: regged on wall 3:53 PM: CALLED NO ANS 3:52 PM: REGGING | I106: Other
A107: 2012-05-24 | B107: 2017-07-01 | C107: Saturday | D107: 15:00 - 16:00 | E107: 2017-07-01T15:37:48.627 | F107: 2017-07-01T15:53:15.750 | G107: 16 | H107: 3:52 PM: WALL 3:50 PM: REGGING | I107: Medicaid\Mass Health
A108: 1984-11-18 | B108: 2017-07-01 | C108: Saturday | D108: 15:00 - 16:00 | E108: 2017-07-01T15:39:05.323 | F108: 2017-07-01T15:57:47.360 | G108: 18 | H108: 3:55 PM: WALL 3:54 PM: REGGING | I108: Harvard Pilgrim
A109: 1933-02-05 | B109: 2017-07-01 | C109: Saturday | D109: 15:00 - 16:00 | E109: 2017-07-01T15:40:45.093 | F109: 2017-07-01T16:08:09.140 | G109: 28 | H109: 4:00 PM: WALL | I109: Blue Cross\Blue Shield
A110: 1949-06-01 | B110: 2017-07-01 | C110: Saturday | D110: 15:00 - 16:00 | E110: 2017-07-01T15:40:46.850 | F110: 2017-07-01T15:46:42.267 | G110: 6 | I110: Medicare
A111: 2016-10-23 | B111: 2017-07-01 | C111: Saturday | D111: 15:00 - 16:00 | E111: 2017-07-01T15:43:26.087 | F111: 2017-07-01T15:52:37 | G111: 9 | I111: Fallon Community Health Plan
A112: 1949-06-01 | B112: 2017-07-01 | C112: Saturday | D112: 15:00 - 16:00 | E112: 2017-07-01T15:45:08.230 | F112: 2017-07-01T16:19:42.970 | G112: 34 | H112: 4:03 PM: WALL | I112: Medicare
A113: 1958-08-06 | B113: 2017-07-01 | C113: Saturday | D113: 15:00 - 16:00 | E113: 2017-07-01T15:50:57.210 | F113: 2017-07-01T17:23:57.807 | G113: 93 | H113: 5:06 PM: on wall, self pay 5:01 PM: will copay 4:40 PM: needs referral 4:28 PM: regging | I113: Tufts
A114: 1979-02-07 | B114: 2017-07-01 | C114: Saturday | D114: 15:00 - 16:00 | E114: 2017-07-01T15:51:04.843 | F114: 2017-07-01T16:47:33.250 | G114: 56 | H114: 4:44 PM: wall | I114: Blue Cross\Blue Shield
A115: 2013-12-03 | B115: 2017-07-01 | C115: Saturday | D115: 15:00 - 16:00 | E115: 2017-07-01T15:53:08.750 | F115: 2017-07-01T16:08:25.343 | G115: 15 | I115: Blue Cross\Blue Shield
A116: 1977-10-17 | B116: 2017-07-01 | C116: Saturday | D116: 15:00 - 16:00 | E116: 2017-07-01T15:58:24.103 | F116: 2017-07-01T16:14:21.877 | G116: 16 | H116: 4:13 PM: regged on wall 4:02 PM: STABBED THUMB, PLEASE CHECK | I116: Other
A117: 1986-03-06 | B117: 2017-07-01 | C117: Saturday | D117: 16:00 - 17:00 | E117: 2017-07-01T16:23:31.243 | F117: 2017-07-01T16:53:34.360 | G117: 30 | H117: 4:47 PM: wall | I117: Blue Cross\Blue Shield
A118: 1982-04-24 | B118: 2017-07-01 | C118: Saturday | D118: 16:00 - 17:00 | E118: 2017-07-01T16:28:14.897 | F118: 2017-07-01T17:09:28.563 | G118: 41 | H118: 4:49 PM: wall | I118: Medicaid\Mass Health
A119: 2007-06-30 | B119: 2017-07-01 | C119: Saturday | D119: 17:00 - 18:00 | E119: 2017-07-01T17:16:54.330 | F119: 2017-07-01T17:29:09.967 | G119: 13 | H119: 5:20 PM: newpt | I119: Tufts
A120: 1943-05-30 | B120: 2017-07-01 | C120: Saturday | D120: 17:00 - 18:00 | E120: 2017-07-01T17:20:05.807 | F120: 2017-07-01T17:29:08.357 | G120: 9 | H120: 5:26 PM: 8ins ver | I120: Blue Cross\Blue Shield
A121: 1940-07-08 | B121: 2017-07-01 | C121: Saturday | D121: 17:00 - 18:00 | E121: 2017-07-01T17:22:23.007 | F121: 2017-07-01T17:37:04.167 | G121: 15 | H121: 5:34 PM: WALL 5:27 PM: ins ver | I121: Medicaid\Mass Health
A122: 1999-01-21 | B122: 2017-07-01 | C122: Saturday | D122: 17:00 - 18:00 | E122: 2017-07-01T17:25:42.817 | F122: 2017-07-01T17:42:20.227 | G122: 17 | H122: 5:38 PM: PEDI WALL 5:36 PM: PEDI PT 5:29 PM: ins ver | I122: Fallon Community Health Plan
A123: 1980-09-01 | B123: 2017-07-01 | C123: Saturday | D123: 17:00 - 18:00 | E123: 2017-07-01T17:45:07.243 | F123: 2017-07-01T17:53:20.833 | G123: 8 | H123: 5:53 PM: WALL | I123: Blue Cross\Blue Shield
A124: 2006-10-09 | B124: 2017-07-01 | C124: Saturday | D124: 17:00 - 18:00 | E124: 2017-07-01T17:50:57.510 | F124: 2017-07-01T17:52:48.850 | G124: 2 | I124: Cigna
A125: 2011-04-18 | B125: 2017-07-01 | C125: Saturday | D125: 18:00 - 19:00 | E125: 2017-07-01T18:05:47.843 | F125: 2017-07-01T18:11:32.117 | G125: 6 | H125: 6:07 PM: ADULT WALL 6:06 PM: REGGING | I125: Fallon Community Health Plan
A126: 1994-09-12 | B126: 2017-07-01 | C126: Saturday | D126: 18:00 - 19:00 | E126: 2017-07-01T18:11:36.933 | F126: 2017-07-01T18:18:21.693 | G126: 7 | H126: 6:14 PM: BROUGHT TO PEDI 6:13 PM: PEDI 6:12 PM: REGGING | I126: Fallon Community Health Plan
A127: 1939-10-04 | B127: 2017-07-01 | C127: Saturday | D127: 18:00 - 19:00 | E127: 2017-07-01T18:19:00.180 | F127: 2017-07-01T18:33:33.007 | G127: 14 | H127: 6:23 PM: WALL 6:20 PM: REGGING | I127: Tufts
A128: 1999-02-04 | B128: 2017-07-01 | C128: Saturday | D128: 18:00 - 19:00 | E128: 2017-07-01T18:22:03.937 | F128: 2017-07-01T18:38:57.583 | G128: 16 | H128: 6:26 PM: WALL 6:25 PM: REGGING | I128: Other
A129: 1933-08-02 | B129: 2017-07-01 | C129: Saturday | D129: 18:00 - 19:00 | E129: 2017-07-01T18:24:19.800 | F129: 2017-07-01T18:54:27.693 | G129: 30 | H129: 6:29 PM: WALL 6:29 PM: REGGING | I129: Tufts
A130: 2005-12-24 | B130: 2017-07-01 | C130: Saturday | D130: 18:00 - 19:00 | E130: 2017-07-01T18:44:26.393 | F130: 2017-07-01T18:45:33.617 | G130: 1 | H130: 6:45 PM: INS VERIFIED | I130: Fallon Community Health Plan
A131: 1979-07-20 | B131: 2017-07-01 | C131: Saturday | D131: 19:00 - 20:00 | E131: 2017-07-01T19:05:03.813 | F131: 2017-07-01T19:10:59.677 | G131: 5 | H131: 7:09 PM: REGGING | I131: Blue Cross\Blue Shield
A132: 2014-06-17 | B132: 2017-07-01 | C132: Saturday | D132: 19:00 - 20:00 | E132: 2017-07-01T19:25:52.107 | F132: 2017-07-01T19:26:30.303 | G132: 1 | I132: Medicaid\Mass Health
A133: 2004-10-28 | B133: 2017-07-01 | C133: Saturday | D133: 19:00 - 20:00 | E133: 2017-07-01T19:30:50.687 | F133: 2017-07-01T19:34:51.317 | G133: 4 | H133: 7:33 PM: regging | I133: Blue Cross\Blue Shield
A134: 2016-04-26 | B134: 2017-07-01 | C134: Saturday | D134: 19:00 - 20:00 | E134: 2017-07-01T19:33:04.820 | F134: 2017-07-01T19:33:47.913 | G134: 0 | I134: Medicaid\Mass Health
A135: 2010-04-30 | B135: 2017-07-01 | C135: Saturday | D135: 19:00 - 20:00 | E135: 2017-07-01T19:36:32.610 | F135: 2017-07-01T19:43:49.663 | G135: 7 | H135: 7:37 PM: regging | I135: Fallon Community Health Plan
A136: 1949-05-26 | B136: 2017-07-01 | C136: Saturday | D136: 13:00 - 14:00 | E136: 2017-07-01T13:07:47.753 | F136: 2017-07-01T13:44:23.487 | G136: 37 | H136: 1:25 PM: UTI-to see Dr. Le-Not wound 1:13 PM: ON WALL
A137: 1985-08-28 | B137: 2017-07-01 | C137: Saturday | D137: 15:00 - 16:00 | E137: 2017-07-01T15:20:16.283 | F137: 2017-07-01T15:41:33.377 | G137: 21 | H137: 3:31 PM: needs to be read by 4pm
A138: 1936-02-08 | B138: 2017-07-02 | C138: Sunday | D138: 12:00 - 13:00 | E138: 2017-07-02T12:19:00.873 | F138: 2017-07-02T13:04:08.900 | G138: 45 | H138: 12:30 PM: regged on wall 12:25 PM: no appt but on call dr called see telephone encounter
A139: 1957-09-05 | B139: 2017-07-02 | C139: Sunday | D139: 08:00 - 09:00 | E139: 2017-07-02T08:46:25.180 | F139: 2017-07-02T08:54:41.473 | G139: 8 | I139: Fallon Community Health Plan
A140: 1965-07-19 | B140: 2017-07-02 | C140: Sunday | D140: 08:00 - 09:00 | E140: 2017-07-02T08:50:12.150 | F140: 2017-07-02T09:01:38.427 | G140: 11 | H140: 8:59 AM: regged on wall 8:55 AM: regging | I140: Blue Cross\Blue Shield
A141: 1961-07-01 | B141: 2017-07-02 | C141: Sunday | D141: 08:00 - 09:00 | E141: 2017-07-02T08:59:09.860 | F141: 2017-07-02T08:59:50.503 | G141: 0 | I141: Fallon Community Health Plan
A142: 2014-03-20 | B142: 2017-07-02 | C142: Sunday | D142: 09:00 - 10:00 | E142: 2017-07-02T09:00:42.757 | F142: 2017-07-02T09:02:14.537 | G142: 2 | I142: Blue Cross\Blue Shield
A143: 2007-07-12 | B143: 2017-07-02 | C143: Sunday | D143: 09:00 - 10:00 | E143: 2017-07-02T09:03:04.727 | F143: 2017-07-02T09:07:20.253 | G143: 4 | I143: Blue Cross\Blue Shield
A144: 2013-07-10 | B144: 2017-07-02 | C144: Sunday | D144: 09:00 - 10:00 | E144: 2017-07-02T09:05:35.323 | F144: 2017-07-02T09:11:32.847 | G144: 6 | H144: 9:09 AM: regged on adult wall 9:06 AM: regging | I144: United Health Care
A145: 2016-09-19 | B145: 2017-07-02 | C145: Sunday | D145: 09:00 - 10:00 | E145: 2017-07-02T09:05:38.330 | F145: 2017-07-02T09:16:07.770 | G145: 11 | I145: Medicaid\Mass Health
A146: 1962-09-25 | B146: 2017-07-02 | C146: Sunday | D146: 09:00 - 10:00 | E146: 2017-07-02T09:07:08.700 | F146: 2017-07-02T09:16:24.987 | G146: 9 | H146: 9:11 AM: regged on wall 9:10 AM: regging | I146: Fallon Community Health Plan
A147: 1987-06-09 | B147: 2017-07-02 | C147: Sunday | D147: 09:00 - 10:00 | E147: 2017-07-02T09:08:03.933 | F147: 2017-07-02T09:20:46.973 | G147: 12 | H147: 9:17 AM: regged on wall | I147: Medicaid\Mass Health
A148: 2010-12-01 | B148: 2017-07-02 | C148: Sunday | D148: 09:00 - 10:00 | E148: 2017-07-02T09:08:39.623 | F148: 2017-07-02T09:28:24.207 | G148: 20 | I148: Harvard Pilgrim
A149: 1956-11-18 | B149: 2017-07-02 | C149: Sunday | D149: 09:00 - 10:00 | E149: 2017-07-02T09:11:39.680 | F149: 2017-07-02T09:30:59.537 | G149: 19 | H149: 9:27 AM: regged on wall 9:24 AM: regging 9:22 AM: ins ver | I149: Blue Cross\Blue Shield
A150: 2013-10-26 | B150: 2017-07-02 | C150: Sunday | D150: 09:00 - 10:00 | E150: 2017-07-02T09:12:10.020 | F150: 2017-07-02T09:33:10.410 | G150: 21 | I150: United Health Care
A151: 1985-05-24 | B151: 2017-07-02 | C151: Sunday | D151: 09:00 - 10:00 | E151: 2017-07-02T09:13:24.953 | F151: 2017-07-02T09:27:19.177 | G151: 14 | H151: 9:23 AM: community care | I151: Other
A152: 1988-09-20 | B152: 2017-07-02 | C152: Sunday | D152: 09:00 - 10:00 | E152: 2017-07-02T09:15:37.473 | F152: 2017-07-02T09:43:58.910 | G152: 28 | H152: 9:30 AM: regged on wall 9:29 AM: regging | I152: Harvard Pilgrim
A153: 1999-04-20 | B153: 2017-07-02 | C153: Sunday | D153: 09:00 - 10:00 | E153: 2017-07-02T09:17:38.403 | F153: 2017-07-02T09:50:10.910 | G153: 33 | H153: 9:35 AM: regged on wall | I153: Medicaid\Mass Health
A154: 1973-05-06 | B154: 2017-07-02 | C154: Sunday | D154: 09:00 - 10:00 | E154: 2017-07-02T09:19:57.190 | F154: 2017-07-02T10:05:31.753 | G154: 46 | H154: 9:46 AM: regged on wall | I154: Blue Cross\Blue Shield
A155: 1963-02-18 | B155: 2017-07-02 | C155: Sunday | D155: 09:00 - 10:00 | E155: 2017-07-02T09:33:38.803 | F155: 2017-07-02T10:17:14.613 | G155: 44 | H155: 9:52 AM: regged on wall | I155: Harvard Pilgrim
A156: 1973-12-13 | B156: 2017-07-02 | C156: Sunday | D156: 09:00 - 10:00 | E156: 2017-07-02T09:37:28.033 | F156: 2017-07-02T10:08:52.410 | G156: 31 | H156: 9:41 AM: rabies vaccine 9:39 AM: regged on wall
A157: 1975-01-11 | B157: 2017-07-02 | C157: Sunday | D157: 09:00 - 10:00 | E157: 2017-07-02T09:39:38.560 | F157: 2017-07-02T10:20:14.880 | G157: 41 | H157: 10:06 AM: regged on wall | I157: Blue Cross\Blue Shield
A158: 1978-11-15 | B158: 2017-07-02 | C158: Sunday | D158: 09:00 - 10:00 | E158: 2017-07-02T09:46:12.663 | F158: 2017-07-02T10:33:21.583 | G158: 47 | H158: 10:11 AM: regged onw all 9:47 AM: dog bite, controlled bleeding | I158: Fallon Community Health Plan
A159: 2003-04-24 | B159: 2017-07-02 | C159: Sunday | D159: 09:00 - 10:00 | E159: 2017-07-02T09:50:43.803 | F159: 2017-07-02T09:56:59.317 | G159: 6 | H159: 9:56 AM: ins ver | I159: Blue Cross\Blue Shield
A160: 2017-02-01 | B160: 2017-07-02 | C160: Sunday | D160: 09:00 - 10:00 | E160: 2017-07-02T09:52:26.757 | F160: 2017-07-02T10:03:24.347 | G160: 11 | H160: 9:58 AM: regged adult wall 9:57 AM: ins ver | I160: Medicaid\Mass Health
A161: 1960-09-28 | B161: 2017-07-02 | C161: Sunday | D161: 09:00 - 10:00 | E161: 2017-07-02T09:52:55.343 | F161: 2017-07-02T10:34:13.143 | G161: 42 | H161: 10:14 AM: regged on wlal | I161: Fallon Community Health Plan
A162: 2016-10-03 | B162: 2017-07-02 | C162: Sunday | D162: 09:00 - 10:00 | E162: 2017-07-02T09:54:22.740 | F162: 2017-07-02T10:12:33.597 | G162: 18 | H162: 9:58 AM: regged adult wall 9:57 AM: ins ver | I162: Medicaid\Mass Health
A163: 2005-02-25 | B163: 2017-07-02 | C163: Sunday | D163: 09:00 - 10:00 | E163: 2017-07-02T09:55:36.443 | F163: 2017-07-02T10:13:19.927 | G163: 18 | I163: Blue Cross\Blue Shield
A164: 2007-04-21 | B164: 2017-07-02 | C164: Sunday | D164: 10:00 - 11:00 | E164: 2017-07-02T10:03:45.620 | F164: 2017-07-02T10:09:43.037 | G164: 6 | H164: 10:09 AM: network health, going to carewell | I164: Medicaid\Mass Health
A165: 1975-10-03 | B165: 2017-07-02 | C165: Sunday | D165: 10:00 - 11:00 | E165: 2017-07-02T10:07:47.440 | F165: 2017-07-02T10:34:14.537 | G165: 27 | H165: 10:19 AM: regged on wall | I165: Other
A166: 1929-11-15 | B166: 2017-07-02 | C166: Sunday | D166: 10:00 - 11:00 | E166: 2017-07-02T10:10:06.313 | F166: 2017-07-02T10:39:01.833 | G166: 29 | H166: 10:39 AM: regged on wall | I166: Tufts
A167: 2009-04-18 | B167: 2017-07-02 | C167: Sunday | D167: 10:00 - 11:00 | E167: 2017-07-02T10:10:07.367 | F167: 2017-07-02T10:34:11.253 | G167: 24 | H167: 10:25 AM: ins ver | I167: Fallon Community Health Plan
A168: 1962-10-13 | B168: 2017-07-02 | C168: Sunday | D168: 10:00 - 11:00 | E168: 2017-07-02T10:14:16.420 | F168: 2017-07-02T10:45:14.910 | G168: 31 | H168: 10:40 AM: regged on wall | I168: Blue Cross\Blue Shield
A169: 1968-02-01 | B169: 2017-07-02 | C169: Sunday | D169: 10:00 - 11:00 | E169: 2017-07-02T10:15:10.957 | F169: 2017-07-02T10:58:33.893 | G169: 43 | H169: 10:43 AM: regged on wall | I169: Blue Cross\Blue Shield
